Workbook

Sheet SMI Analyse KGV
AY1: 18
A3: Financial Analysis SMI/SMIM et al. | D3: per | M3: =Daten!H3 -> 20250124 | N3: =Daten!H3 -> 20250124 | V3: Kolonnen E - L einblenden für weitere Gewinndaten!
D5: =C5 ->  | P5: KGV 2022 gewichtet SMI | Q5: =BT55/BW55 -> 27.54045211 | R5: =Q5 -> 27.54045211 | W5: letzter ausgewiesener Jahresabschluss | AJ5: =$AN$2 -> 0 | AK5: Bewertung günstig
B6: KGV Ø Gewinn 10 Jahre gewichtet SMI | C6: =BT55/BU55 -> 31.53565042 | D6: =C6 -> 31.53565042 | P6: KGV 2023 gewichtet SMI | Q6: =BT55/BV55 -> 25.46517836 | R6: =Q6 -> 25.46517836 | W6: Schätzung | AJ6: =$AY$1 -> 18 | AK6: Bewertung teuer | BA6: Abschlusses
B7: KGV Ø Gewinn 10 Jahre gewichtet SMIM | C7: =BT152/BU152 -> 51.709608 | D7: =C7 -> 51.709608 | P7: KGV 2023 gewichtet SMIM | Q7: =BT152/BV152 -> 35.68287824 | R7: =Q7 -> 35.68287824
D9: Ø Gewinn | G9: Gewinn pro Aktie | N9: Gewinn pro Aktie | X9: akt. Kurs | Z9: akt. Kurs | AB9: KGV 2005 | AD9: KGV 2006 | AF9: KGV 2007 | AH9: KGV 2008 | AW9: KGV 2016 | AY9: KGV 2015 | BA9: KGV 2014 | BC9: KGV 2012 | BE9: KGV 2011 | BG9: KGV 2010 | BJ9: KGV 2009 | BL9: Ø Gewinn | BN9: Ø Gewinnverän- | BP9: Ø Gewinn- | BS9: Gewichtung | BT9: gewichteter | BU9: gewichteter | BV9: gewichteter | BW9: gewichteter | BX9: gewichtetes | BY9: gewichtetes | BZ9: gewichtetes | CA9: gewichtetes | CB9: gewichtetes | CC9: gewichtetes | CD9: gewichtetes | CE9: gewichtetes | CF9: gewichtetes | CG9: gewichtetes | CH9: gewichtetes | CJ9: Gewichtung
D10: 2014 - 2023 | E10: 2005 | F10: 2006 | G10: 2007 | H10: 2008 | I10: 2009 | J10: 2010 | K10: 2011 | L10: 2012 | M10: 2013 | N10: 2014 | O10: 2015 | P10: 2016 | Q10: 2017 | R10: 2018 | S10: 2019 | T10: 2020 | U10: 2021 | V10: 2022 | W10: 2023 | Z10: in RW | AI10: KGV2023 | AK10: KGV2022 | AM10: KGV2021 | AO10: KGV2020 | AQ10: KGV2019 | AS10: KGV2018 | AU10: KGV2017 | BL10: 14-23 KGV | BN10: derungsraten 10J | BP10: wachstum 10 J | BS10: per 28.6.24 | BT10: Preis | BU10: Gewinn 14 -23 | BV10: Gewinn 2023 | BW10: Gewinn 2022 | BX10: KGV2021 | BY10: KGV2020 | BZ10: KGV2019 | CA10: KGV2018 | CB10: KGV2017 | CC10: KGV2016 | CD10: KGV2015 | CE10: KGV2014 | CF10: KGV12 | CG10: KGV11 | CH10: KGV10 | CJ10: per 16.3.10
BS11: gem. ETF SMI iShares
A13: SMI Titel
A15: USD | B15: ABB LTD N | C15: ABBN | D15: =SUM(N15:W15)/10 -> 1.363 | E15: 0.36 | F15: 0.63 | G15: 1.63 | H15: 1.36 | I15: 1.27 | J15: 1.12 | K15: 1.38 | L15: 1.18 | M15: 1.21 | N15: 1.13 | O15: 0.87 | P15: 0.88 | Q15: 1.04 | R15: 1.02 | S15: 0.67 | T15: 2.44 | U15: 2.27 | V15: 1.3 | W15: 2.01 | X15: =LOOKUP(C15,Daten!$C$2:$C$300,Daten!$E$2:$E$500) -> 54 | Z15: =X15/Währungskurse!C$4 -> 59.34065934 | AB15: =Z15/E15 -> 164.8351648 | AD15: =Z15/F15 -> 94.19152276 | AF15: =Z15/G15 -> 36.40531248 | AH15: =Z15/H15 -> 43.63283775 | AI15: =Z15/W15 -> 29.52271609 | AJ15: =AI15 -> 29.52271609 | AK15: =Z15/V15 -> 45.64666103 | AL15: =AK15 -> 45.64666103 | AM15: =Z15/U15 -> 26.14125962 | AN15: =AM15 -> 26.14125962 | AO15: =Z15/T15 -> 24.31994235 | AP15: =AO15 -> 24.31994235 | AQ15: =Z15/S15 -> 88.56814827 | AR15: =AQ15 -> 88.56814827 | AS15: =Z15/R15 -> 58.177117 | AT15: =AS15 -> 58.177117 | AU15: =Z15/Q15 -> 57.05832629 | AV15: =AU15 -> 57.05832629 | AW15: =Z15/P15 -> 67.43256743 | AX15: =AW15 -> 67.43256743 | AY15: =Z15/O15 -> 68.20765441 | AZ15: =AY15 -> 68.20765441 | BA15: =Z15/N15 -> 52.51385782 | BB15: =BA15 -> 52.51385782 | BC15: =Z15/L15 -> 50.28869436 | BD15: =BC15 -> 50.28869436 | BE15: =Z15/K15 -> 43.00047778 | BF15: =BE15 -> 43.00047778 | BG15: =Z15/J15 -> 52.98273155 | BH15: =BG15 -> 52.98273155 | BJ15: =Z15/I15 -> 46.72492861 | BK15: =BJ15 -> 46.72492861 | BL15: =Z15/D15 -> 43.53680069 | BM15: =BL15 -> 43.53680069 | BN15: =Tabelle1!N13 -> 0.2225700197 | BO15: =IF(BN15>0,BN15,10) -> 0.2225700197 | BP15: =IF(W15>N15,(W15-N15)/N15,-(N15-W15)/N15) -> 0.7787610619 | BQ15: =BP15 -> 0.7787610619 | BS15: 6.39 | BT15: =BS15/100*Z15 -> 3.791868132 | BU15: =D15*(BS15/100) -> 0.0870957 | BV15: =W15*(BS15/100) -> 0.128439 | BW15: =V15*(BS15/100) -> 0.08307 | BX15: =AM15*BS15 -> 167.042649 | BY15: =AO15*BS15 -> 155.4044316 | BZ15: =AQ15*BS15 -> 565.9504674 | CA15: =AS15*BS15 -> 371.7517776 | CB15: =AU15*BS15 -> 364.602705 | CC15: =AW15*BS15 -> 430.8941059 | CD15: =AY15*BS15 -> 435.8469117 | CE15: =BA15*BS15 -> 335.5635515 | CF15: =BC15*BS15 -> 321.3447569 | CG15: =BE15*BS15 -> 274.773053 | CH15: =BG15*BS15 -> 338.5596546 | CJ15: 6.09
A17: USD | B17: ALCON N | C17: ALC | D17: =SUM(N17:W17)/10 -> 0.103 | Q17: 0.52 | R17: -0.46 | S17: -1.34 | T17: -1.09 | U17: 0.76 | V17: 0.68 | W17: 1.96 | X17: =LOOKUP(C17,Daten!$C$2:$C$300,Daten!$E$2:$E$500) -> 80.62 | Z17: =X17/Währungskurse!C$5 -> 84.86315789 | AI17: =Z17/W17 -> 43.29752954 | AJ17: =AI17 -> 43.29752954 | AK17: =Z17/V17 -> 124.7987616 | AL17: =AK17 -> 124.7987616 | AM17: =Z17/U17 -> 111.6620499 | AN17: =AM17 -> 111.6620499 | AO17: na | AP17: =AO17 -> na | AQ17: na | AR17: =AQ17 -> na | AS17: na | AT17: =AS17 -> na | BL17: =Z17/D17 -> 823.9141543 | BM17: =BL17 -> 823.9141543 | BN17: =Tabelle1!N15 -> -0.02279236817 | BO17: =IF(BN17>0,BN17,10) -> 10 | BP17: =IF(W17>N17,(W17-Q17)/Q17,-(Q17-W17)/Q17) -> 2.769230769 | BQ17: =BP17 -> 2.769230769 | BS17: 3.22 | BT17: =BS17/100*Z17 -> 2.732593684 | BU17: =D17*(BS17/100) -> 0.0033166 | BV17: =W17*(BS17/100) -> 0.063112 | BW17: =V17*(BS17/100) -> 0.021896 | BX17: =AM17*BS17 -> 359.5518006 | BY17: 0 | BZ17: 0
B19: GEBERIT N | C19: GEBN | D19: =SUM(N19:W19)/10 -> 16.585 | E19: 6.47 | F19: 8.86 | G19: 11.67 | H19: 11.9 | I19: 10.18 | J19: 10.32 | K19: 9.82 | L19: 10.29 | M19: 11.58 | N19: 13.26 | O19: 11.31 | P19: 14.85 | Q19: 14.31 | R19: 16.39 | S19: 17.93 | T19: 17.88 | U19: 21.16 | V19: 20.41 | W19: 18.35 | X19: =LOOKUP(C19,Daten!$C$2:$C$300,Daten!$E$2:$E$500) -> 498.3 | AI19: =X19/W19 -> 27.15531335 | AJ19: =AI19 -> 27.15531335 | AK19: =X19/V19 -> 24.41450269 | AL19: =AK19 -> 24.41450269 | AM19: =X19/U19 -> 23.54914934 | AN19: =AM19 -> 23.54914934 | AO19: =X19/T19 -> 27.86912752 | AP19: =AO19 -> 27.86912752 | AQ19: =X19/S19 -> 27.79141104 | AR19: =AQ19 -> 27.79141104 | AS19: =X19/R19 -> 30.40268456 | AT19: =AS19 -> 30.40268456 | AU19: =X19/Q19 -> 34.82180294 | AV19: =AU19 -> 34.82180294 | AW19: =X19/P19 -> 33.55555556 | AX19: =AW19 -> 33.55555556 | AY19: =X19/O19 -> 44.05835544 | AZ19: =AY19 -> 44.05835544 | BA19: =X19/N19 -> 37.57918552 | BB19: =BA19 -> 37.57918552 | BC19: =X19/L19 -> 48.42565598 | BD19: =BC19 -> 48.42565598 | BE19: =X19/K19 -> 50.74338086 | BF19: =BE19 -> 50.74338086 | BG19: =X19/J19 -> 48.28488372 | BH19: =BG19 -> 48.28488372 | BJ19: =X19/I19 -> 48.94891945 | BK19: =BJ19 -> 48.94891945 | BL19: =X19/D19 -> 30.04522159 | BM19: =BL19 -> 30.04522159 | BN19: =Tabelle1!N17 -> 0.05582466565 | BO19: =IF(BN19>0,BN19,10) -> 0.05582466565 | BP19: =IF(W19>N19,(W19-N19)/N19,-(N19-W19)/N19) -> 0.3838612368 | BQ19: =BP19 -> 0.3838612368 | BS19: 1.43 | BT19: =BS19/100*X19 -> 7.12569 | BU19: =D19*(BS19/100) -> 0.2371655 | BV19: =W19*(BS19/100) -> 0.262405 | BW19: =V19*(BS19/100) -> 0.291863 | BX19: =AM19*BS19 -> 33.67528355 | BY19: =AO19*BS19 -> 39.85285235 | BZ19: =AQ19*BS19 -> 39.74171779 | CA19: =AS19*BS19 -> 43.47583893 | CB19: =AU19*BS19 -> 49.7951782 | CC19: =AW19*BS19 -> 47.98444444 | CD19: =AY19*BS19 -> 63.00344828 | CE19: =BA19*BS19 -> 53.73823529 | CF19: =BC19*BS19 -> 69.24868805 | CG19: =BE19*BS19 -> 72.56303462 | CH19: =BG19*BS19 -> 69.04738372
B21: GIVAUDAN N | C21: GIVN | D21: =SUM(N21:W21)/10 -> 77.855 | E21: 56.17 | F21: 58.62 | G21: 13.2 | H21: 14.98 | I21: 24.97 | J21: 37.63 | K21: 27.55 | L21: 44.85 | M21: 52.83 | N21: 60.35 | O21: 67.06 | P21: 69.34 | Q21: 77.54 | R21: 71.36 | S21: 75.59 | T21: 79.96 | U21: 88.37 | V21: 92.51 | W21: 96.47 | X21: =LOOKUP(C21,Daten!$C$2:$C$300,Daten!$E$2:$E$500) -> 3818 | AI21: =X21/W21 -> 39.57707059 | AJ21: =AI21 -> 39.57707059 | AK21: =X21/V21 -> 41.27121392 | AL21: =AK21 -> 41.27121392 | AM21: =X21/U21 -> 43.20470748 | AN21: =AM21 -> 43.20470748 | AO21: =X21/T21 -> 47.74887444 | AP21: =AO21 -> 47.74887444 | AQ21: =X21/S21 -> 50.50932663 | AR21: =AQ21 -> 50.50932663 | AS21: =X21/R21 -> 53.50336323 | AT21: =AS21 -> 53.50336323 | AU21: =X21/Q21 -> 49.2391024 | AV21: =AU21 -> 49.2391024 | AW21: =X21/P21 -> 55.06201327 | AX21: =AW21 -> 55.06201327 | AY21: =X21/O21 -> 56.93408888 | AZ21: =AY21 -> 56.93408888 | BA21: =X21/N21 -> 63.26429163 | BB21: =BA21 -> 63.26429163 | BC21: =X21/L21 -> 85.12820513 | BD21: =BC21 -> 85.12820513 | BE21: =X21/K21 -> 138.584392 | BF21: =BE21 -> 138.584392 | BG21: =X21/J21 -> 101.4615998 | BH21: =BG21 -> 101.4615998 | BJ21: =X21/I21 -> 152.9034842 | BK21: =BJ21 -> 152.9034842 | BL21: =X21/D21 -> 49.03988183 | BM21: =BL21 -> 49.03988183 | BN21: =Tabelle1!N19 -> 0.06380056205 | BO21: =IF(BN21>0,BN21,10) -> 0.06380056205 | BP21: =IF(W21>N21,(W21-N21)/N21,-(N21-W21)/N21) -> 0.5985086993 | BQ21: =BP21 -> 0.5985086993 | BS21: 2.61 | BT21: =BS21/100*X21 -> 99.6498 | BU21: =D21*(BS21/100) -> 2.0320155 | BV21: =W21*(BS21/100) -> 2.517867 | BW21: =V21*(BS21/100) -> 2.414511 | BX21: =AM21*BS21 -> 112.7642865 | BY21: =AO21*BS21 -> 124.6245623 | BZ21: =AQ21*BS21 -> 131.8293425 | CA21: =AS21*BS21 -> 139.643778 | CB21: =AU21*BS21 -> 128.5140573 | CC21: =AW21*BS21 -> 143.7118546 | CD21: =AY21*BS21 -> 148.597972 | CE21: =BA21*BS21 -> 165.1198012 | CF21: =BC21*BS21 -> 222.1846154 | CG21: =BE21*BS21 -> 361.7052632 | CH21: =BG21*BS21 -> 264.8147754
B23: HOLCIM | C23: HOLN | D23: =SUM(N23:W23)/10 -> 2.449 | E23: 6.52 | F23: 8.5 | G23: 14.73 | H23: 6.81 | I23: 4.93 | J23: 3.69 | K23: 0.86 | L23: 1.92 | M23: 3.91 | N23: 3.95 | O23: -3.11 | P23: 2.96 | Q23: -2.78 | R23: 2.52 | S23: 3.68 | T23: 2.74 | U23: 3.72 | V23: 5.46 | W23: 5.35 | X23: =LOOKUP(C23,Daten!$C$2:$C$300,Daten!$E$2:$E$500) -> 91.22 | AB23: =X23/E23 -> 13.99079755 | AD23: =X23/F23 -> 10.73176471 | AF23: =X23/G23 -> 6.192803802 | AH23: =X23/H23 -> 13.39500734 | AI23: =X23/W23 -> 17.05046729 | AJ23: =AI23 -> 17.05046729 | AK23: =X23/V23 -> 16.70695971 | AL23: =AK23 -> 16.70695971 | AM23: =X23/U23 -> 24.52150538 | AN23: =AM23 -> 24.52150538 | AO23: =X23/T23 -> 33.2919708 | AP23: =AO23 -> 33.2919708 | AQ23: =X23/S23 -> 24.78804348 | AR23: =AQ23 -> 24.78804348 | AS23: =X23/R23 -> 36.1984127 | AT23: =AS23 -> 36.1984127 | AU23: na | AV23: =AU23 -> na | AW23: =X23/P23 -> 30.81756757 | AX23: =AW23 -> 30.81756757 | AY23: =X23/O23 -> -29.33118971 | AZ23: =AY23 -> -29.33118971 | BA23: =X23/N23 -> 23.09367089 | BB23: =BA23 -> 23.09367089 | BC23: =X23/L23 -> 47.51041667 | BD23: =BC23 -> 47.51041667 | BE23: =X23/K23 -> 106.0697674 | BF23: =BE23 -> 106.0697674 | BG23: =X23/J23 -> 24.72086721 | BH23: =BG23 -> 24.72086721 | BJ23: =X23/I23 -> 18.5030426 | BK23: =BJ23 -> 18.5030426 | BL23: =X23/D23 -> 37.24785627 | BM23: =BL23 -> 37.24785627 | BN23: =Tabelle1!N21 -> 0.1152084853 | BO23: =IF(BN23>0,BN23,10) -> 0.1152084853 | BP23: =IF(W23>N23,(W23-N23)/N23,-(N23-W23)/N23) -> 0.3544303797 | BQ23: =BP23 -> 0.3544303797 | BS23: 3.46 | BT23: =BS23/100*X23 -> 3.156212 | BU23: =D23*(BS23/100) -> 0.0847354 | BV23: =W23*(BS23/100) -> 0.18511 | BW23: =V23*(BS23/100) -> 0.188916 | BX23: =AM23*BS23 -> 84.8444086 | BY23: =AO23*BS23 -> 115.190219 | BZ23: =AQ23*BS23 -> 85.76663043 | CA23: =AS23*BS23 -> 125.2465079 | CB23: =AU23*BS23 ->  | CC23: =AW23*BS23 -> 106.6287838 | CD23: =AY23*BS23 -> -101.4859164 | CE23: =BA23*BS23 -> 79.90410127 | CF23: =BC23*BS23 -> 164.3860417 | CG23: =BE23*BS23 -> 367.0013953 | CH23: =BG23*BS23 -> 85.53420054 | CJ23: 2.42
B25: KÜHNE & NAGEL | C25: KNIN | D25: =SUM(N25:W25)/10 -> 9.369 | I25: 3.9 | J25: 5.1 | K25: 5 | L25: 4 | M25: 5 | N25: 5.28 | O25: 5.64 | P25: 5.99 | Q25: 6.16 | R25: 6.43 | S25: 6.67 | T25: 6.59 | U25: 16.88 | V25: 22.03 | W25: 12.02 | X25: =LOOKUP(C25,Daten!$C$2:$C$300,Daten!$E$2:$E$500) -> 204.6 | AI25: =X25/W25 -> 17.02163062 | AJ25: =AI25 -> 17.02163062 | AK25: =X25/V25 -> 9.287335452 | AL25: =AK25 -> 9.287335452 | AM25: =X25/U25 -> 12.12085308 | AN25: =AM25 -> 12.12085308 | AO25: =X25/T25 -> 31.04704097 | AP25: =AO25 -> 31.04704097 | AQ25: =X25/S25 -> 30.67466267 | AR25: =AQ25 -> 30.67466267 | AS25: =X25/R25 -> 31.81959565 | AT25: =AS25 -> 31.81959565 | AU25: na | AV25: =AU25 -> na | AW25: =X25/P25 -> 34.15692821 | AX25: =AW25 -> 34.15692821 | AY25: =X25/O25 -> 36.27659574 | AZ25: =AY25 -> 36.27659574 | BA25: =X25/N25 -> 38.75 | BB25: =BA25 -> 38.75 | BC25: =X25/L25 -> 51.15 | BD25: =BC25 -> 51.15 | BE25: =X25/K25 -> 40.92 | BF25: =BE25 -> 40.92 | BG25: =X25/J25 -> 40.11764706 | BH25: =BG25 -> 40.11764706 | BJ25: =X25/I25 -> 52.46153846 | BK25: =BJ25 -> 52.46153846 | BL25: =X25/D25 -> 21.8379763 | BM25: =BL25 -> 21.8379763 | BN25: =Tabelle1!N23 -> 0.1695952544 | BO25: =IF(BN25>0,BN25,10) -> 0.1695952544 | BP25: =IF(W25>N25,(W25-N25)/N25,-(N25-W25)/N25) -> 1.276515152 | BQ25: =BP25 -> 1.276515152 | BS25: 1.24 | BT25: =BS25/100*X25 -> 2.53704 | BU25: =D25*(BS25/100) -> 0.1161756 | BV25: =W25*(BS25/100) -> 0.149048 | BW25: =V25*(BS25/100) -> 0.273172 | BX25: =AM25*BS25 -> 15.02985782 | BY25: =AO25*BS25 -> 38.4983308 | BZ25: =AQ25*BS25 -> 38.03658171 | CA25: =AS25*BS25 -> 39.4562986 | CB25: =AU25*BS25 ->  | CC25: =AW25*BS25 -> 42.35459098 | CD25: =AY25*BS25 -> 44.98297872 | CE25: =BA25*BS25 -> 48.05 | CF25: =BC25*BS25 -> 63.426 | CG25: =BE25*BS25 -> 50.7408 | CH25: =BG25*BS25 -> 49.74588235
A27: USD | B27: LOGITECH | C27: LOGN | D27: =SUM(N27:W27)/10 -> 2.263 | I27: 0.39 | J27: 0.74 | K27: 0.36 | L27: -1.44 | M27: 0.46 | N27: 0.06 | O27: 0.53 | P27: 1.24 | Q27: 1.23 | R27: 1.52 | S27: 2.66 | T27: 5.51 | U27: 3.78 | V27: 2.23 | W27: 3.87 | X27: =LOOKUP(C27,Daten!$C$2:$C$300,Daten!$E$2:$E$500) -> 82.52 | Z27: =X27/Währungskurse!C$5 -> 86.86315789 | AI27: =Z27/W27 -> 22.44526044 | AJ27: =AI27 -> 22.44526044 | AK27: =Z27/V27 -> 38.95208874 | AL27: =AK27 -> 38.95208874 | AM27: =Z27/U27 -> 22.9796714 | AN27: =AM27 -> 22.9796714 | AO27: =Z27/T27 -> 15.76463846 | AP27: =AO27 -> 15.76463846 | AQ27: =Z27/S27 -> 32.65532252 | AR27: =AQ27 -> 32.65532252 | AS27: =Z27/R27 -> 57.1468144 | AT27: =AS27 -> 57.1468144 | AU27: =Z27/Q27 -> 70.62045357 | AV27: =AU27 -> 70.62045357 | AW27: =Z27/P27 -> 70.05093379 | AX27: =AW27 -> 70.05093379 | AY27: =Z27/O27 -> 163.8927507 | AZ27: =AY27 -> 163.8927507 | BA27: =Z27/N27 -> 1447.719298 | BB27: =BA27 -> 1447.719298 | BC27: =Z27/L27 -> -60.32163743 | BD27: =BC27 -> -60.32163743 | BE27: =Z27/K27 -> 241.2865497 | BF27: =BE27 -> 241.2865497 | BG27: =Z27/J27 -> 117.3826458 | BH27: =BG27 -> 117.3826458 | BJ27: =Z27/I27 -> 222.7260459 | BK27: =BJ27 -> 222.7260459 | BL27: =Z27/D27 -> 38.38407331 | BM27: =BL27 -> 38.38407331 | BN27: =Tabelle1!N25 -> 1.036392568 | BO27: =IF(BN27>0,BN27,10) -> 1.036392568 | BP27: =IF(W27>N27,(W27-N27)/N27,-(N27-W27)/N27) -> 63.5 | BQ27: =BP27 -> 63.5 | BS27: 1.01 | BT27: =BS27/100*Z27 -> 0.8773178947 | BU27: =D27*(BS27/100) -> 0.0228563 | BV27: =W27*(BS27/100) -> 0.039087 | BW27: =V27*(BS27/100) -> 0.022523 | BX27: =AM27*BS27 -> 23.20946811 | BY27: =AO27*BS27 -> 15.92228484 | BZ27: =AQ27*BS27 -> 32.98187574 | CA27: =AS27*BS27 -> 57.71828255 | CB27: =AU27*BS27 -> 71.32665811 | CC27: =AW27*BS27 -> 70.75144312 | CD27: =AY27*BS27 -> 165.5316783 | CE27: =BA27*BS27 -> 1462.196491 | CF27: =BC27*BS27 -> -60.9248538 | CG27: =BE27*BS27 -> 243.6994152 | CH27: =BG27*BS27 -> 118.5564723
B29: LONZA N | C29: LONN | D29: =SUM(N29:W29)/10 -> 11.859 | E29: 3.87 | F29: 4.3 | G29: 5.88 | H29: 8.15 | I29: 3.17 | J29: 5.53 | K29: 2.97 | L29: 3.5 | M29: 1.67 | N29: 4.54 | O29: 5.26 | P29: 5.69 | Q29: 10.6 | R29: 7.48 | S29: 8.65 | T29: 11.63 | U29: 39.52 | V29: 16.34 | W29: 8.88 | X29: =LOOKUP(C29,Daten!$C$2:$C$300,Daten!$E$2:$E$500) -> 591 | AI29: =X29/W29 -> 66.55405405 | AJ29: =AI29 -> 66.55405405 | AK29: =X29/V29 -> 36.16891065 | AL29: =AK29 -> 36.16891065 | AM29: =X29/U29 -> 14.95445344 | AN29: =AM29 -> 14.95445344 | AO29: =X29/T29 -> 50.81685297 | AP29: =AO29 -> 50.81685297 | AQ29: =X29/S29 -> 68.32369942 | AR29: =AQ29 -> 68.32369942 | AS29: =X29/R29 -> 79.01069519 | AT29: =AS29 -> 79.01069519 | AU29: =X29/Q29 -> 55.75471698 | AV29: =AU29 -> 55.75471698 | AW29: =X29/P29 -> 103.8664323 | AX29: =AW29 -> 103.8664323 | AY29: =X29/O29 -> 112.3574144 | AZ29: =AY29 -> 112.3574144 | BL29: =X29/D29 -> 49.83556792 | BM29: =BL29 -> 49.83556792 | BN29: =Tabelle1!N27 -> 0.4383427323 | BO29: =IF(BN29>0,BN29,10) -> 0.4383427323 | BP29: =IF(W29>N29,(W29-N29)/N29,-(N29-W29)/N29) -> 0.9559471366 | BQ29: =BP29 -> 0.9559471366 | BS29: 2.99 | BT29: =BS29/100*X29 -> 17.6709 | BU29: =D29*(BS29/100) -> 0.3545841 | BV29: =W29*(BS29/100) -> 0.265512 | BW29: =V29*(BS29/100) -> 0.488566 | BX29: =AM29*BS29 -> 44.71381579 | BY29: =AO29*BS29 -> 151.9423904 | BZ29: =AQ29*BS29 -> 204.2878613 | CA29: =AS29*BS29 -> 236.2419786 | CB29: =AU29*BS29 -> 166.7066038 | CC29: =AW29*BS29 -> 310.5606327 | CD29: =AY29*BS29 -> 335.9486692 | CE29: =BA29*BS29 -> 0 | CF29: =BC29*BS29 -> 0 | CG29: =BE29*BS29 -> 0 | CH29: =BG29*BS29 -> 0
B31: NESTLE N | C31: NESN | D31: =SUM(N31:W31)/10 -> 3.814 | E31: 2.06 | F31: 2.36 | G31: 2.76 | H31: 2.81 | I31: 2.91 | J31: 2.6 | K31: 2.96 | L31: 3.2 | M31: 3.13 | N31: 4.52 | O31: 2.89 | P31: 2.75 | Q31: 2.32 | R31: 3.36 | S31: 4.3 | T31: 4.29 | U31: 6.06 | V31: 3.42 | W31: 4.23 | X31: =LOOKUP(C31,Daten!$C$2:$C$300,Daten!$E$2:$E$500) -> 74.68 | AB31: =X31/E31 -> 36.25242718 | AD31: =X31/F31 -> 31.6440678 | AF31: =X31/G31 -> 27.05797101 | AH31: =X31/H31 -> 26.57651246 | AI31: =X31/W31 -> 17.65484634 | AJ31: =AI31 -> 17.65484634 | AK31: =X31/V31 -> 21.83625731 | AL31: =AK31 -> 21.83625731 | AM31: =X31/U31 -> 12.32343234 | AN31: =AM31 -> 12.32343234 | AO31: =X31/T31 -> 17.40792541 | AP31: =AO31 -> 17.40792541 | AQ31: =X31/S31 -> 17.36744186 | AR31: =AQ31 -> 17.36744186 | AS31: =X31/R31 -> 22.22619048 | AT31: =AS31 -> 22.22619048 | AU31: =X31/Q31 -> 32.18965517 | AV31: =AU31 -> 32.18965517 | AW31: =X31/P31 -> 27.15636364 | AX31: =AW31 -> 27.15636364 | AY31: =X31/O31 -> 25.84083045 | AZ31: =AY31 -> 25.84083045 | BA31: =X31/N31 -> 16.52212389 | BB31: =BA31 -> 16.52212389 | BC31: =X31/L31 -> 23.3375 | BD31: =BC31 -> 23.3375 | BE31: =X31/K31 -> 25.22972973 | BF31: =BE31 -> 25.22972973 | BG31: =X31/J31 -> 28.72307692 | BH31: =BG31 -> 28.72307692 | BJ31: =X31/I31 -> 25.66323024 | BK31: =BJ31 -> 25.66323024 | BL31: =X31/D31 -> 19.58049292 | BM31: =BL31 -> 19.58049292 | BN31: =Tabelle1!N29 -> 0.08181615838 | BO31: =IF(BN31>0,BN31,10) -> 0.08181615838 | BP31: =IF(W31>N31,(W31-N31)/N31,-(N31-W31)/N31) -> -0.06415929204 | BQ31: =BP31 -> -0.06415929204 | BS31: 17.51 | BT31: =BS31/100*X31 -> 13.076468 | BU31: =D31*(BS31/100) -> 0.6678314 | BV31: =W31*(BS31/100) -> 0.740673 | BW31: =V31*(BS31/100) -> 0.598842 | BX31: =AM31*BS31 -> 215.7833003 | BY31: =AO31*BS31 -> 304.8127739 | BZ31: =AQ31*BS31 -> 304.103907 | CA31: =AS31*BS31 -> 389.1805952 | CB31: =AU31*BS31 -> 563.6408621 | CC31: =AW31*BS31 -> 475.5079273 | CD31: =AY31*BS31 -> 452.4729412 | CE31: =BA31*BS31 -> 289.3023894 | CF31: =BC31*BS31 -> 408.639625 | CG31: =BE31*BS31 -> 441.7725676 | CH31: =BG31*BS31 -> 502.9410769 | CJ31: 24.53
A33: USD | B33: NOVARTIS | C33: NOVN | D33: =SUM(N33:W33)/10 -> 4.794 | E33: 2.62 | F33: 3.04 | G33: 5.13 | H33: 3.59 | I33: 3.69 | J33: 4.28 | K33: 3.78 | L33: 3.89 | M33: 3.7 | N33: 4.13 | O33: 2.88 | P33: 2.82 | Q33: 3.25 | R33: 5.38 | S33: 5.06 | T33: 3.52 | U33: 10.63 | V33: 3.17 | W33: 7.1 | X33: =LOOKUP(C33,Daten!$C$2:$C$300,Daten!$E$2:$E$500) -> 90.26 | Z33: =X33/Währungskurse!C$4 -> 99.18681319 | AB33: =Z33/E33 -> 37.85756229 | AD33: =Z33/F33 -> 32.62724118 | AF33: =Z33/G33 -> 19.33466144 | AH33: =Z33/H33 -> 27.62863877 | AI33: =Z33/W33 -> 13.96997369 | AJ33: =AI33 -> 13.96997369 | AK33: =Z33/V33 -> 31.28921552 | AL33: =AK33 -> 31.28921552 | AM33: =Z33/U33 -> 9.330838494 | AN33: =AM33 -> 9.330838494 | AO33: =Z33/T33 -> 28.17807193 | AP33: =AO33 -> 28.17807193 | AQ33: =Z33/S33 -> 19.60213699 | AR33: =AQ33 -> 19.60213699 | AS33: =Z33/R33 -> 18.43621063 | AT33: =AS33 -> 18.43621063 | AU33: =Z33/Q33 -> 30.51901944 | AV33: =AU33 -> 30.51901944 | AW33: =Z33/P33 -> 35.17262879 | AX33: =AW33 -> 35.17262879 | AY33: =Z33/O33 -> 34.43986569 | AZ33: =AY33 -> 34.43986569 | BA33: =Z33/N33 -> 24.01617753 | BB33: =BA33 -> 24.01617753 | BC33: =Z33/L33 -> 25.49789542 | BD33: =BC33 -> 25.49789542 | BE33: =Z33/K33 -> 26.23989767 | BF33: =BE33 -> 26.23989767 | BG33: =Z33/J33 -> 23.17448906 | BH33: =BG33 -> 23.17448906 | BJ33: =Z33/I33 -> 26.87989517 | BK33: =BJ33 -> 26.87989517 | BL33: =Z33/D33 -> 20.68978164 | BM33: =BL33 -> 20.68978164 | BN33: =Tabelle1!N31 -> 0.2794605553 | BO33: =IF(BN33>0,BN33,10) -> 0.2794605553 | BP33: =IF(W33>N33,(W33-N33)/N33,-(N33-W33)/N33) -> 0.7191283293 | BQ33: =BP33 -> 0.7191283293 | BS33: 15.77 | BT33: =BS33/100*Z33 -> 15.64176044 | BU33: =D33*(BS33/100) -> 0.7560138 | BV33: =W33*(BS33/100) -> 1.11967 | BW33: =V33*(BS33/100) -> 0.499909 | BX33: =AM33*BS33 -> 147.147323 | BY33: =AO33*BS33 -> 444.3681943 | BZ33: =AQ33*BS33 -> 309.1257004 | CA33: =AS33*BS33 -> 290.7390416 | CB33: =AU33*BS33 -> 481.2849366 | CC33: =AW33*BS33 -> 554.672356 | CD33: =AY33*BS33 -> 543.1166819 | CE33: =BA33*BS33 -> 378.7351196 | CF33: =BC33*BS33 -> 402.1018108 | CG33: =BE33*BS33 -> 413.8031862 | CH33: =BG33*BS33 -> 365.4616925 | CJ33: 17.09
B35: PARTNERS GROUP | C35: PGHN | D35: =SUM(N35:W35)/10 -> 30.495 | I35: 8.3 | J35: 11.9 | K35: 8 | L35: 10.1 | M35: 12.3 | N35: 14.48 | O35: 14.99 | P35: 21.15 | Q35: 28.37 | R35: 28.91 | S35: 33.93 | T35: 30.36 | U35: 55.12 | V35: 39.09 | W35: 38.55 | X35: =LOOKUP(C35,Daten!$C$2:$C$300,Daten!$E$2:$E$500) -> 1389.5 | AI35: =X35/W35 -> 36.04409857 | AJ35: =AI35 -> 36.04409857 | AK35: =X35/V35 -> 35.54617549 | AL35: =AK35 -> 35.54617549 | AM35: =X35/U35 -> 25.2086357 | AN35: =AM35 -> 25.2086357 | AO35: =X35/T35 -> 45.76745718 | AP35: =AO35 -> 45.76745718 | AQ35: =X35/S35 -> 40.95195992 | AR35: =AQ35 -> 40.95195992 | AS35: =X35/R35 -> 48.062954 | AT35: =AS35 -> 48.062954 | AU35: =X35/Q35 -> 48.97779344 | AV35: =AU35 -> 48.97779344 | AW35: =X35/P35 -> 65.69739953 | AX35: =AW35 -> 65.69739953 | AY35: =X35/O35 -> 92.69513009 | AZ35: =AY35 -> 92.69513009 | BA35: =X35/N35 -> 95.95994475 | BB35: =BA35 -> 95.95994475 | BC35: =X35/L35 -> 137.5742574 | BD35: =BC35 -> 137.5742574 | BE35: =X35/K35 -> 173.6875 | BF35: =BE35 -> 173.6875 | BG35: =X35/J35 -> 116.7647059 | BH35: =BG35 -> 116.7647059 | BJ35: =X35/I35 -> 167.4096386 | BK35: =BJ35 -> 167.4096386 | BL35: =X35/D35 -> 45.5648467 | BM35: =BL35 -> 45.5648467 | BN35: =Tabelle1!N33 -> 0.1563140927 | BO35: =IF(BN35>0,BN35,10) -> 0.1563140927 | BP35: =IF(W35>N35,(W35-N35)/N35,-(N35-W35)/N35) -> 1.662292818 | BQ35: =BP35 -> 1.662292818 | BS35: 1.72 | BT35: =BS35/100*X35 -> 23.8994 | BU35: =D35*(BS35/100) -> 0.524514 | BV35: =W35*(BS35/100) -> 0.66306 | BW35: =V35*(BS35/100) -> 0.672348 | BX35: =AM35*BS35 -> 43.35885341 | BY35: =AO35*BS35 -> 78.72002635 | BZ35: =AQ35*BS35 -> 70.43737106 | CA35: =AS35*BS35 -> 82.66828087 | CB35: =AU35*BS35 -> 84.24180472 | CC35: =AW35*BS35 -> 112.9995272 | CD35: =AY35*BS35 -> 159.4356237 | CE35: =BA35*BS35 -> 165.051105 | CF35: =BC35*BS35 -> 236.6277228 | CG35: =BE35*BS35 -> 298.7425 | CH35: =BG35*BS35 -> 200.8352941
A37: EUR | B37: RICHEMONT | C37: CFR | D37: =SUM(N37:W37)/10 -> 2.7702 | E37: 1.951 | F37: 2.331 | G37: 2.75 | H37: 1.916 | I37: 1.076 | J37: 1.92 | K37: 2.75 | L37: 3.6 | M37: 3.68 | N37: 2.356 | O37: 3.94 | P37: 2.14 | Q37: 2.16 | R37: 4.927 | S37: 1.651 | T37: 2.3 | U37: 3.611 | V37: 0.54 | W37: 4.077 | X37: =LOOKUP(C37,Daten!$C$2:$C$300,Daten!$E$2:$E$500) -> 171.7 | Z37: =X37/Währungskurse!C$5 -> 180.7368421 | AB37: =Z37/E37 -> 92.63805336 | AD37: =Z37/F37 -> 77.5361828 | AF37: =Z37/G37 -> 65.72248804 | AH37: =Z37/H37 -> 94.33029337 | AI37: =Z37/W37 -> 44.33084182 | AJ37: =AI37 -> 44.33084182 | AK37: =Z37/V37 -> 334.6978558 | AL37: =AK37 -> 334.6978558 | AM37: =Z37/U37 -> 50.05174248 | AN37: =AM37 -> 50.05174248 | AO37: =Z37/T37 -> 78.5812357 | AP37: =AO37 -> 78.5812357 | AQ37: =Z37/S37 -> 109.4711339 | AR37: =AQ37 -> 109.4711339 | AS37: =Z37/R37 -> 36.68293934 | AT37: =AS37 -> 36.68293934 | AU37: =Z37/Q37 -> 83.67446394 | AV37: =AU37 -> 83.67446394 | AW37: =Z37/P37 -> 84.45646827 | AX37: =AW37 -> 84.45646827 | AY37: =Z37/O37 -> 45.87229495 | AZ37: =AY37 -> 45.87229495 | BA37: =Z37/N37 -> 76.71343044 | BB37: =BA37 -> 76.71343044 | BC37: =Z37/L37 -> 50.20467836 | BD37: =BC37 -> 50.20467836 | BE37: =Z37/K37 -> 65.72248804 | BF37: =BE37 -> 65.72248804 | BG37: =Z37/J37 -> 94.13377193 | BH37: =BG37 -> 94.13377193 | BJ37: =Z37/I37 -> 167.9710428 | BK37: =BJ37 -> 167.9710428 | BL37: =Z37/D37 -> 65.24324673 | BM37: =BL37 -> 65.24324673 | BN37: =Tabelle1!N35 -> 0.7143785394 | BO37: =IF(BN37>0,BN37,10) -> 0.7143785394 | BP37: =IF(W37>N37,(W37-N37)/N37,-(N37-W37)/N37) -> 0.730475382 | BQ37: =BP37 -> 0.730475382 | BS37: 6.05 | BT37: =BS37/100*Z37 -> 10.93457895 | BU37: =D37*(BS37/100) -> 0.1675971 | BV37: =W37*(BS37/100) -> 0.2466585 | BW37: =V37*(BS37/100) -> 0.03267 | BX37: =AM37*BS37 -> 302.813042 | BY37: =AO37*BS37 -> 475.416476 | BZ37: =AQ37*BS37 -> 662.3003602 | CA37: =AS37*BS37 -> 221.931783 | CB37: =AU37*BS37 -> 506.2305068 | CC37: =AW37*BS37 -> 510.9616331 | CD37: =AY37*BS37 -> 277.5273845 | CE37: =BA37*BS37 -> 464.1162541 | CF37: =BC37*BS37 -> 303.7383041 | CG37: =BE37*BS37 -> 397.6210526 | CH37: =BG37*BS37 -> 569.5093202 | CJ37: 2.72
B39: ROCHE GS | C39: ROG | D39: =SUM(N39:W39)/10 -> 13.249 | E39: 6.87 | F39: 9.05 | G39: 11.16 | H39: 10.23 | I39: 9.02 | J39: 10.11 | K39: 10.98 | L39: 11.16 | M39: 12.93 | N39: 10.81 | O39: 10.28 | P39: 11.13 | Q39: 10.04 | R39: 12.21 | S39: 15.62 | T39: 16.52 | U39: 16.2 | V39: 15.37 | W39: 14.31 | X39: =LOOKUP(C39,Daten!$C$2:$C$300,Daten!$E$2:$E$500) -> 274.9 | AB39: =X39/E39 -> 40.01455604 | AD39: =X39/F39 -> 30.37569061 | AF39: =X39/G39 -> 24.63261649 | AH39: =X39/H39 -> 26.87194526 | AI39: =X39/W39 -> 19.21034242 | AJ39: =AI39 -> 19.21034242 | AK39: =X39/V39 -> 17.88549122 | AL39: =AK39 -> 17.88549122 | AM39: =X39/U39 -> 16.9691358 | AN39: =AM39 -> 16.9691358 | AO39: =X39/T39 -> 16.64043584 | AP39: =AO39 -> 16.64043584 | AQ39: =X39/S39 -> 17.59923175 | AR39: =AQ39 -> 17.59923175 | AS39: =X39/R39 -> 22.51433251 | AT39: =AS39 -> 22.51433251 | AU39: =X39/Q39 -> 27.38047809 | AV39: =AU39 -> 27.38047809 | AW39: =X39/P39 -> 24.69901168 | AX39: =AW39 -> 24.69901168 | AY39: =X39/O39 -> 26.74124514 | AZ39: =AY39 -> 26.74124514 | BA39: =X39/N39 -> 25.43015726 | BB39: =BA39 -> 25.43015726 | BC39: =X39/L39 -> 24.63261649 | BD39: =BC39 -> 24.63261649 | BE39: =X39/K39 -> 25.03642987 | BF39: =BE39 -> 25.03642987 | BG39: =X39/J39 -> 27.1909001 | BH39: =BG39 -> 27.1909001 | BJ39: =X39/I39 -> 30.4767184 | BK39: =BJ39 -> 30.4767184 | BL39: =X39/D39 -> 20.74873575 | BM39: =BL39 -> 20.74873575 | BN39: =Tabelle1!N37 -> 0.01852254814 | BO39: =IF(BN39>0,BN39,10) -> 0.01852254814 | BP39: =IF(W39>N39,(W39-N39)/N39,-(N39-W39)/N39) -> 0.3237742831 | BQ39: =BP39 -> 0.3237742831 | BS39: 14.06 | BT39: =BS39/100*X39 -> 38.65094 | BU39: =D39*(BS39/100) -> 1.8628094 | BV39: =W39*(BS39/100) -> 2.011986 | BW39: =V39*(BS39/100) -> 2.161022 | BX39: =AM39*BS39 -> 238.5860494 | BY39: =AO39*BS39 -> 233.9645278 | BZ39: =AQ39*BS39 -> 247.4451985 | CA39: =AS39*BS39 -> 316.5515152 | CB39: =AU39*BS39 -> 384.9695219 | CC39: =AW39*BS39 -> 347.2681042 | CD39: =AY39*BS39 -> 375.9819066 | CE39: =BA39*BS39 -> 357.5480111 | CF39: =BC39*BS39 -> 346.3345878 | CG39: =BE39*BS39 -> 352.012204 | CH39: =BG39*BS39 -> 382.3040554 | CJ39: 13.58
B41: SIKA | C41: SIKA | D41: =SUM(N41:W41)/10 -> 4.897833333 | I41: =91/60 -> 1.516666667 | J41: =124/60 -> 2.066666667 | K41: =85.1/60 -> 1.418333333 | L41: =110/60 -> 1.833333333 | M41: =135/60 -> 2.25 | N41: =173/60 -> 2.883333333 | O41: =181.37/60 -> 3.022833333 | P41: =221.81/60 -> 3.696833333 | Q41: =253.52/60 -> 4.225333333 | R41: 4.58 | S41: 4.81 | T41: 5.22 | U41: 6.6 | V41: 7.29 | W41: 6.65 | X41: =LOOKUP(C41,Daten!$C$2:$C$300,Daten!$E$2:$E$500) -> 231.5 | AI41: =X41/W41 -> 34.81203008 | AJ41: =AI41 -> 34.81203008 | AK41: =X41/V41 -> 31.7558299 | AL41: =AK41 -> 31.7558299 | AM41: =X41/U41 -> 35.07575758 | AN41: =AM41 -> 35.07575758 | AO41: =X41/T41 -> 44.348659 | AP41: =AO41 -> 44.348659 | AQ41: =X41/S41 -> 48.12889813 | AR41: =AQ41 -> 48.12889813 | AS41: =X41/R41 -> 50.54585153 | AT41: =AS41 -> 50.54585153 | AU41: =X41/Q41 -> 54.78857684 | AV41: =AU41 -> 54.78857684 | AW41: =X41/P41 -> 62.62116226 | AX41: =AW41 -> 62.62116226 | AY41: =X41/O41 -> 76.58377902 | AZ41: =AY41 -> 76.58377902 | BA41: =X41/N41 -> 80.28901734 | BB41: =BA41 -> 80.28901734 | BC41: =X41/L41 -> 126.2727273 | BD41: =BC41 -> 126.2727273 | BE41: =X41/K41 -> 163.2197415 | BF41: =BE41 -> 163.2197415 | BG41: =X41/J41 -> 112.016129 | BH41: =BG41 -> 112.016129 | BJ41: =X41/I41 -> 152.6373626 | BK41: =BJ41 -> 152.6373626 | BL41: =X41/D41 -> 47.2657978 | BM41: =BL41 -> 47.2657978 | BN41: =Tabelle1!N39 -> 0.1196310148 | BO41: =IF(BN41>0,BN41,10) -> 0.1196310148 | BP41: =IF(W41>N41,(W41-N41)/N41,-(N41-W41)/N41) -> 1.306358382 | BQ41: =BP41 -> 1.306358382 | BS41: 3.31 | BT41: =BS41/100*X41 -> 7.66265 | BU41: =D41*(BS41/100) -> 0.1621182833 | BV41: =W41*(BS41/100) -> 0.220115 | BW41: =V41*(BS41/100) -> 0.241299 | BX41: =AM41*BS41 -> 116.1007576 | BY41: =AO41*BS41 -> 146.7940613 | BZ41: =AQ41*BS41 -> 159.3066528 | CA41: =AS41*BS41 -> 167.3067686 | CB41: =AU41*BS41 -> 181.3501893 | CC41: =AW41*BS41 -> 207.2760471 | CD41: =AY41*BS41 -> 253.4923085 | CE41: =BA41*BS41 -> 265.7566474 | CF41: =BC41*BS41 -> 417.9627273 | CG41: =BE41*BS41 -> 540.2573443 | CH41: =BG41*BS41 -> 370.7733871
B43: SONOVA | C43: SOON | D43: =SUM(N43:W43)/10 -> 7.69 | I43: 3.3 | J43: 3.5 | K43: 3.7 | L43: 1.6 | M43: 5.1 | N43: 5.37 | O43: 5.11 | P43: 5.35 | Q43: 6.13 | R43: 6.98 | S43: 7.61 | T43: 9.23 | U43: 10.35 | V43: 10.72 | W43: 10.05 | X43: =LOOKUP(C43,Daten!$C$2:$C$300,Daten!$E$2:$E$500) -> 319.7 | AI43: =X43/W43 -> 31.81094527 | AJ43: =AI43 -> 31.81094527 | AK43: =X43/V43 -> 29.82276119 | AL43: =AK43 -> 29.82276119 | AM43: =X43/U43 -> 30.88888889 | AN43: =AM43 -> 30.88888889 | AO43: =X43/T43 -> 34.63705309 | AP43: =AO43 -> 34.63705309 | AQ43: =X43/S43 -> 42.01051248 | AR43: =AQ43 -> 42.01051248 | AS43: =X43/R43 -> 45.80229226 | AT43: =AS43 -> 45.80229226 | AU43: =X43/Q43 -> 52.15334421 | AV43: =AU43 -> 52.15334421 | AW43: =X43/P43 -> 59.75700935 | AX43: =AW43 -> 59.75700935 | AY43: =X43/O43 -> 62.56360078 | AZ43: =AY43 -> 62.56360078 | BA43: =X43/N43 -> 59.53445065 | BB43: =BA43 -> 59.53445065 | BC43: =X43/L43 -> 199.8125 | BD43: =BC43 -> 199.8125 | BE43: =X43/K43 -> 86.40540541 | BF43: =BE43 -> 86.40540541 | BG43: =X43/J43 -> 91.34285714 | BH43: =BG43 -> 91.34285714 | BJ43: =X43/I43 -> 96.87878788 | BK43: =BJ43 -> 96.87878788 | BL43: =X43/D43 -> 41.57347204 | BM43: =BL43 -> 41.57347204 | BN43: =Tabelle1!N41 -> 0.07336753947 | BO43: =IF(BN43>0,BN43,10) -> 0.07336753947 | BP43: =IF(W43>N43,(W43-N43)/N43,-(N43-W43)/N43) -> 0.8715083799 | BQ43: =BP43 -> 0.8715083799 | BS43: 1.04 | BT43: =BS43/100*X43 -> 3.32488 | BU43: =D43*(BS43/100) -> 0.079976 | BV43: =W43*(BS43/100) -> 0.10452 | BW43: =V43*(BS43/100) -> 0.111488 | BX43: =AM43*BS43 -> 32.12444444 | BY43: =AO43*BS43 -> 36.02253521 | BZ43: =AQ43*BS43 -> 43.69093298 | CA43: =AS43*BS43 -> 47.63438395 | CB43: =AU43*BS43 -> 54.23947798 | CC43: =AW43*BS43 -> 62.14728972 | CD43: =AY43*BS43 -> 65.06614481 | CE43: =BA43*BS43 -> 61.91582868 | CF43: =BC43*BS43 -> 207.805 | CG43: =BE43*BS43 -> 89.86162162 | CH43: =BG43*BS43 -> 94.99657143
B45: SWISS LIFE HOLDING | C45: SLHN | D45: =SUM(N45:W45)/10 -> 33.231 | E45: 24.82 | F45: 26.92 | G45: 39.6 | H45: 10.88 | I45: 8.83 | J45: 17.37 | K45: 18.87 | L45: 2.86 | M45: 24.22 | N45: 24.11 | O45: 25.85 | P45: 27.27 | Q45: 29.63 | R45: 31.49 | S45: 36.48 | T45: 32.78 | U45: 39.93 | V45: 47.76 | W45: 37.01 | X45: =LOOKUP(C45,Daten!$C$2:$C$300,Daten!$E$2:$E$500) -> 730.6 | AB45: =X45/E45 -> 29.43593876 | AD45: =X45/F45 -> 27.13967311 | AF45: =X45/G45 -> 18.44949495 | AH45: =X45/H45 -> 67.15073529 | AI45: =X45/W45 -> 19.74061065 | AJ45: =AI45 -> 19.74061065 | AK45: =X45/V45 -> 15.29731993 | AL45: =AK45 -> 15.29731993 | AM45: =X45/U45 -> 18.29701978 | AN45: =AM45 -> 18.29701978 | AO45: =X45/T45 -> 22.28798048 | AP45: =AO45 -> 22.28798048 | AQ45: =X45/S45 -> 20.02741228 | AR45: =AQ45 -> 20.02741228 | AS45: =X45/R45 -> 23.2010162 | AT45: =AS45 -> 23.2010162 | AU45: =X45/Q45 -> 24.65744178 | AV45: =AU45 -> 24.65744178 | AW45: =X45/P45 -> 26.7913458 | AX45: =AW45 -> 26.7913458 | AY45: =X45/O45 -> 28.26305609 | AZ45: =AY45 -> 28.26305609 | BA45: =X45/N45 -> 30.30277893 | BB45: =BA45 -> 30.30277893 | BC45: =X45/L45 -> 255.4545455 | BD45: =BC45 -> 255.4545455 | BE45: =X45/K45 -> 38.71754107 | BF45: =BE45 -> 38.71754107 | BG45: =X45/J45 -> 42.06102476 | BH45: =BG45 -> 42.06102476 | BJ45: =X45/I45 -> 82.74065685 | BK45: =BJ45 -> 82.74065685 | BL45: =X45/D45 -> 21.98549547 | BM45: =BL45 -> 21.98549547 | BN45: =Tabelle1!N43 -> 0.05180438098 | BO45: =IF(BN45>0,BN45,10) -> 0.05180438098 | BP45: =IF(W45>N45,(W45-N45)/N45,-(N45-W45)/N45) -> 0.5350476981 | BQ45: =BP45 -> 0.5350476981 | BS45: 1.43 | BT45: =BS45/100*X45 -> 10.44758 | BU45: =D45*(BS45/100) -> 0.4752033 | BV45: =W45*(BS45/100) -> 0.529243 | BW45: =V45*(BS45/100) -> 0.682968 | BX45: =AM45*BS45 -> 26.16473829 | BY45: =AO45*BS45 -> 31.87181208 | BZ45: =AQ45*BS45 -> 28.63919956 | CA45: =AS45*BS45 -> 33.17745316 | CB45: =AU45*BS45 -> 35.26014175 | CC45: =AW45*BS45 -> 38.3116245 | CD45: =AY45*BS45 -> 40.41617021 | CE45: =BA45*BS45 -> 43.33297387 | CF45: =BC45*BS45 -> 365.3 | CG45: =BE45*BS45 -> 55.36608373 | CH45: =BG45*BS45 -> 60.1472654
B47: SWISS RE | C47: SREN | D47: =SUM(N47:W47)/10 -> 4.716 | E47: 7.44 | F47: 13.49 | G47: 11.23 | H47: -2.61 | I47: 1.48 | J47: 2.64 | K47: 6.63 | L47: 10.39 | M47: 11.04 | N47: 8.56 | O47: 11.81 | P47: 9.66 | Q47: 1.01 | R47: 1.34 | S47: 2.4 | T47: -2.97 | U47: 4.35 | V47: 1.6 | W47: 9.4 | X47: =LOOKUP(C47,Daten!$C$2:$C$300,Daten!$E$2:$E$500) -> 138.05 | AB47: =X47/E47 -> 18.55510753 | AD47: =X47/F47 -> 10.2335063 | AF47: =X47/G47 -> 12.29296527 | AH47: na | AI47: =X47/W47 -> 14.68617021 | AJ47: =AI47 -> 14.68617021 | AK47: =X47/V47 -> 86.28125 | AL47: =AK47 -> 86.28125 | AM47: =X47/U47 -> 31.73563218 | AN47: =AM47 -> 31.73563218 | AO47: na | AP47: =AO47 -> na | AQ47: =X47/S47 -> 57.52083333 | AR47: =AQ47 -> 57.52083333 | AS47: =X47/R47 -> 103.0223881 | AT47: =AS47 -> 103.0223881 | AU47: =X47/Q47 -> 136.6831683 | AV47: =AU47 -> 136.6831683 | AW47: =X47/P47 -> 14.29089027 | AX47: =AW47 -> 14.29089027 | AY47: =X47/O47 -> 11.6892464 | AZ47: =AY47 -> 11.6892464 | BA47: =X47/N47 -> 16.12733645 | BB47: =BA47 -> 16.12733645 | BC47: =X47/L47 -> 13.28681424 | BD47: =BC47 -> 13.28681424 | BE47: =X47/K47 -> 20.82202112 | BF47: =BE47 -> 20.82202112 | BG47: =X47/J47 -> 52.29166667 | BH47: =BG47 -> 52.29166667 | BJ47: =X47/I47 -> 93.27702703 | BK47: =BJ47 -> 93.27702703 | BL47: =X47/D47 -> 29.27268872 | BM47: =BL47 -> 29.27268872 | BN47: =Tabelle1!N45 -> 0.4665280977 | BO47: =IF(BN47>0,BN47,10) -> 0.4665280977 | BP47: =IF(W47>N47,(W47-N47)/N47,-(N47-W47)/N47) -> 0.09813084112 | BQ47: =BP47 -> 0.09813084112 | BS47: 2.45 | BT47: =BS47/100*X47 -> 3.382225 | BU47: =D47*(BS47/100) -> 0.115542 | BV47: =W47*(BS47/100) -> 0.2303 | BW47: =V47*(BS47/100) -> 0.0392 | BX47: =AM47*BS47 -> 77.75229885 | BY47: 0 | BZ47: =AQ47*BS47 -> 140.9260417 | CA47: =AS47*BS47 -> 252.4048507 | CB47: =AU47*BS47 -> 334.8737624 | CC47: =AW47*BS47 -> 35.01268116 | CD47: =AY47*BS47 -> 28.63865368 | CE47: =BA47*BS47 -> 39.5119743 | CF47: =BC47*BS47 -> 32.5526949 | CG47: =BE47*BS47 -> 51.01395173 | CH47: =BG47*BS47 -> 128.1145833 | CJ47: 2.13
B49: SWISSCOM | C49: SCMN | D49: =SUM(N49:W49)/10 -> 31.088 | E49: 33.79 | F49: 28.92 | G49: 39.92 | H49: 33.9 | I49: 37.18 | J49: 34.96 | K49: 13.19 | L49: 33.88 | M49: 32.53 | N49: 32.7 | O49: 26.27 | P49: 30.97 | Q49: 30.31 | R49: 29.48 | S49: 32.28 | T49: 29.54 | U49: 35.37 | V49: 30.93 | W49: 33.03 | X49: =LOOKUP(C49,Daten!$C$2:$C$300,Daten!$E$2:$E$500) -> 506 | AB49: =X49/E49 -> 14.97484463 | AD49: =X49/F49 -> 17.49654219 | AF49: =X49/G49 -> 12.6753507 | AH49: =X49/H49 -> 14.92625369 | AI49: =X49/W49 -> 15.3194066 | AJ49: =AI49 -> 15.3194066 | AK49: =X49/V49 -> 16.3595215 | AL49: =AK49 -> 16.3595215 | AM49: =X49/U49 -> 14.30590896 | AN49: =AM49 -> 14.30590896 | AO49: =X49/T49 -> 17.12931618 | AP49: =AO49 -> 17.12931618 | AQ49: =X49/S49 -> 15.67534077 | AR49: =AQ49 -> 15.67534077 | AS49: =X49/R49 -> 17.1641791 | AT49: =AS49 -> 17.1641791 | AU49: =X49/Q49 -> 16.69416034 | AV49: =AU49 -> 16.69416034 | AW49: =X49/P49 -> 16.33839199 | AX49: =AW49 -> 16.33839199 | AY49: =X49/O49 -> 19.26151504 | AZ49: =AY49 -> 19.26151504 | BA49: =X49/N49 -> 15.47400612 | BB49: =BA49 -> 15.47400612 | BC49: =X49/L49 -> 14.93506494 | BD49: =BC49 -> 14.93506494 | BE49: =X49/K49 -> 38.36239575 | BF49: =BE49 -> 38.36239575 | BG49: =X49/J49 -> 14.47368421 | BH49: =BG49 -> 14.47368421 | BJ49: =X49/I49 -> 13.60946746 | BK49: =BJ49 -> 13.60946746 | BL49: =X49/D49 -> 16.27637674 | BM49: =BL49 -> 16.27637674 | BN49: =Tabelle1!N47 -> 0.008862853426 | BO49: =IF(BN49>0,BN49,10) -> 0.008862853426 | BP49: =IF(W49>N49,(W49-N49)/N49,-(N49-W49)/N49) -> 0.01009174312 | BQ49: =BP49 -> 0.01009174312 | BS49: 1.22 | BT49: =BS49/100*X49 -> 6.1732 | BU49: =D49*(BS49/100) -> 0.3792736 | BV49: =W49*(BS49/100) -> 0.402966 | BW49: =V49*(BS49/100) -> 0.377346 | BX49: =AM49*BS49 -> 17.45320893 | BY49: =AO49*BS49 -> 20.89776574 | BZ49: =AQ49*BS49 -> 19.12391574 | CA49: =AS49*BS49 -> 20.94029851 | CB49: =AU49*BS49 -> 20.36687562 | CC49: =AW49*BS49 -> 19.93283823 | CD49: =AY49*BS49 -> 23.49904834 | CE49: =BA49*BS49 -> 18.87828746 | CF49: =BC49*BS49 -> 18.22077922 | CG49: =BE49*BS49 -> 46.80212282 | CH49: =BG49*BS49 -> 17.65789474 | CJ49: 1.16
B51: UBS N | C51: UBSG | D51: =SUM(N51:W51)/10 -> 1.967 | E51: 6.68 | F51: 4.98 | G51: -2.41 | H51: -7.69 | I51: -0.74 | J51: 1.96 | K51: 1.08 | L51: -0.67 | M51: 0.83 | N51: 0.91 | O51: 1.64 | P51: 0.84 | Q51: 0.27 | R51: 1.18 | S51: 1.14 | T51: 1.77 | U51: 2.06 | V51: 2.25 | W51: 7.61 | X51: =LOOKUP(C51,Daten!$C$2:$C$300,Daten!$E$2:$E$500) -> 31.84 | AB51: =X51/E51 -> 4.766467066 | AD51: =X51/F51 -> 6.393574297 | AF51: =X51/G51 -> -13.21161826 | AH51: V | AI51: =X51/W51 -> 4.183968463 | AJ51: =AI51 -> 4.183968463 | AK51: =X51/V51 -> 14.15111111 | AL51: =AK51 -> 14.15111111 | AM51: =X51/U51 -> 15.45631068 | AN51: =AM51 -> 15.45631068 | AO51: =X51/T51 -> 17.98870056 | AP51: =AO51 -> 17.98870056 | AQ51: =X51/S51 -> 27.92982456 | AR51: =AQ51 -> 27.92982456 | AS51: =X51/R51 -> 26.98305085 | AT51: =AS51 -> 26.98305085 | AU51: =X51/Q51 -> 117.9259259 | AV51: =AU51 -> 117.9259259 | AW51: =X51/P51 -> 37.9047619 | AX51: =AW51 -> 37.9047619 | AY51: =X51/O51 -> 19.41463415 | AZ51: =AY51 -> 19.41463415 | BA51: =X51/N51 -> 34.98901099 | BB51: =BA51 -> 34.98901099 | BC51: =ABS(X51/L51) -> 47.52238806 | BD51: =BC51 -> 47.52238806 | BE51: =X51/K51 -> 29.48148148 | BF51: =BE51 -> 29.48148148 | BG51: =X51/J51 -> 16.24489796 | BH51: =BG51 -> 16.24489796 | BJ51: V | BK51: =BJ51 -> V | BL51: =X51/D51 -> 16.18708693 | BM51: =BL51 -> 16.18708693 | BN51: =Tabelle1!N49 -> 0.6259607722 | BO51: =IF(BN51>0,BN51,10) -> 0.6259607722 | BP51: =IF(W51>N51,(W51-N51)/N51,-(N51-W51)/N51) -> 7.362637363 | BQ51: =BP51 -> 7.362637363 | BS51: 6.86 | BT51: =BS51/100*X51 -> 2.184224 | BU51: =D51*(BS51/100) -> 0.1349362 | BV51: =W51*(BS51/100) -> 0.522046 | BW51: =V51*(BS51/100) -> 0.15435 | BX51: =AM51*BS51 -> 106.0302913 | BY51: =AO51*BS51 -> 123.4024859 | BZ51: =AQ51*BS51 -> 191.5985965 | CA51: =AS51*BS51 -> 185.1037288 | CB51: =AU51*BS51 -> 808.9718519 | CC51: =AW51*BS51 -> 260.0266667 | CD51: =AY51*BS51 -> 133.1843902 | CE51: =BA51*BS51 -> 240.0246154 | CF51: =BC51*BS51 -> 326.0035821 | CG51: =BE51*BS51 -> 202.242963 | CH51: =BG51*BS51 -> 111.44 | CJ51: 7.25
A53: CHF! | B53: ZURICH FINANCIAL | C53: ZURN | D53: =SUM(N53:W53)/10 -> 23.984 | E53: 27.11 | F53: 38.71 | G53: 47.11 | H53: 23.35 | I53: 24.21 | J53: 24.38 | K53: 22.52 | L53: 24.66 | M53: 25.23 | N53: 23.84 | O53: 11.86 | P53: 21.04 | Q53: 19.58 | R53: 24.28 | S53: 27.51 | T53: 23.98 | U53: 31.68 | V53: 29.36 | W53: 26.71 | X53: =LOOKUP(C53,Daten!$C$2:$C$300,Daten!$E$2:$E$500) -> 537.2 | AB53: =X53/E53 -> 19.81556621 | AD53: =X53/F53 -> 13.87755102 | AF53: =X53/G53 -> 11.40309913 | AH53: =X53/H53 -> 23.00642398 | AI53: =X53/W53 -> 20.11231748 | AJ53: =AI53 -> 20.11231748 | AK53: =X53/V53 -> 18.29700272 | AL53: =AK53 -> 18.29700272 | AM53: =X53/U53 -> 16.95707071 | AN53: =AM53 -> 16.95707071 | AO53: =X53/T53 -> 22.40200167 | AP53: =AO53 -> 22.40200167 | AQ53: =X53/S53 -> 19.52744457 | AR53: =AQ53 -> 19.52744457 | AS53: =X53/R53 -> 22.12520593 | AT53: =AS53 -> 22.12520593 | AU53: =X53/Q53 -> 27.43615935 | AV53: =AU53 -> 27.43615935 | AW53: =X53/P53 -> 25.53231939 | AX53: =AW53 -> 25.53231939 | AY53: =X53/O53 -> 45.29510961 | AZ53: =AY53 -> 45.29510961 | BA53: =X53/N53 -> 22.53355705 | BB53: =BA53 -> 22.53355705 | BC53: =X53/L53 -> 21.78426602 | BD53: =BC53 -> 21.78426602 | BE53: =X53/K53 -> 23.85435169 | BF53: =BE53 -> 23.85435169 | BG53: =X53/J53 -> 22.03445447 | BH53: =BG53 -> 22.03445447 | BJ53: =X53/I53 -> 22.18917803 | BK53: =BJ53 -> 22.18917803 | BL53: =X53/D53 -> 22.39826551 | BM53: =BL53 -> 22.39826551 | BN53: =Tabelle1!N51 -> 0.054939372 | BO53: =IF(BN53>0,BN53,10) -> 0.054939372 | BP53: =IF(W53>N53,(W53-N53)/N53,-(N53-W53)/N53) -> 0.120385906 | BQ53: =BP53 -> 0.120385906 | BS53: 5.62 | BT53: =BS53/100*X53 -> 30.19064 | BU53: =D53*(BS53/100) -> 1.3479008 | BV53: =W53*(BS53/100) -> 1.501102 | BW53: =V53*(BS53/100) -> 1.650032 | BX53: =AM53*BS53 -> 95.29873737 | BY53: =AO53*BS53 -> 125.8992494 | BZ53: =AQ53*BS53 -> 109.7442385 | CA53: =AS53*BS53 -> 124.3436573 | CB53: =AU53*BS53 -> 154.1912155 | CC53: =AW53*BS53 -> 143.491635 | CD53: =AY53*BS53 -> 254.558516 | CE53: =BA53*BS53 -> 126.6385906 | CF53: =BC53*BS53 -> 122.427575 | CG53: =BE53*BS53 -> 134.0614565 | CH53: =BG53*BS53 -> 123.8336341 | CJ53: 4.7
BS55: =SUM(BS15:BS53) -> 99.39 | BT55: =SUM(BT15:BT53) -> 303.1099681 | BU55: =SUM(BU15:BU53) -> 9.611660583 | BV55: =SUM(BV15:BV53) -> 11.9029195 | BW55: =SUM(BW15:BW53) -> 11.005991 | BX55: =SUM(BX15:BX54) -> 2259.444615 | BY55: =SUM(BY15:BY54) -> 2663.604979 | BZ55: =SUM(BZ15:BZ54) -> 3385.036592 | CA55: =SUM(CA15:CA54) -> 3145.516819 | CJ55: =SUM(CJ15:CJ53) -> 81.67
D60: Ø Gewinn | E60: Gewinn pro Aktie | K60: Gewinn pro Aktie | X60: akt. Kurs | Z60: akt. Kurs | AB60: KGV 2005 | AD60: KGV 2006 | AF60: KGV 2007 | AH60: KGV 2008 | AM60: KGV 2021 | AO60: KGV 2020 | AQ60: KGV 2019 | AS60: KGV2018 | AU60: KGV 2017 | AW60: KGV 2016 | AY60: KGV 2015 | BA60: KGV 2014 | BC60: KGV 2012 | BE60: KGV 2011 | BG60: KGV 2010 | BJ60: KGV 2009 | BL60: Ø Gewinn | BN60: Ø Gewinnverän- | BP60: Ø Gewinn-
D61: 2014 - 2023 | E61: 2005 | F61: 2006 | G61: 2007 | H61: 2008 | I61: 2009 | J61: 2010 | K61: 2011 | L61: 2012 | M61: 2013 | N61: 2014 | O61: 2015 | P61: 2016 | Q61: 2017 | R61: 2018 | S61: 2019 | T61: 2020 | U61: 2021 | V61: 2022 | W61: 2023 | Z61: in RW | AI61: KGV 2023 | AK61: KGV 2022 | BL61: 14-23 KGV | BN61: derungsraten 10J | BP61: wachstum 10 J | BS61: per 18.07.2024
BS62: gem. ETF SMIM iShares
A63: weitere SPI Titel (SMIM et. al.)
A65: EUR | B65: Adecco | C65: ADEN | D65: =SUM(N65:W65)/10 -> 2.677 | E65: 2.34 | F65: 3.14 | G65: 3.8 | H65: 2.82 | I65: 0.04 | J65: 2.2 | K65: 2.72 | L65: 2 | M65: 3.08 | N65: 3.61 | O65: 0.05 | P65: 4.24 | Q65: 4.66 | R65: 2.77 | S65: 4.47 | T65: -0.61 | U65: 3.6 | V65: 2.04 | W65: 1.94 | X65: =LOOKUP(C65,Daten!$C$2:$C$300,Daten!$E$2:$E$500) -> 21.7 | Z65: =X65/Währungskurse!C$5 -> 22.84210526 | AB65: =Z65/E65 -> 9.761583446 | AD65: =Z65/F65 -> 7.274555816 | AF65: =Z65/G65 -> 6.011080332 | AH65: =Z65/H65 -> 8.100037327 | AI65: =X65/W65 -> 11.18556701 | AJ65: =AI65 -> 11.18556701 | AK65: =Z65/V65 -> 11.19711042 | AL65: =AK65 -> 11.19711042 | AM65: =Z65/U65 -> 6.34502924 | AN65: =AM65 -> 6.34502924 | AO65: na | AP65: =AO65 -> na | AQ65: =Z65/S65 -> 5.110090663 | AR65: =AQ65 -> 5.110090663 | AS65: =Z65/R65 -> 8.246247387 | AT65: =AS65 -> 8.246247387 | AU65: =Z65/Q65 -> 4.901739327 | AV65: =AU65 -> 4.901739327 | AW65: =Z65/P65 -> 5.387288977 | AX65: =AW65 -> 5.387288977 | AY65: =Z65/O65 -> 456.8421053 | AZ65: =AY65 -> 456.8421053 | BA65: =Z65/N65 -> 6.327452981 | BB65: =BA65 -> 6.327452981 | BC65: =Z65/L65 -> 11.42105263 | BD65: =BC65 -> 11.42105263 | BE65: =Z65/K65 -> 8.397832817 | BF65: =BE65 -> 8.397832817 | BG65: =Z65/J65 -> 10.38277512 | BH65: =BG65 -> 10.38277512 | BJ65: FV | BK65: =BJ65 -> FV | BL65: =Z65/D65 -> 8.532725164 | BM65: =BL65 -> 8.532725164 | BN65: =Tabelle1!N65 -> 8.857594503 | BO65: =IF(BN65>0,BN65,10) -> 8.857594503 | BP65: =IF(W65>N65,(W65-N65)/N65,-(N65-W65)/N65) -> -0.4626038781 | BQ65: =BP65 -> -0.4626038781 | BS65: 2.62 | BT65: =BS65/100*Z65 -> 0.5984631579 | BU65: =D65*(BS65/100) -> 0.0701374 | BV65: =W65*(BS65/100) -> 0.050828 | BW65: =V65*(BS65/100) -> 0.053448
A67: ! | B67: AMS Osram | C67: AMS | D67: =SUM(N67:W67)/10 -> 0.402 | I67: -0.47 | J67: 0.63 | K67: 0.75 | L67: 1.5 | M67: 1.11 | N67: 1.88 | O67: 2.28 | P67: 1.51 | Q67: 0.81 | R67: 0.89 | S67: 2.81 | T67: -0.06 | U67: -0.13 | V67: -0.92 | W67: -5.05 | X67: =LOOKUP(C67,Daten!$C$2:$C$300,Daten!$E$2:$E$500) -> 7.294 | AI67: na | AJ67: =AI67 -> na | AK67: na | AL67: =AK67 -> na | AM67: na | AN67: =AM67 -> na | AO67: =X67/T67 -> -121.5666667 | AP67: =AO67 -> -121.5666667 | AQ67: =X67/S67 -> 2.595729537 | AR67: =AQ67 -> 2.595729537 | AS67: =X67/R67 -> 8.195505618 | AT67: =AS67 -> 8.195505618 | AU67: =X67/Q67 -> 9.004938272 | AV67: =AU67 -> 9.004938272 | AW67: =X67/P67 -> 4.830463576 | AX67: =AW67 -> 4.830463576 | AY67: =X67/O67 -> 3.199122807 | AZ67: =AY67 -> 3.199122807 | BA67: =X67/N67 -> 3.879787234 | BB67: =BA67 -> 3.879787234 | BC67: =X67/L67 -> 4.862666667 | BD67: =BC67 -> 4.862666667 | BE67: =X67/K67 -> 9.725333333 | BF67: =BE67 -> 9.725333333 | BL67: =X67/D67 -> 18.14427861 | BM67: =BL67 -> 18.14427861 | BN67: =Tabelle1!N67 -> -1.039283949 | BO67: =IF(BN67>0,BN67,10) -> 10 | BP67: =IF(W67>N67,(W67-N67)/N67,-(N67-W67)/N67) -> -3.686170213 | BQ67: =BP67 -> -3.686170213 | BS67: 0.64 | BT67: =BS67/100*X67 -> 0.0466816 | BU67: =D67*(BS67/100) -> 0.0025728 | BV67: =W67*(BS67/100) -> -0.03232 | BW67: =V67*(BS67/100) -> -0.005888
B69: Avolta (ehem. Dufry) | C69: AVOL | D69: =SUM(N69:W69)/10 -> -4.437 | I69: 2 | J69: 4.6 | K69: 4.2 | L69: 4.5 | M69: 3.13 | N69: 1.55 | O69: -1.73 | P69: 0.05 | Q69: 1.06 | R69: 1.38 | S69: -0.53 | T69: -43.01 | U69: -4.39 | V69: 0.62 | W69: 0.63 | X69: =LOOKUP(C69,Daten!$C$2:$C$300,Daten!$E$2:$E$500) -> 41.28 | AI69: =X69/W69 -> 65.52380952 | AJ69: =AI69 -> 65.52380952 | AK69: =X69/V69 -> 66.58064516 | AL69: =AK69 -> 66.58064516 | AM69: =X69/U69 -> -9.403189066 | AN69: =AM69 -> -9.403189066 | AO69: =X69/T69 -> -0.9597767961 | AP69: =AO69 -> -0.9597767961 | AQ69: =X69/S69 -> -77.88679245 | AR69: =AQ69 -> -77.88679245 | AS69: =X69/R69 -> 29.91304348 | AT69: =AS69 -> 29.91304348 | AU69: =X69/Q69 -> 38.94339623 | AV69: =AU69 -> 38.94339623 | AW69: =X69/P69 -> 825.6 | AX69: =AW69 -> 825.6 | AY69: =X69/O69 -> -23.86127168 | AZ69: =AY69 -> -23.86127168 | BA69: =X69/N69 -> 26.63225806 | BB69: =BA69 -> 26.63225806 | BC69: =X69/L69 -> 9.173333333 | BD69: =BC69 -> 9.173333333 | BE69: =X69/K69 -> 9.828571429 | BF69: =BE69 -> 9.828571429 | BG69: =X69/J69 -> 8.973913043 | BH69: =BG69 -> 8.973913043 | BJ69: =X69/I69 -> 20.64 | BK69: =BJ69 -> 20.64 | BL69: na | BM69: =BL69 -> na | BN69: =Tabelle1!N69 -> -6.056984439 | BO69: =IF(BN69>0,BN69,10) -> 10 | BP69: =IF(W69>N69,(W69-N69)/N69,-(N69-W69)/N69) -> -0.5935483871 | BQ69: =BP69 -> -0.5935483871 | BS69: 1.95 | BT69: =BS69/100*X69 -> 0.80496 | BU69: =D69*(BS69/100) -> -0.0865215 | BV69: =W69*(BS69/100) -> 0.012285 | BW69: =V69*(BS69/100) -> 0.01209
B71: Bachem | C71: BANB | D71: =SUM(N71:W71)/10 -> 0.9208 | J71: =2.1/5 -> 0.42 | K71: =0.7/5 -> 0.14 | L71: =1.2/5 -> 0.24 | M71: =1.8/5 -> 0.36 | N71: =2.15/5 -> 0.43 | O71: =2.35/5 -> 0.47 | P71: =3.04/5 -> 0.608 | Q71: 0.62 | R71: 0.69 | S71: 0.78 | T71: 1.12 | U71: 1.62 | V71: 1.37 | W71: 1.5 | X71: =LOOKUP(C71,Daten!$C$2:$C$300,Daten!$E$2:$E$500) -> 59.6 | AI71: =X71/W71 -> 39.73333333 | AJ71: =AI71 -> 39.73333333 | AK71: =X71/V71 -> 43.50364964 | AL71: =AK71 -> 43.50364964 | AM71: =X71/U71 -> 36.79012346 | AN71: =AM71 -> 36.79012346 | AO71: =X71/T71 -> 53.21428571 | AP71: =AO71 -> 53.21428571 | AQ71: =X71/S71 -> 76.41025641 | AR71: =AQ71 -> 76.41025641 | AS71: =X71/R71 -> 86.37681159 | AT71: =AS71 -> 86.37681159 | AU71: =X71/Q71 -> 96.12903226 | AV71: =AU71 -> 96.12903226 | AW71: =X71/P71 -> 98.02631579 | AX71: =AW71 -> 98.02631579 | AY71: =X71/O71 -> 126.8085106 | AZ71: =AY71 -> 126.8085106 | BA71: =X71/N71 -> 138.6046512 | BB71: =BA71 -> 138.6046512 | BC71: =X71/L71 -> 248.3333333 | BD71: =BC71 -> 248.3333333 | BE71: =X71/K71 -> 425.7142857 | BF71: =BE71 -> 425.7142857 | BL71: =X71/D71 -> 64.72632493 | BM71: =BL71 -> 64.72632493 | BN71: =Tabelle1!N71 -> 0.1667055103 | BO71: =IF(BN71>0,BN71,10) -> 0.1667055103 | BP71: =IF(W71>N71,(W71-N71)/N71,-(N71-W71)/N71) -> 2.488372093 | BQ71: =BP71 -> 2.488372093
B73: Baloise | C73: BALN | D73: =SUM(N73:W73)/10 -> 10.878 | L73: 10.2 | M73: 9.65 | N73: 15.15 | O73: 10.96 | P73: 11.53 | Q73: 11.5 | R73: 11.14 | S73: 15.02 | T73: 9.65 | U73: 13.06 | V73: 5.48 | W73: 5.29 | X73: =LOOKUP(C73,Daten!$C$2:$C$300,Daten!$E$2:$E$500) -> 165.6 | AI73: =X73/W73 -> 31.30434783 | AJ73: =AI73 -> 31.30434783 | AK73: =X73/V73 -> 30.2189781 | AL73: =AK73 -> 30.2189781 | AM73: =X73/U73 -> 12.67993874 | AN73: =AM73 -> 12.67993874 | AO73: =X73/T73 -> 17.16062176 | AP73: =AO73 -> 17.16062176 | AQ73: =X73/S73 -> 11.0252996 | AR73: =AQ73 -> 11.0252996 | AS73: =X73/R73 -> 14.86535009 | AT73: =AS73 -> 14.86535009 | AU73: =X73/Q73 -> 14.4 | AV73: =AU73 -> 14.4 | AW73: =X73/P73 -> 14.36253252 | AX73: =AW73 -> 14.36253252 | AY73: =X73/O73 -> 15.10948905 | AZ73: =AY73 -> 15.10948905 | BA73: =X73/N73 -> 10.93069307 | BB73: =BA73 -> 10.93069307 | BC73: =X73/L73 -> 16.23529412 | BD73: =BC73 -> 16.23529412 | BE73: =X73/K73 ->  | BF73: =BE73 ->  | BL73: =X73/D73 -> 15.22338665 | BM73: =BL73 -> 15.22338665 | BN73: =Tabelle1!N73 -> 0.004055088582 | BO73: =IF(BN73>0,BN73,10) -> 0.004055088582 | BP73: =IF(W73>N73,(W73-N73)/N73,-(N73-W73)/N73) -> -0.6508250825 | BQ73: =BP73 -> -0.6508250825 | BS73: 3.74 | BT73: =BS73/100*X73 -> 6.19344 | BU73: =D73*(BS73/100) -> 0.4068372 | BV73: =W73*(BS73/100) -> 0.197846 | BW73: =V73*(BS73/100) -> 0.204952
B75: Barry Callebaut | C75: BARN | D75: =SUM(N75:W75)/10 -> 58.653 | I75: 44 | J75: 48.6 | K75: 34.4 | L75: 27.5 | M75: 42.7 | N75: 46 | O75: 43.25 | P75: 39.57 | Q75: 51.15 | R75: 64.93 | S75: 67.57 | T75: 57.66 | U75: 69.84 | V75: 65.66 | W75: 80.9 | X75: =LOOKUP(C75,Daten!$C$2:$C$300,Daten!$E$2:$E$500) -> 1021 | AI75: =X75/W75 -> 12.62051916 | AJ75: =AI75 -> 12.62051916 | AK75: =X75/V75 -> 15.54980201 | AL75: =AK75 -> 15.54980201 | AM75: =X75/U75 -> 14.61912944 | AN75: =AM75 -> 14.61912944 | AO75: =X75/T75 -> 17.70724939 | AP75: =AO75 -> 17.70724939 | AQ75: =X75/S75 -> 15.11025603 | AR75: =AQ75 -> 15.11025603 | AS75: =X75/R75 -> 15.72462652 | AT75: =AS75 -> 15.72462652 | AU75: =X75/Q75 -> 19.96089932 | AV75: =AU75 -> 19.96089932 | AW75: =X75/P75 -> 25.80237554 | AX75: =AW75 -> 25.80237554 | AY75: =X75/O75 -> 23.60693642 | AZ75: =AY75 -> 23.60693642 | BA75: =X75/N75 -> 22.19565217 | BB75: =BA75 -> 22.19565217 | BC75: =X75/L75 -> 37.12727273 | BD75: =BC75 -> 37.12727273 | BE75: =X75/K75 -> 29.68023256 | BF75: =BE75 -> 29.68023256 | BL75: =X75/D75 -> 17.40746424 | BM75: =BL75 -> 17.40746424 | BN75: =Tabelle1!N75 -> 0.07719521557 | BO75: =IF(BN75>0,BN75,10) -> 0.07719521557 | BP75: =IF(W75>N75,(W75-N75)/N75,-(N75-W75)/N75) -> 0.7586956522 | BQ75: =BP75 -> 0.7586956522 | BS75: 2.56 | BT75: =BS75/100*X75 -> 26.1376 | BU75: =D75*(BS75/100) -> 1.5015168 | BV75: =W75*(BS75/100) -> 2.07104 | BW75: =V75*(BS75/100) -> 1.680896
B77: Belimo | C77: BEAN | D77: =SUM(N77:W77)/10 -> 7.6526 | J77: =101/20 -> 5.05 | K77: =84.6/20 -> 4.23 | L77: =99.4/20 -> 4.97 | M77: =103/20 -> 5.15 | N77: =110/20 -> 5.5 | O77: =91.52/20 -> 4.576 | P77: =114/20 -> 5.7 | Q77: =126/20 -> 6.3 | R77: 7.01 | S77: 9.85 | T77: 7.05 | U77: 9.41 | V77: 9.99 | W77: 11.14 | X77: =LOOKUP(C77,Daten!$C$2:$C$300,Daten!$E$2:$E$500) -> 718.5 | AI77: =X77/W77 -> 64.497307 | AJ77: =AI77 -> 64.497307 | AK77: =X77/V77 -> 71.92192192 | AL77: =AK77 -> 71.92192192 | AM77: =X77/U77 -> 76.35494155 | AN77: =AM77 -> 76.35494155 | AO77: =X77/T77 -> 101.9148936 | AP77: =AO77 -> 101.9148936 | AQ77: =X77/S77 -> 72.94416244 | AR77: =AQ77 -> 72.94416244 | AS77: =X77/R77 -> 102.4964337 | AT77: =AS77 -> 102.4964337 | AU77: =X77/Q77 -> 114.047619 | AV77: =AU77 -> 114.047619 | AW77: =X77/P77 -> 126.0526316 | AX77: =AW77 -> 126.0526316 | AY77: =X77/O77 -> 157.0148601 | AZ77: =AY77 -> 157.0148601 | BA77: =X77/N77 -> 130.6363636 | BB77: =BA77 -> 130.6363636 | BC77: =X77/L77 -> 144.5674044 | BD77: =BC77 -> 144.5674044 | BE77: =X77/K77 -> 169.858156 | BF77: =BE77 -> 169.858156 | BL77: =X77/D77 -> 93.88965842 | BM77: =BL77 -> 93.88965842 | BN77: =Tabelle1!N77 -> 0.09959271126 | BO77: =IF(BN77>0,BN77,10) -> 0.09959271126 | BP77: =IF(W77>N77,(W77-N77)/N77,-(N77-W77)/N77) -> 1.025454545 | BQ77: =BP77 -> 1.025454545 | BS77: 2.23 | BT77: =BS77/100*X77 -> 16.02255 | BU77: =D77*(BS77/100) -> 0.17065298 | BV77: =W77*(BS77/100) -> 0.248422 | BW77: =V77*(BS77/100) -> 0.222777
B79: Bell | C79: BELL | D79: =SUM(N79:W79)/10 -> 20.253 | E79: 89 | F79: 110 | G79: =142/10 -> 14.2 | H79: =151/10 -> 15.1 | I79: =141/10 -> 14.1 | J79: =163/10 -> 16.3 | K79: =180/10 -> 18 | L79: =191/10 -> 19.1 | M79: =192/10 -> 19.2 | N79: =219/10 -> 21.9 | O79: 23.75 | P79: 25.18 | Q79: 26.68 | R79: 16.89 | S79: 7.9 | T79: 18.91 | U79: 20.31 | V79: 20.37 | W79: 20.64 | X79: =LOOKUP(C79,Daten!$C$2:$C$300,Daten!$E$2:$E$500) -> 255 | AI79: =X79/W79 -> 12.35465116 | AJ79: =AI79 -> 12.35465116 | AK79: =X79/V79 -> 12.51840943 | AL79: =AK79 -> 12.51840943 | AM79: =X79/U79 -> 12.55539143 | AN79: =AM79 -> 12.55539143 | AO79: =X79/T79 -> 13.48492861 | AP79: =AO79 -> 13.48492861 | AQ79: =X79/S79 -> 32.27848101 | AR79: =AQ79 -> 32.27848101 | AS79: =X79/R79 -> 15.09769094 | AT79: =AS79 -> 15.09769094 | AU79: =X79/Q79 -> 9.557721139 | AV79: =AU79 -> 9.557721139 | AW79: =X79/P79 -> 10.12708499 | AX79: =AW79 -> 10.12708499 | AY79: =X79/O79 -> 10.73684211 | AZ79: =AY79 -> 10.73684211 | BA79: =X79/N79 -> 11.64383562 | BB79: =BA79 -> 11.64383562 | BC79: =X79/L79 -> 13.35078534 | BD79: =BC79 -> 13.35078534 | BE79: =X79/K79 -> 14.16666667 | BF79: =BE79 -> 14.16666667 | BL79: =X79/D79 -> 12.5907273 | BM79: =BL79 -> 12.5907273 | BN79: =Tabelle1!N79 -> 0.09295871416 | BO79: =IF(BN79>0,BN79,10) -> 0.09295871416 | BP79: =IF(W79>N79,(W79-N79)/N79,-(N79-W79)/N79) -> -0.05753424658 | BQ79: =BP79 -> -0.05753424658
B81: BKW | C81: BKW | D81: =SUM(N81:W81)/10 -> 6.61 | J81: 4.5 | K81: -1.4 | L81: 2.7 | M81: -4.5 | N81: 5.96 | O81: 5.71 | P81: 6.41 | Q81: 4.92 | R81: 3.56 | S81: 7.42 | T81: 6.86 | U81: 5.77 | V81: 10.43 | W81: 9.06 | X81: =LOOKUP(C81,Daten!$C$2:$C$300,Daten!$E$2:$E$500) -> 153.7 | AI81: =X81/W81 -> 16.96467991 | AJ81: =AI81 -> 16.96467991 | AK81: =X81/V81 -> 14.73633749 | AL81: =AK81 -> 14.73633749 | AM81: =X81/U81 -> 26.63778163 | AN81: =AM81 -> 26.63778163 | AO81: =X81/T81 -> 22.40524781 | AP81: =AO81 -> 22.40524781 | AQ81: =X81/S81 -> 20.71428571 | AR81: =AQ81 -> 20.71428571 | AS81: =X81/R81 -> 43.1741573 | AT81: =AS81 -> 43.1741573 | AU81: =X81/Q81 -> 31.2398374 | AV81: =AU81 -> 31.2398374 | AW81: =X81/P81 -> 23.97815913 | AX81: =AW81 -> 23.97815913 | AY81: =X81/O81 -> 26.91768827 | AZ81: =AY81 -> 26.91768827 | BA81: =X81/N81 -> 25.7885906 | BB81: =BA81 -> 25.7885906 | BC81: =X81/L81 -> 56.92592593 | BD81: =BC81 -> 56.92592593 | BE81: =X81/K81 -> -109.7857143 | BF81: =BE81 -> -109.7857143 | BL81: =X81/D81 -> 23.2526475 | BM81: =BL81 -> 23.2526475 | BN81: =Tabelle1!N81 -> 0.3422397634 | BO81: =IF(BN81>0,BN81,10) -> 0.3422397634 | BP81: =IF(W81>N81,(W81-N81)/N81,-(N81-W81)/N81) -> 0.5201342282 | BQ81: =BP81 -> 0.5201342282 | BS81: 1.5 | BT81: =BS81/100*X81 -> 2.3055 | BU81: =D81*(BS81/100) -> 0.09915 | BV81: =W81*(BS81/100) -> 0.1359 | BW81: =V81*(BS81/100) -> 0.15645
B83: Bossard | C83: BOSN | D83: =SUM(N83:W83)/10 -> 9.783 | E83: =6.57/2 -> 3.285 | F83: =3.98/2 -> 1.99 | G83: =10.03/2 -> 5.015 | H83: =10.68/2 -> 5.34 | I83: =4.97/2 -> 2.485 | J83: =14.81/2 -> 7.405 | K83: =14.89/2 -> 7.445 | L83: =14.38/2 -> 7.19 | M83: 7.4 | N83: 7.49 | O83: 7.01 | P83: 8.04 | Q83: 10.33 | R83: 10.95 | S83: 9.73 | T83: 8.73 | U83: 12.53 | V83: 13.38 | W83: 9.64 | X83: =LOOKUP(C83,Daten!$C$2:$C$300,Daten!$E$2:$E$500) -> 204 | AI83: =X83/W83 -> 21.16182573 | AJ83: =AI83 -> 21.16182573 | AK83: =X83/V83 -> 15.24663677 | AL83: =AK83 -> 15.24663677 | AM83: =X83/U83 -> 16.28092578 | AN83: =AM83 -> 16.28092578 | AO83: =X83/T83 -> 23.36769759 | AP83: =AO83 -> 23.36769759 | AQ83: =X83/S83 -> 20.96608428 | AR83: =AQ83 -> 20.96608428 | AS83: =X83/R83 -> 18.63013699 | AT83: =AS83 -> 18.63013699 | AU83: =X83/Q83 -> 19.74830591 | AV83: =AU83 -> 19.74830591 | AW83: =X83/P83 -> 25.37313433 | AX83: =AW83 -> 25.37313433 | AY83: =X83/O83 -> 29.10128388 | AZ83: =AY83 -> 29.10128388 | BA83: =X83/N83 -> 27.23631509 | BB83: =BA83 -> 27.23631509 | BC83: =X83/L83 -> 28.37273992 | BD83: =BC83 -> 28.37273992 | BE83: =X83/K83 -> 27.40094023 | BF83: =BE83 -> 27.40094023 | BG83: =X83/J83 -> 27.54895341 | BH83: =BG83 -> 27.54895341 | BJ83: =X83/I83 -> 82.09255533 | BK83: =BJ83 -> 82.09255533 | BL83: =X83/D83 -> 20.85249923 | BM83: =BL83 -> 20.85249923 | BN83: =Tabelle1!N83 -> 0.04492606096 | BO83: =IF(BN83>0,BN83,10) -> 0.04492606096 | BP83: =IF(W83>N83,(W83-N83)/N83,-(N83-W83)/N83) -> 0.2870493992 | BQ83: =BP83 -> 0.2870493992
B85: Bucher Industries | C85: BUCN | D85: =SUM(N85:W85)/10 -> 21.086 | I85: -2.6 | J85: 9.5 | K85: 12.5 | L85: 15.53 | M85: 19.64 | N85: 18.59 | O85: 13.68 | P85: 11.71 | Q85: 16.79 | R85: 20.76 | S85: 21.92 | T85: 14.71 | U85: 25.96 | V85: 32.36 | W85: 34.38 | X85: =LOOKUP(C85,Daten!$C$2:$C$300,Daten!$E$2:$E$500) -> 338 | AI85: =X85/W85 -> 9.831297266 | AJ85: =AI85 -> 9.831297266 | AK85: =X85/V85 -> 10.44499382 | AL85: =AK85 -> 10.44499382 | AM85: =X85/U85 -> 13.02003082 | AN85: =AM85 -> 13.02003082 | AO85: =X85/T85 -> 22.97756628 | AP85: =AO85 -> 22.97756628 | AQ85: =X85/S85 -> 15.41970803 | AR85: =AQ85 -> 15.41970803 | AS85: =X85/R85 -> 16.28131021 | AT85: =AS85 -> 16.28131021 | AU85: =X85/Q85 -> 20.13103038 | AV85: =AU85 -> 20.13103038 | BL85: =X85/D85 -> 16.02959309 | BM85: =BL85 -> 16.02959309 | BN85: =Tabelle1!N85 -> 0.1009373914 | BO85: =IF(BN85>0,BN85,10) -> 0.1009373914 | BP85: =IF(W85>N85,(W85-N85)/N85,-(N85-W85)/N85) -> 0.8493813878 | BQ85: =BP85 -> 0.8493813878
B87: Burckhardt Compression | C87: BCHN | D87: =SUM(N87:W87)/10 -> 14.578 | F87: 11.8 | G87: 20 | H87: 21.46 | I87: 16.68 | J87: 13.56 | K87: 15.22 | L87: 16.42 | M87: 15.87 | N87: 16.93 | O87: 16.34 | P87: 11.2 | Q87: 8.51 | R87: 8.15 | S87: 9.56 | T87: 13 | U87: 14.82 | V87: 20.64 | W87: 26.63 | X87: =LOOKUP(C87,Daten!$C$2:$C$300,Daten!$E$2:$E$500) -> 707 | AD87: =X87/F87 -> 59.91525424 | AF87: =X87/G87 -> 35.35 | AH87: =X87/H87 -> 32.94501398 | AI87: =X87/W87 -> 26.54900488 | AJ87: =AI87 -> 26.54900488 | AK87: =X87/V87 -> 34.25387597 | AL87: =AK87 -> 34.25387597 | AM87: =X87/U87 -> 47.70580297 | AN87: =AM87 -> 47.70580297 | AO87: =X87/T87 -> 54.38461538 | AP87: =AO87 -> 54.38461538 | AQ87: =X87/S87 -> 73.9539749 | AR87: =AQ87 -> 73.9539749 | AS87: =X87/R87 -> 86.74846626 | AT87: =AS87 -> 86.74846626 | AU87: =X87/Q87 -> 83.0787309 | AV87: =AU87 -> 83.0787309 | AW87: =X87/P87 -> 63.125 | AX87: =AW87 -> 63.125 | AY87: =X87/O87 -> 43.26805386 | AZ87: =AY87 -> 43.26805386 | BA87: =X87/N87 -> 41.76018901 | BB87: =BA87 -> 41.76018901 | BC87: =X87/L87 -> 43.05724726 | BD87: =BC87 -> 43.05724726 | BE87: =X87/K87 -> 46.45203679 | BF87: =BE87 -> 46.45203679 | BG87: =X87/J87 -> 52.13864307 | BH87: =BG87 -> 52.13864307 | BJ87: =X87/I87 -> 42.38609113 | BK87: =BJ87 -> 42.38609113 | BL87: =X87/D87 -> 48.49773631 | BM87: =BL87 -> 48.49773631 | BN87: =Tabelle1!N89 -> 0.05469590326 | BO87: =IF(BN87>0,BN87,10) -> 0.05469590326 | BP87: =IF(W87>N87,(W87-N87)/N87,-(N87-W87)/N87) -> 0.5729474306 | BQ87: =BP87 -> 0.5729474306
B89: Burkhalter | C89: BRKN | D89: =SUM(N89:W89)/10 -> 4.589 | E89: =11.3/5 -> 2.26 | F89: =14.53/5 -> 2.906 | G89: =19.81/5 -> 3.962 | H89: =23.13/5 -> 4.626 | I89: =15.48/5 -> 3.096 | J89: =17.95/5 -> 3.59 | K89: =20.11/5 -> 4.022 | L89: 4.29 | M89: 4.48 | N89: 5.25 | O89: 5.8 | P89: 6.08 | Q89: 5.02 | R89: 3.92 | S89: 3.72 | T89: 2.43 | U89: 3.99 | V89: 4.73 | W89: 4.95 | X89: =LOOKUP(C89,Daten!$C$2:$C$300,Daten!$E$2:$E$500) -> 97.6 | AB89: =X89/E89 -> 43.18584071 | AD89: =X89/F89 -> 33.58568479 | AF89: =X89/G89 -> 24.63402322 | AH89: =X89/H89 -> 21.09814094 | AI89: =X89/W89 -> 19.71717172 | AJ89: =AI89 -> 19.71717172 | AK89: =X89/V89 -> 20.63424947 | AL89: =AK89 -> 20.63424947 | AM89: =X89/U89 -> 24.46115288 | AN89: =AM89 -> 24.46115288 | AO89: =X89/T89 -> 40.16460905 | AP89: =AO89 -> 40.16460905 | AQ89: =X89/S89 -> 26.23655914 | AR89: =AQ89 -> 26.23655914 | AS89: =X89/R89 -> 24.89795918 | AT89: =AS89 -> 24.89795918 | AU89: =X89/Q89 -> 19.44223108 | AV89: =AU89 -> 19.44223108 | AW89: =X89/P89 -> 16.05263158 | AX89: =AW89 -> 16.05263158 | AY89: =X89/O89 -> 16.82758621 | AZ89: =AY89 -> 16.82758621 | BA89: =X89/N89 -> 18.59047619 | BB89: =BA89 -> 18.59047619 | BC89: =X89/L89 -> 22.75058275 | BD89: =BC89 -> 22.75058275 | BE89: =X89/K89 -> 24.26653406 | BF89: =BE89 -> 24.26653406 | BG89: =X89/J89 -> 27.18662953 | BH89: =BG89 -> 27.18662953 | BJ89: =X89/I89 -> 31.5245478 | BK89: =BJ89 -> 31.5245478 | BL89: =X89/D89 -> 21.26825016 | BM89: =BL89 -> 21.26825016 | BN89: =Tabelle1!N87 -> 0.06513047 | BO89: =IF(BN89>0,BN89,10) -> 0.06513047 | BP89: =IF(W89>N89,(W89-N89)/N89,-(N89-W89)/N89) -> -0.05714285714 | BQ89: =BP89 -> -0.05714285714
B91: Calida | C91: CALN | D91: =SUM(N91:W91)/10 -> 1.095 | G91: 2 | H91: 1.4 | I91: -5.15 | J91: 2.7 | K91: 2.9 | L91: 2.58 | M91: 1.36 | N91: 2.74 | O91: 1.97 | P91: 1.72 | Q91: 1.88 | R91: 1.97 | S91: 1.9 | T91: -0.17 | U91: 2.43 | V91: 4.39 | W91: -7.88 | X91: =LOOKUP(C91,Daten!$C$2:$C$300,Daten!$E$2:$E$500) -> 22.7 | AI91: na | AJ91: =AI91 -> na | AK91: =X91/V91 -> 5.170842825 | AL91: =AK91 -> 5.170842825 | AM91: =X91/U91 -> 9.341563786 | AN91: =AM91 -> 9.341563786 | AO91: na | AP91: =AO91 -> na | AQ91: =X91/S91 -> 11.94736842 | AR91: =AQ91 -> 11.94736842 | AS91: =X91/R91 -> 11.52284264 | AT91: =AS91 -> 11.52284264 | AU91: =X91/Q91 -> 12.07446809 | AV91: =AU91 -> 12.07446809 | AW91: =X91/P91 -> 13.19767442 | AX91: =AW91 -> 13.19767442 | AY91: =X91/O91 -> 11.52284264 | AZ91: =AY91 -> 11.52284264 | BA91: =X91/N91 -> 8.284671533 | BB91: =BA91 -> 8.284671533 | BC91: =X91/L91 -> 8.798449612 | BD91: =BC91 -> 8.798449612 | BE91: =X91/K91 -> 7.827586207 | BF91: =BE91 -> 7.827586207 | BG91: =X91/J91 -> 8.407407407 | BH91: =BG91 -> 8.407407407 | BJ91: =X91/I91 -> -4.40776699 | BL91: =X91/D91 -> 20.73059361 | BM91: =BL91 -> 20.73059361 | BN91: =Tabelle1!N91 -> 1.292838275 | BO91: =IF(BN91>0,BN91,10) -> 1.292838275 | BP91: =IF(W91>N91,(W91-N91)/N91,-(N91-W91)/N91) -> -3.875912409 | BQ91: =BP91 -> -3.875912409
B93: Carlo Gavazzi 1) | C93: GAV | D93: =SUM(N93:W93)/10 -> 19.907 | E93: 17.11 | F93: 16.23 | G93: 23.81 | H93: 11.25 | I93: 10.89 | J93: 31.98 | K93: 23.57 | L93: 17.66 | M93: 15.69 | N93: 17.26 | O93: 13.58 | P93: 18.84 | Q93: 11.81 | R93: 15.07 | S93: 8.55 | T93: 16.96 | U93: 31 | V93: 39.71 | W93: 26.29 | X93: =LOOKUP(C93,Daten!$C$2:$C$300,Daten!$E$2:$E$500) -> 184.5 | AI93: =X93/W93 -> 7.01787752 | AJ93: =AI93 -> 7.01787752 | AK93: =X93/V93 -> 4.64618484 | AL93: =AK93 -> 4.64618484 | AM93: =X93/U93 -> 5.951612903 | AN93: =AM93 -> 5.951612903 | AO93: =X93/T93 -> 10.87853774 | AP93: =AO93 -> 10.87853774 | AQ93: =X93/S93 -> 21.57894737 | AR93: =AQ93 -> 21.57894737 | AS93: =X93/R93 -> 12.24286662 | AT93: =AS93 -> 12.24286662 | AU93: =X93/Q93 -> 15.62235394 | AV93: =AU93 -> 15.62235394 | AW93: =X93/P93 -> 9.792993631 | AX93: =AW93 -> 9.792993631 | AY93: =X93/O93 -> 13.58615611 | AZ93: =AY93 -> 13.58615611 | BA93: =X93/N93 -> 10.68945539 | BB93: =BA93 -> 10.68945539 | BC93: =X93/L93 -> 10.44733862 | BD93: =BC93 -> 10.44733862 | BE93: =X93/K93 -> 7.827747136 | BF93: =BE93 -> 7.827747136 | BG93: =X93/J93 -> 5.769230769 | BH93: =BG93 -> 5.769230769 | BJ93: =X93/I93 -> 16.94214876 | BK93: =BJ93 -> 16.94214876 | BL93: =X93/D93 -> 9.268096649 | BM93: =BL93 -> 9.268096649 | BN93: =Tabelle1!N93 -> 0.1498909201 | BO93: =IF(BN93>0,BN93,10) -> 0.1498909201 | BP93: =IF(W93>N93,(W93-N93)/N93,-(N93-W93)/N93) -> 0.523174971 | BQ93: =BP93 -> 0.523174971
B95: Clariant | C95: CLN | D95: =SUM(N95:W95)/10 -> 0.706 | I95: -0.91 | J95: 0.81 | K95: 0.86 | L95: 0.74 | M95: -0.06 | N95: 0.48 | O95: 0.71 | P95: 0.78 | Q95: 0.84 | R95: 1.02 | S95: 0.03 | T95: 2.38 | U95: 0.81 | V95: -0.4 | W95: 0.41 | X95: =LOOKUP(C95,Daten!$C$2:$C$300,Daten!$E$2:$E$500) -> 10.19 | AI95: =X95/W95 -> 24.85365854 | AJ95: =AI95 -> 24.85365854 | AK95: na | AL95: =AK95 -> na | AM95: =X95/U95 -> 12.58024691 | AN95: =AM95 -> 12.58024691 | AO95: =X95/T95 -> 4.281512605 | AP95: =AO95 -> 4.281512605 | AQ95: =X95/S95 -> 339.6666667 | AR95: =AQ95 -> 339.6666667 | AS95: =X95/R95 -> 9.990196078 | AT95: =AS95 -> 9.990196078 | AU95: =X95/Q95 -> 12.13095238 | AV95: =AU95 -> 12.13095238 | AW95: =X95/P95 -> 13.06410256 | AX95: =AW95 -> 13.06410256 | AY95: =X95/O95 -> 14.35211268 | AZ95: =AY95 -> 14.35211268 | BA95: =X95/N95 -> 21.22916667 | BB95: =BA95 -> 21.22916667 | BC95: =X95/L95 -> 13.77027027 | BD95: =BC95 -> 13.77027027 | BE95: =X95/K95 -> 11.84883721 | BF95: =BE95 -> 11.84883721 | BG95: =X95/J95 -> 12.58024691 | BH95: =BG95 -> 12.58024691 | BJ95: =X95/I95 -> -11.1978022 | BK95: =BJ95 -> -11.1978022 | BL95: =X95/D95 -> 14.43342776 | BM95: =BL95 -> 14.43342776 | BN95: =Tabelle1!N95 -> 8.710322108 | BO95: =IF(BN95>0,BN95,10) -> 8.710322108 | BP95: =IF(W95>N95,(W95-N95)/N95,-(N95-W95)/N95) -> -0.1458333333 | BQ95: =BP95 -> -0.1458333333 | BS95: 1.69 | BT95: =BS95/100*X95 -> 0.172211 | BU95: =D95*(BS95/100) -> 0.0119314 | BV95: =W95*(BS95/100) -> 0.006929 | BW95: =V95*(BS95/100) -> -0.00676
B97: Dätwyler 2) | C97: DAE | D97: =SUM(N97:W97)/10 -> 5.901 | E97: 2.62 | F97: 4.98 | G97: 14.27 | H97: 7.12 | I97: 3.71 | J97: 6.36 | K97: 6.22 | L97: 8.23 | M97: 7.6 | N97: 6.14 | O97: 5.04 | P97: 3.47 | Q97: 7.28 | R97: 7.12 | S97: 5.6 | T97: 6.99 | U97: 7.28 | V97: 6.16 | W97: 3.93 | X97: =LOOKUP(C97,Daten!$C$2:$C$300,Daten!$E$2:$E$500) -> 136.8 | AI97: =X97/W97 -> 34.80916031 | AJ97: =AI97 -> 34.80916031 | AK97: =X97/V97 -> 22.20779221 | AL97: =AK97 -> 22.20779221 | AM97: =X97/U97 -> 18.79120879 | AN97: =AM97 -> 18.79120879 | AO97: =X97/T97 -> 19.57081545 | AP97: =AO97 -> 19.57081545 | AQ97: =X97/S97 -> 24.42857143 | AR97: =AQ97 -> 24.42857143 | AS97: =X97/R97 -> 19.21348315 | AT97: =AS97 -> 19.21348315 | AU97: =X97/Q97 -> 18.79120879 | AV97: =AU97 -> 18.79120879 | AW97: =X97/P97 -> 39.42363112 | AX97: =AW97 -> 39.42363112 | AY97: =X97/O97 -> 27.14285714 | AZ97: =AY97 -> 27.14285714 | BA97: =X97/N97 -> 22.28013029 | BB97: =BA97 -> 22.28013029 | BC97: =X97/L97 -> 16.62211422 | BD97: =BC97 -> 16.62211422 | BE97: =X97/K97 -> 21.99356913 | BF97: =BE97 -> 21.99356913 | BG97: =X97/J97 -> 21.50943396 | BH97: =BG97 -> 21.50943396 | BJ97: =X97/I97 -> 36.87331536 | BK97: =BJ97 -> 36.87331536 | BL97: =X97/D97 -> 23.18251144 | BM97: =BL97 -> 23.18251144 | BN97: =Tabelle1!N97 -> -0.004640176861 | BO97: =IF(BN97>0,BN97,10) -> 10 | BP97: =IF(W97>N97,(W97-N97)/N97,-(N97-W97)/N97) -> -0.3599348534 | BQ97: =BP97 -> -0.3599348534
B99: Ems-Chemie | C99: EMSN | D99: =SUM(N99:W99)/10 -> 19.97 | E99: 7.27 | F99: 12.65 | G99: 12.09 | H99: 9.25 | I99: 9.66 | J99: 9.71 | K99: 10.14 | L99: 11.45 | M99: 13.58 | N99: 14.66 | O99: 16.09 | P99: 19.19 | Q99: 20.59 | R99: 22.22 | S99: 22.54 | T99: 18.57 | U99: 23.53 | V99: 22.75 | W99: 19.56 | X99: =LOOKUP(C99,Daten!$C$2:$C$300,Daten!$E$2:$E$500) -> 640.5 | AB99: =X99/E99 -> 88.10178817 | AD99: =X99/F99 -> 50.63241107 | AF99: =X99/G99 -> 52.97766749 | AH99: =X99/H99 -> 69.24324324 | AI99: =X99/W99 -> 32.74539877 | AJ99: =AI99 -> 32.74539877 | AK99: =X99/V99 -> 28.15384615 | AL99: =AK99 -> 28.15384615 | AM99: =X99/U99 -> 27.22056949 | AN99: =AM99 -> 27.22056949 | AO99: =X99/T99 -> 34.4911147 | AP99: =AO99 -> 34.4911147 | AQ99: =X99/S99 -> 28.41614907 | AR99: =AQ99 -> 28.41614907 | AS99: =X99/R99 -> 28.82538254 | AT99: =AS99 -> 28.82538254 | AU99: =X99/Q99 -> 31.10733366 | AV99: =AU99 -> 31.10733366 | AW99: =X99/P99 -> 33.37675873 | AX99: =AW99 -> 33.37675873 | AY99: =X99/O99 -> 39.80733375 | AZ99: =AY99 -> 39.80733375 | BA99: =X99/N99 -> 43.69031378 | BB99: =BA99 -> 43.69031378 | BC99: =X99/L99 -> 55.93886463 | BD99: =BC99 -> 55.93886463 | BE99: =X99/K99 -> 63.16568047 | BF99: =BE99 -> 63.16568047 | BG99: =X99/J99 -> 65.96292482 | BH99: =BG99 -> 65.96292482 | BJ99: =X99/I99 -> 66.30434783 | BK99: =BJ99 -> 66.30434783 | BL99: =X99/D99 -> 32.07310966 | BM99: =BL99 -> 32.07310966 | BN99: =Tabelle1!N99 -> 0.04538572519 | BO99: =IF(BN99>0,BN99,10) -> 0.04538572519 | BP99: =IF(W99>N99,(W99-N99)/N99,-(N99-W99)/N99) -> 0.3342428377 | BQ99: =BP99 -> 0.3342428377 | BS99: 2.49 | BT99: =BS99/100*X99 -> 15.94845 | BU99: =D99*(BS99/100) -> 0.497253 | BV99: =W99*(BS99/100) -> 0.487044 | BW99: =V99*(BS99/100) -> 0.566475
B101: Flughafen Zürich | C101: FHZN | D101: =SUM(N101:W101)/10 -> 6.181 | J101: =22.6/5 -> 4.52 | K101: =27.7/5 -> 5.54 | L101: =15.5/5 -> 3.1 | M101: =22.3/5 -> 4.46 | N101: 6.71 | O101: 5.85 | P101: 8.07 | Q101: 9.29 | R101: 7.75 | S101: 10.07 | T101: -2.25 | U101: -0.33 | V101: 6.74 | W101: 9.91 | X101: =LOOKUP(C101,Daten!$C$2:$C$300,Daten!$E$2:$E$500) -> 219.6 | AI101: =X101/W101 -> 22.15943491 | AJ101: =AI101 -> 22.15943491 | AK101: =X101/V101 -> 32.58160237 | AL101: =AK101 -> 32.58160237 | AM101: na | AN101: =AM101 -> na | AO101: =X101/T101 -> -97.6 | AP101: =AO101 -> -97.6 | AQ101: =X101/S101 -> 21.80734856 | AR101: =AQ101 -> 21.80734856 | AS101: =X101/R101 -> 28.33548387 | AT101: =AS101 -> 28.33548387 | AU101: =X101/Q101 -> 23.63832078 | AV101: =AU101 -> 23.63832078 | AW101: =X101/P101 -> 27.21189591 | AX101: =AW101 -> 27.21189591 | AY101: =X101/O101 -> 37.53846154 | AZ101: =AY101 -> 37.53846154 | BA101: =X101/N101 -> 32.72727273 | BB101: =BA101 -> 32.72727273 | BC101: =X101/L101 -> 70.83870968 | BD101: =BC101 -> 70.83870968 | BE101: =X101/K101 -> 39.63898917 | BF101: =BE101 -> 39.63898917 | BG101: =X101/J101 -> 48.5840708 | BH101: =BG101 -> 48.5840708 | BJ101: =X101/I101 ->  | BK101: =BJ101 ->  | BL101: =X101/D101 -> 35.52823168 | BM101: =BL101 -> 35.52823168 | BN101: =Tabelle1!N101 -> 2.256503318 | BO101: =IF(BN101>0,BN101,10) -> 2.256503318 | BP101: =IF(W101>N101,(W101-N101)/N101,-(N101-W101)/N101) -> 0.476900149 | BQ101: =BP101 -> 0.476900149 | BS101: 1.9 | BT101: =BS101/100*X101 -> 4.1724 | BU101: =D101*(BS101/100) -> 0.117439 | BV101: =W101*(BS101/100) -> 0.18829 | BW101: =V101*(BS101/100) -> 0.12806
B103: Forbo N | C103: FORN | D103: =SUM(N103:W103)/10 -> 69.233 | E103: -6.26 | F103: 23.57 | G103: 43.45 | H103: 6.84 | I103: 33.67 | J103: 71.48 | K103: 62.61 | L103: 89.04 | M103: 53.19 | N103: 61.95 | O103: 62.13 | P103: 74.65 | Q103: 22.36 | R103: 82.38 | S103: 86.33 | T103: 66.6 | U103: 91.62 | V103: 71.76 | W103: 72.55 | X103: =LOOKUP(C103,Daten!$C$2:$C$300,Daten!$E$2:$E$500) -> 839 | AB103: =X103/E103 -> -134.0255591 | AD103: =X103/F103 -> 35.59609673 | AF103: =X103/G103 -> 19.30955121 | AH103: =X103/H103 -> 122.6608187 | AI103: =X103/W103 -> 11.56443832 | AJ103: =AI103 -> 11.56443832 | AK103: =X103/V103 -> 11.69175028 | AL103: =AK103 -> 11.69175028 | AM103: =X103/U103 -> 9.157389216 | AN103: =AM103 -> 9.157389216 | AO103: =X103/T103 -> 12.5975976 | AP103: =AO103 -> 12.5975976 | AQ103: =X103/S103 -> 9.718521951 | AR103: =AQ103 -> 9.718521951 | AS103: =X103/R103 -> 10.1845108 | AT103: =AS103 -> 10.1845108 | AU103: =X103/Q103 -> 37.52236136 | AV103: =AU103 -> 37.52236136 | AW103: =X103/P103 -> 11.23911587 | AX103: =AW103 -> 11.23911587 | AY103: =X103/O103 -> 13.50394334 | AZ103: =AY103 -> 13.50394334 | BA103: =X103/N103 -> 13.54317998 | BB103: =BA103 -> 13.54317998 | BC103: =X103/L103 -> 9.422731357 | BD103: =BC103 -> 9.422731357 | BE103: =X103/K103 -> 13.40041527 | BF103: =BE103 -> 13.40041527 | BG103: =X103/J103 -> 11.73754896 | BH103: =BG103 -> 11.73754896 | BJ103: =X103/I103 -> 24.91832492 | BK103: =BJ103 -> 24.91832492 | BL103: =X103/D103 -> 12.1184984 | BM103: =BL103 -> 12.1184984 | BN103: =Tabelle1!N103 -> 0.234222647 | BO103: =IF(BN103>0,BN103,10) -> 0.234222647 | BP103: =IF(W103>N103,(W103-N103)/N103,-(N103-W103)/N103) -> 0.1711057304 | BQ103: =BP103 -> 0.1711057304
B105: Galenica | C105: GALE | D105: =SUM(N105:W105)/10 -> 2.88 | L105: 3.9 | M105: 4.5 | N105: 1.64 | O105: 1.62 | P105: 1.67 | Q105: 2.43 | R105: 3 | S105: 2.54 | T105: 3.48 | U105: 3.38 | V105: 3.32 | W105: 5.72 | X105: =LOOKUP(C105,Daten!$C$2:$C$300,Daten!$E$2:$E$500) -> 79.35 | AI105: =X105/W105 -> 13.87237762 | AJ105: =AI105 -> 13.87237762 | AK105: =X105/V105 -> 23.90060241 | AL105: =AK105 -> 23.90060241 | AM105: =X105/U105 -> 23.47633136 | AN105: =AM105 -> 23.47633136 | AO105: =X105/T105 -> 22.80172414 | AP105: =AO105 -> 22.80172414 | AQ105: =X105/S105 -> 31.24015748 | AR105: =AQ105 -> 31.24015748 | AS105: =X105/R105 -> 26.45 | AT105: =AS105 -> 26.45 | AU105: =X105/Q105 -> 32.65432099 | AV105: =AU105 -> 32.65432099 | AW105: =X105/P105 -> 47.51497006 | AX105: =AW105 -> 47.51497006 | AY105: =X105/O105 -> 48.98148148 | AZ105: =AY105 -> 48.98148148 | BA105: =X105/N105 -> 48.38414634 | BB105: =BA105 -> 48.38414634 | BC105: =X105/L105 -> 20.34615385 | BD105: =BC105 -> 20.34615385 | BE105: =X105/K105 ->  | BF105: =BE105 ->  | BG105: =X105/J105 ->  | BH105: =BG105 ->  | BJ105: =X105/I105 ->  | BK105: =BJ105 ->  | BL105: =X105/D105 -> 27.55208333 | BM105: =BL105 -> 27.55208333 | BN105: =Tabelle1!N105 -> 0.09659211032 | BO105: =IF(BN105>0,BN105,10) -> 0.09659211032 | BP105: =IF(W105>N105,(W105-N105)/N105,-(N105-W105)/N105) -> 2.487804878 | BQ105: =BP105 -> 2.487804878 | BS105: 1.89 | BT105: =BS105/100*X105 -> 1.499715 | BU105: =D105*(BS105/100) -> 0.054432 | BV105: =W105*(BS105/100) -> 0.108108 | BW105: =V105*(BS105/100) -> 0.062748
B107: Georg Fischer AG | C107: GF | D107: =SUM(N107:W107)/10 -> 2.611 | E107: 2.3 | F107: 3.1 | G107: 2.9 | H107: 0.7 | I107: -3.05 | J107: 1.2 | K107: 1.95 | L107: 1.6 | M107: 1.7 | N107: 2.25 | O107: 2.3 | P107: 2.65 | Q107: 3.1 | R107: 3.45 | S107: 2.1 | T107: 1.4 | U107: 2.62 | V107: 3.37 | W107: 2.87 | X107: =LOOKUP(C107,Daten!$C$2:$C$300,Daten!$E$2:$E$500) -> 70.4 | AH107: =N107/M107 -> 1.323529412 | AI107: =X107/W107 -> 24.52961672 | AJ107: =AI107 -> 24.52961672 | AK107: =X107/V107 -> 20.89020772 | AL107: =AK107 -> 20.89020772 | AM107: =X107/U107 -> 26.87022901 | AN107: =AM107 -> 26.87022901 | AO107: =X107/T107 -> 50.28571429 | AP107: =AO107 -> 50.28571429 | AQ107: =X107/S107 -> 33.52380952 | AR107: =AQ107 -> 33.52380952 | AS107: =X107/R107 -> 20.4057971 | AT107: =AS107 -> 20.4057971 | AU107: =X107/Q107 -> 22.70967742 | AV107: =AU107 -> 22.70967742 | AW107: =X107/P107 -> 26.56603774 | AX107: =AW107 -> 26.56603774 | AY107: =X107/O107 -> 30.60869565 | AZ107: =AY107 -> 30.60869565 | BA107: =X107/N107 -> 31.28888889 | BB107: =BA107 -> 31.28888889 | BI107: =N107/D107 -> 0.8617387974 | BL107: =X107/D107 -> 26.96284948 | BM107: =BL107 -> 26.96284948 | BN107: =Tabelle1!N107 -> 0.1065322573 | BO107: =IF(BN107>0,BN107,10) -> 0.1065322573 | BP107: =IF(W107>N107,(W107-N107)/N107,-(N107-W107)/N107) -> 0.2755555556 | BQ107: =BP107 -> 0.2755555556 | BS107: 2.56 | BT107: =BS107/100*X107 -> 1.80224 | BU107: =D107*(BS107/100) -> 0.0668416 | BV107: =W107*(BS107/100) -> 0.073472 | BW107: =V107*(BS107/100) -> 0.086272
B109: Gurit Holding I | C109: GURN | D109: =SUM(N109:W109)/10 -> 4.6026 | J109: 5.34 | K109: 4.78 | L109: 2.94 | M109: 0.024 | N109: 2.374 | O109: 4.824 | P109: 5.564 | Q109: 5.332 | R109: 4.296 | S109: 7.606 | T109: 10.031 | U109: 2.429 | V109: 1.98 | W109: 1.59 | X109: =LOOKUP(C109,Daten!$C$2:$C$300,Daten!$E$2:$E$500) -> 14.4 | AI109: =X109/W109 -> 9.056603774 | AJ109: =AI109 -> 9.056603774 | AK109: =X109/V109 -> 7.272727273 | AL109: =AK109 -> 7.272727273 | AM109: =X109/U109 -> 5.928365583 | AN109: =AM109 -> 5.928365583 | AO109: =X109/T109 -> 1.435549796 | AP109: =AO109 -> 1.435549796 | AQ109: =X109/S109 -> 1.893242177 | AR109: =AQ109 -> 1.893242177 | AS109: =X109/R109 -> 3.351955307 | AT109: =AS109 -> 3.351955307 | AU109: =X109/Q109 -> 2.700675169 | AV109: =AU109 -> 2.700675169 | AW109: =X109/P109 -> 2.588066139 | AX109: =AW109 -> 2.588066139 | AY109: =X109/O109 -> 2.985074627 | AZ109: =AY109 -> 2.985074627 | BA109: =X109/N109 -> 6.065711879 | BB109: =BA109 -> 6.065711879 | BI109: =N109/D109 -> 0.51579542 | BL109: =X109/D109 -> 3.128666406 | BM109: =BL109 -> 3.128666406 | BN109: =Tabelle1!N109 -> 9.881572594 | BO109: =IF(BN109>0,BN109,10) -> 9.881572594 | BP109: =IF(W109>N109,(W109-N109)/N109,-(N109-W109)/N109) -> -0.3302443134 | BQ109: =BP109 -> -0.3302443134
B111: Helvetia Holding | C111: HELN | D111: =SUM(N111:W111)/10 -> 7.8086 | I111: =37.5/5 -> 7.5 | J111: =39.3/5 -> 7.86 | K111: =32.7/5 -> 6.54 | L111: =37.1/5 -> 7.42 | M111: =40.89/5 -> 8.178 | N111: =42.98/5 -> 8.596 | O111: =28.98/5 -> 5.796 | P111: =36.07/5 -> 7.214 | Q111: 7.82 | R111: 8.37 | S111: 10.52 | T111: 4.76 | U111: 9.17 | V111: 10.6 | W111: 5.24 | X111: =LOOKUP(C111,Daten!$C$2:$C$300,Daten!$E$2:$E$500) -> 159.9 | AI111: =X111/W111 -> 30.51526718 | AJ111: =AI111 -> 30.51526718 | AK111: =X111/V111 -> 15.08490566 | AL111: =AK111 -> 15.08490566 | AM111: =X111/U111 -> 17.43729553 | AN111: =AM111 -> 17.43729553 | AO111: =X111/T111 -> 33.59243697 | AP111: =AO111 -> 33.59243697 | AQ111: =X111/S111 -> 15.19961977 | AR111: =AQ111 -> 15.19961977 | AS111: =X111/R111 -> 19.10394265 | AT111: =AS111 -> 19.10394265 | AU111: =X111/Q111 -> 20.44757033 | AV111: =AU111 -> 20.44757033 | AW111: =X111/P111 -> 22.16523427 | AX111: =AW111 -> 22.16523427 | AY111: =X111/O111 -> 27.58799172 | AZ111: =AY111 -> 27.58799172 | BA111: =X111/N111 -> 18.6016752 | BB111: =BA111 -> 18.6016752 | BC111: =X111/L111 -> 21.54986523 | BD111: =BC111 -> 21.54986523 | BE111: =X111/K111 -> 24.44954128 | BF111: =BE111 -> 24.44954128 | BG111: =X111/J111 -> 20.34351145 | BH111: =BG111 -> 20.34351145 | BJ111: =X111/I111 -> 21.32 | BK111: =BJ111 -> 21.32 | BL111: =X111/D111 -> 20.47742233 | BM111: =BL111 -> 20.47742233 | BN111: =Tabelle1!N111 -> 0.04104618941 | BO111: =IF(BN111>0,BN111,10) -> 0.04104618941 | BP111: =IF(W111>N111,(W111-N111)/N111,-(N111-W111)/N111) -> -0.3904141461 | BQ111: =BP111 -> -0.3904141461 | BS111: 2.26 | BT111: =BS111/100*X111 -> 3.61374 | BU111: =D111*(BS111/100) -> 0.17647436 | BV111: =W111*(BS111/100) -> 0.118424 | BW111: =V111*(BS111/100) -> 0.23956
B113: Hypo Lenzburg | C113: HBLN | D113: =SUM(N113:W113)/10 -> 283.669 | E113: 259 | F113: 277 | G113: 315 | H113: 330 | I113: 311 | J113: 321 | K113: 312 | L113: 337 | M113: 318 | N113: 294 | O113: 295 | P113: 300 | Q113: 307 | R113: 289.36 | S113: 292.33 | T113: 251 | U113: 254 | V113: 259 | W113: 295 | X113: =LOOKUP(C113,Daten!$C$2:$C$300,Daten!$E$2:$E$500) -> 4040 | AI113: =X113/W113 -> 13.69491525 | AJ113: =AI113 -> 13.69491525 | AK113: =X113/V113 -> 15.5984556 | AL113: =AK113 -> 15.5984556 | AM113: =X113/U113 -> 15.90551181 | AN113: =AM113 -> 15.90551181 | AO113: =X113/T113 -> 16.09561753 | AP113: =AO113 -> 16.09561753 | AQ113: =X113/S113 -> 13.81999795 | AR113: =AQ113 -> 13.81999795 | AS113: =X113/R113 -> 13.96184683 | AT113: =AS113 -> 13.96184683 | AU113: =X113/Q113 -> 13.15960912 | AV113: =AU113 -> 13.15960912 | AW113: =X113/P113 -> 13.46666667 | AX113: =AW113 -> 13.46666667 | AY113: =X113/O113 -> 13.69491525 | AZ113: =AY113 -> 13.69491525 | BA113: =X113/N113 -> 13.7414966 | BB113: =BA113 -> 13.7414966 | BC113: =X113/L113 -> 11.98813056 | BD113: =BC113 -> 11.98813056 | BE113: =X113/K113 -> 12.94871795 | BF113: =BE113 -> 12.94871795 | BG113: =X113/J113 -> 12.58566978 | BH113: =BG113 -> 12.58566978 | BJ113: =X113/I113 -> 12.9903537 | BK113: =BJ113 -> 12.9903537 | BL113: =X113/D113 -> 14.24195101 | BM113: =BL113 -> 14.24195101 | BN113: =Tabelle1!N113 -> -0.004973105015 | BO113: =IF(BN113>0,BN113,10) -> 10 | BP113: =IF(W113>N113,(W113-N113)/N113,-(N113-W113)/N113) -> 0.003401360544 | BQ113: =BP113 -> 0.003401360544
B115: Julius Bär | C115: BAER | D115: =SUM(N115:W115)/10 -> 2.888 | E115: 2.58 | F115: 6 | G115: 4.36 | H115: 1.7 | I115: 1.88 | J115: 1.71 | K115: 1.27 | L115: 1.47 | M115: 0.86 | N115: 1.68 | O115: 0.55 | P115: 2.84 | Q115: 3.25 | R115: 3.38 | S115: 2.12 | T115: 3.23 | U115: 5.06 | V115: 4.56 | W115: 2.21 | X115: =LOOKUP(C115,Daten!$C$2:$C$300,Daten!$E$2:$E$500) -> 62.76 | AB115: =X115/E115 -> 24.3255814 | AD115: =X115/F115 -> 10.46 | AF115: =X115/G115 -> 14.39449541 | AH115: =X115/H115 -> 36.91764706 | AI115: =X115/W115 -> 28.39819005 | AJ115: =AI115 -> 28.39819005 | AK115: =X115/V115 -> 13.76315789 | AL115: =AK115 -> 13.76315789 | AM115: =X115/U115 -> 12.40316206 | AN115: =AM115 -> 12.40316206 | AO115: =X115/T115 -> 19.43034056 | AP115: =AO115 -> 19.43034056 | AQ115: =X115/S115 -> 29.60377358 | AR115: =AQ115 -> 29.60377358 | AS115: =X115/R115 -> 18.56804734 | AT115: =AS115 -> 18.56804734 | AU115: =X115/Q115 -> 19.31076923 | AV115: =AU115 -> 19.31076923 | AW115: =X115/P115 -> 22.09859155 | AX115: =AW115 -> 22.09859155 | AY115: =X115/O115 -> 114.1090909 | AZ115: =AY115 -> 114.1090909 | BA115: =X115/N115 -> 37.35714286 | BB115: =BA115 -> 37.35714286 | BC115: =X115/L115 -> 42.69387755 | BD115: =BC115 -> 42.69387755 | BE115: =X115/K115 -> 49.41732283 | BF115: =BE115 -> 49.41732283 | BG115: =X115/J115 -> 36.70175439 | BH115: =BG115 -> 36.70175439 | BJ115: =X115/I115 -> 33.38297872 | BK115: =BJ115 -> 33.38297872 | BL115: =X115/D115 -> 21.73130194 | BM115: =BL115 -> 21.73130194 | BN115: =Tabelle1!N115 -> 0.4732074087 | BO115: =IF(BN115>0,BN115,10) -> 0.4732074087 | BP115: =IF(W115>N115,(W115-N115)/N115,-(N115-W115)/N115) -> 0.3154761905 | BQ115: =BP115 -> 0.3154761905 | BS115: 5.34 | BT115: =BS115/100*X115 -> 3.351384 | BU115: =D115*(BS115/100) -> 0.1542192 | BV115: =W115*(BS115/100) -> 0.118014 | BW115: =V115*(BS115/100) -> 0.243504
B117: Jungfraubahn | C117: JFN | D117: =SUM(N117:W117)/10 -> 6.063 | E117: 3 | F117: 3.28 | G117: 3.69 | H117: 3.6 | I117: 3.79 | J117: 3.88 | K117: 4.35 | L117: 4.46 | M117: 5.17 | N117: 5.23 | O117: 6.23 | P117: 5.31 | Q117: 7.09 | R117: 8.22 | S117: 9.11 | T117: -1.58 | U117: -0.08 | V117: 7.49 | W117: 13.61 | X117: =LOOKUP(C117,Daten!$C$2:$C$300,Daten!$E$2:$E$500) -> 181.4 | AI117: =X117/W117 -> 13.32843497 | AJ117: =AI117 -> 13.32843497 | AK117: =X117/V117 -> 24.21895861 | AL117: =AK117 -> 24.21895861 | AM117: na | AN117: =AM117 -> na | AO117: na | AP117: =AO117 -> na | AQ117: =X117/S117 -> 19.91218441 | AR117: =AQ117 -> 19.91218441 | AS117: =X117/R117 -> 22.06812652 | AT117: =AS117 -> 22.06812652 | AU117: =X117/Q117 -> 25.58533145 | AV117: =AU117 -> 25.58533145 | AW117: =X117/P117 -> 34.16195857 | AX117: =AW117 -> 34.16195857 | AY117: =X117/O117 -> 29.11717496 | AZ117: =AY117 -> 29.11717496 | BA117: =X117/N117 -> 34.68451243 | BB117: =BA117 -> 34.68451243 | BC117: =X117/L117 -> 40.67264574 | BD117: =BC117 -> 40.67264574 | BE117: =X117/K117 -> 41.70114943 | BF117: =BE117 -> 41.70114943 | BG117: =X117/J117 -> 46.75257732 | BH117: =BG117 -> 46.75257732 | BJ117: =X117/I117 -> 47.86279683 | BK117: =BJ117 -> 47.86279683 | BL117: =X117/D117 -> 29.91918192 | BM117: =BL117 -> 29.91918192 | BN117: =Tabelle1!N117 -> 9.58760267 | BO117: =IF(BN117>0,BN117,10) -> 9.58760267 | BP117: =IF(W117>N117,(W117-N117)/N117,-(N117-W117)/N117) -> 1.602294455 | BQ117: =BP117 -> 1.602294455
B119: Lindt | C119: LISN | D119: =SUM(N119:W119)/10 -> 1962.4 | I119: 851 | J119: 1061 | K119: 1084 | L119: 1079 | M119: 1339 | N119: 1503 | O119: 1646 | P119: 1791 | Q119: 1893 | R119: 2021 | S119: 2142 | T119: 1333 | U119: 2049 | V119: 2387 | W119: 2859 | X119: =LOOKUP(C119,Daten!$C$2:$C$300,Daten!$E$2:$E$500) -> 102600 | AI119: =X119/W119 -> 35.88667366 | AJ119: =AI119 -> 35.88667366 | AK119: =X119/V119 -> 42.98282363 | AL119: =AK119 -> 42.98282363 | AM119: =X119/U119 -> 50.07320644 | AN119: =AM119 -> 50.07320644 | AO119: =X119/T119 -> 76.96924231 | AP119: =AO119 -> 76.96924231 | AQ119: =X119/S119 -> 47.89915966 | AR119: =AQ119 -> 47.89915966 | AS119: =X119/R119 -> 50.76694706 | AT119: =AS119 -> 50.76694706 | AU119: =X119/Q119 -> 54.19968304 | AV119: =AU119 -> 54.19968304 | AW119: =X119/P119 -> 57.28643216 | AX119: =AW119 -> 57.28643216 | AY119: =X119/O119 -> 62.33292831 | AZ119: =AY119 -> 62.33292831 | BA119: =X119/N119 -> 68.26347305 | BB119: =BA119 -> 68.26347305 | BC119: =X119/L119 -> 95.08804449 | BD119: =BC119 -> 95.08804449 | BE119: =X119/K119 -> 94.64944649 | BF119: =BE119 -> 94.64944649 | BG119: =X119/J119 -> 96.70122526 | BH119: =BG119 -> 96.70122526 | BJ119: =X119/I119 -> 120.5640423 | BK119: =BJ119 -> 120.5640423 | BL119: =X119/D119 -> 52.28291887 | BM119: =BL119 -> 52.28291887 | BN119: =Tabelle1!N119 -> 0.1012301306 | BO119: =IF(BN119>0,BN119,10) -> 0.1012301306 | BP119: =IF(W119>N119,(W119-N119)/N119,-(N119-W119)/N119) -> 0.9021956088 | BQ119: =BP119 -> 0.9021956088 | BS119: 11.69 | BT119: =BS119/100*X119 -> 11993.94 | BU119: =D119*(BS119/100) -> 229.40456 | BV119: =W119*(BS119/100) -> 334.2171 | BW119: =V119*(BS119/100) -> 279.0403
B121: MeierTobler | C121: MTG | D121: =SUM(N121:W121)/10 -> 1.065 | E121: =9.94/5 -> 1.988 | F121: =17.09/5 -> 3.418 | G121: =28.28/5 -> 5.656 | H121: =2.03/5 -> 0.406 | I121: =10.37/5 -> 2.074 | J121: =19.09/5 -> 3.818 | K121: =24.54/5 -> 4.908 | L121: =26.26/5 -> 5.252 | M121: 2.92 | N121: 1.96 | O121: 1.02 | P121: 2.02 | Q121: -0.29 | R121: -0.77 | S121: 0.11 | T121: 0.32 | U121: 1.31 | V121: 2.6 | W121: 2.37 | X121: =LOOKUP(C121,Daten!$C$2:$C$300,Daten!$E$2:$E$500) -> 28 | AI121: =X121/W121 -> 11.81434599 | AJ121: =AI121 -> 11.81434599 | AK121: =X121/V121 -> 10.76923077 | AL121: =AK121 -> 10.76923077 | AM121: =X121/U121 -> 21.3740458 | AN121: =AM121 -> 21.3740458 | AO121: =X121/T121 -> 87.5 | AP121: =AO121 -> 87.5 | AQ121: =X121/S121 -> 254.5454545 | AR121: =AQ121 -> 254.5454545 | AS121: na | AT121: =AS121 -> na | AU121: na | AV121: =AU121 -> na | AW121: =X121/P121 -> 13.86138614 | AX121: =AW121 -> 13.86138614 | AY121: =X121/O121 -> 27.45098039 | AZ121: =AY121 -> 27.45098039 | BA121: =X121/N121 -> 14.28571429 | BB121: =BA121 -> 14.28571429 | BC121: =X121/L121 -> 5.331302361 | BD121: =BC121 -> 5.331302361 | BE121: =X121/K121 -> 5.704971475 | BF121: =BE121 -> 5.704971475 | BL121: =X121/D121 -> 26.29107981 | BM121: =BL121 -> 26.29107981 | BN121: =Tabelle1!N121 -> 0.4415265765 | BO121: =IF(BN121>0,BN121,10) -> 0.4415265765 | BP121: =IF(W121>N121,(W121-N121)/N121,-(N121-W121)/N121) -> 0.2091836735 | BQ121: =BP121 -> 0.2091836735
B123: Meyer Burger | C123: MBTN | D123: =SUM(N123:W123)/10 -> -0.186 | J123: 1.8 | K123: 0.72 | L123: -1.9 | M123: -2.3 | N123: -0.52 | O123: -0.65 | P123: -0.3 | Q123: -0.14 | R123: -0.05 | S123: -0.02 | T123: -0.04 | U123: -0.04 | V123: -0.02 | W123: -0.08 | X123: =LOOKUP(C123,Daten!$C$2:$C$300,Daten!$E$2:$E$500) -> 1.96 | AI123: na | AJ123: =AI123 -> na | AK123: na | AL123: =AK123 -> na | AM123: na | AN123: =AM123 -> na | AO123: =X123/T123 -> -49 | AP123: =AO123 -> -49 | AQ123: =X123/S123 -> -98 | AR123: =AQ123 -> -98 | AS123: =X123/R123 -> -39.2 | AT123: =AS123 -> -39.2 | AU123: =X123/Q123 -> -14 | AV123: =AU123 -> -14 | AW123: =X123/P123 -> -6.533333333 | AX123: =AW123 -> -6.533333333 | AY123: =X123/O123 -> -3.015384615 | AZ123: =AY123 -> -3.015384615 | BA123: =X123/N123 -> -3.769230769 | BB123: =BA123 -> -3.769230769 | BC123: =X123/L123 -> -1.031578947 | BD123: =BC123 -> -1.031578947 | BE123: =X123/K123 -> 2.722222222 | BF123: =BE123 -> 2.722222222 | BG123: =X123/J123 -> 1.088888889 | BH123: =BG123 -> 1.088888889 | BJ123: =X123/I123 ->  | BK123: =BJ123 ->  | BL123: na | BM123: =BL123 -> na | BN123: =Tabelle1!N123 -> -0.06614349419 | BO123: =IF(BN123>0,BN123,10) -> 10 | BP123: =IF(W123>N123,(W123-N123)/N123,-(N123-W123)/N123) -> -0.8461538462 | BQ123: =BP123 -> -0.8461538462 | BS123: 0.07 | BT123: =BS123/100*X123 -> 0.001372 | BU123: =D123*(BS123/100) -> -0.0001302 | BV123: =W123*(BS123/100) -> -5.6e-05 | BW123: =V123*(BS123/100) -> -1.4e-05
B125: PSP Swiss Property | C125: PSPN | D125: =SUM(N125:W125)/10 -> 4.545 | I125: 3.3 | J125: 3.3 | K125: 3.5 | L125: 3.6 | M125: 3.79 | N125: 3.69 | O125: 3.52 | P125: 3.76 | Q125: 3.89 | R125: 3.84 | S125: 4.69 | T125: 4.7 | U125: 4.82 | V125: 5.14 | W125: 7.4 | X125: =LOOKUP(C125,Daten!$C$2:$C$300,Daten!$E$2:$E$500) -> 132.5 | AI125: =X125/W125 -> 17.90540541 | AJ125: =AI125 -> 17.90540541 | AK125: =X125/V125 -> 25.77821012 | AL125: =AK125 -> 25.77821012 | AM125: =X125/U125 -> 27.48962656 | AN125: =AM125 -> 27.48962656 | AO125: =X125/T125 -> 28.19148936 | AP125: =AO125 -> 28.19148936 | AQ125: =X125/S125 -> 28.25159915 | AR125: =AQ125 -> 28.25159915 | AS125: =X125/R125 -> 34.50520833 | AT125: =AS125 -> 34.50520833 | AU125: =X125/Q125 -> 34.06169666 | AV125: =AU125 -> 34.06169666 | AW125: =X125/P125 -> 35.2393617 | AX125: =AW125 -> 35.2393617 | AY125: =X125/O125 -> 37.64204545 | AZ125: =AY125 -> 37.64204545 | BA125: =X125/N125 -> 35.90785908 | BB125: =BA125 -> 35.90785908 | BC125: =X125/L125 -> 36.80555556 | BD125: =BC125 -> 36.80555556 | BE125: =X125/K125 -> 37.85714286 | BF125: =BE125 -> 37.85714286 | BG125: =X125/J125 -> 40.15151515 | BH125: =BG125 -> 40.15151515 | BJ125: =X125/I125 -> 40.15151515 | BK125: =BJ125 -> 40.15151515 | BL125: =X125/D125 -> 29.15291529 | BM125: =BL125 -> 29.15291529 | BN125: =Tabelle1!N125 -> 0.0772544166 | BO125: =IF(BN125>0,BN125,10) -> 0.0772544166 | BP125: =IF(W125>N125,(W125-N125)/N125,-(N125-W125)/N125) -> 1.005420054 | BQ125: =BP125 -> 1.005420054 | BS125: 2.68 | BT125: =BS125/100*X125 -> 3.551 | BU125: =D125*(BS125/100) -> 0.121806 | BV125: =W125*(BS125/100) -> 0.19832 | BW125: =V125*(BS125/100) -> 0.137752
A127: USD | B127: Sandoz | C127: SDZ | D127: =SUM(N127:W127)/4 -> 1.2725 | T127: 1.01 | U127: 1.93 | V127: 1.97 | W127: 0.18 | X127: =LOOKUP(C127,Daten!$C$2:$C$300,Daten!$E$2:$E$500) -> 42.89 | Z127: =X127/Währungskurse!C$5 -> 45.14736842 | AI127: =Z127/W127 -> 250.8187135 | AJ127: =AI127 -> 250.8187135 | AK127: =Z127/V127 -> 22.9174459 | AL127: =AK127 -> 22.9174459 | AM127: =Z127/U127 -> 23.39241887 | AN127: =AM127 -> 23.39241887 | AO127: =Z127/T127 -> 44.70036477 | AP127: =AO127 -> 44.70036477 | AQ127: =Z127/S127 ->  | AR127: =AQ127 ->  | AS127: =Z127/R127 ->  | AT127: =AS127 ->  | AU127: =Z127/Q127 ->  | AV127: =AU127 ->  | AW127: =Z127/P127 ->  | AX127: =AW127 ->  | AY127: =Z127/O127 ->  | AZ127: =AY127 ->  | BA127: =Z127/N127 ->  | BB127: =BA127 ->  | BC127: =Z127/L127 ->  | BD127: =BC127 ->  | BE127: =Z127/K127 ->  | BF127: =BE127 ->  | BG127: =Z127/J127 ->  | BH127: =BG127 ->  | BJ127: =Z127/I127 ->  | BK127: =BJ127 ->  | BL127: =Z127/D127 -> 35.47926791 | BM127: =BL127 -> 35.47926791 | BN127: =Tabelle1!N125 -> 0.0772544166 | BO127: =IF(BN127>0,BN127,10) -> 0.0772544166 | BP127: =IF(W127>N127,(W127-N127)/N127,-(N127-W127)/N127) ->  | BQ127: =BP127 ->  | BS127: 7.24 | BT127: =BS127/100*Z127 -> 3.268669474 | BU127: =D127*(BS127/100) -> 0.092129 | BV127: =W127*(BS127/100) -> 0.013032 | BW127: =V127*(BS127/100) -> 0.142628
B129: Schindler | C129: SCHN | D129: =SUM(N129:W129)/10 -> 7.379 | I129: 5.3 | J129: 5.7 | K129: 4.9 | L129: 6.1 | M129: 3.76 | N129: 7.74 | O129: 6.28 | P129: 7.14 | Q129: 7.7 | R129: 8.79 | S129: 8.04 | T129: 6.72 | U129: 7.68 | V129: 5.66 | W129: 8.04 | X129: =LOOKUP(C129,Daten!$C$2:$C$300,Daten!$E$2:$E$500) -> 252.5 | AI129: =X129/W129 -> 31.40547264 | AJ129: =AI129 -> 31.40547264 | AK129: =X129/V129 -> 44.61130742 | AL129: =AK129 -> 44.61130742 | AM129: =X129/U129 -> 32.87760417 | AN129: =AM129 -> 32.87760417 | AO129: =X129/T129 -> 37.57440476 | AP129: =AO129 -> 37.57440476 | AQ129: =X129/S129 -> 31.40547264 | AR129: =AQ129 -> 31.40547264 | AS129: =X129/R129 -> 28.7258248 | AT129: =AS129 -> 28.7258248 | AU129: =X129/Q129 -> 32.79220779 | AV129: =AU129 -> 32.79220779 | AW129: =X129/P129 -> 35.36414566 | AX129: =AW129 -> 35.36414566 | AY129: =X129/O129 -> 40.20700637 | AZ129: =AY129 -> 40.20700637 | BA129: =X129/N129 -> 32.62273902 | BB129: =BA129 -> 32.62273902 | BC129: =X129/L129 -> 41.39344262 | BD129: =BC129 -> 41.39344262 | BE129: =X129/K129 -> 51.53061224 | BF129: =BE129 -> 51.53061224 | BG129: =X129/J129 -> 44.29824561 | BH129: =BG129 -> 44.29824561 | BJ129: =X129/I129 -> 47.64150943 | BK129: =BJ129 -> 47.64150943 | BL129: =X129/D129 -> 34.21872883 | BM129: =BL129 -> 34.21872883 | BN129: =Tabelle1!N127 -> 0.1277640309 | BO129: =IF(BN129>0,BN129,10) -> 0.1277640309 | BP129: =IF(W129>N129,(W129-N129)/N129,-(N129-W129)/N129) -> 0.03875968992 | BQ129: =BP129 -> 0.03875968992 | BS129: =4.75+2.38 -> 7.13 | BT129: =BS129/100*X129 -> 18.00325 | BU129: =D129*(BS129/100) -> 0.5261227 | BV129: =W129*(BS129/100) -> 0.573252 | BW129: =V129*(BS129/100) -> 0.403558
B131: Schweiter Technologies | C131: SWTQ | D131: =SUM(N131:W131)/10 -> 49.079 | E131: 7.66 | F131: 23.15 | G131: 8.03 | H131: -8.58 | I131: -14.94 | J131: 36.29 | K131: 30.51 | L131: 28.4 | M131: 21.11 | N131: 31.79 | O131: 34.98 | P131: 49.33 | Q131: 120.09 | R131: 42.09 | S131: 41.89 | T131: 72.29 | U131: 59 | V131: 20.03 | W131: 19.3 | X131: =LOOKUP(C131,Daten!$C$2:$C$300,Daten!$E$2:$E$500) -> 481 | AI131: =X131/W131 -> 24.92227979 | AJ131: =AI131 -> 24.92227979 | AK131: =X131/V131 -> 24.01397903 | AL131: =AK131 -> 24.01397903 | AM131: =X131/U131 -> 8.152542373 | AN131: =AM131 -> 8.152542373 | AO131: =X131/T131 -> 6.653755706 | AP131: =AO131 -> 6.653755706 | AQ131: =X131/S131 -> 11.48245405 | AR131: =AQ131 -> 11.48245405 | AS131: =X131/R131 -> 11.42789261 | AT131: =AS131 -> 11.42789261 | AU131: =X131/Q131 -> 4.005329336 | AV131: =AU131 -> 4.005329336 | AW131: =X131/P131 -> 9.750658828 | AX131: =AW131 -> 9.750658828 | AY131: =X131/O131 -> 13.75071469 | AZ131: =AY131 -> 13.75071469 | BA131: =X131/N131 -> 15.1305442 | BB131: =BA131 -> 15.1305442 | BC131: =X131/L131 -> 16.93661972 | BD131: =BC131 -> 16.93661972 | BE131: =X131/K131 -> 15.76532284 | BF131: =BE131 -> 15.76532284 | BL131: =X131/D131 -> 9.800525683 | BM131: =BL131 -> 9.800525683 | BN131: =Tabelle1!N129 -> 0.1641571993 | BO131: =IF(BN131>0,BN131,10) -> 0.1641571993 | BP131: =IF(W131>N131,(W131-N131)/N131,-(N131-W131)/N131) -> -0.3928908462 | BQ131: =BP131 -> -0.3928908462
B133: SGS N | C133: SGSN | D133: =SUM(N133:W133)/10 -> 3.11248 | E133: 1.978 | F133: 2.3156 | G133: 2.5948 | H133: 3.6288 | I133: 3.0068 | J133: 3.0888 | K133: 2.8064 | L133: 2.9004 | M133: 3.1136 | N133: 3.266 | O133: 2.878 | P133: 2.8588 | Q133: 3.2908 | R133: 3.3728 | S133: 3.4872 | T133: 2.5528 | U133: 3.2716 | V133: 3.1468 | W133: 3 | X133: =LOOKUP(C133,Daten!$C$2:$C$300,Daten!$E$2:$E$500) -> 85.02 | AB133: =X133/E133 -> 42.98281092 | AD133: =X133/F133 -> 36.71618587 | AF133: =X133/G133 -> 32.76553106 | AH133: =X133/H133 -> 23.4292328 | AI133: =X133/W133 -> 28.34 | AJ133: =AI133 -> 28.34 | AK133: =X133/V133 -> 27.01792297 | AL133: =AK133 -> 27.01792297 | AM133: =X133/U133 -> 25.98728451 | AN133: =AM133 -> 25.98728451 | AO133: =X133/T133 -> 33.30460671 | AP133: =AO133 -> 33.30460671 | AQ133: =X133/S133 -> 24.38059188 | AR133: =AQ133 -> 24.38059188 | AS133: =X133/R133 -> 25.20754269 | AT133: =AS133 -> 25.20754269 | AU133: =X133/Q133 -> 25.83566306 | AV133: =AU133 -> 25.83566306 | AW133: =X133/P133 -> 29.73975094 | AX133: =AW133 -> 29.73975094 | AY133: =X133/O133 -> 29.54134816 | AZ133: =AY133 -> 29.54134816 | BA133: =X133/N133 -> 26.03184323 | BB133: =BA133 -> 26.03184323 | BC133: =X133/L133 -> 29.31319818 | BD133: =BC133 -> 29.31319818 | BE133: =X133/K133 -> 30.29503991 | BF133: =BE133 -> 30.29503991 | BG133: =X133/J133 -> 27.52525253 | BH133: =BG133 -> 27.52525253 | BJ133: =X133/I133 -> 28.27590794 | BK133: =BJ133 -> 28.27590794 | BL133: =X133/D133 -> 27.31583817 | BM133: =BL133 -> 27.31583817 | BN133: =Tabelle1!N131 -> 0.00622489877 | BO133: =IF(BN133>0,BN133,10) -> 0.00622489877 | BP133: =IF(W133>N133,(W133-N133)/N133,-(N133-W133)/N133) -> -0.0814451929 | BQ133: =BP133 -> -0.0814451929 | BS133: 6.47 | BT133: =BS133/100*X133 -> 5.500794 | BU133: =D133*(BS133/100) -> 0.201377456 | BV133: =W133*(BS133/100) -> 0.1941 | BW133: =V133*(BS133/100) -> 0.20359796
A135: ! | B135: SIG Group | C135: SIGN | D135: =SUM(N135:W135)/10 -> 0.095 | Q135: -0.5 | R135: -0.4 | S135: 0.37 | T135: 0.23 | U135: 0.51 | V135: 0.1 | W135: 0.64 | X135: =LOOKUP(C135,Daten!$C$2:$C$300,Daten!$E$2:$E$500) -> 19.37 | AI135: =X135/W135 -> 30.265625 | AJ135: =AI135 -> 30.265625 | AK135: =X135/V135 -> 193.7 | AL135: =AK135 -> 193.7 | AM135: =X135/U135 -> 37.98039216 | AN135: =AM135 -> 37.98039216 | AO135: =X135/T135 -> 84.2173913 | AP135: =AO135 -> 84.2173913 | AQ135: =X135/S135 -> 52.35135135 | AR135: =AQ135 -> 52.35135135 | AS135: =X135/R135 -> -48.425 | AT135: =AS135 -> -48.425 | AU135: =X135/Q135 -> -38.74 | AV135: =AU135 -> -38.74 | AW135: =X135/P135 ->  | AX135: =AW135 ->  | AY135: =X135/O135 ->  | AZ135: =AY135 ->  | BA135: =X135/N135 ->  | BB135: =BA135 ->  | BC135: =X135/L135 ->  | BD135: =BC135 ->  | BE135: =X135/K135 ->  | BF135: =BE135 ->  | BG135: =X135/J135 ->  | BH135: =BG135 ->  | BJ135: =X135/I135 ->  | BK135: =BJ135 ->  | BL135: =X135/D135 -> 203.8947368 | BM135: =BL135 -> 203.8947368 | BN135: =Tabelle1!N133 -> 1.260015226 | BO135: =IF(BN135>0,BN135,10) -> 1.260015226 | BP135: =IF(W135>N135,(W135-N135)/N135,-(N135-W135)/N135) ->  | BQ135: =BP135 ->  | BS135: 3.01 | BT135: =BS135/100*X135 -> 0.583037 | BU135: =D135*(BS135/100) -> 0.0028595 | BV135: =W135*(BS135/100) -> 0.019264 | BW135: =V135*(BS135/100) -> 0.00301
B137: Straumann | C137: STMN | D137: =SUM(N137:W137)/10 -> 1.5695 | I137: =9.4/10 -> 0.94 | J137: =8.4/10 -> 0.84 | K137: =4.5/10 -> 0.45 | L137: =2.4/10 -> 0.24 | M137: =6.5/10 -> 0.65 | N137: =10.15/10 -> 1.015 | O137: =4.52/10 -> 0.452 | P137: =14.68/10 -> 1.468 | Q137: 1.8 | R137: 1.72 | S137: 1.93 | T137: 0.57 | U137: 2.48 | V137: 2.72 | W137: 1.54 | X137: =LOOKUP(C137,Daten!$C$2:$C$300,Daten!$E$2:$E$500) -> 130.8 | AI137: =X137/W137 -> 84.93506494 | AJ137: =AI137 -> 84.93506494 | AK137: =X137/V137 -> 48.08823529 | AL137: =AK137 -> 48.08823529 | AM137: =X137/U137 -> 52.74193548 | AN137: =AM137 -> 52.74193548 | AO137: =X137/T137 -> 229.4736842 | AP137: =AO137 -> 229.4736842 | AQ137: =X137/S137 -> 67.77202073 | AR137: =AQ137 -> 67.77202073 | AS137: =X137/R137 -> 76.04651163 | AT137: =AS137 -> 76.04651163 | AU137: =X137/Q137 -> 72.66666667 | AV137: =AU137 -> 72.66666667 | AW137: =X137/P137 -> 89.10081744 | AX137: =AW137 -> 89.10081744 | AY137: =X137/O137 -> 289.380531 | AZ137: =AY137 -> 289.380531 | BA137: =X137/N137 -> 128.8669951 | BB137: =BA137 -> 128.8669951 | BC137: =X137/L137 -> 545 | BD137: =BC137 -> 545 | BE137: =X137/J137 -> 155.7142857 | BF137: =BE137 -> 155.7142857 | BG137: =X137/#REF! ->  | BH137: =BG137 ->  | BJ137: =X137/I137 -> 139.1489362 | BK137: =BJ137 -> 139.1489362 | BL137: =X137/D137 -> 83.33864288 | BM137: =BL137 -> 83.33864288 | BN137: =Tabelle1!N135 -> 0.4867617531 | BO137: =IF(BN137>0,BN137,10) -> 0.4867617531 | BP137: =IF(W137>N137,(W137-N137)/N137,-(N137-W137)/N137) -> 0.5172413793 | BQ137: =BP137 -> 0.5172413793 | BS137: 6.79 | BT137: =BS137/100*X137 -> 8.88132 | BU137: =D137*(BS137/100) -> 0.10656905 | BV137: =W137*(BS137/100) -> 0.104566 | BW137: =V137*(BS137/100) -> 0.184688
B139: Sulzer | C139: SUN | D139: =SUM(N139:W139)/10 -> 3.638 | E139: 3.6 | F139: 6.23 | G139: 8.35 | H139: 9.52 | I139: 7.99 | J139: 8.82 | K139: 8.19 | L139: 8.83 | M139: 6.86 | N139: 8.1 | O139: 2.16 | P139: 1.72 | Q139: 2.42 | R139: 3.53 | S139: 4.48 | T139: 2.44 | U139: 4.03 | V139: 0.83 | W139: 6.67 | X139: =LOOKUP(C139,Daten!$C$2:$C$300,Daten!$E$2:$E$500) -> 147.6 | AB139: =X139/E139 -> 41 | AD139: =X139/F139 -> 23.6918138 | AF139: =X139/G139 -> 17.67664671 | AH139: =X139/H139 -> 15.50420168 | AI139: =X139/W139 -> 22.12893553 | AJ139: =AI139 -> 22.12893553 | AK139: =X139/V139 -> 177.8313253 | AL139: =AK139 -> 177.8313253 | AM139: =X139/U139 -> 36.62531017 | AN139: =AM139 -> 36.62531017 | AO139: =X139/T139 -> 60.49180328 | AP139: =AO139 -> 60.49180328 | AQ139: =X139/S139 -> 32.94642857 | AR139: =AQ139 -> 32.94642857 | AS139: =X139/R139 -> 41.81303116 | AT139: =AS139 -> 41.81303116 | AU139: =X139/Q139 -> 60.99173554 | AV139: =AU139 -> 60.99173554 | AW139: =X139/P139 -> 85.81395349 | AX139: =AW139 -> 85.81395349 | AY139: =X139/O139 -> 68.33333333 | AZ139: =AY139 -> 68.33333333 | BA139: =X139/N139 -> 18.22222222 | BB139: =BA139 -> 18.22222222 | BC139: =X139/L139 -> 16.71574179 | BD139: =BC139 -> 16.71574179 | BE139: =X139/K139 -> 18.02197802 | BF139: =BE139 -> 18.02197802 | BG139: =X139/J139 -> 16.73469388 | BH139: =BG139 -> 16.73469388 | BJ139: =X139/I139 -> 18.47309136 | BK139: =BJ139 -> 18.47309136 | BL139: =X139/D139 -> 40.57174272 | BM139: =BL139 -> 40.57174272 | BN139: =Tabelle1!N137 -> 0.6816879338 | BO139: =IF(BN139>0,BN139,10) -> 0.6816879338 | BP139: =IF(W139>N139,(W139-N139)/N139,-(N139-W139)/N139) -> -0.1765432099 | BQ139: =BP139 -> -0.1765432099
B141: Swatch Group | C141: UHR | D141: =SUM(N141:W141)/10 -> 14.644 | E141: 10.74 | F141: 14.87 | G141: 18.49 | H141: 15.51 | I141: 14.26 | J141: 19.83 | K141: 23.48 | L141: 29.62 | M141: 35.38 | N141: 25.47 | O141: 20.05 | P141: 10.68 | Q141: 13.85 | R141: 16.13 | S141: 14.17 | T141: -0.99 | U141: 14.77 | V141: 15.56 | W141: 16.75 | X141: =LOOKUP(C141,Daten!$C$2:$C$300,Daten!$E$2:$E$500) -> 166 | AB141: =X141/E141 -> 15.45623836 | AD141: =X141/F141 -> 11.16341627 | AF141: =X141/G141 -> 8.977825852 | AH141: =X141/H141 -> 10.7027724 | AI141: =X141/W141 -> 9.910447761 | AJ141: =AI141 -> 9.910447761 | AK141: =X141/V141 -> 10.66838046 | AL141: =AK141 -> 10.66838046 | AM141: =X141/U141 -> 11.23899797 | AN141: =AM141 -> 11.23899797 | AO141: na | AP141: =AO141 -> na | AQ141: =X141/S141 -> 11.71489061 | AR141: =AQ141 -> 11.71489061 | AS141: =X141/R141 -> 10.29138252 | AT141: =AS141 -> 10.29138252 | AU141: =X141/Q141 -> 11.98555957 | AV141: =AU141 -> 11.98555957 | AW141: =X141/P141 -> 15.54307116 | AX141: =AW141 -> 15.54307116 | AY141: =X141/O141 -> 8.279301746 | AZ141: =AY141 -> 8.279301746 | BA141: =X141/N141 -> 6.517471535 | BB141: =BA141 -> 6.517471535 | BC141: =X141/L141 -> 5.604321404 | BD141: =BC141 -> 5.604321404 | BE141: =X141/K141 -> 7.069846678 | BF141: =BE141 -> 7.069846678 | BG141: =X141/J141 -> 8.371154816 | BH141: =BG141 -> 8.371154816 | BJ141: =X141/I141 -> 11.64095372 | BK141: =BJ141 -> 11.64095372 | BL141: =X141/D141 -> 11.33570063 | BM141: =BL141 -> 11.33570063 | BN141: =Tabelle1!N139 -> 1.435898287 | BO141: =IF(BN141>0,BN141,10) -> 1.435898287 | BP141: =IF(W141>N141,(W141-N141)/N141,-(N141-W141)/N141) -> -0.342363565 | BQ141: =BP141 -> -0.342363565 | BS141: 2.61 | BT141: =BS141/100*X141 -> 4.3326 | BU141: =D141*(BS141/100) -> 0.3822084 | BV141: =W141*(BS141/100) -> 0.437175 | BW141: =V141*(BS141/100) -> 0.406116
B143: Swiss Prime Site | C143: SPSN | D143: =SUM(N143:W143)/10 -> 4.197 | I143: 3.8 | J143: 3.1 | K143: 4.6 | L143: 3.6 | M143: 3.69 | N143: 3.9 | O143: 3.87 | P143: 4.17 | Q143: 3.88 | R143: 3.95 | S143: 4.14 | T143: 6.27 | U143: 3.87 | V143: 4.97 | W143: 2.95 | X143: =LOOKUP(C143,Daten!$C$2:$C$300,Daten!$E$2:$E$500) -> 102.4 | AI143: =X143/W143 -> 34.71186441 | AJ143: =AI143 -> 34.71186441 | AK143: =X143/V143 -> 20.60362173 | AL143: =AK143 -> 20.60362173 | AM143: =X143/U143 -> 26.45994832 | AN143: =AM143 -> 26.45994832 | AO143: =X143/T143 -> 16.33173844 | AP143: =AO143 -> 16.33173844 | AQ143: =X143/S143 -> 24.73429952 | AR143: =AQ143 -> 24.73429952 | AS143: =X143/R143 -> 25.92405063 | AT143: =AS143 -> 25.92405063 | AU143: =X143/Q143 -> 26.39175258 | AV143: =AU143 -> 26.39175258 | AW143: =X143/P143 -> 24.55635492 | AX143: =AW143 -> 24.55635492 | AY143: =X143/O143 -> 26.45994832 | AZ143: =AY143 -> 26.45994832 | BA143: =X143/N143 -> 26.25641026 | BB143: =BA143 -> 26.25641026 | BC143: =X143/L143 -> 28.44444444 | BD143: =BC143 -> 28.44444444 | BE143: =X143/K143 -> 22.26086957 | BF143: =BE143 -> 22.26086957 | BG143: =X143/J143 -> 33.03225806 | BH143: =BG143 -> 33.03225806 | BJ143: =X143/I143 -> 26.94736842 | BK143: =BJ143 -> 26.94736842 | BL143: =X143/D143 -> 24.3983798 | BM143: =BL143 -> 24.3983798 | BN143: =Tabelle1!N141 -> 0.0132852508 | BO143: =IF(BN143>0,BN143,10) -> 0.0132852508 | BP143: =IF(W143>N143,(W143-N143)/N143,-(N143-W143)/N143) -> -0.2435897436 | BQ143: =BP143 -> -0.2435897436 | BS143: 3.39 | BT143: =BS143/100*X143 -> 3.47136 | BU143: =D143*(BS143/100) -> 0.1422783 | BV143: =W143*(BS143/100) -> 0.100005 | BW143: =V143*(BS143/100) -> 0.168483
B145: Tecan Group | C145: TECN | D145: =SUM(N145:W145)/10 -> 6.97 | J145: 1.6 | K145: 4.4 | L145: 3.9 | M145: 4.2 | N145: 3.63 | O145: 5.06 | P145: 4.74 | Q145: 5.73 | R145: 6.02 | S145: 6.18 | T145: 8.69 | U145: 9.88 | V145: 9.47 | W145: 10.3 | X145: =LOOKUP(C145,Daten!$C$2:$C$300,Daten!$E$2:$E$500) -> 229 | AI145: =X145/W145 -> 22.23300971 | AJ145: =AI145 -> 22.23300971 | AK145: =X145/V145 -> 24.18162619 | AL145: =AK145 -> 24.18162619 | AM145: =X145/U145 -> 23.17813765 | AN145: =AM145 -> 23.17813765 | AO145: =X145/T145 -> 26.35212888 | AP145: =AO145 -> 26.35212888 | AQ145: =X145/S145 -> 37.05501618 | AR145: =AQ145 -> 37.05501618 | AS145: =X145/R145 -> 38.03986711 | AT145: =AS145 -> 38.03986711 | AU145: =X145/Q145 -> 39.96509599 | AV145: =AU145 -> 39.96509599 | AW145: =X145/P145 -> 48.31223629 | AX145: =AW145 -> 48.31223629 | AY145: =X145/O145 -> 45.256917 | AZ145: =AY145 -> 45.256917 | BA145: =X145/N145 -> 63.08539945 | BB145: =BA145 -> 63.08539945 | BC145: =X145/L145 -> 58.71794872 | BD145: =BC145 -> 58.71794872 | BE145: =X145/K145 -> 52.04545455 | BF145: =BE145 -> 52.04545455 | BG145: =X145/J145 -> 143.125 | BH145: =BG145 -> 143.125 | BJ145: =X145/I145 ->  | BK145: =BJ145 ->  | BL145: =X145/D145 -> 32.85509326 | BM145: =BL145 -> 32.85509326 | BN145: =Tabelle1!N143 -> 0.1070268752 | BO145: =IF(BN145>0,BN145,10) -> 0.1070268752 | BP145: =IF(W145>N145,(W145-N145)/N145,-(N145-W145)/N145) -> 1.837465565 | BQ145: =BP145 -> 1.837465565 | BS145: 2.12 | BT145: =BS145/100*X145 -> 4.8548 | BU145: =D145*(BS145/100) -> 0.147764 | BV145: =W145*(BS145/100) -> 0.21836 | BW145: =V145*(BS145/100) -> 0.200764
B147: Temenos | C147: TEMN | D147: =SUM(N147:W147)/10 -> 1.869 | I147: 1.3 | J147: 1 | K147: -0.37 | L147: 0.34 | M147: 0.92 | N147: 1.24 | O147: 0.97 | P147: 1.66 | Q147: 1.95 | R147: 2.38 | S147: 2.56 | T147: 2.28 | U147: 2.21 | V147: 1.59 | W147: 1.85 | X147: =LOOKUP(C147,Daten!$C$2:$C$300,Daten!$E$2:$E$500) -> 77 | AI147: =X147/W147 -> 41.62162162 | AJ147: =AI147 -> 41.62162162 | AK147: =X147/V147 -> 48.42767296 | AL147: =AK147 -> 48.42767296 | AM147: =X147/U147 -> 34.84162896 | AN147: =AM147 -> 34.84162896 | AO147: =X147/T147 -> 33.77192982 | AP147: =AO147 -> 33.77192982 | AQ147: =X147/S147 -> 30.078125 | AR147: =AQ147 -> 30.078125 | AS147: =X147/R147 -> 32.35294118 | AT147: =AS147 -> 32.35294118 | AU147: =X147/Q147 -> 39.48717949 | AV147: =AU147 -> 39.48717949 | AW147: =X147/P147 -> 46.38554217 | AX147: =AW147 -> 46.38554217 | AY147: =X147/O147 -> 79.3814433 | AZ147: =AY147 -> 79.3814433 | BA147: =X147/N147 -> 62.09677419 | BB147: =BA147 -> 62.09677419 | BC147: =X147/L147 -> 226.4705882 | BD147: =BC147 -> 226.4705882 | BE147: =X147/K147 -> -208.1081081 | BF147: =BE147 -> -208.1081081 | BG147: =X147/J147 -> 77 | BH147: =BG147 -> 77 | BJ147: =X147/I147 -> 59.23076923 | BK147: =BJ147 -> 59.23076923 | BL147: =X147/D147 -> 41.19850187 | BM147: =BL147 -> 41.19850187 | BN147: =Tabelle1!N145 -> 0.1055168497 | BO147: =IF(BN147>0,BN147,10) -> 0.1055168497 | BP147: =IF(W147>N147,(W147-N147)/N147,-(N147-W147)/N147) -> 0.4919354839 | BQ147: =BP147 -> 0.4919354839 | BS147: 2.09 | BT147: =BS147/100*X147 -> 1.6093 | BU147: =D147*(BS147/100) -> 0.0390621 | BV147: =W147*(BS147/100) -> 0.038665 | BW147: =V147*(BS147/100) -> 0.033231
A149: ! | B149: VAT Group | C149: VACN | D149: =SUM(N149:W149)/10 -> 4.262 | N149: 0.89 | O149: 0.34 | P149: 2.43 | Q149: 3.86 | R149: 4.53 | S149: 2.5 | T149: 4.27 | U149: 7.24 | V149: 10.22 | W149: 6.34 | X149: =LOOKUP(C149,Daten!$C$2:$C$300,Daten!$E$2:$E$500) -> 343.7 | AI149: =X149/W149 -> 54.21135647 | AJ149: =AI149 -> 54.21135647 | AK149: =X149/V149 -> 33.63013699 | AL149: =AK149 -> 33.63013699 | AM149: =X149/U149 -> 47.47237569 | AN149: =AM149 -> 47.47237569 | AO149: =X149/T149 -> 80.49180328 | AP149: =AO149 -> 80.49180328 | AQ149: =X149/S149 -> 137.48 | AR149: =AQ149 -> 137.48 | AS149: =X149/R149 -> 75.87196468 | AT149: =AS149 -> 75.87196468 | AU149: =X149/Q149 -> 89.04145078 | AV149: =AU149 -> 89.04145078 | AW149: =X149/P149 -> 141.4403292 | AX149: =AW149 -> 141.4403292 | AY149: =X149/O149 -> 1010.882353 | AZ149: =AY149 -> 1010.882353 | BA149: =X149/N149 -> 386.1797753 | BB149: =BA149 -> 386.1797753 | BC149: =X149/L149 ->  | BD149: =BC149 ->  | BE149: =X149/K149 ->  | BF149: =BE149 ->  | BG149: =X149/J149 ->  | BH149: =BG149 ->  | BJ149: =X149/I149 ->  | BK149: =BJ149 ->  | BL149: =X149/D149 -> 80.64289066 | BM149: =BL149 -> 80.64289066 | BN149: =Tabelle1!N147 -> 0.808723887 | BO149: =IF(BN149>0,BN149,10) -> 0.808723887 | BP149: =IF(W149>N149,(W149-N149)/N149,-(N149-W149)/N149) -> 6.123595506 | BQ149: =BP149 -> 6.123595506 | BS149: 7.08 | BT149: =BS149/100*X149 -> 24.33396 | BU149: =D149*(BS149/100) -> 0.3017496 | BV149: =W149*(BS149/100) -> 0.448872 | BW149: =V149*(BS149/100) -> 0.723576
B151: Zehnder | C151: ZEHN | D151: =SUM(N151:W151)/10 -> 2.899 | K151: 4.2 | L151: 2.8 | M151: 1.7 | N151: 2.66 | O151: 0.01 | P151: 1.9 | Q151: 1.49 | R151: 2.29 | S151: 2.93 | T151: 3.57 | U151: 5.55 | V151: 4.86 | W151: 3.73 | X151: =LOOKUP(C151,Daten!$C$2:$C$300,Daten!$E$2:$E$500) -> 50.8 | AI151: =X151/W151 -> 13.61930295 | AJ151: =AI151 -> 13.61930295 | AK151: =X151/V151 -> 10.4526749 | AL151: =AK151 -> 10.4526749 | AM151: =X151/V151 -> 10.4526749 | AN151: =AM151 -> 10.4526749 | AO151: =X151/U151 -> 9.153153153 | AP151: =AO151 -> 9.153153153 | AQ151: =X151/T151 -> 14.22969188 | AR151: =AQ151 -> 14.22969188 | AS151: =X151/R151 -> 22.18340611 | AT151: =AS151 -> 22.18340611 | AU151: =X151/Q151 -> 34.09395973 | AV151: =AU151 -> 34.09395973 | AW151: =X151/P151 -> 26.73684211 | AX151: =AW151 -> 26.73684211 | AY151: =X151/O151 -> 5080 | AZ151: =AY151 -> 5080 | BA151: =X151/N151 -> 19.09774436 | BB151: =BA151 -> 19.09774436 | BC151: =X151/L151 -> 18.14285714 | BD151: =BC151 -> 18.14285714 | BE151: =X151/K151 -> 12.0952381 | BF151: =BE151 -> 12.0952381 | BG151: =X151/J151 ->  | BH151: =BG151 ->  | BJ151: =X151/I151 ->  | BK151: =BJ151 ->  | BL151: =X151/D151 -> 17.52328389 | BM151: =BL151 -> 17.52328389 | BN151: =Tabelle1!N149 -> 21.00228621 | BO151: =IF(BN151>0,BN151,10) -> 21.00228621 | BP151: =IF(W151>N151,(W151-N151)/N151,-(N151-W151)/N151) -> 0.4022556391 | BQ151: =BP151 -> 0.4022556391
BS152: =SUM(BS62:BS149)+BS153 -> 100.17 | BT152: =SUM(BT62:BT149)+(BS153/100*X39) -> 12167.17887 | BU152: =SUM(BU62:BU149)+(BS153/100*D39) -> 235.2982228 | BV152: =SUM(BV62:BV149)+(BS153/100*W39) -> 340.98087 | BW152: =SUM(BW62:BW149)+(BS153/100*V39) -> 285.973165
B153: 1) Carlo Gavazzi: Geschäftsjahr endet per 31.3. | BR153: Roche I | BS153: 4.43
B154: 2) Dätwyler: Zahlen 2019 nur fortgeführte Geschäftsfelder; insgesamt Verlust von CHF -5.09 pro Aktie
B155: 3) ASM Osram: Gewinne (EUR) umgerechnet in CHF
B156: 4) SIG Group: Gewinne umgerechnet in CHF
B163: Analysemöglichkeiten
B165: 1. Suchen Sie nach Firmen, deren KGV unter 16 liegt (Ticker grün). Entweder neuestes KGV oder, etwas konservativer, KGV des durchschnittlichen Gewinnes über 10 Jahre.
B167: 2. Alternativ suchen Sie nach Firmen, deren Sicherheitsmarge grösser als 5% ist (Ticker grün).
B169: 3. Untersuchen Sie bei diesen Firmen, ob Sie eine über 10 Jahre insgesamt eine Gewinnsteigerung von über 160% ausweisen.
B171: 4. Eine hohe durchschnittliche Gewinnveränderungsrate (> 100%) weist auf unstete Gewinnentwicklung mit Verlustjahren und/oder Jahren mit sehr kleinen Gewinnen hin!

Sheet Sicherheitsmarge nach Graham
B3: Sicherheitsmarge nach Graham
B5: Umlaufrenditen der Obligationen im Schnitt in % | G5: 0 | I5: =K5 -> 0 | J5: 0 | K5: 0 | L5: 1.1 | M5: 1.1 | N5: 1.1
B6: Sicherheitsmarge muss grösser als 5%-Punkte sein
H8: Gewinn pro Aktie | K8: Gewinn pro Aktie | X8: akt. Kurs | Z8: akt. Kurs | AB8: Ø Gewinn | AD8: Gewinn- | AF8: Sicherheitsmarge
B9: SMI Titel | E9: 2005 | F9: 2006 | G9: 2007 | H9: 2008 | I9: 2009 | J9: 2010 | K9: 2011 | L9: 2012 | M9: 2013 | N9: 2014 | O9: 2015 | P9: 2016 | Q9: 2017 | R9: 2018 | S9: 2019 | T9: 2020 | U9: 2021 | V9: 2022 | W9: 2023 | Z9: in RW | AB9: 2014-2023 | AD9: rendite | AF9: >=5% Punkte
B12: USD | C12: ABB LTD N | D12: ABBN | E12: ='SMI Analyse KGV'!E15 -> 0.36 | F12: ='SMI Analyse KGV'!F15 -> 0.63 | G12: ='SMI Analyse KGV'!G15 -> 1.63 | H12: ='SMI Analyse KGV'!H15 -> 1.36 | I12: ='SMI Analyse KGV'!I15 -> 1.27 | J12: ='SMI Analyse KGV'!J15 -> 1.12 | K12: ='SMI Analyse KGV'!K15 -> 1.38 | L12: ='SMI Analyse KGV'!L15 -> 1.18 | M12: ='SMI Analyse KGV'!M15 -> 1.21 | N12: ='SMI Analyse KGV'!N15 -> 1.13 | O12: ='SMI Analyse KGV'!O15 -> 0.87 | P12: ='SMI Analyse KGV'!P15 -> 0.88 | Q12: ='SMI Analyse KGV'!Q15 -> 1.04 | R12: ='SMI Analyse KGV'!R15 -> 1.02 | S12: ='SMI Analyse KGV'!S15 -> 0.67 | T12: ='SMI Analyse KGV'!T15 -> 2.44 | U12: ='SMI Analyse KGV'!U15 -> 2.27 | V12: ='SMI Analyse KGV'!V15 -> 1.3 | W12: ='SMI Analyse KGV'!W15 -> 2.01 | X12: =LOOKUP(D12,Daten!$C$2:$C$300,Daten!$E$2:$E$500) -> 54 | Z12: =X12/Währungskurse!C$4 -> 59.34065934 | AB12: =SUM(N12:W12)/10 -> 1.363 | AD12: =AB12/Z12*100 -> 2.296907407 | AF12: =AD12-$N$5 -> 1.196907407 | AG12: =AF12 -> 1.196907407
B14: USD | C14: ALCON N | D14: ALC | Q14: ='SMI Analyse KGV'!Q17 -> 0.52 | R14: ='SMI Analyse KGV'!R17 -> -0.46 | S14: ='SMI Analyse KGV'!S17 -> -1.34 | T14: ='SMI Analyse KGV'!T17 -> -1.09 | U14: ='SMI Analyse KGV'!U17 -> 0.76 | V14: ='SMI Analyse KGV'!V17 -> 0.68 | W14: ='SMI Analyse KGV'!W17 -> 1.96 | X14: =LOOKUP(D14,Daten!$C$2:$C$300,Daten!$E$2:$E$500) -> 80.62 | Z14: =X14/Währungskurse!C$5 -> 84.86315789 | AB14: =SUM(N14:W14)/10 -> 0.103 | AD14: =AB14/Z14*100 -> 0.121371868 | AF14: =AD14-$N$5 -> -0.978628132 | AG14: =AF14 -> -0.978628132
C16: ='SMI Analyse KGV'!B19 -> GEBERIT N | D16: GEBN | E16: ='SMI Analyse KGV'!E19 -> 6.47 | F16: ='SMI Analyse KGV'!F19 -> 8.86 | G16: ='SMI Analyse KGV'!G19 -> 11.67 | H16: ='SMI Analyse KGV'!H19 -> 11.9 | I16: ='SMI Analyse KGV'!I19 -> 10.18 | J16: ='SMI Analyse KGV'!J19 -> 10.32 | K16: ='SMI Analyse KGV'!K19 -> 9.82 | L16: ='SMI Analyse KGV'!L19 -> 10.29 | M16: ='SMI Analyse KGV'!M19 -> 11.58 | N16: ='SMI Analyse KGV'!N19 -> 13.26 | O16: ='SMI Analyse KGV'!O19 -> 11.31 | P16: ='SMI Analyse KGV'!P19 -> 14.85 | Q16: ='SMI Analyse KGV'!Q19 -> 14.31 | R16: ='SMI Analyse KGV'!R19 -> 16.39 | S16: ='SMI Analyse KGV'!S19 -> 17.93 | T16: ='SMI Analyse KGV'!T19 -> 17.88 | U16: ='SMI Analyse KGV'!U19 -> 21.16 | V16: ='SMI Analyse KGV'!V19 -> 20.41 | W16: ='SMI Analyse KGV'!W19 -> 18.35 | X16: =LOOKUP(D16,Daten!$C$2:$C$300,Daten!$E$2:$E$500) -> 498.3 | AB16: =SUM(N16:W16)/10 -> 16.585 | AD16: =AB16/X16*100 -> 3.328316275 | AF16: =AD16-$N$5 -> 2.228316275 | AG16: =AF16 -> 2.228316275
C17: ='SMI Analyse KGV'!B20 -> 0
C18: ='SMI Analyse KGV'!B21 -> GIVAUDAN N | D18: GIVN | E18: ='SMI Analyse KGV'!E21 -> 56.17 | F18: ='SMI Analyse KGV'!F21 -> 58.62 | G18: ='SMI Analyse KGV'!G21 -> 13.2 | H18: ='SMI Analyse KGV'!H21 -> 14.98 | I18: ='SMI Analyse KGV'!I21 -> 24.97 | J18: ='SMI Analyse KGV'!J21 -> 37.63 | K18: ='SMI Analyse KGV'!K21 -> 27.55 | L18: ='SMI Analyse KGV'!L21 -> 44.85 | M18: ='SMI Analyse KGV'!M21 -> 52.83 | N18: ='SMI Analyse KGV'!N21 -> 60.35 | O18: ='SMI Analyse KGV'!O21 -> 67.06 | P18: ='SMI Analyse KGV'!P21 -> 69.34 | Q18: ='SMI Analyse KGV'!Q21 -> 77.54 | R18: ='SMI Analyse KGV'!R21 -> 71.36 | S18: ='SMI Analyse KGV'!S21 -> 75.59 | T18: ='SMI Analyse KGV'!T21 -> 79.96 | U18: ='SMI Analyse KGV'!U21 -> 88.37 | V18: ='SMI Analyse KGV'!V21 -> 92.51 | W18: ='SMI Analyse KGV'!W21 -> 96.47 | X18: =LOOKUP(D18,Daten!$C$2:$C$300,Daten!$E$2:$E$500) -> 3818 | AB18: =SUM(N18:W18)/10 -> 77.855 | AD18: =AB18/X18*100 -> 2.039156627 | AF18: =AD18-$N$5 -> 0.9391566265 | AG18: =AF18 -> 0.9391566265
C19: ='SMI Analyse KGV'!B22 -> 0
C20: HOLCIM N | D20: HOLN | E20: ='SMI Analyse KGV'!E33 -> 2.62 | F20: ='SMI Analyse KGV'!F23 -> 8.5 | G20: ='SMI Analyse KGV'!G23 -> 14.73 | H20: ='SMI Analyse KGV'!H23 -> 6.81 | I20: ='SMI Analyse KGV'!I23 -> 4.93 | J20: ='SMI Analyse KGV'!J23 -> 3.69 | K20: ='SMI Analyse KGV'!K23 -> 0.86 | L20: ='SMI Analyse KGV'!L23 -> 1.92 | M20: ='SMI Analyse KGV'!M23 -> 3.91 | N20: ='SMI Analyse KGV'!N23 -> 3.95 | O20: ='SMI Analyse KGV'!O23 -> -3.11 | P20: ='SMI Analyse KGV'!P23 -> 2.96 | Q20: ='SMI Analyse KGV'!Q23 -> -2.78 | R20: ='SMI Analyse KGV'!R23 -> 2.52 | S20: ='SMI Analyse KGV'!S23 -> 3.68 | T20: ='SMI Analyse KGV'!T23 -> 2.74 | U20: ='SMI Analyse KGV'!U23 -> 3.72 | V20: ='SMI Analyse KGV'!V23 -> 5.46 | W20: ='SMI Analyse KGV'!W23 -> 5.35 | X20: =LOOKUP(D20,Daten!$C$2:$C$300,Daten!$E$2:$E$500) -> 91.22 | AB20: =SUM(N20:W20)/10 -> 2.449 | AD20: =AB20/X20*100 -> 2.684718264 | AF20: =AD20-$N$5 -> 1.584718264 | AG20: =AF20 -> 1.584718264
B22: USD | C22: LOGITECH | D22: LOGN | K22: ='SMI Analyse KGV'!K27 -> 0.36 | L22: ='SMI Analyse KGV'!L27 -> -1.44 | M22: ='SMI Analyse KGV'!M27 -> 0.46 | N22: ='SMI Analyse KGV'!N27 -> 0.06 | O22: ='SMI Analyse KGV'!O27 -> 0.53 | P22: ='SMI Analyse KGV'!P27 -> 1.24 | Q22: ='SMI Analyse KGV'!Q27 -> 1.23 | R22: ='SMI Analyse KGV'!R27 -> 1.52 | S22: ='SMI Analyse KGV'!S27 -> 2.66 | T22: ='SMI Analyse KGV'!T27 -> 5.51 | U22: ='SMI Analyse KGV'!U27 -> 3.78 | V22: ='SMI Analyse KGV'!V27 -> 2.23 | W22: ='SMI Analyse KGV'!W27 -> 3.87 | X22: =LOOKUP(D22,Daten!$C$2:$C$300,Daten!$E$2:$E$500) -> 82.52 | Z22: =X22/Währungskurse!C$4 -> 90.68131868 | AB22: =SUM(N22:W22)/10 -> 2.263 | AD22: =AB22/Z22*100 -> 2.495552593 | AF22: =AD22-$N$5 -> 1.395552593 | AG22: =AF22 -> 1.395552593
C24: LONTA | D24: LONN | I24: ='SMI Analyse KGV'!I29 -> 3.17 | J24: ='SMI Analyse KGV'!J29 -> 5.53 | K24: ='SMI Analyse KGV'!K29 -> 2.97 | L24: ='SMI Analyse KGV'!L29 -> 3.5 | M24: ='SMI Analyse KGV'!M29 -> 1.67 | N24: ='SMI Analyse KGV'!N29 -> 4.54 | O24: ='SMI Analyse KGV'!O29 -> 5.26 | P24: ='SMI Analyse KGV'!P29 -> 5.69 | Q24: ='SMI Analyse KGV'!Q29 -> 10.6 | R24: ='SMI Analyse KGV'!R29 -> 7.48 | S24: ='SMI Analyse KGV'!S29 -> 8.65 | T24: ='SMI Analyse KGV'!T29 -> 11.63 | U24: ='SMI Analyse KGV'!U29 -> 39.52 | V24: ='SMI Analyse KGV'!V29 -> 16.34 | W24: ='SMI Analyse KGV'!W27 -> 3.87 | X24: =LOOKUP(D24,Daten!$C$2:$C$300,Daten!$E$2:$E$500) -> 591 | AB24: =SUM(N24:W24)/10 -> 11.358 | AD24: =AB24/X24*100 -> 1.921827411 | AF24: =AD24-$N$5 -> 0.8218274112 | AG24: =AF24 -> 0.8218274112
C26: NESTLE N | D26: NESN | E26: ='SMI Analyse KGV'!E31 -> 2.06 | F26: ='SMI Analyse KGV'!F31 -> 2.36 | G26: ='SMI Analyse KGV'!G31 -> 2.76 | H26: ='SMI Analyse KGV'!H31 -> 2.81 | I26: ='SMI Analyse KGV'!I31 -> 2.91 | J26: ='SMI Analyse KGV'!J31 -> 2.6 | K26: ='SMI Analyse KGV'!K31 -> 2.96 | L26: ='SMI Analyse KGV'!L31 -> 3.2 | M26: ='SMI Analyse KGV'!M31 -> 3.13 | N26: ='SMI Analyse KGV'!N31 -> 4.52 | O26: ='SMI Analyse KGV'!O31 -> 2.89 | P26: ='SMI Analyse KGV'!P31 -> 2.75 | Q26: ='SMI Analyse KGV'!Q31 -> 2.32 | R26: ='SMI Analyse KGV'!R31 -> 3.36 | S26: ='SMI Analyse KGV'!S31 -> 4.3 | T26: ='SMI Analyse KGV'!T31 -> 4.29 | U26: ='SMI Analyse KGV'!U31 -> 6.06 | V26: ='SMI Analyse KGV'!V31 -> 3.42 | W26: ='SMI Analyse KGV'!W29 -> 8.88 | X26: =LOOKUP(D26,Daten!$C$2:$C$300,Daten!$E$2:$E$500) -> 74.68 | AB26: =SUM(N26:W26)/10 -> 4.279 | AD26: =AB26/X26*100 -> 5.729780396 | AF26: =AD26-$N$5 -> 4.629780396 | AG26: =AF26 -> 4.629780396
B28: USD | C28: NOVARTIS | D28: NOVN | E28: ='SMI Analyse KGV'!E33 -> 2.62 | F28: ='SMI Analyse KGV'!F33 -> 3.04 | G28: ='SMI Analyse KGV'!G33 -> 5.13 | H28: ='SMI Analyse KGV'!H33 -> 3.59 | I28: ='SMI Analyse KGV'!I33 -> 3.69 | J28: ='SMI Analyse KGV'!J33 -> 4.28 | K28: ='SMI Analyse KGV'!K33 -> 3.78 | L28: ='SMI Analyse KGV'!L33 -> 3.89 | M28: ='SMI Analyse KGV'!M33 -> 3.7 | N28: ='SMI Analyse KGV'!N33 -> 4.13 | O28: ='SMI Analyse KGV'!O33 -> 2.88 | P28: ='SMI Analyse KGV'!P33 -> 2.82 | Q28: ='SMI Analyse KGV'!Q33 -> 3.25 | R28: ='SMI Analyse KGV'!R33 -> 5.38 | S28: ='SMI Analyse KGV'!S33 -> 5.06 | T28: ='SMI Analyse KGV'!T33 -> 3.52 | U28: ='SMI Analyse KGV'!U33 -> 10.63 | V28: ='SMI Analyse KGV'!V33 -> 3.17 | W28: ='SMI Analyse KGV'!W33 -> 7.1 | X28: =LOOKUP(D28,Daten!$C$2:$C$300,Daten!$E$2:$E$500) -> 90.26 | Z28: =X28/Währungskurse!C$4 -> 99.18681319 | AB28: =SUM(N28:W28)/10 -> 4.794 | AD28: =AB28/Z28*100 -> 4.833303789 | AF28: =AD28-$N$5 -> 3.733303789 | AG28: =AF28 -> 3.733303789
C30: PARTNERS GROUP | D30: PGHN | L30: ='SMI Analyse KGV'!L35 -> 10.1 | M30: ='SMI Analyse KGV'!M35 -> 12.3 | N30: ='SMI Analyse KGV'!N35 -> 14.48 | O30: ='SMI Analyse KGV'!O35 -> 14.99 | P30: ='SMI Analyse KGV'!P35 -> 21.15 | Q30: ='SMI Analyse KGV'!Q35 -> 28.37 | R30: ='SMI Analyse KGV'!R35 -> 28.91 | S30: ='SMI Analyse KGV'!S35 -> 33.93 | T30: ='SMI Analyse KGV'!T35 -> 30.36 | U30: ='SMI Analyse KGV'!U35 -> 55.12 | V30: ='SMI Analyse KGV'!V35 -> 39.09 | W30: ='SMI Analyse KGV'!W35 -> 38.55 | X30: =LOOKUP(D30,Daten!$C$2:$C$300,Daten!$E$2:$E$500) -> 1389.5 | AB30: =SUM(N30:W30)/10 -> 30.495 | AD30: =AB30/X30*100 -> 2.194674343 | AF30: =AD30-$N$5 -> 1.094674343 | AG30: =AF30 -> 1.094674343
B32: EUR | C32: RICHEMONT | D32: CFR | E32: ='SMI Analyse KGV'!E37 -> 1.951 | F32: ='SMI Analyse KGV'!F37 -> 2.331 | G32: ='SMI Analyse KGV'!G37 -> 2.75 | H32: ='SMI Analyse KGV'!H37 -> 1.916 | I32: ='SMI Analyse KGV'!I37 -> 1.076 | J32: ='SMI Analyse KGV'!J37 -> 1.92 | K32: ='SMI Analyse KGV'!K37 -> 2.75 | L32: ='SMI Analyse KGV'!L37 -> 3.6 | M32: ='SMI Analyse KGV'!M37 -> 3.68 | N32: ='SMI Analyse KGV'!N37 -> 2.356 | O32: ='SMI Analyse KGV'!O37 -> 3.94 | P32: ='SMI Analyse KGV'!P37 -> 2.14 | Q32: ='SMI Analyse KGV'!Q37 -> 2.16 | R32: ='SMI Analyse KGV'!R37 -> 4.927 | S32: ='SMI Analyse KGV'!S37 -> 1.651 | T32: ='SMI Analyse KGV'!T37 -> 2.3 | U32: ='SMI Analyse KGV'!U37 -> 3.611 | V32: ='SMI Analyse KGV'!V37 -> 0.54 | W32: ='SMI Analyse KGV'!W37 -> 4.077 | X32: =LOOKUP(D32,Daten!$C$2:$C$300,Daten!$E$2:$E$500) -> 171.7 | Z32: =X32/Währungskurse!C$5 -> 180.7368421 | AB32: =SUM(N32:W32)/10 -> 2.7702 | AD32: =AB32/Z32*100 -> 1.532725684 | AF32: =AD32-$N$5 -> 0.4327256843 | AG32: =AF32 -> 0.4327256843
C34: ROCHE GS | D34: ROG | E34: ='SMI Analyse KGV'!E39 -> 6.87 | F34: ='SMI Analyse KGV'!F39 -> 9.05 | G34: ='SMI Analyse KGV'!G39 -> 11.16 | H34: ='SMI Analyse KGV'!H39 -> 10.23 | I34: ='SMI Analyse KGV'!I39 -> 9.02 | J34: ='SMI Analyse KGV'!J39 -> 10.11 | K34: ='SMI Analyse KGV'!K39 -> 10.98 | L34: ='SMI Analyse KGV'!L39 -> 11.16 | M34: ='SMI Analyse KGV'!M39 -> 12.93 | N34: ='SMI Analyse KGV'!N39 -> 10.81 | O34: ='SMI Analyse KGV'!O39 -> 10.28 | P34: ='SMI Analyse KGV'!P39 -> 11.13 | Q34: ='SMI Analyse KGV'!Q39 -> 10.04 | R34: ='SMI Analyse KGV'!R39 -> 12.21 | S34: ='SMI Analyse KGV'!S39 -> 15.62 | T34: ='SMI Analyse KGV'!T39 -> 16.52 | U34: ='SMI Analyse KGV'!U39 -> 16.2 | V34: ='SMI Analyse KGV'!V39 -> 15.37 | W34: ='SMI Analyse KGV'!W39 -> 14.31 | X34: =LOOKUP(D34,Daten!$C$2:$C$300,Daten!$E$2:$E$500) -> 274.9 | AB34: =SUM(N34:W34)/10 -> 13.249 | AD34: =AB34/X34*100 -> 4.819570753 | AF34: =AD34-$N$5 -> 3.719570753 | AG34: =AF34 -> 3.719570753
C36: SIKA | D36: SIKA | G36: ='SMI Analyse KGV'!G41 -> 0 | I36: ='SMI Analyse KGV'!I41 -> 1.516666667 | J36: ='SMI Analyse KGV'!J41 -> 2.066666667 | K36: ='SMI Analyse KGV'!K41 -> 1.418333333 | L36: ='SMI Analyse KGV'!L41 -> 1.833333333 | M36: ='SMI Analyse KGV'!M41 -> 2.25 | N36: ='SMI Analyse KGV'!N41 -> 2.883333333 | O36: ='SMI Analyse KGV'!O41 -> 3.022833333 | P36: ='SMI Analyse KGV'!P41 -> 3.696833333 | Q36: ='SMI Analyse KGV'!Q41 -> 4.225333333 | R36: ='SMI Analyse KGV'!R41 -> 4.58 | S36: ='SMI Analyse KGV'!S41 -> 4.81 | T36: ='SMI Analyse KGV'!T41 -> 5.22 | U36: ='SMI Analyse KGV'!U41 -> 6.6 | V36: ='SMI Analyse KGV'!V41 -> 7.29 | W36: ='SMI Analyse KGV'!W41 -> 6.65 | X36: =LOOKUP(D36,Daten!$C$2:$C$300,Daten!$E$2:$E$500) -> 231.5 | AB36: =SUM(N36:W36)/10 -> 4.897833333 | AD36: =AB36/X36*100 -> 2.115694744 | AF36: =AD36-$N$5 -> 1.015694744 | AG36: =AF36 -> 1.015694744
C38: SONOVA | D38: SOON | M38: ='SMI Analyse KGV'!M43 -> 5.1 | N38: ='SMI Analyse KGV'!N43 -> 5.37 | O38: ='SMI Analyse KGV'!O43 -> 5.11 | P38: ='SMI Analyse KGV'!P43 -> 5.35 | Q38: ='SMI Analyse KGV'!Q43 -> 6.13 | R38: ='SMI Analyse KGV'!R43 -> 6.98 | S38: ='SMI Analyse KGV'!S43 -> 7.61 | T38: ='SMI Analyse KGV'!T43 -> 9.23 | U38: ='SMI Analyse KGV'!U43 -> 10.35 | V38: ='SMI Analyse KGV'!V43 -> 10.72 | W38: ='SMI Analyse KGV'!W43 -> 10.05 | X38: =LOOKUP(D38,Daten!$C$2:$C$300,Daten!$E$2:$E$500) -> 319.7 | AB38: =SUM(N38:W38)/10 -> 7.69 | AD38: =AB38/X38*100 -> 2.405380044 | AF38: =AD38-$N$5 -> 1.305380044 | AG38: =AF38 -> 1.305380044
C40: SWISS LIFE HOLGING AG | D40: SLHN | F40: ='SMI Analyse KGV'!F45 -> 26.92 | G40: ='SMI Analyse KGV'!G45 -> 39.6 | H40: ='SMI Analyse KGV'!H45 -> 10.88 | I40: ='SMI Analyse KGV'!I45 -> 8.83 | J40: ='SMI Analyse KGV'!J45 -> 17.37 | K40: ='SMI Analyse KGV'!K45 -> 18.87 | L40: ='SMI Analyse KGV'!L45 -> 2.86 | M40: ='SMI Analyse KGV'!M45 -> 24.22 | N40: ='SMI Analyse KGV'!N45 -> 24.11 | O40: ='SMI Analyse KGV'!O45 -> 25.85 | P40: ='SMI Analyse KGV'!P45 -> 27.27 | Q40: ='SMI Analyse KGV'!Q45 -> 29.63 | R40: ='SMI Analyse KGV'!R45 -> 31.49 | S40: ='SMI Analyse KGV'!S45 -> 36.48 | T40: ='SMI Analyse KGV'!T45 -> 32.78 | U40: ='SMI Analyse KGV'!U45 -> 39.93 | V40: ='SMI Analyse KGV'!V45 -> 47.76 | W40: ='SMI Analyse KGV'!W45 -> 37.01 | X40: =LOOKUP(D40,Daten!$C$2:$C$300,Daten!$E$2:$E$500) -> 730.6 | AB40: =SUM(N40:W40)/10 -> 33.231 | AD40: =AB40/X40*100 -> 4.548453326 | AF40: =AD40-$N$5 -> 3.448453326 | AG40: =AF40 -> 3.448453326
C42: SWISS RE | D42: SREN | E42: ='SMI Analyse KGV'!E47 -> 7.44 | F42: ='SMI Analyse KGV'!F47 -> 13.49 | G42: ='SMI Analyse KGV'!G47 -> 11.23 | H42: ='SMI Analyse KGV'!H47 -> -2.61 | I42: ='SMI Analyse KGV'!I47 -> 1.48 | J42: ='SMI Analyse KGV'!J47 -> 2.64 | K42: ='SMI Analyse KGV'!K47 -> 6.63 | L42: ='SMI Analyse KGV'!L47 -> 10.39 | M42: ='SMI Analyse KGV'!M47 -> 11.04 | N42: ='SMI Analyse KGV'!N47 -> 8.56 | O42: ='SMI Analyse KGV'!O47 -> 11.81 | P42: ='SMI Analyse KGV'!P47 -> 9.66 | Q42: ='SMI Analyse KGV'!Q47 -> 1.01 | R42: ='SMI Analyse KGV'!R47 -> 1.34 | S42: ='SMI Analyse KGV'!S47 -> 2.4 | T42: ='SMI Analyse KGV'!T47 -> -2.97 | U42: ='SMI Analyse KGV'!U47 -> 4.35 | V42: ='SMI Analyse KGV'!V47 -> 1.6 | W42: ='SMI Analyse KGV'!W47 -> 9.4 | X42: =LOOKUP(D42,Daten!$C$2:$C$300,Daten!$E$2:$E$500) -> 138.05 | AB42: =SUM(N42:W42)/10 -> 4.716 | AD42: =AB42/X42*100 -> 3.416153568 | AF42: =AD42-$N$5 -> 2.316153568 | AG42: =AF42 -> 2.316153568
C44: SWISSCOM | D44: SCMN | E44: ='SMI Analyse KGV'!E49 -> 33.79 | F44: ='SMI Analyse KGV'!F49 -> 28.92 | G44: ='SMI Analyse KGV'!G49 -> 39.92 | H44: ='SMI Analyse KGV'!H49 -> 33.9 | I44: ='SMI Analyse KGV'!I49 -> 37.18 | J44: ='SMI Analyse KGV'!J49 -> 34.96 | K44: ='SMI Analyse KGV'!K49 -> 13.19 | L44: ='SMI Analyse KGV'!L49 -> 33.88 | M44: ='SMI Analyse KGV'!M49 -> 32.53 | N44: ='SMI Analyse KGV'!N49 -> 32.7 | O44: ='SMI Analyse KGV'!O49 -> 26.27 | P44: ='SMI Analyse KGV'!P49 -> 30.97 | Q44: ='SMI Analyse KGV'!Q49 -> 30.31 | R44: ='SMI Analyse KGV'!R49 -> 29.48 | S44: ='SMI Analyse KGV'!S49 -> 32.28 | T44: ='SMI Analyse KGV'!T49 -> 29.54 | U44: ='SMI Analyse KGV'!U49 -> 35.37 | V44: ='SMI Analyse KGV'!V49 -> 30.93 | W44: ='SMI Analyse KGV'!W49 -> 33.03 | X44: =LOOKUP(D44,Daten!$C$2:$C$300,Daten!$E$2:$E$500) -> 506 | AB44: =SUM(N44:W44)/10 -> 31.088 | AD44: =AB44/X44*100 -> 6.143873518 | AF44: =AD44-$N$5 -> 5.043873518 | AG44: =AF44 -> 5.043873518
C46: UBS N | D46: UBSG | E46: ='SMI Analyse KGV'!E51 -> 6.68 | F46: ='SMI Analyse KGV'!F51 -> 4.98 | G46: ='SMI Analyse KGV'!G51 -> -2.41 | H46: ='SMI Analyse KGV'!H51 -> -7.69 | I46: ='SMI Analyse KGV'!I51 -> -0.74 | J46: ='SMI Analyse KGV'!J51 -> 1.96 | K46: ='SMI Analyse KGV'!K51 -> 1.08 | L46: ='SMI Analyse KGV'!L51 -> -0.67 | M46: ='SMI Analyse KGV'!M51 -> 0.83 | N46: ='SMI Analyse KGV'!N51 -> 0.91 | O46: ='SMI Analyse KGV'!O51 -> 1.64 | P46: ='SMI Analyse KGV'!P51 -> 0.84 | Q46: ='SMI Analyse KGV'!Q51 -> 0.27 | R46: ='SMI Analyse KGV'!R51 -> 1.18 | S46: ='SMI Analyse KGV'!S51 -> 1.14 | T46: ='SMI Analyse KGV'!T51 -> 1.77 | U46: ='SMI Analyse KGV'!U51 -> 2.06 | V46: ='SMI Analyse KGV'!V51 -> 2.25 | W46: ='SMI Analyse KGV'!W51 -> 7.61 | X46: =LOOKUP(D46,Daten!$C$2:$C$300,Daten!$E$2:$E$500) -> 31.84 | AB46: =SUM(N46:W46)/10 -> 1.967 | AD46: =AB46/X46*100 -> 6.177763819 | AF46: =AD46-$N$5 -> 5.077763819 | AG46: =AF46 -> 5.077763819
B48: CHF! | C48: ZURICH FINANCIAL N | D48: ZURN | E48: ='SMI Analyse KGV'!E53 -> 27.11 | F48: ='SMI Analyse KGV'!F53 -> 38.71 | G48: ='SMI Analyse KGV'!G53 -> 47.11 | H48: ='SMI Analyse KGV'!H53 -> 23.35 | I48: ='SMI Analyse KGV'!I53 -> 24.21 | J48: ='SMI Analyse KGV'!J53 -> 24.38 | K48: ='SMI Analyse KGV'!K53 -> 22.52 | L48: ='SMI Analyse KGV'!L53 -> 24.66 | M48: ='SMI Analyse KGV'!M53 -> 25.23 | N48: ='SMI Analyse KGV'!N53 -> 23.84 | O48: ='SMI Analyse KGV'!O53 -> 11.86 | P48: ='SMI Analyse KGV'!P53 -> 21.04 | Q48: ='SMI Analyse KGV'!Q53 -> 19.58 | R48: ='SMI Analyse KGV'!R53 -> 24.28 | S48: ='SMI Analyse KGV'!S53 -> 27.51 | T48: ='SMI Analyse KGV'!T53 -> 23.98 | U48: ='SMI Analyse KGV'!U53 -> 31.68 | V48: ='SMI Analyse KGV'!V53 -> 29.36 | W48: ='SMI Analyse KGV'!W53 -> 26.71 | X48: =LOOKUP(D48,Daten!$C$2:$C$300,Daten!$E$2:$E$500) -> 537.2 | AB48: =SUM(N48:W48)/10 -> 23.984 | AD48: =AB48/X48*100 -> 4.464631422 | AF48: =AD48-$N$5 -> 3.364631422 | AG48: =AF48 -> 3.364631422
E57: Gewinn pro Aktie | X57: akt. Kurs | Z57: akt. Kurs | AB57: Durchschn. Gewinn | AD57: Gewinn- | AF57: Sicherheitsmarge
B58: weitere SPI Titel (SMIM et al.) | E58: 2005 | F58: 2006 | G58: 2007 | H58: 2008 | I58: 2009 | J58: 2010 | K58: 2011 | L58: 2012 | M58: 2013 | N58: 2014 | O58: 2015 | P58: 2016 | Q58: 2017 | R58: 2018 | S58: 2019 | T58: 2020 | U58: 2021 | Z58: in RW | AB58: 2014-2023 | AD58: rendite | AF58: >=5%
B60: ='SMI Analyse KGV'!A65 -> EUR | C60: ='SMI Analyse KGV'!B65 -> Adecco | D60: ='SMI Analyse KGV'!C65 -> ADEN | E60: ='SMI Analyse KGV'!E155 -> 0 | F60: ='SMI Analyse KGV'!F155 -> 0 | G60: ='SMI Analyse KGV'!G155 -> 0 | H60: ='SMI Analyse KGV'!H155 -> 0 | I60: ='SMI Analyse KGV'!I155 -> 0 | J60: ='SMI Analyse KGV'!J155 -> 0 | K60: ='SMI Analyse KGV'!K155 -> 0 | L60: ='SMI Analyse KGV'!L65 -> 2 | M60: ='SMI Analyse KGV'!M65 -> 3.08 | N60: ='SMI Analyse KGV'!N65 -> 3.61 | O60: ='SMI Analyse KGV'!O65 -> 0.05 | P60: ='SMI Analyse KGV'!P65 -> 4.24 | Q60: ='SMI Analyse KGV'!Q65 -> 4.66 | R60: ='SMI Analyse KGV'!R65 -> 2.77 | S60: ='SMI Analyse KGV'!S65 -> 4.47 | T60: ='SMI Analyse KGV'!T65 -> -0.61 | U60: ='SMI Analyse KGV'!U65 -> 3.6 | V60: ='SMI Analyse KGV'!V65 -> 2.04 | W60: ='SMI Analyse KGV'!W65 -> 1.94 | X60: =LOOKUP(D60,Daten!$C$2:$C$300,Daten!$E$2:$E$500) -> 21.7 | Z60: =X60/Währungskurse!C$5 -> 22.84210526 | AB60: =SUM(N60:W60)/10 -> 2.677 | AD60: =AB60/Z60*100 -> 11.71958525 | AF60: =AD60-$N$5 -> 10.61958525 | AG60: =AF60 -> 10.61958525
B62: ='SMI Analyse KGV'!A67 -> ! | C62: ='SMI Analyse KGV'!B67 -> AMS Osram | D62: ='SMI Analyse KGV'!C67 -> AMS | E62: ='SMI Analyse KGV'!E157 -> 0 | F62: ='SMI Analyse KGV'!F157 -> 0 | G62: ='SMI Analyse KGV'!G157 ->  | H62: ='SMI Analyse KGV'!H157 -> 0 | I62: ='SMI Analyse KGV'!I157 -> 0 | J62: ='SMI Analyse KGV'!J157 -> 0 | K62: ='SMI Analyse KGV'!K157 -> 0 | L62: ='SMI Analyse KGV'!L67 -> 1.5 | M62: ='SMI Analyse KGV'!M67 -> 1.11 | N62: ='SMI Analyse KGV'!N67 -> 1.88 | O62: ='SMI Analyse KGV'!O67 -> 2.28 | P62: ='SMI Analyse KGV'!P67 -> 1.51 | Q62: ='SMI Analyse KGV'!Q67 -> 0.81 | R62: ='SMI Analyse KGV'!R67 -> 0.89 | S62: ='SMI Analyse KGV'!S67 -> 2.81 | T62: ='SMI Analyse KGV'!T67 -> -0.06 | U62: ='SMI Analyse KGV'!U67 -> -0.13 | V62: ='SMI Analyse KGV'!V67 -> -0.92 | W62: ='SMI Analyse KGV'!W67 -> -5.05 | X62: =LOOKUP(D62,Daten!$C$2:$C$300,Daten!$E$2:$E$500) -> 7.294 | AB62: =SUM(N62:W62)/10 -> 0.402 | AD62: =AB62/X62*100 -> 5.511379216 | AF62: =AD62-$N$5 -> 4.411379216 | AG62: =AF62 -> 4.411379216
C64: Avolta (ehem. Dufry) | D64: ='SMI Analyse KGV'!C69 -> AVOL | E64: ='SMI Analyse KGV'!E189 -> 0 | F64: ='SMI Analyse KGV'!F189 -> 0 | G64: ='SMI Analyse KGV'!G189 -> 0 | H64: ='SMI Analyse KGV'!H189 -> 0 | I64: ='SMI Analyse KGV'!I189 -> 0 | J64: ='SMI Analyse KGV'!J189 -> 0 | K64: ='SMI Analyse KGV'!K189 -> 0 | L64: ='SMI Analyse KGV'!L69 -> 4.5 | M64: ='SMI Analyse KGV'!M69 -> 3.13 | N64: ='SMI Analyse KGV'!N69 -> 1.55 | O64: ='SMI Analyse KGV'!O69 -> -1.73 | P64: ='SMI Analyse KGV'!P69 -> 0.05 | Q64: ='SMI Analyse KGV'!Q69 -> 1.06 | R64: ='SMI Analyse KGV'!R69 -> 1.38 | S64: ='SMI Analyse KGV'!S69 -> -0.53 | T64: ='SMI Analyse KGV'!T69 -> -43.01 | U64: ='SMI Analyse KGV'!U69 -> -4.39 | V64: ='SMI Analyse KGV'!V69 -> 0.62 | W64: ='SMI Analyse KGV'!W69 -> 0.63 | X64: =LOOKUP(D64,Daten!$C$2:$C$300,Daten!$E$2:$E$500) -> 41.28 | AB64: =SUM(N64:W64)/10 -> -4.437 | AD64: =AB64/X64*100 -> -10.74854651 | AF64: =AD64-$N$5 -> -11.84854651 | AG64: =AF64 -> -11.84854651
C65: ='SMI Analyse KGV'!B80 -> 0
C66: ='SMI Analyse KGV'!B71 -> Bachem | D66: ='SMI Analyse KGV'!C71 -> BANB | E66: ='SMI Analyse KGV'!E159 -> 0 | F66: ='SMI Analyse KGV'!F159 -> 0 | G66: ='SMI Analyse KGV'!G159 -> 0 | H66: ='SMI Analyse KGV'!H159 -> 0 | I66: ='SMI Analyse KGV'!I159 -> 0 | J66: ='SMI Analyse KGV'!J159 -> 0 | K66: ='SMI Analyse KGV'!K159 -> 0 | L66: ='SMI Analyse KGV'!L71 -> 0.24 | M66: ='SMI Analyse KGV'!M71 -> 0.36 | N66: ='SMI Analyse KGV'!N71 -> 0.43 | O66: ='SMI Analyse KGV'!O71 -> 0.47 | P66: ='SMI Analyse KGV'!P71 -> 0.608 | Q66: ='SMI Analyse KGV'!Q71 -> 0.62 | R66: ='SMI Analyse KGV'!R71 -> 0.69 | S66: ='SMI Analyse KGV'!S71 -> 0.78 | T66: ='SMI Analyse KGV'!T71 -> 1.12 | U66: ='SMI Analyse KGV'!U71 -> 1.62 | V66: ='SMI Analyse KGV'!V71 -> 1.37 | W66: ='SMI Analyse KGV'!W71 -> 1.5 | X66: =LOOKUP(D66,Daten!$C$2:$C$300,Daten!$E$2:$E$500) -> 59.6 | AB66: =SUM(N66:W66)/10 -> 0.9208 | AD66: =AB66/X66*100 -> 1.544966443 | AF66: =AD66-$N$5 -> 0.444966443 | AG66: =AF66 -> 0.444966443
C68: ='SMI Analyse KGV'!B73 -> Baloise | D68: ='SMI Analyse KGV'!C73 -> BALN | E68: ='SMI Analyse KGV'!E161 -> 0 | F68: ='SMI Analyse KGV'!F161 -> 0 | G68: ='SMI Analyse KGV'!G161 -> 0 | H68: ='SMI Analyse KGV'!H161 -> 0 | I68: ='SMI Analyse KGV'!I161 -> 0 | J68: ='SMI Analyse KGV'!J161 -> 0 | K68: ='SMI Analyse KGV'!K161 -> 0 | L68: ='SMI Analyse KGV'!L73 -> 10.2 | M68: ='SMI Analyse KGV'!M73 -> 9.65 | N68: ='SMI Analyse KGV'!N73 -> 15.15 | O68: ='SMI Analyse KGV'!O73 -> 10.96 | P68: ='SMI Analyse KGV'!P73 -> 11.53 | Q68: ='SMI Analyse KGV'!Q73 -> 11.5 | R68: ='SMI Analyse KGV'!R73 -> 11.14 | S68: ='SMI Analyse KGV'!S73 -> 15.02 | T68: ='SMI Analyse KGV'!T73 -> 9.65 | U68: ='SMI Analyse KGV'!U73 -> 13.06 | V68: ='SMI Analyse KGV'!V73 -> 5.48 | W68: ='SMI Analyse KGV'!W73 -> 5.29 | X68: =LOOKUP(D68,Daten!$C$2:$C$300,Daten!$E$2:$E$500) -> 165.6 | AB68: =SUM(N68:W68)/10 -> 10.878 | AD68: =AB68/X68*100 -> 6.56884058 | AF68: =AD68-$N$5 -> 5.46884058 | AG68: =AF68 -> 5.46884058
C69: ='SMI Analyse KGV'!B84 -> 0
C70: ='SMI Analyse KGV'!B75 -> Barry Callebaut | D70: ='SMI Analyse KGV'!C75 -> BARN | E70: ='SMI Analyse KGV'!E163 -> 0 | F70: ='SMI Analyse KGV'!F163 -> 0 | G70: ='SMI Analyse KGV'!G163 -> 0 | H70: ='SMI Analyse KGV'!H163 -> 0 | I70: ='SMI Analyse KGV'!I163 -> 0 | J70: ='SMI Analyse KGV'!J163 -> 0 | K70: ='SMI Analyse KGV'!K163 -> 0 | L70: ='SMI Analyse KGV'!L75 -> 27.5 | M70: ='SMI Analyse KGV'!M75 -> 42.7 | N70: ='SMI Analyse KGV'!N75 -> 46 | O70: ='SMI Analyse KGV'!O75 -> 43.25 | P70: ='SMI Analyse KGV'!P75 -> 39.57 | Q70: ='SMI Analyse KGV'!Q75 -> 51.15 | R70: ='SMI Analyse KGV'!R75 -> 64.93 | S70: ='SMI Analyse KGV'!S75 -> 67.57 | T70: ='SMI Analyse KGV'!T75 -> 57.66 | U70: ='SMI Analyse KGV'!U75 -> 69.84 | V70: ='SMI Analyse KGV'!V75 -> 65.66 | W70: ='SMI Analyse KGV'!W75 -> 80.9 | X70: =LOOKUP(D70,Daten!$C$2:$C$300,Daten!$E$2:$E$500) -> 1021 | AB70: =SUM(N70:W70)/10 -> 58.653 | AD70: =AB70/X70*100 -> 5.744662096 | AF70: =AD70-$N$5 -> 4.644662096 | AG70: =AF70 -> 4.644662096
C71: ='SMI Analyse KGV'!B86 -> 0
C72: ='SMI Analyse KGV'!B77 -> Belimo | D72: ='SMI Analyse KGV'!C77 -> BEAN | E72: ='SMI Analyse KGV'!E165 -> 0 | F72: ='SMI Analyse KGV'!F165 -> 0 | G72: ='SMI Analyse KGV'!G165 -> 0 | H72: ='SMI Analyse KGV'!H165 -> 0 | I72: ='SMI Analyse KGV'!I165 -> 0 | J72: ='SMI Analyse KGV'!J165 -> 0 | K72: ='SMI Analyse KGV'!K165 -> 0 | L72: ='SMI Analyse KGV'!L77 -> 4.97 | M72: ='SMI Analyse KGV'!M77 -> 5.15 | N72: ='SMI Analyse KGV'!N77 -> 5.5 | O72: ='SMI Analyse KGV'!O77 -> 4.576 | P72: ='SMI Analyse KGV'!P77 -> 5.7 | Q72: ='SMI Analyse KGV'!Q77 -> 6.3 | R72: ='SMI Analyse KGV'!R77 -> 7.01 | S72: ='SMI Analyse KGV'!S77 -> 9.85 | T72: ='SMI Analyse KGV'!T77 -> 7.05 | U72: ='SMI Analyse KGV'!U77 -> 9.41 | V72: ='SMI Analyse KGV'!V77 -> 9.99 | W72: ='SMI Analyse KGV'!W77 -> 11.14 | X72: =LOOKUP(D72,Daten!$C$2:$C$300,Daten!$E$2:$E$500) -> 718.5 | AB72: =SUM(N72:W72)/10 -> 7.6526 | AD72: =AB72/X72*100 -> 1.065080028 | AF72: =AD72-$N$5 -> -0.03491997216 | AG72: =AF72 -> -0.03491997216
C73: ='SMI Analyse KGV'!B90 -> 0
C74: ='SMI Analyse KGV'!B79 -> Bell | D74: ='SMI Analyse KGV'!C79 -> BELL | E74: ='SMI Analyse KGV'!E167 -> 0 | F74: ='SMI Analyse KGV'!F167 -> 0 | G74: ='SMI Analyse KGV'!G167 -> 0 | H74: ='SMI Analyse KGV'!H167 -> 0 | I74: ='SMI Analyse KGV'!I167 -> 0 | J74: ='SMI Analyse KGV'!J167 -> 0 | K74: ='SMI Analyse KGV'!K167 -> 0 | L74: ='SMI Analyse KGV'!L79 -> 19.1 | M74: ='SMI Analyse KGV'!M79 -> 19.2 | N74: ='SMI Analyse KGV'!N79 -> 21.9 | O74: ='SMI Analyse KGV'!O79 -> 23.75 | P74: ='SMI Analyse KGV'!P79 -> 25.18 | Q74: ='SMI Analyse KGV'!Q79 -> 26.68 | R74: ='SMI Analyse KGV'!R79 -> 16.89 | S74: ='SMI Analyse KGV'!S79 -> 7.9 | T74: ='SMI Analyse KGV'!T79 -> 18.91 | U74: ='SMI Analyse KGV'!U79 -> 20.31 | V74: ='SMI Analyse KGV'!V79 -> 20.37 | W74: ='SMI Analyse KGV'!W79 -> 20.64 | X74: =LOOKUP(D74,Daten!$C$2:$C$300,Daten!$E$2:$E$500) -> 255 | AB74: =SUM(N74:W74)/10 -> 20.253 | AD74: =AB74/X74*100 -> 7.942352941 | AF74: =AD74-$N$5 -> 6.842352941 | AG74: =AF74 -> 6.842352941
C76: ='alte Firmen'!B3 -> Bobst | D76: ='alte Firmen'!C3 -> BOBNN | E76: ='SMI Analyse KGV'!E169 -> 0 | F76: ='SMI Analyse KGV'!F169 -> 0 | G76: ='SMI Analyse KGV'!G169 -> 0 | H76: ='SMI Analyse KGV'!H169 -> 0 | I76: ='SMI Analyse KGV'!I169 -> 0 | J76: ='SMI Analyse KGV'!J169 -> 0 | K76: ='SMI Analyse KGV'!K169 -> 0 | L76: ='alte Firmen'!L3 -> -0.43 | M76: ='alte Firmen'!M3 -> 1.59 | N76: ='alte Firmen'!N3 -> 3.06 | O76: ='alte Firmen'!O3 -> 3.55 | P76: ='alte Firmen'!P3 -> 5.08 | Q76: ='alte Firmen'!Q3 -> 6.93 | R76: ='alte Firmen'!R3 -> 3.84 | S76: ='alte Firmen'!S3 -> 4.12 | T76: ='alte Firmen'!T3 -> 1.85 | U76: ='alte Firmen'!U3 -> 5.51 | V76: ='SMI Analyse KGV'!V81 -> 10.43 | W76: ='SMI Analyse KGV'!W81 -> 9.06 | X76: =LOOKUP(D76,Daten!$C$2:$C$300,Daten!$E$2:$E$500) -> 882 | AB76: =SUM(N76:W76)/10 -> 5.343 | AD76: =AB76/X76*100 -> 0.6057823129 | AF76: =AD76-$N$5 -> -0.4942176871 | AG76: =AF76 -> -0.4942176871
C77: ='SMI Analyse KGV'!B92 -> 0
C78: ='SMI Analyse KGV'!B83 -> Bossard | D78: ='SMI Analyse KGV'!C83 -> BOSN | E78: ='SMI Analyse KGV'!E171 -> 0 | F78: ='SMI Analyse KGV'!F171 -> 0 | G78: ='SMI Analyse KGV'!G171 -> 0 | H78: ='SMI Analyse KGV'!H171 -> 0 | I78: ='SMI Analyse KGV'!I171 -> 0 | J78: ='SMI Analyse KGV'!J171 -> 0 | K78: ='SMI Analyse KGV'!K171 -> 0 | L78: ='SMI Analyse KGV'!L83 -> 7.19 | M78: ='SMI Analyse KGV'!M83 -> 7.4 | N78: ='SMI Analyse KGV'!N83 -> 7.49 | O78: ='SMI Analyse KGV'!O83 -> 7.01 | P78: ='SMI Analyse KGV'!P83 -> 8.04 | Q78: ='SMI Analyse KGV'!Q83 -> 10.33 | R78: ='SMI Analyse KGV'!R83 -> 10.95 | S78: ='SMI Analyse KGV'!S83 -> 9.73 | T78: ='SMI Analyse KGV'!T83 -> 8.73 | U78: ='SMI Analyse KGV'!U83 -> 12.53 | V78: ='SMI Analyse KGV'!V83 -> 13.38 | W78: ='SMI Analyse KGV'!W83 -> 9.64 | X78: =LOOKUP(D78,Daten!$C$2:$C$300,Daten!$E$2:$E$500) -> 204 | AB78: =SUM(N78:W78)/10 -> 9.783 | AD78: =AB78/X78*100 -> 4.795588235 | AF78: =AD78-$N$5 -> 3.695588235 | AG78: =AF78 -> 3.695588235
C79: ='SMI Analyse KGV'!B96 -> 0
C80: ='SMI Analyse KGV'!B85 -> Bucher Industries | D80: ='SMI Analyse KGV'!C85 -> BUCN | E80: ='SMI Analyse KGV'!E173 -> 0 | F80: ='SMI Analyse KGV'!F173 -> 0 | G80: ='SMI Analyse KGV'!G173 -> 0 | H80: ='SMI Analyse KGV'!H173 -> 0 | I80: ='SMI Analyse KGV'!I173 -> 0 | J80: ='SMI Analyse KGV'!J173 -> 0 | K80: ='SMI Analyse KGV'!K173 -> 0 | L80: ='SMI Analyse KGV'!L85 -> 15.53 | M80: ='SMI Analyse KGV'!M85 -> 19.64 | N80: ='SMI Analyse KGV'!N85 -> 18.59 | O80: ='SMI Analyse KGV'!O85 -> 13.68 | P80: ='SMI Analyse KGV'!P85 -> 11.71 | Q80: ='SMI Analyse KGV'!Q85 -> 16.79 | R80: ='SMI Analyse KGV'!R85 -> 20.76 | S80: ='SMI Analyse KGV'!S85 -> 21.92 | T80: ='SMI Analyse KGV'!T85 -> 14.71 | U80: ='SMI Analyse KGV'!U85 -> 25.96 | V80: ='SMI Analyse KGV'!V85 -> 32.36 | W80: ='SMI Analyse KGV'!W85 -> 34.38 | X80: =LOOKUP(D80,Daten!$C$2:$C$300,Daten!$E$2:$E$500) -> 338 | AB80: =SUM(N80:W80)/10 -> 21.086 | AD80: =AB80/X80*100 -> 6.238461538 | AF80: =AD80-$N$5 -> 5.138461538 | AG80: =AF80 -> 5.138461538
C82: ='SMI Analyse KGV'!B89 -> Burkhalter | D82: ='SMI Analyse KGV'!C89 -> BRKN | E82: ='SMI Analyse KGV'!E175 -> 0 | F82: ='SMI Analyse KGV'!F175 -> 0 | G82: ='SMI Analyse KGV'!G175 -> 0 | H82: ='SMI Analyse KGV'!H175 -> 0 | I82: ='SMI Analyse KGV'!I175 -> 0 | J82: ='SMI Analyse KGV'!J175 -> 0 | K82: ='SMI Analyse KGV'!K175 -> 0 | L82: ='SMI Analyse KGV'!L89 -> 4.29 | M82: ='SMI Analyse KGV'!M89 -> 4.48 | N82: ='SMI Analyse KGV'!N89 -> 5.25 | O82: ='SMI Analyse KGV'!O89 -> 5.8 | P82: ='SMI Analyse KGV'!P89 -> 6.08 | Q82: ='SMI Analyse KGV'!Q89 -> 5.02 | R82: ='SMI Analyse KGV'!R89 -> 3.92 | S82: ='SMI Analyse KGV'!S89 -> 3.72 | T82: ='SMI Analyse KGV'!T89 -> 2.43 | U82: ='SMI Analyse KGV'!U89 -> 3.99 | V82: ='SMI Analyse KGV'!V89 -> 4.73 | W82: ='SMI Analyse KGV'!W89 -> 4.95 | X82: =LOOKUP(D82,Daten!$C$2:$C$300,Daten!$E$2:$E$500) -> 97.6 | AB82: =SUM(N82:W82)/10 -> 4.589 | AD82: =AB82/X82*100 -> 4.701844262 | AF82: =AD82-$N$5 -> 3.601844262 | AG82: =AF82 -> 3.601844262
C83: ='SMI Analyse KGV'!B102 -> 0
C84: ='SMI Analyse KGV'!B87 -> Burckhardt Compression | D84: ='SMI Analyse KGV'!C87 -> BCHN | E84: ='SMI Analyse KGV'!E177 -> 0 | F84: ='SMI Analyse KGV'!F177 -> 0 | G84: ='SMI Analyse KGV'!G177 -> 0 | H84: ='SMI Analyse KGV'!H177 -> 0 | I84: ='SMI Analyse KGV'!I177 -> 0 | J84: ='SMI Analyse KGV'!J177 -> 0 | K84: ='SMI Analyse KGV'!K177 -> 0 | L84: ='SMI Analyse KGV'!L87 -> 16.42 | M84: ='SMI Analyse KGV'!M87 -> 15.87 | N84: ='SMI Analyse KGV'!N87 -> 16.93 | O84: ='SMI Analyse KGV'!O87 -> 16.34 | P84: ='SMI Analyse KGV'!P87 -> 11.2 | Q84: ='SMI Analyse KGV'!Q87 -> 8.51 | R84: ='SMI Analyse KGV'!R87 -> 8.15 | S84: ='SMI Analyse KGV'!S87 -> 9.56 | T84: ='SMI Analyse KGV'!T87 -> 13 | U84: ='SMI Analyse KGV'!U87 -> 14.82 | V84: ='SMI Analyse KGV'!V87 -> 20.64 | W84: ='SMI Analyse KGV'!W87 -> 26.63 | X84: =LOOKUP(D84,Daten!$C$2:$C$300,Daten!$E$2:$E$500) -> 707 | AB84: =SUM(N84:W84)/10 -> 14.578 | AD84: =AB84/X84*100 -> 2.061951909 | AF84: =AD84-$N$5 -> 0.9619519095 | AG84: =AF84 -> 0.9619519095
C85: ='SMI Analyse KGV'!B106 -> 0
C86: ='SMI Analyse KGV'!B91 -> Calida | D86: ='SMI Analyse KGV'!C91 -> CALN | E86: ='SMI Analyse KGV'!E179 -> 0 | F86: ='SMI Analyse KGV'!F179 -> 0 | G86: ='SMI Analyse KGV'!G179 -> 0 | H86: ='SMI Analyse KGV'!H179 -> 0 | I86: ='SMI Analyse KGV'!I179 -> 0 | J86: ='SMI Analyse KGV'!J179 -> 0 | K86: ='SMI Analyse KGV'!K179 -> 0 | L86: ='SMI Analyse KGV'!L91 -> 2.58 | M86: ='SMI Analyse KGV'!M91 -> 1.36 | N86: ='SMI Analyse KGV'!N91 -> 2.74 | O86: ='SMI Analyse KGV'!O91 -> 1.97 | P86: ='SMI Analyse KGV'!P91 -> 1.72 | Q86: ='SMI Analyse KGV'!Q91 -> 1.88 | R86: ='SMI Analyse KGV'!R91 -> 1.97 | S86: ='SMI Analyse KGV'!S91 -> 1.9 | T86: ='SMI Analyse KGV'!T91 -> -0.17 | U86: ='SMI Analyse KGV'!U91 -> 2.43 | V86: ='SMI Analyse KGV'!V91 -> 4.39 | W86: ='SMI Analyse KGV'!W91 -> -7.88 | X86: =LOOKUP(D86,Daten!$C$2:$C$300,Daten!$E$2:$E$500) -> 22.7 | AB86: =SUM(N86:W86)/10 -> 1.095 | AD86: =AB86/X86*100 -> 4.823788546 | AF86: =AD86-$N$5 -> 3.723788546 | AG86: =AF86 -> 3.723788546
C87: ='SMI Analyse KGV'!B108 -> 0
C88: ='SMI Analyse KGV'!B93 -> Carlo Gavazzi 1) | D88: ='SMI Analyse KGV'!C93 -> GAV | E88: ='SMI Analyse KGV'!E181 -> 0 | F88: ='SMI Analyse KGV'!F181 -> 0 | G88: ='SMI Analyse KGV'!G181 -> 0 | H88: ='SMI Analyse KGV'!H181 -> 0 | I88: ='SMI Analyse KGV'!I181 -> 0 | J88: ='SMI Analyse KGV'!J181 -> 0 | K88: ='SMI Analyse KGV'!K181 -> 0 | L88: ='SMI Analyse KGV'!L93 -> 17.66 | M88: ='SMI Analyse KGV'!M93 -> 15.69 | N88: ='SMI Analyse KGV'!N93 -> 17.26 | O88: ='SMI Analyse KGV'!O93 -> 13.58 | P88: ='SMI Analyse KGV'!P93 -> 18.84 | Q88: ='SMI Analyse KGV'!Q93 -> 11.81 | R88: ='SMI Analyse KGV'!R93 -> 15.07 | S88: ='SMI Analyse KGV'!S93 -> 8.55 | T88: ='SMI Analyse KGV'!T93 -> 16.96 | U88: ='SMI Analyse KGV'!U93 -> 31 | V88: ='SMI Analyse KGV'!V93 -> 39.71 | W88: ='SMI Analyse KGV'!W93 -> 26.29 | X88: =LOOKUP(D88,Daten!$C$2:$C$300,Daten!$E$2:$E$500) -> 184.5 | AB88: =SUM(N88:W88)/10 -> 19.907 | AD88: =AB88/X88*100 -> 10.7897019 | AF88: =AD88-$N$5 -> 9.689701897 | AG88: =AF88 -> 9.689701897
C89: ='SMI Analyse KGV'!B112 -> 0
C90: ='SMI Analyse KGV'!B95 -> Clariant | D90: ='SMI Analyse KGV'!C95 -> CLN | E90: ='SMI Analyse KGV'!E183 -> 0 | F90: ='SMI Analyse KGV'!F183 -> 0 | G90: ='SMI Analyse KGV'!G183 -> 0 | H90: ='SMI Analyse KGV'!H183 -> 0 | I90: ='SMI Analyse KGV'!I183 -> 0 | J90: ='SMI Analyse KGV'!J183 -> 0 | K90: ='SMI Analyse KGV'!K183 -> 0 | L90: ='SMI Analyse KGV'!L95 -> 0.74 | M90: ='SMI Analyse KGV'!M95 -> -0.06 | N90: ='SMI Analyse KGV'!N95 -> 0.48 | O90: ='SMI Analyse KGV'!O95 -> 0.71 | P90: ='SMI Analyse KGV'!P95 -> 0.78 | Q90: ='SMI Analyse KGV'!Q95 -> 0.84 | R90: ='SMI Analyse KGV'!R95 -> 1.02 | S90: ='SMI Analyse KGV'!S95 -> 0.03 | T90: ='SMI Analyse KGV'!T95 -> 2.38 | U90: ='SMI Analyse KGV'!U95 -> 0.81 | V90: ='SMI Analyse KGV'!V95 -> -0.4 | W90: ='SMI Analyse KGV'!W95 -> 0.41 | X90: =LOOKUP(D90,Daten!$C$2:$C$300,Daten!$E$2:$E$500) -> 10.19 | AB90: =SUM(N90:W90)/10 -> 0.706 | AD90: =AB90/X90*100 -> 6.928361138 | AF90: =AD90-$N$5 -> 5.828361138 | AG90: =AF90 -> 5.828361138
C91: ='SMI Analyse KGV'!B114 -> 0
C92: ='SMI Analyse KGV'!B97 -> Dätwyler 2) | D92: ='SMI Analyse KGV'!C97 -> DAE | E92: ='SMI Analyse KGV'!E185 -> 0 | F92: ='SMI Analyse KGV'!F185 -> 0 | G92: ='SMI Analyse KGV'!G185 -> 0 | H92: ='SMI Analyse KGV'!H185 -> 0 | I92: ='SMI Analyse KGV'!I185 -> 0 | J92: ='SMI Analyse KGV'!J185 -> 0 | K92: ='SMI Analyse KGV'!K185 -> 0 | L92: ='SMI Analyse KGV'!L97 -> 8.23 | M92: ='SMI Analyse KGV'!M97 -> 7.6 | N92: ='SMI Analyse KGV'!N97 -> 6.14 | O92: ='SMI Analyse KGV'!O97 -> 5.04 | P92: ='SMI Analyse KGV'!P97 -> 3.47 | Q92: ='SMI Analyse KGV'!Q97 -> 7.28 | R92: ='SMI Analyse KGV'!R97 -> 7.12 | S92: ='SMI Analyse KGV'!S97 -> 5.6 | T92: ='SMI Analyse KGV'!T97 -> 6.99 | U92: ='SMI Analyse KGV'!U97 -> 7.28 | V92: ='SMI Analyse KGV'!V97 -> 6.16 | W92: ='SMI Analyse KGV'!W97 -> 3.93 | X92: =LOOKUP(D92,Daten!$C$2:$C$300,Daten!$E$2:$E$500) -> 136.8 | AB92: =SUM(N92:W92)/10 -> 5.901 | AD92: =AB92/X92*100 -> 4.313596491 | AF92: =AD92-$N$5 -> 3.213596491 | AG92: =AF92 -> 3.213596491
C93: ='SMI Analyse KGV'!B144 -> 0
C94: ='SMI Analyse KGV'!B99 -> Ems-Chemie | D94: ='SMI Analyse KGV'!C99 -> EMSN | E94: ='SMI Analyse KGV'!E191 -> 0 | F94: ='SMI Analyse KGV'!F191 -> 0 | G94: ='SMI Analyse KGV'!G191 -> 0 | H94: ='SMI Analyse KGV'!H191 -> 0 | I94: ='SMI Analyse KGV'!I191 -> 0 | J94: ='SMI Analyse KGV'!J191 -> 0 | K94: ='SMI Analyse KGV'!K191 -> 0 | L94: ='SMI Analyse KGV'!L99 -> 11.45 | M94: ='SMI Analyse KGV'!M99 -> 13.58 | N94: ='SMI Analyse KGV'!N99 -> 14.66 | O94: ='SMI Analyse KGV'!O99 -> 16.09 | P94: ='SMI Analyse KGV'!P99 -> 19.19 | Q94: ='SMI Analyse KGV'!Q99 -> 20.59 | R94: ='SMI Analyse KGV'!R99 -> 22.22 | S94: ='SMI Analyse KGV'!S99 -> 22.54 | T94: ='SMI Analyse KGV'!T99 -> 18.57 | U94: ='SMI Analyse KGV'!U99 -> 23.53 | V94: ='SMI Analyse KGV'!V99 -> 22.75 | W94: ='SMI Analyse KGV'!W99 -> 19.56 | X94: =LOOKUP(D94,Daten!$C$2:$C$300,Daten!$E$2:$E$500) -> 640.5 | AB94: =SUM(N94:W94)/10 -> 19.97 | AD94: =AB94/X94*100 -> 3.117876659 | AF94: =AD94-$N$5 -> 2.017876659 | AG94: =AF94 -> 2.017876659
B96: CHF | C96: ='SMI Analyse KGV'!B101 -> Flughafen Zürich | D96: ='SMI Analyse KGV'!C101 -> FHZN | E96: ='SMI Analyse KGV'!E193 -> 0 | F96: ='SMI Analyse KGV'!F193 -> 0 | G96: ='SMI Analyse KGV'!G193 -> 0 | H96: ='SMI Analyse KGV'!H193 -> 0 | I96: ='SMI Analyse KGV'!I193 -> 0 | J96: ='SMI Analyse KGV'!J193 -> 0 | K96: ='SMI Analyse KGV'!K193 -> 0 | L96: ='SMI Analyse KGV'!L101 -> 3.1 | M96: ='SMI Analyse KGV'!M101 -> 4.46 | N96: ='SMI Analyse KGV'!N101 -> 6.71 | O96: ='SMI Analyse KGV'!O101 -> 5.85 | P96: ='SMI Analyse KGV'!P101 -> 8.07 | Q96: ='SMI Analyse KGV'!Q101 -> 9.29 | R96: ='SMI Analyse KGV'!R101 -> 7.75 | S96: ='SMI Analyse KGV'!S101 -> 10.07 | T96: ='SMI Analyse KGV'!T101 -> -2.25 | U96: ='SMI Analyse KGV'!U101 -> -0.33 | V96: ='SMI Analyse KGV'!V101 -> 6.74 | W96: ='SMI Analyse KGV'!W101 -> 9.91 | X96: =LOOKUP(D96,Daten!$C$2:$C$300,Daten!$E$2:$E$500) -> 219.6 | AB96: =SUM(N96:W96)/10 -> 6.181 | AD96: =AB96/X96*100 -> 2.814663024 | AF96: =AD96-$N$5 -> 1.714663024 | AG96: =AF96 -> 1.714663024
C98: ='SMI Analyse KGV'!B103 -> Forbo N | D98: ='SMI Analyse KGV'!C103 -> FORN | E98: ='SMI Analyse KGV'!E195 -> 0 | F98: ='SMI Analyse KGV'!F195 -> 0 | G98: ='SMI Analyse KGV'!G195 -> 0 | H98: ='SMI Analyse KGV'!H195 -> 0 | I98: ='SMI Analyse KGV'!I195 -> 0 | J98: ='SMI Analyse KGV'!J195 -> 0 | K98: ='SMI Analyse KGV'!K195 -> 0 | L98: ='SMI Analyse KGV'!L103 -> 89.04 | M98: ='SMI Analyse KGV'!M103 -> 53.19 | N98: ='SMI Analyse KGV'!N103 -> 61.95 | O98: ='SMI Analyse KGV'!O103 -> 62.13 | P98: ='SMI Analyse KGV'!P103 -> 74.65 | Q98: ='SMI Analyse KGV'!Q103 -> 22.36 | R98: ='SMI Analyse KGV'!R103 -> 82.38 | S98: ='SMI Analyse KGV'!S103 -> 86.33 | T98: ='SMI Analyse KGV'!T103 -> 66.6 | U98: ='SMI Analyse KGV'!U103 -> 91.62 | V98: ='SMI Analyse KGV'!V103 -> 71.76 | W98: ='SMI Analyse KGV'!W103 -> 72.55 | X98: =LOOKUP(D98,Daten!$C$2:$C$300,Daten!$E$2:$E$500) -> 839 | AB98: =SUM(N98:W98)/10 -> 69.233 | AD98: =AB98/X98*100 -> 8.251847437 | AF98: =AD98-$N$5 -> 7.151847437 | AG98: =AF98 -> 7.151847437
C100: ='SMI Analyse KGV'!B105 -> Galenica | D100: ='SMI Analyse KGV'!C105 -> GALE | E100: ='SMI Analyse KGV'!E197 -> 0 | F100: ='SMI Analyse KGV'!F197 -> 0 | G100: ='SMI Analyse KGV'!G197 -> 0 | H100: ='SMI Analyse KGV'!H197 -> 0 | I100: ='SMI Analyse KGV'!I197 -> 0 | J100: ='SMI Analyse KGV'!J197 -> 0 | K100: ='SMI Analyse KGV'!K197 -> 0 | L100: ='SMI Analyse KGV'!L105 -> 3.9 | M100: ='SMI Analyse KGV'!M105 -> 4.5 | N100: ='SMI Analyse KGV'!N105 -> 1.64 | O100: ='SMI Analyse KGV'!O105 -> 1.62 | P100: ='SMI Analyse KGV'!P105 -> 1.67 | Q100: ='SMI Analyse KGV'!Q105 -> 2.43 | R100: ='SMI Analyse KGV'!R105 -> 3 | S100: ='SMI Analyse KGV'!S105 -> 2.54 | T100: ='SMI Analyse KGV'!T105 -> 3.48 | U100: ='SMI Analyse KGV'!U105 -> 3.38 | V100: ='SMI Analyse KGV'!V105 -> 3.32 | W100: ='SMI Analyse KGV'!W105 -> 5.72 | X100: =LOOKUP(D100,Daten!$C$2:$C$300,Daten!$E$2:$E$500) -> 79.35 | AB100: =SUM(N100:W100)/10 -> 2.88 | AD100: =AB100/X100*100 -> 3.629489603 | AF100: =AD100-$N$5 -> 2.529489603 | AG100: =AF100 -> 2.529489603
C102: ='SMI Analyse KGV'!B107 -> Georg Fischer AG | D102: ='SMI Analyse KGV'!C107 -> GF | E102: ='SMI Analyse KGV'!E199 -> 0 | F102: ='SMI Analyse KGV'!F199 -> 0 | G102: ='SMI Analyse KGV'!G199 -> 0 | H102: ='SMI Analyse KGV'!H199 -> 0 | I102: ='SMI Analyse KGV'!I199 -> 0 | J102: ='SMI Analyse KGV'!J199 -> 0 | K102: ='SMI Analyse KGV'!K199 -> 0 | L102: ='SMI Analyse KGV'!L107 -> 1.6 | M102: ='SMI Analyse KGV'!M107 -> 1.7 | N102: ='SMI Analyse KGV'!N107 -> 2.25 | O102: ='SMI Analyse KGV'!O107 -> 2.3 | P102: ='SMI Analyse KGV'!P107 -> 2.65 | Q102: ='SMI Analyse KGV'!Q107 -> 3.1 | R102: ='SMI Analyse KGV'!R107 -> 3.45 | S102: ='SMI Analyse KGV'!S107 -> 2.1 | T102: ='SMI Analyse KGV'!T107 -> 1.4 | U102: ='SMI Analyse KGV'!U107 -> 2.62 | V102: ='SMI Analyse KGV'!V107 -> 3.37 | W102: ='SMI Analyse KGV'!W107 -> 2.87 | X102: =LOOKUP(D102,Daten!$C$2:$C$300,Daten!$E$2:$E$500) -> 70.4 | AB102: =SUM(N102:W102)/10 -> 2.611 | AD102: =AB102/X102*100 -> 3.708806818 | AF102: =AD102-$N$5 -> 2.608806818 | AG102: =AF102 -> 2.608806818
C104: ='SMI Analyse KGV'!B109 -> Gurit Holding I | D104: ='SMI Analyse KGV'!C109 -> GURN | E104: ='SMI Analyse KGV'!E201 -> 0 | F104: ='SMI Analyse KGV'!F201 -> 0 | G104: ='SMI Analyse KGV'!G201 -> 0 | H104: ='SMI Analyse KGV'!H201 -> 0 | I104: ='SMI Analyse KGV'!I201 -> 0 | J104: ='SMI Analyse KGV'!J201 -> 0 | K104: ='SMI Analyse KGV'!K201 -> 0 | L104: ='SMI Analyse KGV'!L109 -> 2.94 | M104: ='SMI Analyse KGV'!M109 -> 0.024 | N104: ='SMI Analyse KGV'!N109 -> 2.374 | O104: ='SMI Analyse KGV'!O109 -> 4.824 | P104: ='SMI Analyse KGV'!P109 -> 5.564 | Q104: ='SMI Analyse KGV'!Q109 -> 5.332 | R104: ='SMI Analyse KGV'!R109 -> 4.296 | S104: ='SMI Analyse KGV'!S109 -> 7.606 | T104: ='SMI Analyse KGV'!T109 -> 10.031 | U104: ='SMI Analyse KGV'!U109 -> 2.429 | V104: ='SMI Analyse KGV'!V109 -> 1.98 | W104: ='SMI Analyse KGV'!W109 -> 1.59 | X104: =LOOKUP(D104,Daten!$C$2:$C$300,Daten!$E$2:$E$500) -> 14.4 | AB104: =SUM(N104:W104)/10 -> 4.6026 | AD104: =AB104/X104*100 -> 31.9625 | AF104: =AD104-$N$5 -> 30.8625 | AG104: =AF104 -> 30.8625
C106: ='SMI Analyse KGV'!B111 -> Helvetia Holding | D106: ='SMI Analyse KGV'!C111 -> HELN | E106: ='SMI Analyse KGV'!E203 -> 0 | F106: ='SMI Analyse KGV'!F203 -> 0 | G106: ='SMI Analyse KGV'!G203 -> 0 | H106: ='SMI Analyse KGV'!H203 -> 0 | I106: ='SMI Analyse KGV'!I203 -> 0 | J106: ='SMI Analyse KGV'!J203 -> 0 | K106: ='SMI Analyse KGV'!K203 -> 0 | L106: ='SMI Analyse KGV'!L111 -> 7.42 | M106: ='SMI Analyse KGV'!M111 -> 8.178 | N106: ='SMI Analyse KGV'!N111 -> 8.596 | O106: ='SMI Analyse KGV'!O111 -> 5.796 | P106: ='SMI Analyse KGV'!P111 -> 7.214 | Q106: ='SMI Analyse KGV'!Q111 -> 7.82 | R106: ='SMI Analyse KGV'!R111 -> 8.37 | S106: ='SMI Analyse KGV'!S111 -> 10.52 | T106: ='SMI Analyse KGV'!T111 -> 4.76 | U106: ='SMI Analyse KGV'!U111 -> 9.17 | V106: ='SMI Analyse KGV'!V111 -> 10.6 | W106: ='SMI Analyse KGV'!W111 -> 5.24 | X106: =LOOKUP(D106,Daten!$C$2:$C$300,Daten!$E$2:$E$500) -> 159.9 | AB106: =SUM(N106:W106)/10 -> 7.8086 | AD106: =AB106/X106*100 -> 4.883427142 | AF106: =AD106-$N$5 -> 3.783427142 | AG106: =AF106 -> 3.783427142
C108: ='SMI Analyse KGV'!B113 -> Hypo Lenzburg | D108: ='SMI Analyse KGV'!C113 -> HBLN | E108: ='SMI Analyse KGV'!E205 -> 0 | F108: ='SMI Analyse KGV'!F205 -> 0 | G108: ='SMI Analyse KGV'!G205 -> 0 | H108: ='SMI Analyse KGV'!H205 -> 0 | I108: ='SMI Analyse KGV'!I205 -> 0 | J108: ='SMI Analyse KGV'!J205 -> 0 | K108: ='SMI Analyse KGV'!K205 -> 0 | L108: ='SMI Analyse KGV'!L113 -> 337 | M108: ='SMI Analyse KGV'!M113 -> 318 | N108: ='SMI Analyse KGV'!N113 -> 294 | O108: ='SMI Analyse KGV'!O113 -> 295 | P108: ='SMI Analyse KGV'!P113 -> 300 | Q108: ='SMI Analyse KGV'!Q113 -> 307 | R108: ='SMI Analyse KGV'!R113 -> 289.36 | S108: ='SMI Analyse KGV'!S113 -> 292.33 | T108: ='SMI Analyse KGV'!T113 -> 251 | U108: ='SMI Analyse KGV'!U113 -> 254 | V108: ='SMI Analyse KGV'!V113 -> 259 | W108: ='SMI Analyse KGV'!W113 -> 295 | X108: =LOOKUP(D108,Daten!$C$2:$C$300,Daten!$E$2:$E$500) -> 4040 | AB108: =SUM(N108:W108)/10 -> 283.669 | AD108: =AB108/X108*100 -> 7.021509901 | AF108: =AD108-$N$5 -> 5.921509901 | AG108: =AF108 -> 5.921509901
C110: ='SMI Analyse KGV'!B115 -> Julius Bär | D110: ='SMI Analyse KGV'!C115 -> BAER | E110: ='SMI Analyse KGV'!E207 -> 0 | F110: ='SMI Analyse KGV'!F207 -> 0 | G110: ='SMI Analyse KGV'!G207 -> 0 | H110: ='SMI Analyse KGV'!H207 -> 0 | I110: ='SMI Analyse KGV'!I207 -> 0 | J110: ='SMI Analyse KGV'!J207 -> 0 | K110: ='SMI Analyse KGV'!K207 -> 0 | L110: ='SMI Analyse KGV'!L115 -> 1.47 | M110: ='SMI Analyse KGV'!M115 -> 0.86 | N110: ='SMI Analyse KGV'!N115 -> 1.68 | O110: ='SMI Analyse KGV'!O115 -> 0.55 | P110: ='SMI Analyse KGV'!P115 -> 2.84 | Q110: ='SMI Analyse KGV'!Q115 -> 3.25 | R110: ='SMI Analyse KGV'!R115 -> 3.38 | S110: ='SMI Analyse KGV'!S115 -> 2.12 | T110: ='SMI Analyse KGV'!T115 -> 3.23 | U110: ='SMI Analyse KGV'!U115 -> 5.06 | V110: ='SMI Analyse KGV'!V115 -> 4.56 | W110: ='SMI Analyse KGV'!W115 -> 2.21 | X110: =LOOKUP(D110,Daten!$C$2:$C$300,Daten!$E$2:$E$500) -> 62.76 | AB110: =SUM(N110:W110)/10 -> 2.888 | AD110: =AB110/X110*100 -> 4.601657106 | AF110: =AD110-$N$5 -> 3.501657106 | AG110: =AF110 -> 3.501657106
C112: ='SMI Analyse KGV'!B117 -> Jungfraubahn | D112: ='SMI Analyse KGV'!C117 -> JFN | E112: ='SMI Analyse KGV'!E209 -> 0 | F112: ='SMI Analyse KGV'!F209 -> 0 | G112: ='SMI Analyse KGV'!G209 -> 0 | H112: ='SMI Analyse KGV'!H209 -> 0 | I112: ='SMI Analyse KGV'!I209 -> 0 | J112: ='SMI Analyse KGV'!J209 -> 0 | K112: ='SMI Analyse KGV'!K209 -> 0 | L112: ='SMI Analyse KGV'!L117 -> 4.46 | M112: ='SMI Analyse KGV'!M117 -> 5.17 | N112: ='SMI Analyse KGV'!N117 -> 5.23 | O112: ='SMI Analyse KGV'!O117 -> 6.23 | P112: ='SMI Analyse KGV'!P117 -> 5.31 | Q112: ='SMI Analyse KGV'!Q117 -> 7.09 | R112: ='SMI Analyse KGV'!R117 -> 8.22 | S112: ='SMI Analyse KGV'!S117 -> 9.11 | T112: ='SMI Analyse KGV'!T117 -> -1.58 | U112: ='SMI Analyse KGV'!U117 -> -0.08 | V112: ='SMI Analyse KGV'!V117 -> 7.49 | W112: ='SMI Analyse KGV'!W117 -> 13.61 | X112: =LOOKUP(D112,Daten!$C$2:$C$300,Daten!$E$2:$E$500) -> 181.4 | AB112: =SUM(N112:W112)/10 -> 6.063 | AD112: =AB112/X112*100 -> 3.342337376 | AF112: =AD112-$N$5 -> 2.242337376 | AG112: =AF112 -> 2.242337376
C114: ='SMI Analyse KGV'!B119 -> Lindt | D114: ='SMI Analyse KGV'!C119 -> LISN | E114: ='SMI Analyse KGV'!E211 -> 0 | F114: ='SMI Analyse KGV'!F211 -> 0 | G114: ='SMI Analyse KGV'!G211 -> 0 | H114: ='SMI Analyse KGV'!H211 -> 0 | I114: ='SMI Analyse KGV'!I211 -> 0 | J114: ='SMI Analyse KGV'!J211 -> 0 | K114: ='SMI Analyse KGV'!K211 -> 0 | L114: ='SMI Analyse KGV'!L119 -> 1079 | M114: ='SMI Analyse KGV'!M119 -> 1339 | N114: ='SMI Analyse KGV'!N119 -> 1503 | O114: ='SMI Analyse KGV'!O119 -> 1646 | P114: ='SMI Analyse KGV'!P119 -> 1791 | Q114: ='SMI Analyse KGV'!Q119 -> 1893 | R114: ='SMI Analyse KGV'!R119 -> 2021 | S114: ='SMI Analyse KGV'!S119 -> 2142 | T114: ='SMI Analyse KGV'!T119 -> 1333 | U114: ='SMI Analyse KGV'!U119 -> 2049 | V114: ='SMI Analyse KGV'!V119 -> 2387 | W114: ='SMI Analyse KGV'!W119 -> 2859 | X114: =LOOKUP(D114,Daten!$C$2:$C$300,Daten!$E$2:$E$500) -> 102600 | AB114: =SUM(N114:W114)/10 -> 1962.4 | AD114: =AB114/X114*100 -> 1.912670565 | AF114: =AD114-$N$5 -> 0.8126705653 | AG114: =AF114 -> 0.8126705653
C116: ='SMI Analyse KGV'!B121 -> MeierTobler | D116: ='SMI Analyse KGV'!C121 -> MTG | E116: ='SMI Analyse KGV'!E213 -> 0 | F116: ='SMI Analyse KGV'!F213 -> 0 | G116: ='SMI Analyse KGV'!G213 -> 0 | H116: ='SMI Analyse KGV'!H213 -> 0 | I116: ='SMI Analyse KGV'!I213 -> 0 | J116: ='SMI Analyse KGV'!J213 -> 0 | K116: ='SMI Analyse KGV'!K213 -> 0 | L116: ='SMI Analyse KGV'!L121 -> 5.252 | M116: ='SMI Analyse KGV'!M121 -> 2.92 | N116: ='SMI Analyse KGV'!N121 -> 1.96 | O116: ='SMI Analyse KGV'!O121 -> 1.02 | P116: ='SMI Analyse KGV'!P121 -> 2.02 | Q116: ='SMI Analyse KGV'!Q121 -> -0.29 | R116: ='SMI Analyse KGV'!R121 -> -0.77 | S116: ='SMI Analyse KGV'!S121 -> 0.11 | T116: ='SMI Analyse KGV'!T121 -> 0.32 | U116: ='SMI Analyse KGV'!U121 -> 1.31 | V116: ='SMI Analyse KGV'!V121 -> 2.6 | W116: ='SMI Analyse KGV'!W121 -> 2.37 | X116: =LOOKUP(D116,Daten!$C$2:$C$300,Daten!$E$2:$E$500) -> 28 | AB116: =SUM(N116:W116)/10 -> 1.065 | AD116: =AB116/X116*100 -> 3.803571429 | AF116: =AD116-$N$5 -> 2.703571429 | AG116: =AF116 -> 2.703571429
C118: ='SMI Analyse KGV'!B123 -> Meyer Burger | D118: ='SMI Analyse KGV'!C123 -> MBTN | E118: ='SMI Analyse KGV'!E215 -> 0 | F118: ='SMI Analyse KGV'!F215 -> 0 | G118: ='SMI Analyse KGV'!G215 -> 0 | H118: ='SMI Analyse KGV'!H215 -> 0 | I118: ='SMI Analyse KGV'!I215 -> 0 | J118: ='SMI Analyse KGV'!J215 -> 0 | K118: ='SMI Analyse KGV'!K215 -> 0 | L118: ='SMI Analyse KGV'!L123 -> -1.9 | M118: ='SMI Analyse KGV'!M123 -> -2.3 | N118: ='SMI Analyse KGV'!N123 -> -0.52 | O118: ='SMI Analyse KGV'!O123 -> -0.65 | P118: ='SMI Analyse KGV'!P123 -> -0.3 | Q118: ='SMI Analyse KGV'!Q123 -> -0.14 | R118: ='SMI Analyse KGV'!R123 -> -0.05 | S118: ='SMI Analyse KGV'!S123 -> -0.02 | T118: ='SMI Analyse KGV'!T123 -> -0.04 | U118: ='SMI Analyse KGV'!U123 -> -0.04 | V118: ='SMI Analyse KGV'!V123 -> -0.02 | W118: ='SMI Analyse KGV'!W123 -> -0.08 | X118: =LOOKUP(D118,Daten!$C$2:$C$300,Daten!$E$2:$E$500) -> 1.96 | AB118: =SUM(N118:W118)/10 -> -0.186 | AD118: =AB118/X118*100 -> -9.489795918 | AF118: =AD118-$N$5 -> -10.58979592 | AG118: =AF118 -> -10.58979592
C120: ='SMI Analyse KGV'!B125 -> PSP Swiss Property | D120: ='SMI Analyse KGV'!C125 -> PSPN | E120: ='SMI Analyse KGV'!E217 -> 0 | F120: ='SMI Analyse KGV'!F217 -> 0 | G120: ='SMI Analyse KGV'!G217 -> 0 | H120: ='SMI Analyse KGV'!H217 -> 0 | I120: ='SMI Analyse KGV'!I217 -> 0 | J120: ='SMI Analyse KGV'!J217 -> 0 | K120: ='SMI Analyse KGV'!K217 -> 0 | L120: ='SMI Analyse KGV'!L125 -> 3.6 | M120: ='SMI Analyse KGV'!M125 -> 3.79 | N120: ='SMI Analyse KGV'!N125 -> 3.69 | O120: ='SMI Analyse KGV'!O125 -> 3.52 | P120: ='SMI Analyse KGV'!P125 -> 3.76 | Q120: ='SMI Analyse KGV'!Q125 -> 3.89 | R120: ='SMI Analyse KGV'!R125 -> 3.84 | S120: ='SMI Analyse KGV'!S125 -> 4.69 | T120: ='SMI Analyse KGV'!T125 -> 4.7 | U120: ='SMI Analyse KGV'!U125 -> 4.82 | V120: ='SMI Analyse KGV'!V125 -> 5.14 | W120: ='SMI Analyse KGV'!W125 -> 7.4 | X120: =LOOKUP(D120,Daten!$C$2:$C$300,Daten!$E$2:$E$500) -> 132.5 | AB120: =SUM(N120:W120)/10 -> 4.545 | AD120: =AB120/X120*100 -> 3.430188679 | AF120: =AD120-$N$5 -> 2.330188679 | AG120: =AF120 -> 2.330188679
C122: ='SMI Analyse KGV'!B129 -> Schindler | D122: ='SMI Analyse KGV'!C129 -> SCHN | E122: ='SMI Analyse KGV'!E219 -> 0 | F122: ='SMI Analyse KGV'!F219 -> 0 | G122: ='SMI Analyse KGV'!G219 -> 0 | H122: ='SMI Analyse KGV'!H219 -> 0 | I122: ='SMI Analyse KGV'!I219 -> 0 | J122: ='SMI Analyse KGV'!J219 -> 0 | K122: ='SMI Analyse KGV'!K219 -> 0 | L122: ='SMI Analyse KGV'!L129 -> 6.1 | M122: ='SMI Analyse KGV'!M129 -> 3.76 | N122: ='SMI Analyse KGV'!N129 -> 7.74 | O122: ='SMI Analyse KGV'!O129 -> 6.28 | P122: ='SMI Analyse KGV'!P129 -> 7.14 | Q122: ='SMI Analyse KGV'!Q129 -> 7.7 | R122: ='SMI Analyse KGV'!R129 -> 8.79 | S122: ='SMI Analyse KGV'!S129 -> 8.04 | T122: ='SMI Analyse KGV'!T129 -> 6.72 | U122: ='SMI Analyse KGV'!U129 -> 7.68 | V122: ='SMI Analyse KGV'!V127 -> 1.97 | W122: ='SMI Analyse KGV'!W127 -> 0.18 | X122: =LOOKUP(D122,Daten!$C$2:$C$300,Daten!$E$2:$E$500) -> 252.5 | AB122: =SUM(N122:W122)/10 -> 6.224 | AD122: =AB122/X122*100 -> 2.464950495 | AF122: =AD122-$N$5 -> 1.364950495 | AG122: =AF122 -> 1.364950495
C124: ='SMI Analyse KGV'!B131 -> Schweiter Technologies | D124: ='SMI Analyse KGV'!C131 -> SWTQ | E124: ='SMI Analyse KGV'!E221 -> 0 | F124: ='SMI Analyse KGV'!F221 -> 0 | G124: ='SMI Analyse KGV'!G221 -> 0 | H124: ='SMI Analyse KGV'!H221 -> 0 | I124: ='SMI Analyse KGV'!I221 -> 0 | J124: ='SMI Analyse KGV'!J221 -> 0 | K124: ='SMI Analyse KGV'!K221 -> 0 | L124: ='SMI Analyse KGV'!L131 -> 28.4 | M124: ='SMI Analyse KGV'!M131 -> 21.11 | N124: ='SMI Analyse KGV'!N131 -> 31.79 | O124: ='SMI Analyse KGV'!O131 -> 34.98 | P124: ='SMI Analyse KGV'!P131 -> 49.33 | Q124: ='SMI Analyse KGV'!Q131 -> 120.09 | R124: ='SMI Analyse KGV'!R131 -> 42.09 | S124: ='SMI Analyse KGV'!S131 -> 41.89 | T124: ='SMI Analyse KGV'!T131 -> 72.29 | U124: ='SMI Analyse KGV'!U131 -> 59 | V124: ='SMI Analyse KGV'!V129 -> 5.66 | W124: ='SMI Analyse KGV'!W129 -> 8.04 | X124: =LOOKUP(D124,Daten!$C$2:$C$300,Daten!$E$2:$E$500) -> 481 | AB124: =SUM(N124:W124)/10 -> 46.516 | AD124: =AB124/X124*100 -> 9.670686071 | AF124: =AD124-$N$5 -> 8.570686071 | AG124: =AF124 -> 8.570686071
C126: ='SMI Analyse KGV'!B133 -> SGS N | D126: ='SMI Analyse KGV'!C133 -> SGSN | E126: ='SMI Analyse KGV'!E223 -> 0 | F126: ='SMI Analyse KGV'!F223 -> 0 | G126: ='SMI Analyse KGV'!G223 -> 0 | H126: ='SMI Analyse KGV'!H223 -> 0 | I126: ='SMI Analyse KGV'!I223 -> 0 | J126: ='SMI Analyse KGV'!J223 -> 0 | K126: ='SMI Analyse KGV'!K223 -> 0 | L126: ='SMI Analyse KGV'!L133 -> 2.9004 | M126: ='SMI Analyse KGV'!M133 -> 3.1136 | N126: ='SMI Analyse KGV'!N133 -> 3.266 | O126: ='SMI Analyse KGV'!O133 -> 2.878 | P126: ='SMI Analyse KGV'!P133 -> 2.8588 | Q126: ='SMI Analyse KGV'!Q133 -> 3.2908 | R126: ='SMI Analyse KGV'!R133 -> 3.3728 | S126: ='SMI Analyse KGV'!S133 -> 3.4872 | T126: ='SMI Analyse KGV'!T133 -> 2.5528 | U126: ='SMI Analyse KGV'!U133 -> 3.2716 | V126: ='SMI Analyse KGV'!V131 -> 20.03 | W126: ='SMI Analyse KGV'!W131 -> 19.3 | X126: =LOOKUP(D126,Daten!$C$2:$C$300,Daten!$E$2:$E$500) -> 85.02 | AB126: =SUM(N126:W126)/10 -> 6.4308 | AD126: =AB126/X126*100 -> 7.563867325 | AF126: =AD126-$N$5 -> 6.463867325 | AG126: =AF126 -> 6.463867325
B128: ='SMI Analyse KGV'!A135 -> ! | C128: ='SMI Analyse KGV'!B135 -> SIG Group | D128: ='SMI Analyse KGV'!C135 -> SIGN | E128: ='SMI Analyse KGV'!E225 -> 0 | F128: ='SMI Analyse KGV'!F225 -> 0 | G128: ='SMI Analyse KGV'!G225 -> 0 | H128: ='SMI Analyse KGV'!H225 -> 0 | I128: ='SMI Analyse KGV'!I225 -> 0 | J128: ='SMI Analyse KGV'!J225 -> 0 | K128: ='SMI Analyse KGV'!K225 -> 0 | L128: ='SMI Analyse KGV'!L135 -> 0 | M128: ='SMI Analyse KGV'!M135 -> 0 | N128: ='SMI Analyse KGV'!N135 -> 0 | O128: ='SMI Analyse KGV'!O135 -> 0 | P128: ='SMI Analyse KGV'!P135 -> 0 | Q128: ='SMI Analyse KGV'!Q135 -> -0.5 | R128: ='SMI Analyse KGV'!R135 -> -0.4 | S128: ='SMI Analyse KGV'!S135 -> 0.37 | T128: ='SMI Analyse KGV'!T135 -> 0.23 | U128: ='SMI Analyse KGV'!U135 -> 0.51 | V128: ='SMI Analyse KGV'!V133 -> 3.1468 | W128: ='SMI Analyse KGV'!W133 -> 3 | X128: =LOOKUP(D128,Daten!$C$2:$C$300,Daten!$E$2:$E$500) -> 19.37 | AB128: =SUM(N128:W128)/10 -> 0.63568 | AD128: =AB128/X128*100 -> 3.281775942 | AF128: =AD128-$N$5 -> 2.181775942 | AG128: =AF128 -> 2.181775942
C130: ='SMI Analyse KGV'!B137 -> Straumann | D130: ='SMI Analyse KGV'!C137 -> STMN | E130: ='SMI Analyse KGV'!E227 -> 0 | F130: ='SMI Analyse KGV'!F227 -> 0 | G130: ='SMI Analyse KGV'!G227 -> 0 | H130: ='SMI Analyse KGV'!H227 -> 0 | I130: ='SMI Analyse KGV'!I227 -> 0 | J130: ='SMI Analyse KGV'!J227 -> 0 | K130: ='SMI Analyse KGV'!K227 -> 0 | L130: ='SMI Analyse KGV'!L137 -> 0.24 | M130: ='SMI Analyse KGV'!M137 -> 0.65 | N130: ='SMI Analyse KGV'!N137 -> 1.015 | O130: ='SMI Analyse KGV'!O137 -> 0.452 | P130: ='SMI Analyse KGV'!P137 -> 1.468 | Q130: ='SMI Analyse KGV'!Q137 -> 1.8 | R130: ='SMI Analyse KGV'!R137 -> 1.72 | S130: ='SMI Analyse KGV'!S137 -> 1.93 | T130: ='SMI Analyse KGV'!T137 -> 0.57 | U130: ='SMI Analyse KGV'!U137 -> 2.48 | V130: ='SMI Analyse KGV'!V135 -> 0.1 | W130: ='SMI Analyse KGV'!W135 -> 0.64 | X130: =LOOKUP(D130,Daten!$C$2:$C$300,Daten!$E$2:$E$500) -> 130.8 | AB130: =SUM(N130:W130)/10 -> 1.2175 | AD130: =AB130/X130*100 -> 0.9308103976 | AF130: =AD130-$N$5 -> -0.1691896024 | AG130: =AF130 -> -0.1691896024
C132: ='SMI Analyse KGV'!B139 -> Sulzer | D132: ='SMI Analyse KGV'!C139 -> SUN | E132: ='SMI Analyse KGV'!E229 -> 0 | F132: ='SMI Analyse KGV'!F229 -> 0 | G132: ='SMI Analyse KGV'!G229 -> 0 | H132: ='SMI Analyse KGV'!H229 -> 0 | I132: ='SMI Analyse KGV'!I229 -> 0 | J132: ='SMI Analyse KGV'!J229 -> 0 | K132: ='SMI Analyse KGV'!K229 -> 0 | L132: ='SMI Analyse KGV'!L139 -> 8.83 | M132: ='SMI Analyse KGV'!M139 -> 6.86 | N132: ='SMI Analyse KGV'!N139 -> 8.1 | O132: ='SMI Analyse KGV'!O139 -> 2.16 | P132: ='SMI Analyse KGV'!P139 -> 1.72 | Q132: ='SMI Analyse KGV'!Q139 -> 2.42 | R132: ='SMI Analyse KGV'!R139 -> 3.53 | S132: ='SMI Analyse KGV'!S139 -> 4.48 | T132: ='SMI Analyse KGV'!T139 -> 2.44 | U132: ='SMI Analyse KGV'!U139 -> 4.03 | V132: ='SMI Analyse KGV'!V137 -> 2.72 | W132: ='SMI Analyse KGV'!W137 -> 1.54 | X132: =LOOKUP(D132,Daten!$C$2:$C$300,Daten!$E$2:$E$500) -> 147.6 | AB132: =SUM(N132:W132)/10 -> 3.314 | AD132: =AB132/X132*100 -> 2.245257453 | AF132: =AD132-$N$5 -> 1.145257453 | AG132: =AF132 -> 1.145257453
C134: ='SMI Analyse KGV'!B141 -> Swatch Group | D134: ='SMI Analyse KGV'!C141 -> UHR | E134: ='SMI Analyse KGV'!E231 -> 0 | F134: ='SMI Analyse KGV'!F231 -> 0 | G134: ='SMI Analyse KGV'!G231 -> 0 | H134: ='SMI Analyse KGV'!H231 -> 0 | I134: ='SMI Analyse KGV'!I231 -> 0 | J134: ='SMI Analyse KGV'!J231 -> 0 | K134: ='SMI Analyse KGV'!K231 -> 0 | L134: ='SMI Analyse KGV'!L141 -> 29.62 | M134: ='SMI Analyse KGV'!M141 -> 35.38 | N134: ='SMI Analyse KGV'!N141 -> 25.47 | O134: ='SMI Analyse KGV'!O141 -> 20.05 | P134: ='SMI Analyse KGV'!P141 -> 10.68 | Q134: ='SMI Analyse KGV'!Q141 -> 13.85 | R134: ='SMI Analyse KGV'!R141 -> 16.13 | S134: ='SMI Analyse KGV'!S141 -> 14.17 | T134: ='SMI Analyse KGV'!T141 -> -0.99 | U134: ='SMI Analyse KGV'!U141 -> 14.77 | V134: ='SMI Analyse KGV'!V139 -> 0.83 | W134: ='SMI Analyse KGV'!W139 -> 6.67 | X134: =LOOKUP(D134,Daten!$C$2:$C$300,Daten!$E$2:$E$500) -> 166 | AB134: =SUM(N134:W134)/10 -> 12.163 | AD134: =AB134/X134*100 -> 7.327108434 | AF134: =AD134-$N$5 -> 6.227108434 | AG134: =AF134 -> 6.227108434
C136: ='SMI Analyse KGV'!B143 -> Swiss Prime Site | D136: ='SMI Analyse KGV'!C143 -> SPSN | E136: ='SMI Analyse KGV'!E233 -> 0 | F136: ='SMI Analyse KGV'!F233 -> 0 | G136: ='SMI Analyse KGV'!G233 -> 0 | H136: ='SMI Analyse KGV'!H233 -> 0 | I136: ='SMI Analyse KGV'!I233 -> 0 | J136: ='SMI Analyse KGV'!J233 -> 0 | K136: ='SMI Analyse KGV'!K233 -> 0 | L136: ='SMI Analyse KGV'!L143 -> 3.6 | M136: ='SMI Analyse KGV'!M143 -> 3.69 | N136: ='SMI Analyse KGV'!N143 -> 3.9 | O136: ='SMI Analyse KGV'!O143 -> 3.87 | P136: ='SMI Analyse KGV'!P143 -> 4.17 | Q136: ='SMI Analyse KGV'!Q143 -> 3.88 | R136: ='SMI Analyse KGV'!R143 -> 3.95 | S136: ='SMI Analyse KGV'!S143 -> 4.14 | T136: ='SMI Analyse KGV'!T143 -> 6.27 | U136: ='SMI Analyse KGV'!U143 -> 3.87 | V136: ='SMI Analyse KGV'!V141 -> 15.56 | W136: ='SMI Analyse KGV'!W141 -> 16.75 | X136: =LOOKUP(D136,Daten!$C$2:$C$300,Daten!$E$2:$E$500) -> 102.4 | AB136: =SUM(N136:W136)/10 -> 6.636 | AD136: =AB136/X136*100 -> 6.48046875 | AF136: =AD136-$N$5 -> 5.38046875 | AG136: =AF136 -> 5.38046875
C138: ='SMI Analyse KGV'!B145 -> Tecan Group | D138: ='SMI Analyse KGV'!C145 -> TECN | E138: ='SMI Analyse KGV'!E237 -> 0 | F138: ='SMI Analyse KGV'!F237 -> 0 | G138: ='SMI Analyse KGV'!G237 -> 0 | H138: ='SMI Analyse KGV'!H237 -> 0 | I138: ='SMI Analyse KGV'!I237 -> 0 | J138: ='SMI Analyse KGV'!J237 -> 0 | K138: ='SMI Analyse KGV'!K237 -> 0 | L138: ='SMI Analyse KGV'!L145 -> 3.9 | M138: ='SMI Analyse KGV'!M145 -> 4.2 | N138: ='SMI Analyse KGV'!N145 -> 3.63 | O138: ='SMI Analyse KGV'!O145 -> 5.06 | P138: ='SMI Analyse KGV'!P145 -> 4.74 | Q138: ='SMI Analyse KGV'!Q145 -> 5.73 | R138: ='SMI Analyse KGV'!R145 -> 6.02 | S138: ='SMI Analyse KGV'!S145 -> 6.18 | T138: ='SMI Analyse KGV'!T145 -> 8.69 | U138: ='SMI Analyse KGV'!U145 -> 9.88 | V138: ='SMI Analyse KGV'!V143 -> 4.97 | W138: ='SMI Analyse KGV'!W143 -> 2.95 | X138: =LOOKUP(D138,Daten!$C$2:$C$300,Daten!$E$2:$E$500) -> 229 | AB138: =SUM(N138:W138)/10 -> 5.785 | AD138: =AB138/X138*100 -> 2.526200873 | AF138: =AD138-$N$5 -> 1.426200873 | AG138: =AF138 -> 1.426200873
C140: ='SMI Analyse KGV'!B147 -> Temenos | D140: ='SMI Analyse KGV'!C147 -> TEMN | E140: ='SMI Analyse KGV'!E239 -> 0 | F140: ='SMI Analyse KGV'!F239 -> 0 | G140: ='SMI Analyse KGV'!G239 -> 0 | H140: ='SMI Analyse KGV'!H239 -> 0 | I140: ='SMI Analyse KGV'!I239 -> 0 | J140: ='SMI Analyse KGV'!J239 -> 0 | K140: ='SMI Analyse KGV'!K239 -> 0 | L140: ='SMI Analyse KGV'!L147 -> 0.34 | M140: ='SMI Analyse KGV'!M147 -> 0.92 | N140: ='SMI Analyse KGV'!N147 -> 1.24 | O140: ='SMI Analyse KGV'!O147 -> 0.97 | P140: ='SMI Analyse KGV'!P147 -> 1.66 | Q140: ='SMI Analyse KGV'!Q147 -> 1.95 | R140: ='SMI Analyse KGV'!R147 -> 2.38 | S140: ='SMI Analyse KGV'!S147 -> 2.56 | T140: ='SMI Analyse KGV'!T147 -> 2.28 | U140: ='SMI Analyse KGV'!U147 -> 2.21 | V140: ='SMI Analyse KGV'!V145 -> 9.47 | W140: ='SMI Analyse KGV'!W145 -> 10.3 | X140: =LOOKUP(D140,Daten!$C$2:$C$300,Daten!$E$2:$E$500) -> 77 | AB140: =SUM(N140:W140)/10 -> 3.502 | AD140: =AB140/X140*100 -> 4.548051948 | AF140: =AD140-$N$5 -> 3.448051948 | AG140: =AF140 -> 3.448051948
C142: ='SMI Analyse KGV'!B149 -> VAT Group | D142: ='SMI Analyse KGV'!C149 -> VACN | E142: ='SMI Analyse KGV'!E241 -> 0 | F142: ='SMI Analyse KGV'!F241 -> 0 | G142: ='SMI Analyse KGV'!G241 -> 0 | H142: ='SMI Analyse KGV'!H241 -> 0 | I142: ='SMI Analyse KGV'!I241 -> 0 | J142: ='SMI Analyse KGV'!J241 -> 0 | K142: ='SMI Analyse KGV'!K241 -> 0 | L142: ='SMI Analyse KGV'!L149 -> 0 | M142: ='SMI Analyse KGV'!M149 -> 0 | N142: ='SMI Analyse KGV'!N149 -> 0.89 | O142: ='SMI Analyse KGV'!O149 -> 0.34 | P142: ='SMI Analyse KGV'!P149 -> 2.43 | Q142: ='SMI Analyse KGV'!Q149 -> 3.86 | R142: ='SMI Analyse KGV'!R149 -> 4.53 | S142: ='SMI Analyse KGV'!S149 -> 2.5 | T142: ='SMI Analyse KGV'!T149 -> 4.27 | U142: ='SMI Analyse KGV'!U149 -> 7.24 | V142: ='SMI Analyse KGV'!V147 -> 1.59 | W142: ='SMI Analyse KGV'!W147 -> 1.85 | X142: =LOOKUP(D142,Daten!$C$2:$C$300,Daten!$E$2:$E$500) -> 343.7 | AB142: =SUM(N142:W142)/10 -> 2.95 | AD142: =AB142/X142*100 -> 0.8583066628 | AF142: =AD142-$N$5 -> -0.2416933372 | AG142: =AF142 -> -0.2416933372
C144: Zehnder | D144: ZEHN | N144: ='SMI Analyse KGV'!N151 -> 2.66 | O144: ='SMI Analyse KGV'!O151 -> 0.01 | P144: ='SMI Analyse KGV'!P151 -> 1.9 | Q144: ='SMI Analyse KGV'!Q151 -> 1.49 | R144: ='SMI Analyse KGV'!R151 -> 2.29 | S144: ='SMI Analyse KGV'!S151 -> 2.93 | T144: ='SMI Analyse KGV'!T151 -> 3.57 | U144: ='SMI Analyse KGV'!U151 -> 5.55 | V144: ='SMI Analyse KGV'!V149 -> 10.22 | W144: ='SMI Analyse KGV'!W149 -> 6.34 | X144: =LOOKUP(D144,Daten!$C$2:$C$300,Daten!$E$2:$E$500) -> 50.8 | AB144: =SUM(N144:W144)/10 -> 3.696 | AD144: =AB144/X144*100 -> 7.275590551 | AF144: =AD144-$N$5 -> 6.175590551 | AG144: =AF144 -> 6.175590551

Sheet Analysemöglichkeiten
B9: Analysemöglichkeiten
B11: 1. Suchen Sie nach Firmen, deren KGV (= Kurs-Gewinn Verhältnis) unter 16 liegt (Ticker grün). Entweder neuestes KGV oder, etwas konservativer, KGV des durchschnittlichen Gewinnes über 10 Jahre.
B13: 2. Alternativ suchen Sie nach Firmen, deren Sicherheitsmarge grösser als 5% Punkte ist (Ticker grün).
B15: 3. Untersuchen Sie bei diesen Firmen, ob Sie eine über 10 Jahre insgesamt eine Gewinnsteigerung von über 160 % ausweisen.
B17: 4. Eine hohe durchschnittliche Gewinnveränderungsrate weist auf unstete Gewinnentwicklung mit Verlustjahren und/oder Jahren mit sehr kleinen Gewinnen hin! --> schlecht

Sheet Daten
A1: ShortName | B1: ISIN | C1: ValorSymbol | D1: ValorNumber | E1: ClosingPrice | F1: DailyHighPrice | G1: DailyLowPrice | H1: LatestTradeDate | I1: PreviousClosingPrice | J1: OpeningPrice | K1: OnMarketVolume | L1: OffBookVolume | M1: SwissAtMidVolume | N1: TotalVolume | O1: TradingBaseCurrency | P1: YearlyHighDate | Q1: YearlyHighPrice | R1: YearlyLowDate | S1: YearlyLowPrice | T1: FirstTradingDate | U1: LastTradingDate | V1: Exchange | W1: SecTypeCode | X1: GeographicalAreaCode | Y1: Tminus1Volume | Z1: VWAP60Price
A2: ANGLO PLC | B2: GB00B1XZS820 | C2: AAM | D2: 3186826 | E2: 28.8 | F2: 28.8 | G2: 28.8 | H2: 20250124 | I2: 27.4 | J2: 28.8 | K2: 650 | L2: 0 | M2: 0 | N2: 650 | O2: CHF | P2: 20240513 | Q2: 31.2 | R2: 20240219 | S2: 19.6 | T2: 20070703 | V2: XSWX | W2: RS | X2: GB | Y2: 0 | Z2: 28.5
A3: ABB LTD N | B3: CH0012221716 | C3: ABBN | D3: 1222171 | E3: 54 | F3: 54 | G3: 53.64 | H3: 20250124 | I3: 53.58 | J3: 53.7 | K3: 2244227 | L3: 16500 | M3: 58354 | N3: 2319081 | O3: CHF | P3: 20250124 | Q3: 54 | R3: 20240201 | S3: 36.47 | T3: 20201207 | V3: XSWX | W3: RS | X3: CH | Y3: 0 | Z3: 50.16
A4: ABB LTD N 2. LINIE | B4: CH0357679619 | C4: ABBNE | D4: 35767961 | E4: 53.9 | F4: 54.06 | G4: 53.82 | H4: 20250124 | I4: 53.38 | J4: 53.92 | K4: 96684 | L4: 0 | M4: 0 | N4: 96684 | O4: CHF | P4: 20250124 | Q4: 54.06 | R4: 20240129 | S4: 36.64 | T4: 20240402 | U4: 20250131 | V4: XSWX | W4: RS | X4: CH | Y4: 0 | Z4: 50.09
A5: ABBOTT LABOR | B5: US0028241000 | C5: ABT | D5: 903037 | E5: 93.5 | H5: 20240930 | I5: 93.5 | K5: 0 | L5: 0 | M5: 0 | N5: 0 | O5: CHF | P5: 20240905 | Q5: 96 | R5: 20240815 | S5: 92 | T5: 19951208 | V5: XSWX | W5: RS | X5: US | Y5: 0
A6: ACCELLERON N | B6: CH1169360919 | C6: ACLN | D6: 116936091 | E6: 46.42 | F6: 46.96 | G6: 46.3 | H6: 20250124 | I6: 46.3 | J6: 46.54 | K6: 119103 | L6: 0 | M6: 2283 | N6: 121386 | O6: CHF | P6: 20241111 | Q6: 51.6 | R6: 20240129 | S6: 27.1 | T6: 20221003 | V6: XSWX | W6: RS | X6: CH | Y6: 0 | Z6: 47.55
A7: ADECCO N | B7: CH0012138605 | C7: ADEN | D7: 1213860 | E7: 21.7 | F7: 21.96 | G7: 21.32 | H7: 20250124 | I7: 21.2 | J7: 21.32 | K7: 1050994 | L7: 0 | M7: 67131 | N7: 1118125 | O7: CHF | P7: 20240229 | Q7: 38.08 | R7: 20250113 | S7: 20.32 | T7: 20201207 | V7: XSWX | W7: RS | X7: CH | Y7: 0 | Z7: 23.37
A8: ADVAL TECH N | B8: CH0008967926 | C8: ADVN | D8: 896792 | E8: 71 | F8: 71 | G8: 70 | H8: 20250124 | I8: 71 | J8: 70 | K8: 31 | L8: 0 | M8: 0 | N8: 31 | O8: CHF | P8: 20240209 | Q8: 112 | R8: 20241111 | S8: 67 | T8: 19980604 | V8: XSWX | W8: RS | X8: CH | Y8: 0 | Z8: 73.85
A9: ADDEX N | B9: CH0029850754 | C9: ADXN | D9: 2985075 | E9: 0.0632 | F9: 0.064 | G9: 0.0602 | H9: 20250124 | I9: 0.0632 | J9: 0.0602 | K9: 41130 | L9: 0 | M9: 0 | N9: 41130 | O9: CHF | P9: 20240409 | Q9: 0.26 | R9: 20240429 | S9: 0.05 | T9: 20070522 | V9: XSWX | W9: RS | X9: CH | Y9: 0 | Z9: 0.07
A10: MONTANA N | B10: CH1110425654 | C10: AERO | D10: 111042565 | E10: 14.96 | F10: 15.18 | G10: 14.88 | H10: 20250124 | I10: 15 | J10: 15.06 | K10: 14728 | L10: 0 | M10: 180 | N10: 14908 | O10: CHF | P10: 20240926 | Q10: 21.45 | R10: 20241223 | S10: 13.8 | T10: 20210512 | V10: XSWX | W10: RS | X10: CH | Y10: 0 | Z10: 14.98
A11: AEVIS N | B11: CH0478634105 | C11: AEVS | D11: 47863410 | E11: 14 | F11: 14.1 | G11: 14 | H11: 20250124 | I11: 14.3 | J11: 14.1 | K11: 479 | L11: 0 | M11: 0 | N11: 479 | O11: CHF | P11: 20240129 | Q11: 17 | R11: 20240925 | S11: 12.8 | T11: 20190607 | V11: XSWX | W11: RS | X11: CH | Y11: 0 | Z11: 14.05
A12: ALUFLEXPACK N | B12: CH0453226893 | C12: AFP | D12: 45322689 | E12: 15.1 | F12: 15.1 | G12: 15.1 | H12: 20250124 | I12: 15.2 | J12: 15.1 | K12: 8 | L12: 0 | M12: 0 | N12: 8 | O12: CHF | P12: 20240216 | Q12: 16.1 | R12: 20240207 | S12: 7.42 | T12: 20190628 | V12: XSWX | W12: RS | X12: CH | Y12: 0 | Z12: 14.89
A13: ALUFLEXPACK 2. LINIE | B13: CH1336609149 | C13: AFPE | D13: 133660914 | E13: 15.6 | F13: 15.6 | G13: 15.55 | H13: 20250124 | I13: 15.6 | J13: 15.55 | K13: 5696 | L13: 2076 | M13: 0 | N13: 7772 | O13: CHF | P13: 20240522 | Q13: 16.2 | R13: 20240516 | S13: 14.5 | T13: 20240417 | U13: 20250331 | V13: XSWX | W13: RS | X13: CH | Y13: 0 | Z13: 15.31
A14: AIRESIS N | B14: CH0010947627 | C14: AIRE | D14: 1094762 | E14: 0.053 | F14: 0.054 | G14: 0.053 | H14: 20250124 | I14: 0.062 | J14: 0.054 | K14: 30053 | L14: 0 | M14: 0 | N14: 30053 | O14: CHF | P14: 20240213 | Q14: 0.54 | R14: 20241205 | S14: 0.04 | T14: 20000717 | V14: XSWX | W14: RS | X14: CH | Y14: 0 | Z14: 0.06
A15: ALCON N | B15: CH0432492467 | C15: ALC | D15: 43249246 | E15: 80.62 | F15: 80.98 | G15: 80.02 | H15: 20250124 | I15: 80.46 | J15: 80.8 | K15: 723921 | L15: 0 | M15: 19996 | N15: 743917 | O15: CHF | P15: 20240913 | Q15: 85.34 | R15: 20240129 | S15: 64.32 | T15: 20201207 | V15: XSWX | W15: RS | X15: CH | Y15: 0 | Z15: 77.42
A16: ALLREAL N | B16: CH0008837566 | C16: ALLN | D16: 883756 | E16: 167 | F16: 168.8 | G16: 166.8 | H16: 20250124 | I16: 168.4 | J16: 168.8 | K16: 24304 | L16: 0 | M16: 125 | N16: 24429 | O16: CHF | P16: 20250115 | Q16: 169.8 | R16: 20240425 | S16: 147.6 | T16: 20000303 | V16: XSWX | W16: RS | X16: CH | Y16: 0 | Z16: 161.77
A17: ALPINE SELECT N | B17: CH0019199550 | C17: ALPN | D17: 1919955 | E17: 7.55 | F17: 7.55 | G17: 7.55 | H17: 20250124 | I17: 7.6 | J17: 7.55 | K17: 1000 | L17: 0 | M17: 0 | N17: 1000 | O17: CHF | P17: 20240617 | Q17: 8.1 | R17: 20240925 | S17: 7 | T17: 20040902 | V17: XSWX | W17: RS | X17: CH | Y17: 0 | Z17: 7.47
A18: ALPINE SELECT N 2. LINIE | B18: CH1298734877 | C18: ALPNE | D18: 129873487 | E18: 7.5 | H18: 20241129 | I18: 7.5 | K18: 0 | L18: 0 | M18: 0 | N18: 0 | O18: CHF | P18: 20241018 | Q18: 7.7 | R18: 20241129 | S18: 7.5 | T18: 20231027 | U18: 20250530 | V18: XSWX | W18: RS | X18: CH | Y18: 0 | Z18: 7.5
A19: ALSO N | B19: CH0024590272 | C19: ALSN | D19: 2459027 | E19: 250 | F19: 252.5 | G19: 247.5 | H19: 20250124 | I19: 247 | J19: 248 | K19: 12454 | L19: 16588 | M19: 90 | N19: 29132 | O19: CHF | P19: 20240709 | Q19: 282 | R19: 20241220 | S19: 214.5 | T19: 20060323 | V19: XSWX | W19: RS | X19: CH | Y19: 0 | Z19: 232.01
A20: ams-OSRAM | B20: AT0000A3EPA4 | C20: AMS | D20: 137918297 | E20: 7.294 | F20: 7.318 | G20: 6.722 | H20: 20250124 | I20: 6.806 | J20: 6.872 | K20: 976386 | L20: 0 | M20: 36789 | N20: 1013175 | O20: CHF | P20: 20241001 | Q20: 12 | R20: 20241120 | S20: 5.41 | T20: 20240930 | V20: XSWX | W20: BS | X20: AT | Y20: 0 | Z20: 6.7
A21: APG SGA N | B21: CH0019107025 | C21: APGN | D21: 1910702 | E21: 201 | F21: 201 | G21: 197.5 | H21: 20250124 | I21: 198 | J21: 198 | K21: 1359 | L21: 0 | M21: 19 | N21: 1378 | O21: CHF | P21: 20240429 | Q21: 226 | R21: 20240130 | S21: 180.5 | T21: 20040818 | V21: XSWX | W21: RS | X21: CH | Y21: 0 | Z21: 197.75
A22: ARBONIA N | B22: CH0110240600 | C22: ARBN | D22: 11024060 | E22: 12.54 | F22: 12.54 | G22: 12.2 | H22: 20250124 | I22: 12.16 | J22: 12.4 | K22: 57009 | L22: 0 | M22: 4135 | N22: 61144 | O22: CHF | P22: 20240527 | Q22: 13.52 | R22: 20240129 | S22: 9.6 | T22: 20100422 | V22: XSWX | W22: RS | X22: CH | Y22: 0 | Z22: 11.52
A23: ARYZTA N | B23: CH0043238366 | C23: ARYN | D23: 4323836 | E23: 1.681 | F23: 1.692 | G23: 1.677 | H23: 20250124 | I23: 1.668 | J23: 1.684 | K23: 1794125 | L23: 247739 | M23: 239475 | N23: 2281339 | O23: CHF | P23: 20240528 | Q23: 1.833 | R23: 20240306 | S23: 1.398 | T23: 20180924 | V23: XSWX | W23: RS | X23: CH | Y23: 0 | Z23: 1.56
A24: ASCOM N | B24: CH0011339204 | C24: ASCN | D24: 1133920 | E24: 3.25 | F24: 3.33 | G24: 3.25 | H24: 20250124 | I24: 3.25 | J24: 3.31 | K24: 252736 | L24: 0 | M24: 34049 | N24: 286785 | O24: CHF | P24: 20240417 | Q24: 8.7 | R24: 20250121 | S24: 3.2 | T24: 20001108 | V24: XSWX | W24: RS | X24: CH | Y24: 0 | Z24: 3.97
A25: ASMALLWORLD N | B25: CH0404880129 | C25: ASWN | D25: 40488012 | E25: 1.37 | F25: 1.37 | G25: 1.37 | H25: 20250124 | I25: 1.38 | J25: 1.37 | K25: 5 | L25: 0 | M25: 0 | N25: 5 | O25: CHF | P25: 20240129 | Q25: 1.7 | R25: 20241202 | S25: 1.18 | T25: 20180320 | V25: XSWX | W25: RS | X25: CH | Y25: 0 | Z25: 1.39
A26: AUTONEUM N | B26: CH0127480363 | C26: AUTN | D26: 12748036 | E26: 130.2 | F26: 131.6 | G26: 128.2 | H26: 20250124 | I26: 128.2 | J26: 128.2 | K26: 3247 | L26: 0 | M26: 6 | N26: 3253 | O26: CHF | P26: 20240402 | Q26: 166.6 | R26: 20241121 | S26: 98 | T26: 20110513 | V26: XSWX | W26: RS | X26: CH | Y26: 0 | Z26: 113.05
A27: AVOLTA N | B27: CH0023405456 | C27: AVOL | D27: 2340545 | E27: 41.28 | F27: 41.52 | G27: 41.02 | H27: 20250124 | I27: 40.8 | J27: 41.26 | K27: 230815 | L27: 0 | M27: 17753 | N27: 248568 | O27: CHF | P27: 20250124 | Q27: 41.52 | R27: 20240805 | S27: 30.1 | T27: 20190410 | V27: XSWX | W27: RS | X27: CH | Y27: 0 | Z27: 35.63
A28: JULIUS BAER N | B28: CH0102484968 | C28: BAER | D28: 10248496 | E28: 62.76 | F28: 62.9 | G28: 62.28 | H28: 20250124 | I28: 62.44 | J28: 62.7 | K28: 329160 | L28: 121500 | M28: 42086 | N28: 492746 | O28: CHF | P28: 20250124 | Q28: 62.9 | R28: 20240805 | S28: 43.75 | T28: 20201207 | V28: XSWX | W28: RS | X28: CH | Y28: 0 | Z28: 57.38
A29: BALOISE N | B29: CH0012410517 | C29: BALN | D29: 1241051 | E29: 165.6 | F29: 166.5 | G29: 165 | H29: 20250124 | I29: 166 | J29: 166.5 | K29: 49653 | L29: 0 | M29: 5344 | N29: 54997 | O29: CHF | P29: 20241015 | Q29: 176.9 | R29: 20240326 | S29: 136.5 | T29: 20180924 | V29: XSWX | W29: RS | X29: CH | Y29: 0 | Z29: 166.16
A30: BACHEM N | B30: CH1176493729 | C30: BANB | D30: 117649372 | E30: 59.6 | F30: 60.65 | G30: 58.7 | H30: 20250124 | I30: 58.65 | J30: 59.45 | K30: 140366 | L30: 0 | M30: 12423 | N30: 152789 | O30: CHF | P30: 20240521 | Q30: 91.65 | R30: 20250116 | S30: 54.7 | T30: 20220505 | V30: XSWX | W30: RS | X30: CH | Y30: 0 | Z30: 63.41
A31: BARRY CALLEBAUT N | B31: CH0009002962 | C31: BARN | D31: 900296 | E31: 1021 | F31: 1034 | G31: 1015 | H31: 20250124 | I31: 1027 | J31: 1018 | K31: 28142 | L31: 2670 | M31: 2826 | N31: 33638 | O31: CHF | P31: 20240522 | Q31: 1627 | R31: 20250123 | S31: 1013 | T31: 19980615 | V31: XSWX | W31: RS | X31: CH | Y31: 0 | Z31: 1254.14
A32: BELLEVUE GROUP N | B32: CH0028422100 | C32: BBN | D32: 2842210 | E32: 14.9 | F32: 15 | G32: 14.4 | H32: 20250124 | I32: 14.7 | J32: 14.6 | K32: 15839 | L32: 0 | M32: 0 | N32: 15839 | O32: CHF | P32: 20240130 | Q32: 24.3 | R32: 20241230 | S32: 11.05 | T32: 20070115 | V32: XSWX | W32: RS | X32: CH | Y32: 0 | Z32: 13.24
A33: BC GENEVE N | B33: CH0350494719 | C33: BCGE | D33: 35049471 | E33: 256 | F33: 259 | G33: 255 | H33: 20250124 | I33: 257 | J33: 257 | K33: 753 | L33: 0 | M33: 0 | N33: 753 | O33: CHF | P33: 20240408 | Q33: 317 | R33: 20240129 | S33: 231 | T33: 20170202 | V33: XSWX | W33: RS | X33: CH | Y33: 0 | Z33: 255.34
A34: BURCKHARDT N | B34: CH0025536027 | C34: BCHN | D34: 2553602 | E34: 707 | F34: 710 | G34: 701 | H34: 20250124 | I34: 698 | J34: 702 | K34: 3169 | L34: 0 | M34: 11 | N34: 3180 | O34: CHF | P34: 20250124 | Q34: 710 | R34: 20240213 | S34: 450 | T34: 20060626 | V34: XSWX | W34: RS | X34: CH | Y34: 0 | Z34: 659.25
A35: BC JURA N | B35: CH0350665672 | C35: BCJ | D35: 35066567 | E35: 59.5 | F35: 59.5 | G35: 59.5 | H35: 20250124 | I35: 60 | J35: 59.5 | K35: 28 | L35: 0 | M35: 0 | N35: 28 | O35: CHF | P35: 20240226 | Q35: 66.5 | R35: 20240129 | S35: 51 | T35: 20170505 | V35: XSWX | W35: RS | X35: CH | Y35: 0 | Z35: 55.49
A36: BC VAUD N | B36: CH0531751755 | C36: BCVN | D36: 53175175 | E36: 89.85 | F36: 90.85 | G36: 89.55 | H36: 20250124 | I36: 90.55 | J36: 90.65 | K36: 37771 | L36: 0 | M36: 294 | N36: 38065 | O36: CHF | P36: 20240131 | Q36: 112.5 | R36: 20241212 | S36: 79.15 | T36: 20200528 | V36: XSWX | W36: RS | X36: CH | Y36: 0 | Z36: 86.07
A37: BELIMO N | B37: CH1101098163 | C37: BEAN | D37: 110109816 | E37: 718.5 | F37: 721.5 | G37: 708 | H37: 20250124 | I37: 705.5 | J37: 708 | K37: 25323 | L37: 4 | M37: 2381 | N37: 27708 | O37: CHF | P37: 20250124 | Q37: 721.5 | R37: 20240207 | S37: 393.4 | T37: 20210407 | V37: XSWX | W37: RS | X37: CH | Y37: 0 | Z37: 604.29
A38: BEKB / BCBE N | B38: CH0009691608 | C38: BEKN | D38: 969160 | E38: 242 | F38: 243 | G38: 241 | H38: 20250124 | I38: 243 | J38: 241 | K38: 1651 | L38: 0 | M38: 2 | N38: 1653 | O38: CHF | P38: 20240521 | Q38: 253 | R38: 20240911 | S38: 226 | T38: 20000802 | V38: XSWX | W38: RS | X38: CH | Y38: 0 | Z38: 234.45
A39: BELL FOOD GROUP N | B39: CH0315966322 | C39: BELL | D39: 31596632 | E39: 255 | F39: 257.5 | G39: 252 | H39: 20250124 | I39: 254.5 | J39: 256 | K39: 676 | L39: 0 | M39: 83 | N39: 759 | O39: CHF | P39: 20240531 | Q39: 284.5 | R39: 20240813 | S39: 237.5 | T39: 20160428 | V39: XSWX | W39: RS | X39: CH | Y39: 0 | Z39: 264.84
A40: BB BIOTECH N 2. LINIE | B40: CH0027659793 | C40: BIOEE | D40: 2765979 | E40: 34.95 | H40: 20241220 | I40: 34.95 | K40: 0 | L40: 0 | M40: 0 | N40: 0 | O40: CHF | P40: 20240802 | Q40: 41 | R40: 20241220 | S40: 34.9 | T40: 20061108 | U40: 20250411 | V40: XSWX | W40: RS | X40: CH | Y40: 0 | Z40: 36.23
A41: BB BIOTECH N | B41: CH0038389992 | C41: BION | D41: 3838999 | E41: 38.55 | F41: 38.7 | G41: 38 | H41: 20250124 | I41: 37.7 | J41: 38 | K41: 83230 | L41: 0 | M41: 3952 | N41: 87182 | O41: CHF | P41: 20240223 | Q41: 49.8 | R41: 20241220 | S41: 34.5 | T41: 20080422 | V41: XSWX | W41: RS | X41: CH | Y41: 0 | Z41: 37.01
A42: BKW N | B42: CH0130293662 | C42: BKW | D42: 13029366 | E42: 153.7 | F42: 157.1 | G42: 153.4 | H42: 20250124 | I42: 157.2 | J42: 157 | K42: 49689 | L42: 0 | M42: 591 | N42: 50280 | O42: CHF | P42: 20240821 | Q42: 162.4 | R42: 20240227 | S42: 122.3 | T42: 20111212 | V42: XSWX | W42: RS | X42: CH | Y42: 0 | Z42: 151.73
A43: BASELLAND KB PS | B43: CH0001473559 | C43: BLKB | D43: 147355 | E43: 882 | F43: 884 | G43: 880 | H43: 20250124 | I43: 882 | J43: 884 | K43: 110 | L43: 0 | M43: 0 | N43: 110 | O43: CHF | P43: 20250123 | Q43: 886 | R43: 20240405 | S43: 830 | T43: 19960802 | V43: XSWX | W43: PC | X43: CH | Y43: 0 | Z43: 859.66
A44: BOSSARD N | B44: CH0238627142 | C44: BOSN | D44: 23862714 | E44: 204 | F44: 205 | G44: 201 | H44: 20250124 | I44: 201.5 | J44: 201 | K44: 9371 | L44: 0 | M44: 269 | N44: 9640 | O44: CHF | P44: 20241001 | Q44: 240.5 | R44: 20250115 | S44: 182 | T44: 20140414 | V44: XSWX | W44: RS | X44: CH | Y44: 0 | Z44: 196.58
A45: BURKHALTER N | B45: CH0212255803 | C45: BRKN | D45: 21225580 | E45: 97.6 | F45: 98.2 | G45: 97.6 | H45: 20250124 | I45: 97.4 | J45: 97.8 | K45: 2620 | L45: 0 | M45: 0 | N45: 2620 | O45: CHF | P45: 20240502 | Q45: 101 | R45: 20240805 | S45: 83.5 | T45: 20130529 | V45: XSWX | W45: RS | X45: CH | Y45: 0 | Z45: 91.7
A46: BASLER KB PS | B46: CH0009236461 | C46: BSKP | D46: 923646 | E46: 71.2 | F46: 71.8 | G46: 71 | H46: 20250124 | I46: 71.2 | J46: 71 | K46: 786 | L46: 0 | M46: 0 | N46: 786 | O46: CHF | P46: 20250109 | Q46: 73.4 | R46: 20240325 | S46: 62 | T46: 19980710 | V46: XSWX | W46: PC | X46: CH | Y46: 0 | Z46: 68.77
A47: BASILEA N | B47: CH0011432447 | C47: BSLN | D47: 1143244 | E47: 39.35 | F47: 39.5 | G47: 38.85 | H47: 20250124 | I47: 39.45 | J47: 39.45 | K47: 15231 | L47: 0 | M47: 5357 | N47: 20588 | O47: CHF | P47: 20240925 | Q47: 47.95 | R47: 20240209 | S47: 32.1 | T47: 20040325 | V47: XSWX | W47: RS | X47: CH | Y47: 0 | Z47: 41.5
A48: BUCHER N | B48: CH0002432174 | C48: BUCN | D48: 243217 | E48: 338 | F48: 340 | G48: 336 | H48: 20250124 | I48: 335.5 | J48: 336 | K48: 12429 | L48: 0 | M48: 1431 | N48: 13860 | O48: CHF | P48: 20240402 | Q48: 401.5 | R48: 20241220 | S48: 317 | T48: 20050504 | V48: XSWX | W48: RS | X48: CH | Y48: 0 | Z48: 333.91
A49: BVZ HOL N | B49: CH0008207356 | C49: BVZN | D49: 820735 | E49: 905 | F49: 915 | G49: 905 | H49: 20250124 | I49: 910 | J49: 910 | K49: 54 | L49: 0 | M49: 0 | N49: 54 | O49: CHF | P49: 20240422 | Q49: 1080 | R49: 20241220 | S49: 850 | T49: 19990819 | V49: XSWX | W49: RS | X49: CH | Y49: 0 | Z49: 880.7
A50: BYSTRONIC AG | B50: CH0244017502 | C50: BYS | D50: 24401750 | E50: 318.5 | F50: 327 | G50: 313 | H50: 20250124 | I50: 314 | J50: 313 | K50: 1222 | L50: 0 | M50: 0 | N50: 1222 | O50: CHF | P50: 20240402 | Q50: 494 | R50: 20241106 | S50: 290.5 | T50: 20140714 | V50: XSWX | W50: RS | X50: CH | Y50: 0 | Z50: 318.03
A51: CALIDA N | B51: CH0126639464 | C51: CALN | D51: 12663946 | E51: 22.7 | F51: 22.95 | G51: 22.3 | H51: 20250124 | I51: 22.3 | J51: 22.55 | K51: 5812 | L51: 0 | M51: 406 | N51: 6218 | O51: CHF | P51: 20240920 | Q51: 32.4 | R51: 20241220 | S51: 21.3 | T51: 20110418 | V51: XSWX | W51: RS | X51: CH | Y51: 0 | Z51: 23.99
A52: RICHEMONT N | B52: CH0210483332 | C52: CFR | D52: 21048333 | E52: 171.7 | F52: 175.7 | G52: 170.85 | H52: 20250124 | I52: 170.1 | J52: 175.4 | K52: 1192163 | L52: 12549 | M52: 154057 | N52: 1358769 | O52: CHF | P52: 20250124 | Q52: 175.7 | R52: 20240923 | S52: 112.8 | T52: 20201207 | V52: XSWX | W52: RS | X52: CH | Y52: 0 | Z52: 135.94
A53: CIE FIN TR I | B53: CH0014345117 | C53: CFT | D53: 1434511 | E53: 198 | F53: 198 | G53: 193 | H53: 20250124 | I53: 193.5 | J53: 193 | K53: 2540 | L53: 0 | M53: 694 | N53: 3234 | O53: CHF | P53: 20241227 | Q53: 198.5 | R53: 20240129 | S53: 117 | T53: 20020704 | V53: XSWX | W53: BS | X53: CH | Y53: 0 | Z53: 173.64
A54: CIE FIN TR I 2. LINIE | B54: CH1270609584 | C54: CFTE | D54: 127060958 | E54: 198 | F54: 198 | G54: 195.5 | H54: 20250124 | I54: 194.5 | J54: 195.5 | K54: 425 | L54: 0 | M54: 0 | N54: 425 | O54: CHF | P54: 20250124 | Q54: 198 | R54: 20240229 | S54: 120 | T54: 20230821 | U54: 20260529 | V54: XSWX | W54: BS | X54: CH | Y54: 0 | Z54: 171.81
A55: CICOR TECH N | B55: CH0008702190 | C55: CICN | D55: 870219 | E55: 66 | F55: 66 | G55: 62.8 | H55: 20250124 | I55: 63 | J55: 63.4 | K55: 15212 | L55: 0 | M55: 170 | N55: 15382 | O55: CHF | P55: 20250124 | Q55: 66 | R55: 20240515 | S55: 48.5 | T55: 19980424 | V55: XSWX | W55: RS | X55: CH | Y55: 0 | Z55: 58.11
A56: CI COM SA | B56: CH0001625810 | C56: CIE | D56: 162581 | E56: 0.69 | H56: 20250114 | I56: 0.69 | K56: 0 | L56: 0 | M56: 0 | N56: 0 | O56: CHF | P56: 20240403 | Q56: 1.6 | R56: 20250113 | S56: 0.6 | T56: 19960802 | V56: XSWX | W56: BS | X56: CH | Y56: 0 | Z56: 0.82
A57: CLARIANT N | B57: CH0012142631 | C57: CLN | D57: 1214263 | E57: 10.19 | F57: 10.31 | G57: 10.04 | H57: 20250124 | I57: 9.965 | J57: 10.07 | K57: 1171921 | L57: 0 | M57: 75275 | N57: 1247196 | O57: CHF | P57: 20240527 | Q57: 15.15 | R57: 20241220 | S57: 9.66 | T57: 20201207 | V57: XSWX | W57: RS | X57: CH | Y57: 0 | Z57: 10.73
A58: COLTENE N | B58: CH0025343259 | C58: CLTN | D58: 2534325 | E58: 54.4 | F58: 55.4 | G58: 54.4 | H58: 20250124 | I58: 54.8 | J58: 55 | K58: 2032 | L58: 0 | M58: 18 | N58: 2050 | O58: CHF | P58: 20240219 | Q58: 60.8 | R58: 20240805 | S58: 44.1 | T58: 20060623 | V58: XSWX | W58: RS | X58: CH | Y58: 1000 | Z58: 52.93
A59: CEMBRA MONEY BANK N | B59: CH0225173167 | C59: CMBN | D59: 22517316 | E59: 88.8 | F59: 89.55 | G59: 88.5 | H59: 20250124 | I59: 88.95 | J59: 89.1 | K59: 50394 | L59: 0 | M59: 830 | N59: 51224 | O59: CHF | P59: 20250124 | Q59: 89.55 | R59: 20240209 | S59: 65.9 | T59: 20131030 | V59: XSWX | W59: RS | X59: CH | Y59: 0 | Z59: 82.34
A60: COSMO PHARM N | B60: NL0011832936 | C60: COPN | D60: 32590356 | E60: 65.2 | F60: 65.4 | G60: 64.4 | H60: 20250124 | I60: 64.8 | J60: 64.5 | K60: 16727 | L60: 0 | M60: 3135 | N60: 19862 | O60: CHF | P60: 20240902 | Q60: 80.6 | R60: 20241220 | S60: 58.2 | T60: 20160518 | V60: XSWX | W60: RS | X60: NL | Y60: 0 | Z60: 63.66
A61: COMET N | B61: CH0360826991 | C61: COTN | D61: 36082699 | E61: 263 | F61: 270 | G61: 263 | H61: 20250124 | I61: 262.5 | J61: 267.5 | K61: 18628 | L61: 0 | M61: 815 | N61: 19443 | O61: CHF | P61: 20240716 | Q61: 389 | R61: 20250113 | S61: 236 | T61: 20170426 | V61: XSWX | W61: RS | X61: CH | Y61: 0 | Z61: 269.82
A62: CASTLE PRIVATE N | B62: CH0048854746 | C62: CPEN | D62: 4885474 | E62: 4.2 | F62: 4.2 | G62: 4.1 | H62: 20250124 | I62: 4.1 | J62: 4.1 | K62: 2500 | L62: 0 | M62: 0 | N62: 2500 | O62: CHF | P62: 20240503 | Q62: 5.1 | R62: 20241121 | S62: 3.64 | T62: 20081216 | V62: XSWX | W62: RS | X62: CH | Y62: 0 | Z62: 3.84
A63: CPHG N | B63: CH0001624714 | C63: CPHN | D63: 162471 | E63: 79.2 | F63: 79.6 | G63: 78.4 | H63: 20250124 | I63: 80 | J63: 79.6 | K63: 730 | L63: 0 | M63: 0 | N63: 730 | O63: CHF | P63: 20240624 | Q63: 93.2 | R63: 20240924 | S63: 62 | T63: 20010611 | V63: XSWX | W63: RS | X63: CH | Y63: 0 | Z63: 71.17
A64: CURATIS N | B64: CH1330780979 | C64: CURN | D64: 133078097 | E64: 13.05 | F64: 13.8 | G64: 13.05 | H64: 20250124 | I64: 13 | J64: 13.7 | K64: 1593 | L64: 0 | M64: 0 | N64: 1593 | O64: CHF | P64: 20241115 | Q64: 18.2 | R64: 20240823 | S64: 5 | T64: 20240426 | V64: XSWX | W64: RS | X64: CH | Y64: 0 | Z64: 13.56
A65: DAETWYLER I | B65: CH0030486770 | C65: DAE | D65: 3048677 | E65: 136.8 | F65: 139.2 | G65: 136.4 | H65: 20250124 | I65: 136.4 | J65: 136.8 | K65: 8230 | L65: 0 | M65: 185 | N65: 8415 | O65: CHF | P65: 20240517 | Q65: 204 | R65: 20250115 | S65: 127.2 | T65: 20070706 | V65: XSWX | W65: BS | X65: CH | Y65: 0 | Z65: 138.19
A66: DOTTIKON ES N | B66: CH0582581713 | C66: DESN | D66: 58258171 | E66: 216 | F66: 220 | G66: 216 | H66: 20250124 | I66: 218.5 | J66: 220 | K66: 2571 | L66: 0 | M66: 0 | N66: 2571 | O66: CHF | P66: 20240527 | Q66: 270 | R66: 20250115 | S66: 206 | T66: 20201204 | V66: XSWX | W66: RS | X66: CH | Y66: 0 | Z66: 227.77
A67: Jiangsu Eastern Shenghong | B67: US47737H1115 | C67: DFSH | D67: 123408194 | E67: 18.8 | I67: 18.8 | K67: 0 | L67: 0 | M67: 0 | N67: 0 | O67: USD | T67: 20221228 | V67: XSWX | W67: BS | X67: 10 | Y67: 0
A68: DKSH N | B68: CH0126673539 | C68: DKSH | D68: 12667353 | E68: 70.7 | F68: 71.1 | G68: 70.2 | H68: 20250124 | I68: 70.9 | J68: 71.1 | K68: 50010 | L68: 0 | M68: 719 | N68: 50729 | O68: CHF | P68: 20250124 | Q68: 71.1 | R68: 20240129 | S68: 56.25 | T68: 20120320 | V68: XSWX | W68: RS | X68: CH | Y68: 0 | Z68: 66.1
A69: DOCMORRIS N | B69: CH0042615283 | C69: DOCM | D69: 4261528 | E69: 21.5 | F69: 22.28 | G69: 21.16 | H69: 20250124 | I69: 21.3 | J69: 21.3 | K69: 90061 | L69: 0 | M69: 1654 | N69: 91715 | O69: CHF | P69: 20240212 | Q69: 101.6 | R69: 20250113 | S69: 17.21 | T69: 20170706 | V69: XSWX | W69: RS | X69: CH | Y69: 0 | Z69: 25.54
A70: dormakaba N | B70: CH0011795959 | C70: DOKA | D70: 1179595 | E70: 650 | F70: 657 | G70: 648 | H70: 20250124 | I70: 654 | J70: 656 | K70: 3072 | L70: 0 | M70: 104 | N70: 3176 | O70: CHF | P70: 20241111 | Q70: 697 | R70: 20240206 | S70: 423 | T70: 20010212 | V70: XSWX | W70: RS | X70: CH | Y70: 0 | Z70: 663.15
A71: EEII I | B71: CH0007162958 | C71: EEII | D71: 716295 | E71: 3 | H71: 20240822 | I71: 3 | K71: 0 | L71: 0 | M71: 0 | N71: 0 | O71: CHF | P71: 20240417 | Q71: 3 | R71: 20240301 | S71: 0.5 | T71: 19990122 | V71: XSWX | W71: BS | X71: CH | Y71: 0
A72: EFG INTERNATIONAL N | B72: CH0022268228 | C72: EFGN | D72: 2226822 | E72: 14 | F72: 14.18 | G72: 13.96 | H72: 20250124 | I72: 14.04 | J72: 14.06 | K72: 199223 | L72: 0 | M72: 11731 | N72: 210954 | O72: CHF | P72: 20250124 | Q72: 14.18 | R72: 20240424 | S72: 10.54 | T72: 20051007 | V72: XSWX | W72: RS | X72: CH | Y72: 0 | Z72: 12.56
A73: ELMA ELECTRONIC N | B73: CH0005319162 | C73: ELMN | D73: 531916 | E73: 1050 | H73: 20250122 | I73: 1050 | K73: 0 | L73: 0 | M73: 0 | N73: 0 | O73: CHF | P73: 20250116 | Q73: 1060 | R73: 20240521 | S73: 980 | T73: 19961204 | V73: XSWX | W73: RS | X73: CH | Y73: 0 | Z73: 1049.34
A74: EMMI N | B74: CH0012829898 | C74: EMMN | D74: 1282989 | E74: 786 | F74: 787 | G74: 768 | H74: 20250124 | I74: 748 | J74: 768 | K74: 9315 | L74: 0 | M74: 722 | N74: 10037 | O74: CHF | P74: 20240523 | Q74: 950 | R74: 20250114 | S74: 709 | T74: 20041206 | V74: XSWX | W74: RS | X74: CH | Y74: 0 | Z74: 760.82
A75: EMS-CHEMIE N | B75: CH0016440353 | C75: EMSN | D75: 1644035 | E75: 640.5 | F75: 656 | G75: 640.5 | H75: 20250124 | I75: 649 | J75: 650 | K75: 7615 | L75: 0 | M75: 637 | N75: 8252 | O75: CHF | P75: 20240709 | Q75: 785 | R75: 20241220 | S75: 599 | T75: 20100401 | V75: XSWX | W75: RS | X75: CH | Y75: 0 | Z75: 632.11
A76: EPH EUROPEAN PROPERTY | B76: CY0109992111 | C76: EPH | D76: 117016316 | E76: 20 | H76: 20241227 | I76: 20 | K76: 0 | L76: 0 | M76: 0 | N76: 0 | O76: EUR | P76: 20240723 | Q76: 26 | R76: 20241227 | S76: 20 | T76: 20220610 | V76: XSWX | W76: RS | X76: CY | Y76: 0 | Z76: 22.19
A77: EPIC N | B77: CH0516131684 | C77: EPIC | D77: 51613168 | E77: 79.6 | F77: 80.8 | G77: 79.6 | H77: 20250124 | I77: 80.6 | J77: 80.8 | K77: 1494 | L77: 0 | M77: 69 | N77: 1563 | O77: CHF | P77: 20250121 | Q77: 81.6 | R77: 20240222 | S77: 66.6 | T77: 20220525 | V77: XSWX | W77: RS | X77: CH | Y77: 0 | Z77: 77.39
A78: EDISUN POWER EUROPE N | B78: CH0024736404 | C78: ESUN | D78: 2473640 | E78: 43.8 | F78: 43.8 | G78: 43.4 | H78: 20250124 | I78: 43 | J78: 43.4 | K78: 12 | L78: 0 | M78: 0 | N78: 12 | O78: CHF | P78: 20240201 | Q78: 109 | R78: 20241107 | S78: 35 | T78: 20080926 | V78: XSWX | W78: RS | X78: CH | Y78: 0 | Z78: 40.04
A79: EVOLVA N | B79: CH1262055788 | C79: EVE | D79: 126205578 | E79: 1.08 | F79: 1.16 | G79: 1.065 | H79: 20250124 | I79: 1.125 | J79: 1.16 | K79: 5408 | L79: 0 | M79: 0 | N79: 5408 | O79: CHF | P79: 20250106 | Q79: 1.3 | R79: 20240208 | S79: 0.616 | T79: 20230426 | V79: XSWX | W79: RS | X79: CH | Y79: 0 | Z79: 0.99
A80: Fangda Carbon New Material Co. | B80: US30712D1072 | C80: FDCB | D80: 123814773 | E80: 8.65 | I80: 8.65 | K80: 0 | L80: 0 | M80: 0 | N80: 0 | O80: USD | T80: 20230315 | V80: XSWX | W80: BS | X80: 10 | Y80: 0
A81: FLUGHAFEN ZUERICH N | B81: CH0319416936 | C81: FHZN | D81: 31941693 | E81: 219.6 | F81: 221 | G81: 219.4 | H81: 20250124 | I81: 220.2 | J81: 221 | K81: 37413 | L81: 0 | M81: 2423 | N81: 39836 | O81: CHF | P81: 20241205 | Q81: 224.6 | R81: 20240201 | S81: 176.8 | T81: 20160506 | V81: XSWX | W81: RS | X81: CH | Y81: 0 | Z81: 212.29
A82: FORBO N | B82: CH0003541510 | C82: FORN | D82: 354151 | E82: 839 | F82: 848 | G82: 831 | H82: 20250124 | I82: 828 | J82: 831 | K82: 2961 | L82: 0 | M82: 86 | N82: 3047 | O82: CHF | P82: 20240325 | Q82: 1160 | R82: 20250114 | S82: 729 | T82: 19960802 | V82: XSWX | W82: RS | X82: CH | Y82: 0 | Z82: 789.12
A83: Fundamenta Real Estate N | B83: CH0045825517 | C83: FREN | D83: 4582551 | E83: 16.85 | F83: 17 | G83: 16.85 | H83: 20250124 | I83: 16.9 | J83: 16.9 | K83: 6369 | L83: 0 | M83: 0 | N83: 6369 | O83: CHF | P83: 20240209 | Q83: 17.25 | R83: 20240614 | S83: 15.2 | T83: 20181206 | V83: XSWX | W83: RS | X83: CH | Y83: 0 | Z83: 16.32
A84: FEINTOOL N | B84: CH0009320091 | C84: FTON | D84: 932009 | E84: 13.4 | F84: 13.55 | G84: 13.1 | H84: 20250124 | I84: 13.1 | J84: 13.1 | K84: 5047 | L84: 2000 | M84: 0 | N84: 7047 | O84: CHF | P84: 20240708 | Q84: 19.5 | R84: 20250115 | S84: 12.4 | T84: 19980817 | V84: XSWX | W84: RS | X84: CH | Y84: 0 | Z84: 14.28
A85: Galderma Group N | B85: CH1335392721 | C85: GALD | D85: 133539272 | E85: 109.78 | F85: 111.32 | G85: 109.16 | H85: 20250124 | I85: 109.24 | J85: 109.5 | K85: 235858 | L85: 4498 | M85: 9192 | N85: 249548 | O85: CHF | P85: 20250116 | Q85: 112.64 | R85: 20240322 | S85: 60 | T85: 20240322 | V85: XSWX | W85: RS | X85: CH | Y85: 0 | Z85: 92.86
A86: GALENICA N | B86: CH0360674466 | C86: GALE | D86: 36067446 | E86: 79.35 | F86: 80.1 | G86: 79.35 | H86: 20250124 | I86: 79.65 | J86: 80 | K86: 77116 | L86: 0 | M86: 1228 | N86: 78344 | O86: CHF | P86: 20250124 | Q86: 80.1 | R86: 20240417 | S86: 69.3 | T86: 20170407 | V86: XSWX | W86: RS | X86: CH | Y86: 0 | Z86: 76.02
A87: GAM N | B87: CH0102659627 | C87: GAM | D87: 10265962 | E87: 0.0958 | F87: 0.0984 | G87: 0.0936 | H87: 20250124 | I87: 0.0968 | J87: 0.0936 | K87: 83836 | L87: 0 | M87: 0 | N87: 83836 | O87: CHF | P87: 20240206 | Q87: 0.38 | R87: 20241219 | S87: 0.0568 | T87: 20100621 | V87: XSWX | W87: RS | X87: CH | Y87: 0 | Z87: 0.1
A88: GAVAZZI N | B88: CH1278877563 | C88: GAV | D88: 127887756 | E88: 184.5 | F88: 187 | G88: 184.5 | H88: 20250124 | I88: 186 | J88: 184.5 | K88: 222 | L88: 0 | M88: 0 | N88: 222 | O88: CHF | P88: 20240405 | Q88: 335 | R88: 20250122 | S88: 182 | T88: 20230803 | V88: XSWX | W88: RS | X88: CH | Y88: 0 | Z88: 195.71
A89: GEBERIT N | B89: CH0030170408 | C89: GEBN | D89: 3017040 | E89: 498.3 | F89: 502.6 | G89: 495.1 | H89: 20250124 | I89: 498.5 | J89: 495.1 | K89: 84017 | L89: 20 | M89: 9141 | N89: 93178 | O89: CHF | P89: 20240528 | Q89: 571.2 | R89: 20240425 | S89: 477.5 | T89: 20201207 | V89: XSWX | W89: RS | X89: CH | Y89: 0 | Z89: 520.36
A90: GEBERIT N 2. LINIE | B90: CH0358541057 | C90: GEBNE | D90: 35854105 | E90: 499.1 | F90: 503 | G90: 498 | H90: 20250124 | I90: 496.9 | J90: 501.8 | K90: 1800 | L90: 0 | M90: 0 | N90: 1800 | O90: CHF | P90: 20240528 | Q90: 571.4 | R90: 20240425 | S90: 479.8 | T90: 20240902 | U90: 20260902 | V90: XSWX | W90: RS | X90: CH | Y90: 0 | Z90: 518.94
A91: GEM Co. Ltd. | B91: US36265D2045 | C91: GEM | D91: 119740522 | E91: 12 | H91: 20221215 | I91: 12 | K91: 0 | L91: 0 | M91: 0 | N91: 0 | O91: USD | T91: 20220728 | V91: XSWX | W91: BS | X91: 10 | Y91: 0
A92: GEORG FISCHER N | B92: CH1169151003 | C92: GF | D92: 116915100 | E92: 70.4 | F92: 71.45 | G92: 70.3 | H92: 20250124 | I92: 70.2 | J92: 70.85 | K92: 133465 | L92: 0 | M92: 6575 | N92: 140040 | O92: CHF | P92: 20241212 | Q92: 72.2 | R92: 20241025 | S92: 55.05 | T92: 20220428 | V92: XSWX | W92: RS | X92: CH | Y92: 0 | Z92: 66.24
A93: GIVAUDAN N | B93: CH0010645932 | C93: GIVN | D93: 1064593 | E93: 3818 | F93: 3986 | G93: 3780 | H93: 20250124 | I93: 3941 | J93: 3800 | K93: 34748 | L93: 2022 | M93: 3406 | N93: 40176 | O93: CHF | P93: 20240926 | Q93: 4690 | R93: 20240205 | S93: 3553 | T93: 20201207 | V93: XSWX | W93: RS | X93: CH | Y93: 0 | Z93: 3940.06
A94: GLARNER KB N | B94: CH0189396655 | C94: GLKBN | D94: 18939665 | E94: 22 | F94: 22.1 | G94: 22 | H94: 20250124 | I94: 22 | J94: 22.1 | K94: 15292 | L94: 0 | M94: 0 | N94: 15292 | O94: CHF | P94: 20240129 | Q94: 23 | R94: 20241206 | S94: 20.6 | T94: 20140624 | V94: XSWX | W94: RS | X94: CH | Y94: 0 | Z94: 21.3
A95: GMSA N | B95: CH0012949464 | C95: GMI | D95: 1294946 | E95: 274 | F95: 274 | G95: 270 | H95: 20250124 | I95: 276 | J95: 270 | K95: 15 | L95: 0 | M95: 0 | N95: 15 | O95: CHF | P95: 20240306 | Q95: 280 | R95: 20240917 | S95: 216 | T95: 20011015 | V95: XSWX | W95: RS | X95: CH | Y95: 0 | Z95: 243.52
A96: SAINT GOBAIN I | B96: FR0000125007 | C96: GOB | D96: 490580 | E96: 85.54 | F96: 85.54 | G96: 85.54 | H96: 20250124 | I96: 79.52 | J96: 85.54 | K96: 25 | L96: 0 | M96: 0 | N96: 25 | O96: CHF | P96: 20250124 | Q96: 85.54 | R96: 20240216 | S96: 65.07 | T96: 19951208 | V96: XSWX | W96: BS | X96: FR | Y96: 0
A97: GRAUB KB PS | B97: CH0001340204 | C97: GRKP | D97: 134020 | E97: 1770 | F97: 1770 | G97: 1750 | H97: 20250124 | I97: 1765 | J97: 1765 | K97: 96 | L97: 0 | M97: 5 | N97: 101 | O97: CHF | P97: 20241021 | Q97: 1840 | R97: 20240726 | S97: 1670 | T97: 19960802 | V97: XSWX | W97: PC | X97: CH | Y97: 0 | Z97: 1752.48
A98: Hangzhou GreatStar Industrial | B98: US41044C1053 | C98: GSI | D98: 122668634 | E98: 14 | I98: 14 | K98: 0 | L98: 0 | M98: 0 | N98: 0 | O98: USD | T98: 20221115 | V98: XSWX | W98: BS | X98: 10 | Y98: 0
A99: GOODYEAR | B99: US3825501014 | C99: GT | D99: 935430 | E99: 9 | H99: 20241202 | I99: 9 | K99: 0 | L99: 0 | M99: 0 | N99: 0 | O99: CHF | P99: 20241129 | Q99: 9.3 | R99: 20241202 | S99: 9 | T99: 19951208 | V99: XSWX | W99: RS | X99: US | Y99: 0 | Z99: 9.23
A100: GURIT N | B100: CH1173567111 | C100: GURN | D100: 117356711 | E100: 14.4 | F100: 14.48 | G100: 13.5 | H100: 20250124 | I100: 13.92 | J100: 13.5 | K100: 12762 | L100: 0 | M100: 2 | N100: 12764 | O100: CHF | P100: 20240129 | Q100: 76.5 | R100: 20241122 | S100: 10.54 | T100: 20220502 | V100: XSWX | W100: RS | X100: CH | Y100: 0 | Z100: 14.03
A101: HYPO LENZB N | B101: CH0001341608 | C101: HBLN | D101: 134160 | E101: 4040 | F101: 4040 | G101: 4040 | H101: 20250124 | I101: 4080 | J101: 4040 | K101: 3 | L101: 0 | M101: 0 | N101: 3 | O101: CHF | P101: 20240202 | Q101: 4380 | R101: 20241213 | S101: 3880 | T101: 19960802 | V101: XSWX | W101: RS | X101: CH | Y101: 0 | Z101: 3999.5
A102: HBM N | B102: CH0012627250 | C102: HBMN | D102: 1262725 | E102: 194.2 | F102: 194.2 | G102: 190.8 | H102: 20250124 | I102: 192 | J102: 192.8 | K102: 7738 | L102: 0 | M102: 312 | N102: 8050 | O102: CHF | P102: 20240617 | Q102: 214 | R102: 20240212 | S102: 155 | T102: 20080214 | V102: XSWX | W102: RS | X102: CH | Y102: 0 | Z102: 182.81
A103: HBM N 2. LINIE | B103: CH0257717097 | C103: HBMNE | D103: 25771709 | E103: 193.6 | F103: 193.6 | G103: 191.8 | H103: 20250124 | I103: 191.2 | J103: 193.4 | K103: 800 | L103: 0 | M103: 0 | N103: 800 | O103: CHF | P103: 20240618 | Q103: 214 | R103: 20240212 | S103: 156.4 | T103: 20220704 | U103: 20250627 | V103: XSWX | W103: RS | X103: CH | Y103: 0 | Z103: 184.35
A104: HELVETIA HOLDING N | B104: CH0466642201 | C104: HELN | D104: 46664220 | E104: 159.9 | F104: 161.5 | G104: 159.3 | H104: 20250124 | I104: 160.8 | J104: 161 | K104: 58951 | L104: 0 | M104: 2563 | N104: 61514 | O104: CHF | P104: 20250124 | Q104: 161.5 | R104: 20240419 | S104: 116.9 | T104: 20190513 | V104: XSWX | W104: RS | X104: CH | Y104: 0 | Z104: 151.23
A105: HIAG IMMOBILIEN N | B105: CH0239518779 | C105: HIAG | D105: 23951877 | E105: 86 | F105: 86.4 | G105: 85.6 | H105: 20250124 | I105: 85.8 | J105: 85.8 | K105: 8313 | L105: 0 | M105: 101 | N105: 8414 | O105: CHF | P105: 20250124 | Q105: 86.4 | R105: 20240229 | S105: 69.4 | T105: 20140516 | V105: XSWX | W105: RS | X105: CH | Y105: 0 | Z105: 83.49
A106: HIGHLIGHT E AND E I | B106: CH0003583256 | C106: HLEE | D106: 358325 | E106: 8.5 | H106: 20250121 | I106: 8.5 | K106: 0 | L106: 0 | M106: 0 | N106: 0 | O106: CHF | P106: 20240212 | Q106: 11.5 | R106: 20241213 | S106: 4.24 | T106: 19960802 | V106: XSWX | W106: BS | X106: CH | Y106: 0 | Z106: 6.52
A107: HOCN N | B107: CH0024666528 | C107: HOCN | D107: 2466652 | E107: 0.494 | F107: 0.497 | G107: 0.42 | H107: 20250124 | I107: 0.466 | J107: 0.45 | K107: 28449 | L107: 0 | M107: 0 | N107: 28449 | O107: CHF | P107: 20240222 | Q107: 20.2 | R107: 20240828 | S107: 0.19 | T107: 20110517 | V107: XSWX | W107: RS | X107: CH | Y107: 0 | Z107: 0.47
A108: HOLCIM N | B108: CH0012214059 | C108: HOLN | D108: 1221405 | E108: 91.22 | F108: 91.32 | G108: 90.12 | H108: 20250124 | I108: 89.82 | J108: 90.12 | K108: 985693 | L108: 0 | M108: 51530 | N108: 1037223 | O108: CHF | P108: 20241111 | Q108: 92.76 | R108: 20240209 | S108: 64.48 | T108: 20201207 | V108: XSWX | W108: RS | X108: CH | Y108: 0 | Z108: 88.35
A109: Zhejiang Huayou Cobalt | B109: US98955Q1013 | C109: HUAYO | D109: 124566121 | E109: 9.8 | I109: 9.8 | K109: 0 | L109: 0 | M109: 0 | N109: 0 | O109: USD | T109: 20230707 | V109: XSWX | W109: BS | X109: 10 | Y109: 0
A110: HUBER+SUHNER N | B110: CH0030380734 | C110: HUBN | D110: 3038073 | E110: 78.7 | F110: 79.7 | G110: 78.4 | H110: 20250124 | I110: 79.3 | J110: 78.9 | K110: 22144 | L110: 0 | M110: 371 | N110: 22515 | O110: CHF | P110: 20240926 | Q110: 89.6 | R110: 20240208 | S110: 60.4 | T110: 20070706 | V110: XSWX | W110: RS | X110: CH | Y110: 0 | Z110: 76.6
A111: IDORSIA N | B111: CH0363463438 | C111: IDIA | D111: 36346343 | E111: 0.73 | F111: 0.7965 | G111: 0.73 | H111: 20250124 | I111: 0.774 | J111: 0.774 | K111: 991766 | L111: 0 | M111: 35163 | N111: 1026929 | O111: CHF | P111: 20240228 | Q111: 3.7 | R111: 20241119 | S111: 0.6115 | T111: 20170616 | V111: XSWX | W111: RS | X111: CH | Y111: 0 | Z111: 0.94
A112: INFICON N | B112: CH0011029946 | C112: IFCN | D112: 1102994 | E112: 1196 | F112: 1204 | G112: 1192 | H112: 20250124 | I112: 1192 | J112: 1194 | K112: 2283 | L112: 1838 | M112: 344 | N112: 4465 | O112: CHF | P112: 20240606 | Q112: 1508 | R112: 20241119 | S112: 987 | T112: 20001109 | V112: XSWX | W112: RS | X112: CH | Y112: 0 | Z112: 1062.42
A113: IMPLENIA N | B113: CH0023868554 | C113: IMPN | D113: 2386855 | E113: 30.9 | F113: 31.4 | G113: 30.9 | H113: 20250124 | I113: 31.25 | J113: 31.25 | K113: 9188 | L113: 274 | M113: 3814 | N113: 13276 | O113: CHF | P113: 20240424 | Q113: 36.8 | R113: 20241127 | S113: 28.65 | T113: 20060306 | V113: XSWX | W113: RS | X113: CH | Y113: 0 | Z113: 30.28
A114: INA INVEST N | B114: CH0524026959 | C114: INA | D114: 52402695 | E114: 20.7 | F114: 20.7 | G114: 20.5 | H114: 20250124 | I114: 20.7 | J114: 20.5 | K114: 100 | L114: 0 | M114: 0 | N114: 100 | O114: CHF | P114: 20241213 | Q114: 22 | R114: 20240815 | S114: 15.65 | T114: 20200612 | V114: XSWX | W114: RS | X114: CH | Y114: 0 | Z114: 20.38
A115: INTERROLL N | B115: CH0006372897 | C115: INRN | D115: 637289 | E115: 2155 | F115: 2195 | G115: 2145 | H115: 20250124 | I115: 2130 | J115: 2160 | K115: 745 | L115: 0 | M115: 201 | N115: 946 | O115: CHF | P115: 20240315 | Q115: 3080 | R115: 20241220 | S115: 1938 | T115: 19970605 | V115: XSWX | W115: RS | X115: CH | Y115: 0 | Z115: 2115.92
A116: INVESTIS N | B116: CH0325094297 | C116: IREN | D116: 32509429 | E116: 109.5 | F116: 110 | G116: 109 | H116: 20250124 | I116: 109.5 | J116: 109.5 | K116: 1608 | L116: 0 | M116: 15 | N116: 1623 | O116: CHF | P116: 20250103 | Q116: 112 | R116: 20240312 | S116: 93 | T116: 20160630 | V116: XSWX | W116: RS | X116: CH | Y116: 0 | Z116: 109.52
A117: INTERSHOP N | B117: CH1338987303 | C117: ISN | D117: 133898730 | E117: 135 | F117: 136.2 | G117: 134.6 | H117: 20250124 | I117: 135.4 | J117: 135.8 | K117: 2785 | L117: 0 | M117: 4 | N117: 2789 | O117: CHF | P117: 20250124 | Q117: 136.2 | R117: 20240614 | S117: 112.6 | T117: 20240410 | V117: XSWX | W117: RS | X117: CH | Y117: 1331 | Z117: 126.35
A118: Joincare Pharmaceutical Group | B118: US47973H2058 | C118: JCARE | D118: 120978688 | E118: 8 | H118: 20230612 | I118: 8 | K118: 0 | L118: 0 | M118: 0 | N118: 0 | O118: USD | T118: 20220926 | V118: XSWX | W118: BS | X118: 10 | Y118: 0
A119: JUNGFRAUBAHN HLD N | B119: CH0017875789 | C119: JFN | D119: 1787578 | E119: 181.4 | F119: 185 | G119: 181.4 | H119: 20250124 | I119: 184.6 | J119: 185 | K119: 5685 | L119: 1500 | M119: 282 | N119: 7467 | O119: CHF | P119: 20240429 | Q119: 210.5 | R119: 20241031 | S119: 161.6 | T119: 20040416 | V119: XSWX | W119: RS | X119: CH | Y119: 0 | Z119: 174.39
A120: KARDEX N | B120: CH0100837282 | C120: KARN | D120: 10083728 | E120: 293 | F120: 295.5 | G120: 291.5 | H120: 20250124 | I120: 292 | J120: 294 | K120: 4065 | L120: 0 | M120: 465 | N120: 4530 | O120: CHF | P120: 20250122 | Q120: 298.5 | R120: 20240206 | S120: 215.5 | T120: 20090423 | V120: XSWX | W120: RS | X120: CH | Y120: 0 | Z120: 272.61
A121: KLINGELNBERG N | B121: CH0420462266 | C121: KLIN | D121: 42046226 | E121: 13.1 | F121: 13.3 | G121: 13.1 | H121: 20250124 | I121: 13 | J121: 13.3 | K121: 5544 | L121: 0 | M121: 322 | N121: 5866 | O121: CHF | P121: 20240624 | Q121: 18.4 | R121: 20241121 | S121: 11.7 | T121: 20180620 | V121: XSWX | W121: RS | X121: CH | Y121: 0 | Z121: 13.24
A122: KUEHNE+NAGEL INT N | B122: CH0025238863 | C122: KNIN | D122: 2523886 | E122: 204.6 | F122: 208.4 | G122: 204.6 | H122: 20250124 | I122: 206.6 | J122: 207.4 | K122: 149470 | L122: 300 | M122: 3608 | N122: 153378 | O122: CHF | P122: 20240229 | Q122: 299.1 | R122: 20250117 | S122: 198.7 | T122: 20201207 | V122: XSWX | W122: RS | X122: CH | Y122: 0 | Z122: 208.01
A123: KOMAX N | B123: CH0010702154 | C123: KOMN | D123: 1070215 | E123: 136.8 | F123: 138 | G123: 135 | H123: 20250124 | I123: 133.6 | J123: 135 | K123: 12637 | L123: 2600 | M123: 324 | N123: 15561 | O123: CHF | P123: 20240410 | Q123: 186.8 | R123: 20241122 | S123: 100.2 | T123: 20000524 | V123: XSWX | W123: RS | X123: CH | Y123: 0 | Z123: 114.24
A124: KUDELSKI I | B124: CH0012268360 | C124: KUD | D124: 1226836 | E124: 1.235 | F124: 1.275 | G124: 1.225 | H124: 20250124 | I124: 1.275 | J124: 1.26 | K124: 28137 | L124: 0 | M124: 0 | N124: 28137 | O124: CHF | P124: 20240220 | Q124: 1.99 | R124: 20240223 | S124: 1.13 | T124: 20100401 | V124: XSWX | W124: BS | X124: CH | Y124: 0 | Z124: 1.32
A125: Kunshan Dongwei Technology | B125: US50126R1041 | C125: KUDO | D125: 125377946 | E125: 17.8 | I125: 17.8 | K125: 0 | L125: 0 | M125: 0 | N125: 0 | O125: USD | T125: 20230613 | V125: XSWX | W125: BS | X125: 10 | Y125: 0
A126: Kuros N | B126: CH0325814116 | C126: KURN | D126: 32581411 | E126: 21.3 | F126: 21.65 | G126: 21.1 | H126: 20250124 | I126: 21.35 | J126: 21.5 | K126: 62112 | L126: 0 | M126: 2 | N126: 62114 | O126: CHF | P126: 20241114 | Q126: 32 | R126: 20240129 | S126: 4.52 | T126: 20160623 | V126: XSWX | W126: RS | X126: CH | Y126: 0 | Z126: 23.48
A127: Landis+Gyr N | B127: CH0371153492 | C127: LAND | D127: 37115349 | E127: 64.6 | F127: 64.9 | G127: 64.2 | H127: 20250124 | I127: 63.6 | J127: 64.3 | K127: 81761 | L127: 0 | M127: 7442 | N127: 89203 | O127: CHF | P127: 20240710 | Q127: 83.4 | R127: 20241219 | S127: 54 | T127: 20170721 | V127: XSWX | W127: RS | X127: CH | Y127: 0 | Z127: 62.63
A128: LECLANCHE N | B128: CH0110303119 | C128: LECN | D128: 11030311 | E128: 0.2 | F128: 0.209 | G128: 0.193 | H128: 20250124 | I128: 0.191 | J128: 0.195 | K128: 67980 | L128: 0 | M128: 0 | N128: 67980 | O128: CHF | P128: 20240326 | Q128: 0.632 | R128: 20241024 | S128: 0.04 | T128: 20100326 | V128: XSWX | W128: RS | X128: CH | Y128: 0 | Z128: 0.18
A129: LEM N | B129: CH0022427626 | C129: LEHN | D129: 2242762 | E129: 842 | F129: 858 | G129: 816 | H129: 20250124 | I129: 818 | J129: 816 | K129: 2353 | L129: 0 | M129: 41 | N129: 2394 | O129: CHF | P129: 20240129 | Q129: 2085 | R129: 20241220 | S129: 715 | T129: 20050923 | V129: XSWX | W129: RS | X129: CH | Y129: 0 | Z129: 828.4
A130: LEONTEQ N | B130: CH0190891181 | C130: LEON | D130: 19089118 | E130: 18.84 | F130: 19.12 | G130: 18.6 | H130: 20250124 | I130: 18.82 | J130: 18.84 | K130: 29199 | L130: 0 | M130: 6077 | N130: 35276 | O130: CHF | P130: 20240129 | Q130: 33.05 | R130: 20250113 | S130: 17.7 | T130: 20121019 | V130: XSWX | W130: RS | X130: CH | Y130: 0 | Z130: 21.42
A131: LINDT N | B131: CH0010570759 | C131: LISN | D131: 1057075 | E131: 102600 | F131: 102600 | G131: 100800 | H131: 20250124 | I131: 101000 | J131: 100800 | K131: 87 | L131: 0 | M131: 1 | N131: 88 | O131: CHF | P131: 20240207 | Q131: 113600 | R131: 20250113 | S131: 97000 | T131: 20170918 | V131: XSWX | W131: RS | X131: CH | Y131: 0 | Z131: 99595.45
A132: LINDT N 2.LINIE | B132: CH1192548399 | C132: LISNE | D132: 119254839 | E132: 100600 | H132: 20250123 | I132: 100600 | K132: 0 | L132: 0 | M132: 0 | N132: 0 | O132: CHF | P132: 20240209 | Q132: 113600 | R132: 20241216 | S132: 97600 | T132: 20240802 | U132: 20260731 | V132: XSWX | W132: RS | X132: CH | Y132: 0 | Z132: 99962.3
A133: LINDT PS | B133: CH0010570767 | C133: LISP | D133: 1057076 | E133: 10380 | F133: 10410 | G133: 10270 | H133: 20250124 | I133: 10260 | J133: 10270 | K133: 2224 | L133: 0 | M133: 58 | N133: 2282 | O133: CHF | P133: 20240209 | Q133: 11430 | R133: 20250113 | S133: 9755 | T133: 20000508 | V133: XSWX | W133: PC | X133: CH | Y133: 0 | Z133: 10088.58
A134: LINDT PS 2.LINIE | B134: CH1192548407 | C134: LISPE | D134: 119254840 | E134: 10400 | F134: 10410 | G134: 10310 | H134: 20250124 | I134: 10260 | J134: 10330 | K134: 400 | L134: 0 | M134: 0 | N134: 400 | O134: CHF | P134: 20240209 | Q134: 11430 | R134: 20250113 | S134: 9770 | T134: 20240802 | U134: 20260731 | V134: XSWX | W134: PC | X134: CH | Y134: 0 | Z134: 10102.22
A135: LIECHT LANDBK N | B135: LI0355147575 | C135: LLBN | D135: 35514757 | E135: 74.2 | F135: 74.9 | G135: 74 | H135: 20250124 | I135: 74 | J135: 74 | K135: 3648 | L135: 0 | M135: 10 | N135: 3658 | O135: CHF | P135: 20240819 | Q135: 76.5 | R135: 20240425 | S135: 67.1 | T135: 20170518 | V135: XSWX | W135: RS | X135: LI | Y135: 0 | Z135: 70.54
A136: LILLY ELI | B136: US5324571083 | C136: LLY | D136: 947556 | E136: 685 | H136: 20250123 | I136: 685 | K136: 0 | L136: 0 | M136: 0 | N136: 0 | O136: CHF | P136: 20240703 | Q136: 830 | R136: 20240205 | S136: 590 | T136: 19951208 | V136: XSWX | W136: RS | X136: US | Y136: 0 | Z136: 714.5
A137: lastminute.com N.V. | B137: NL0010733960 | C137: LMN | D137: 23806732 | E137: 15.92 | F137: 16 | G137: 15.92 | H137: 20250124 | I137: 16 | J137: 16 | K137: 1450 | L137: 0 | M137: 0 | N137: 1450 | O137: CHF | P137: 20240130 | Q137: 24.5 | R137: 20241220 | S137: 15.2 | T137: 20140415 | V137: XSWX | W137: BS | X137: NL | Y137: 0 | Z137: 16.42
A138: LOGITECH N | B138: CH0025751329 | C138: LOGN | D138: 2575132 | E138: 82.52 | F138: 83.76 | G138: 82.14 | H138: 20250124 | I138: 82.24 | J138: 83 | K138: 618869 | L138: 0 | M138: 39316 | N138: 658185 | O138: CHF | P138: 20240606 | Q138: 93.5 | R138: 20241113 | S138: 67.52 | T138: 20201207 | V138: XSWX | W138: RS | X138: CH | Y138: 0 | Z138: 74.2
A139: LOGITECH N 2.LINIE | B139: CH1282125983 | C139: LOGNE | D139: 128212598 | E139: 82.32 | F139: 83.68 | G139: 82.32 | H139: 20250124 | I139: 81.9 | J139: 83.68 | K139: 21811 | L139: 0 | M139: 0 | N139: 21811 | O139: CHF | P139: 20240606 | Q139: 93.28 | R139: 20241113 | S139: 67.66 | T139: 20230728 | U139: 20260727 | V139: XSWX | W139: RS | X139: CH | Y139: 0 | Z139: 72.64
A140: LONZA N | B140: CH0013841017 | C140: LONN | D140: 1384101 | E140: 591 | F140: 591 | G140: 582 | H140: 20250124 | I140: 583.2 | J140: 586.6 | K140: 142572 | L140: 3900 | M140: 6728 | N140: 153200 | O140: CHF | P140: 20250124 | Q140: 591 | R140: 20240129 | S140: 417.3 | T140: 20201207 | V140: XSWX | W140: RS | X140: CH | Y140: 0 | Z140: 539.49
A141: LONZA N 2. LINIE | B141: CH1255014495 | C141: LONNE | D141: 125501449 | E141: 589.8 | F141: 589.8 | G141: 583.6 | H141: 20250124 | I141: 583 | J141: 585.4 | K141: 7700 | L141: 0 | M141: 0 | N141: 7700 | O141: CHF | P141: 20250124 | Q141: 589.8 | R141: 20240129 | S141: 422 | T141: 20230403 | U141: 20250402 | V141: XSWX | W141: RS | X141: CH | Y141: 0 | Z141: 543.97
A142: LUZERNER KB N | B142: CH1252930610 | C142: LUKN | D142: 125293061 | E142: 68.4 | F142: 69.1 | G142: 68.4 | H142: 20250124 | I142: 69.2 | J142: 69.1 | K142: 7035 | L142: 0 | M142: 46 | N142: 7081 | O142: CHF | P142: 20240201 | Q142: 73.5 | R142: 20240911 | S142: 60.5 | T142: 20230425 | V142: XSWX | W142: RS | X142: CH | Y142: 0 | Z142: 65.08
A143: MEYER BURGER N | B143: CH1357065999 | C143: MBTN | D143: 135706599 | E143: 1.96 | F143: 2.1 | G143: 1.95 | H143: 20250124 | I143: 2.034 | J143: 2.034 | K143: 193926 | L143: 0 | M143: 5065 | N143: 198991 | O143: CHF | P143: 20240130 | Q143: 105.75 | R143: 20241121 | S143: 0.301 | T143: 20240701 | V143: XSWX | W143: RS | X143: CH | Y143: 0 | Z143: 1.79
A144: MCH GROUP N | B144: CH0039542854 | C144: MCHN | D144: 3954285 | E144: 3.9 | F144: 4.07 | G144: 3.9 | H144: 20250124 | I144: 4.02 | J144: 4.05 | K144: 2792 | L144: 0 | M144: 0 | N144: 2792 | O144: CHF | P144: 20240513 | Q144: 5.88 | R144: 20240208 | S144: 3.5 | T144: 20080519 | V144: XSWX | W144: RS | X144: CH | Y144: 0 | Z144: 4.08
A145: MEDARTIS N | B145: CH0386200239 | C145: MED | D145: 38620023 | E145: 71.5 | F145: 72.4 | G145: 70.2 | H145: 20250124 | I145: 72.4 | J145: 72.4 | K145: 2891 | L145: 0 | M145: 148 | N145: 3039 | O145: CHF | P145: 20240328 | Q145: 90 | R145: 20241119 | S145: 44.15 | T145: 20180323 | V145: XSWX | W145: RS | X145: CH | Y145: 0 | Z145: 56.08
A146: MEDMIX N | B146: CH1129677105 | C146: MEDX | D146: 112967710 | E146: 12.42 | F146: 12.52 | G146: 12.14 | H146: 20250124 | I146: 11.9 | J146: 12.14 | K146: 95772 | L146: 0 | M146: 627 | N146: 96399 | O146: CHF | P146: 20240202 | Q146: 17.7 | R146: 20241220 | S146: 8.1 | T146: 20210930 | V146: XSWX | W146: RS | X146: CH | Y146: 0 | Z146: 9.6
A147: Metall Zug AG | B147: CH0039821084 | C147: METN | D147: 3982108 | E147: 992 | F147: 1000 | G147: 978 | H147: 20250124 | I147: 980 | J147: 986 | K147: 716 | L147: 0 | M147: 200 | N147: 916 | O147: CHF | P147: 20240304 | Q147: 1485 | R147: 20250124 | S147: 978 | T147: 20080526 | V147: XSWX | W147: RS | X147: CH | Y147: 0 | Z147: 1097.93
A148: MIKRON N | B148: CH0003390066 | C148: MIKN | D148: 339006 | E148: 16.4 | F148: 16.55 | G148: 16.4 | H148: 20250124 | I148: 16.4 | J148: 16.4 | K148: 8370 | L148: 0 | M148: 247 | N148: 8617 | O148: CHF | P148: 20240717 | Q148: 20 | R148: 20241217 | S148: 13.05 | T148: 19960802 | V148: XSWX | W148: RS | X148: CH | Y148: 0 | Z148: 14.42
A149: 3M | B149: US88579Y1010 | C149: MMM | D149: 1405105 | E149: 132 | H149: 20250121 | I149: 132 | K149: 0 | L149: 0 | M149: 0 | N149: 0 | O149: CHF | P149: 20250121 | Q149: 132 | R149: 20240312 | S149: 79 | T149: 20020409 | V149: XSWX | W149: RS | X149: US | Y149: 0 | Z149: 118.56
A150: MOBIMO N | B150: CH0011108872 | C150: MOBN | D150: 1110887 | E150: 302.5 | F150: 305 | G150: 301.5 | H150: 20250124 | I150: 304.5 | J150: 305 | K150: 4344 | L150: 0 | M150: 104 | N150: 4448 | O150: CHF | P150: 20250124 | Q150: 305 | R150: 20240618 | S150: 249.5 | T150: 20050623 | V150: XSWX | W150: RS | X150: CH | Y150: 2084 | Z150: 284.66
A151: MOLECULAR PARTNERS N | B151: CH0256379097 | C151: MOLN | D151: 25637909 | E151: 4.845 | F151: 4.895 | G151: 4.65 | H151: 20250124 | I151: 4.85 | J151: 4.685 | K151: 12071 | L151: 0 | M151: 471 | N151: 12542 | O151: CHF | P151: 20240619 | Q151: 9.5 | R151: 20240429 | S151: 3.105 | T151: 20141105 | V151: XSWX | W151: RS | X151: CH | Y151: 0 | Z151: 4.99
A152: MEDACTA GROUP N | B152: CH0468525222 | C152: MOVE | D152: 46852522 | E152: 111 | F152: 112.6 | G152: 111 | H152: 20250124 | I152: 110.6 | J152: 112 | K152: 8585 | L152: 250 | M152: 98 | N152: 8933 | O152: CHF | P152: 20240214 | Q152: 135 | R152: 20241220 | S152: 103.6 | T152: 20190404 | V152: XSWX | W152: RS | X152: CH | Y152: 3008 | Z152: 111.01
A153: MOBILEZONE N | B153: CH0276837694 | C153: MOZN | D153: 27683769 | E153: 11.36 | F153: 11.44 | G153: 11.28 | H153: 20250124 | I153: 11.26 | J153: 11.38 | K153: 115638 | L153: 0 | M153: 3080 | N153: 118718 | O153: CHF | P153: 20240308 | Q153: 15.26 | R153: 20241219 | S153: 9.57 | T153: 20150428 | V153: XSWX | W153: RS | X153: CH | Y153: 0 | Z153: 11.82
A154: MOBILEZONE N 2. LINIE | B154: CH1143739519 | C154: MOZN1 | D154: 114373951 | E154: 15.66 | H154: 20221020 | I154: 15.66 | K154: 0 | L154: 0 | M154: 0 | N154: 0 | O154: CHF | T154: 20220822 | U154: 20250821 | V154: XSWX | W154: RS | X154: CH | Y154: 0
A155: MEIER TOBLER N | B155: CH0208062627 | C155: MTG | D155: 20806262 | E155: 28 | F155: 28.5 | G155: 27.45 | H155: 20250124 | I155: 28 | J155: 28.1 | K155: 6503 | L155: 0 | M155: 1058 | N155: 7561 | O155: CHF | P155: 20240205 | Q155: 37.9 | R155: 20240910 | S155: 23.85 | T155: 20130410 | V155: XSWX | W155: RS | X155: CH | Y155: 0 | Z155: 27.64
A156: nebag N | B156: CH0005059438 | C156: NBEN | D156: 505943 | E156: 6.5 | F156: 6.55 | G156: 6.45 | H156: 20250124 | I156: 6.55 | J156: 6.5 | K156: 6640 | L156: 0 | M156: 0 | N156: 6640 | O156: CHF | P156: 20240209 | Q156: 7.7 | R156: 20250103 | S156: 6.3 | T156: 20051104 | V156: XSWX | W156: RS | X156: CH | Y156: 0 | Z156: 6.41
A157: NATURENERGIE N | B157: CH0039651184 | C157: NEAG | D157: 3965118 | E157: 33.4 | F157: 33.6 | G157: 32.8 | H157: 20250124 | I157: 33.3 | J157: 33.1 | K157: 1825 | L157: 0 | M157: 0 | N157: 1825 | O157: CHF | P157: 20240715 | Q157: 40.5 | R157: 20250121 | S157: 32.3 | T157: 20080627 | V157: XSWX | W157: RS | X157: CH | Y157: 0 | Z157: 34.21
A158: NESTLE N | B158: CH0038863350 | C158: NESN | D158: 3886335 | E158: 74.68 | F158: 75.38 | G158: 74.24 | H158: 20250124 | I158: 74.7 | J158: 74.9 | K158: 4313851 | L158: 326250 | M158: 316562 | N158: 4956663 | O158: CHF | P158: 20240206 | Q158: 100.56 | R158: 20241220 | S158: 72.82 | T158: 20201207 | V158: XSWX | W158: RS | X158: CH | Y158: 0 | Z158: 76.37
A159: NIBE Industrier AB N | B159: SE0015988019 | C159: NIBEB | D159: 111709033 | E159: 3.596 | H159: 20250123 | I159: 3.596 | K159: 0 | L159: 0 | M159: 0 | N159: 0 | O159: CHF | P159: 20240213 | Q159: 5.622 | R159: 20250113 | S159: 3.127 | T159: 20210525 | V159: XSWX | W159: RS | X159: SE | Y159: 0 | Z159: 3.57
A160: NOVARTIS N | B160: CH0012005267 | C160: NOVN | D160: 1200526 | E160: 90.26 | F160: 90.97 | G160: 89.89 | H160: 20250124 | I160: 90.26 | J160: 90.96 | K160: 2958913 | L160: 362000 | M160: 140094 | N160: 3461007 | O160: CHF | P160: 20240902 | Q160: 102.72 | R160: 20240419 | S160: 83.63 | T160: 20201207 | V160: XSWX | W160: RS | X160: CH | Y160: 0 | Z160: 91.14
A161: NOVARTIS N 2. LINIE | B161: CH0038459415 | C161: NOVNEE | D161: 3845941 | E161: 90.27 | F161: 90.58 | G161: 90.06 | H161: 20250124 | I161: 90.23 | J161: 90.56 | K161: 400000 | L161: 0 | M161: 0 | N161: 400000 | O161: CHF | P161: 20240902 | Q161: 102.82 | R161: 20240419 | S161: 84.15 | T161: 20200311 | U161: 20260313 | V161: XSWX | W161: RS | X161: CH | Y161: 0 | Z161: 91.37
A162: Novavest Real Estate N | B162: CH0212186248 | C162: NREN | D162: 21218624 | E162: 35 | F162: 35 | G162: 34.7 | H162: 20250124 | I162: 35.2 | J162: 34.9 | K162: 6646 | L162: 0 | M162: 0 | N162: 6646 | O162: CHF | P162: 20250107 | Q162: 35.7 | R162: 20240809 | S162: 31.7 | T162: 20191216 | V162: XSWX | W162: RS | X162: CH | Y162: 0 | Z162: 34.62
A163: NEWRON PHARMA N | B163: IT0004147952 | C163: NWRN | D163: 2791431 | E163: 9.43 | F163: 9.61 | G163: 9.28 | H163: 20250124 | I163: 9.35 | J163: 9.35 | K163: 77417 | L163: 0 | M163: 0 | N163: 77417 | O163: CHF | P163: 20240624 | Q163: 11.2 | R163: 20240418 | S163: 6.1 | T163: 20061212 | V163: XSWX | W163: RS | X163: IT | Y163: 0 | Z163: 8.4
A164: ORASCOM DEVELOPMENT HLD AG N | B164: CH0038285679 | C164: ODHN | D164: 3828567 | E164: 5.58 | F164: 5.6 | G164: 5.58 | H164: 20250124 | I164: 5.6 | J164: 5.6 | K164: 13283 | L164: 0 | M164: 140 | N164: 13423 | O164: CHF | P164: 20241218 | Q164: 5.76 | R164: 20240626 | S164: 3.2 | T164: 20080514 | V164: XSWX | W164: RS | X164: CH | Y164: 0 | Z164: 5.41
A165: OC OERLIKON N | B165: CH0000816824 | C165: OERL | D165: 81682 | E165: 3.594 | F165: 3.648 | G165: 3.54 | H165: 20250124 | I165: 3.54 | J165: 3.54 | K165: 387820 | L165: 0 | M165: 2027 | N165: 389847 | O165: CHF | P165: 20240619 | Q165: 5.115 | R165: 20250113 | S165: 3.346 | T165: 20100401 | V165: XSWX | W165: RS | X165: CH | Y165: 0 | Z165: 3.63
A166: O FUESSLI N | B166: CH0003420806 | C166: OFN | D166: 342080 | E166: 77 | F166: 77.2 | G166: 76.6 | H166: 20250124 | I166: 77 | J166: 77 | K166: 1114 | L166: 0 | M166: 0 | N166: 1114 | O166: CHF | P166: 20240415 | Q166: 83.6 | R166: 20240131 | S166: 71.4 | T166: 19960802 | V166: XSWX | W166: RS | X166: CH | Y166: 0 | Z166: 76.81
A167: ORIOR N | B167: CH0111677362 | C167: ORON | D167: 11167736 | E167: 38.85 | F167: 39.5 | G167: 38.5 | H167: 20250124 | I167: 38.5 | J167: 38.6 | K167: 8912 | L167: 0 | M167: 208 | N167: 9120 | O167: CHF | P167: 20240129 | Q167: 68.1 | R167: 20241115 | S167: 36.4 | T167: 20100422 | V167: XSWX | W167: RS | X167: CH | Y167: 0 | Z167: 40.4
A168: Peach Property N | B168: CH0118530366 | C168: PEAN | D168: 11853036 | E168: 8.2 | F168: 8.2 | G168: 7.65 | H168: 20250124 | I168: 7.86 | J168: 7.77 | K168: 136802 | L168: 0 | M168: 0 | N168: 136802 | O168: CHF | P168: 20241128 | Q168: 13.92 | R168: 20240822 | S168: 6.3 | T168: 20101112 | V168: XSWX | W168: RS | X168: CH | Y168: 0 | Z168: 9.47
A169: PERROT DUVAL I | B169: CH0252620700 | C169: PEDU | D169: 25262070 | E169: 60 | H169: 20250123 | I169: 60 | K169: 0 | L169: 0 | M169: 0 | N169: 0 | O169: CHF | P169: 20240813 | Q169: 70.5 | R169: 20240611 | S169: 35.2 | T169: 20141110 | V169: XSWX | W169: BS | X169: CH | Y169: 0 | Z169: 59.79
A170: PRIVATE EQUITY N | B170: CH0006089921 | C170: PEHN | D170: 608992 | E170: 75 | F170: 76 | G170: 75 | H170: 20250124 | I170: 75 | J170: 75 | K170: 492 | L170: 0 | M170: 0 | N170: 492 | O170: CHF | P170: 20240605 | Q170: 78 | R170: 20240805 | S170: 65 | T170: 20060516 | V170: XSWX | W170: RS | X170: CH | Y170: 0 | Z170: 72
A171: PEPSICO | B171: US7134481081 | C171: PEP | D171: 961618 | E171: 138 | H171: 20241120 | I171: 138 | K171: 0 | L171: 0 | M171: 0 | N171: 0 | O171: CHF | P171: 20240719 | Q171: 152 | R171: 20241120 | S171: 138 | T171: 19951208 | V171: XSWX | W171: RS | X171: US | Y171: 0 | Z171: 138.5
A172: PARTNERS GROUP N | B172: CH0024608827 | C172: PGHN | D172: 2460882 | E172: 1389.5 | F172: 1412.5 | G172: 1388.5 | H172: 20250124 | I172: 1404 | J172: 1408.5 | K172: 58590 | L172: 400 | M172: 5019 | N172: 64009 | O172: CHF | P172: 20250124 | Q172: 1412.5 | R172: 20240805 | S172: 1045 | T172: 20201207 | V172: XSWX | W172: RS | X172: CH | Y172: 0 | Z172: 1269.95
A173: PIERER Mobility AG | B173: AT0000KTMI02 | C173: PKTM | D173: 41860974 | E173: 17.88 | F173: 19.48 | G173: 16.22 | H173: 20250124 | I173: 15.58 | J173: 16.5 | K173: 73996 | L173: 3074 | M173: 2175 | N173: 79245 | O173: CHF | P173: 20240209 | Q173: 50.8 | R173: 20241113 | S173: 6.1 | T173: 20180525 | V173: XSWX | W173: BS | X173: AT | Y173: 0 | Z173: 11.61
A174: PLAZZA N | B174: CH0284142913 | C174: PLAN | D174: 28414291 | E174: 345 | F174: 347 | G174: 344 | H174: 20250124 | I174: 343 | J174: 344 | K174: 1139 | L174: 0 | M174: 1 | N174: 1140 | O174: CHF | P174: 20250124 | Q174: 347 | R174: 20240626 | S174: 291 | T174: 20150626 | V174: XSWX | W174: RS | X174: CH | Y174: 0 | Z174: 331.45
A175: PHILIP MRRS INT-WI | B175: US7181721090 | C175: PMI | D175: 3754629 | E175: 110 | H175: 20250107 | I175: 110 | K175: 0 | L175: 0 | M175: 0 | N175: 0 | O175: CHF | P175: 20241119 | Q175: 116 | R175: 20240201 | S175: 78 | T175: 20080331 | V175: XSWX | W175: RS | X175: US | Y175: 0 | Z175: 114.77
A176: PHOENIX MECANO N | B176: CH1261338102 | C176: PMN | D176: 126133810 | E176: 415 | F176: 417 | G176: 412 | H176: 20250124 | I176: 417 | J176: 417 | K176: 307 | L176: 0 | M176: 17 | N176: 324 | O176: CHF | P176: 20240516 | Q176: 536 | R176: 20250113 | S176: 400 | T176: 20230526 | V176: XSWX | W176: RS | X176: CH | Y176: 0 | Z176: 436.56
A177: PHOENIX MECANO N 2. LINIE | B177: CH1305603651 | C177: PMNE | D177: 130560365 | E177: 415 | F177: 422 | G177: 415 | H177: 20250124 | I177: 422 | J177: 422 | K177: 84 | L177: 0 | M177: 0 | N177: 84 | O177: CHF | P177: 20240516 | Q177: 530 | R177: 20250113 | S177: 407 | T177: 20231115 | U177: 20251114 | V177: XSWX | W177: RS | X177: CH | Y177: 0 | Z177: 440.25
A178: POLYPEPTIDE N | B178: CH1110760852 | C178: PPGN | D178: 111076085 | E178: 26.95 | F178: 27.6 | G178: 26.75 | H178: 20250124 | I178: 27 | J178: 27.2 | K178: 25171 | L178: 0 | M178: 10573 | N178: 35744 | O178: CHF | P178: 20240813 | Q178: 35.8 | R178: 20240205 | S178: 14.56 | T178: 20210429 | V178: XSWX | W178: RS | X178: CH | Y178: 0 | Z178: 28.08
A179: PSP N | B179: CH0018294154 | C179: PSPN | D179: 1829415 | E179: 132.5 | F179: 133.7 | G179: 132 | H179: 20250124 | I179: 133.3 | J179: 133.6 | K179: 56379 | L179: 0 | M179: 563 | N179: 56942 | O179: CHF | P179: 20250124 | Q179: 133.7 | R179: 20240612 | S179: 110.9 | T179: 20040513 | V179: XSWX | W179: RS | X179: CH | Y179: 0 | Z179: 126.74
A180: ROMANDE ENERGIE N | B180: CH1263676327 | C180: REHN | D180: 126367632 | E180: 46.3 | F180: 47 | G180: 46.3 | H180: 20250124 | I180: 46.6 | J180: 46.8 | K180: 1151 | L180: 0 | M180: 13 | N180: 1164 | O180: CHF | P180: 20240522 | Q180: 58.8 | R180: 20241118 | S180: 41 | T180: 20230628 | V180: XSWX | W180: RS | X180: CH | Y180: 0 | Z180: 44.27
A181: RIETER N | B181: CH0003671440 | C181: RIEN | D181: 367144 | E181: 97.5 | F181: 99 | G181: 97 | H181: 20250124 | I181: 96.8 | J181: 97.3 | K181: 4460 | L181: 0 | M181: 50 | N181: 4510 | O181: CHF | P181: 20240528 | Q181: 138 | R181: 20241220 | S181: 81 | T181: 19960802 | V181: XSWX | W181: RS | X181: CH | Y181: 0 | Z181: 88.87
A182: RELIEF THERAPEUTICS N | B182: CH1251125998 | C182: RLF | D182: 125112599 | E182: 4 | F182: 4.11 | G182: 3.71 | H182: 20250124 | I182: 3.63 | J182: 3.8 | K182: 51226 | L182: 0 | M182: 435 | N182: 51661 | O182: CHF | P182: 20241112 | Q182: 7.6 | R182: 20240827 | S182: 1.055 | T182: 20230505 | V182: XSWX | W182: RS | X182: CH | Y182: 0 | Z182: 5.3
A183: ROCHE I | B183: CH0012032113 | C183: RO | D183: 1203211 | E183: 293 | F183: 293.6 | G183: 290.6 | H183: 20250124 | I183: 292.6 | J183: 293.6 | K183: 22798 | L183: 0 | M183: 1318 | N183: 24116 | O183: CHF | P183: 20240729 | Q183: 312 | R183: 20240408 | S183: 229.4 | T183: 20010504 | V183: XSWX | W183: BS | X183: CH | Y183: 0 | Z183: 277.37
A184: ROCHE GS | B184: CH0012032048 | C184: ROG | D184: 1203204 | E184: 274.9 | F184: 276.1 | G184: 273.7 | H184: 20250124 | I184: 274.4 | J184: 275 | K184: 806750 | L184: 49500 | M184: 20373 | N184: 876623 | O184: CHF | P184: 20240902 | Q184: 288.2 | R184: 20240503 | S184: 212.9 | T184: 20201207 | V184: XSWX | W184: GC | X184: CH | Y184: 0 | Z184: 260.37
A185: R&S GROUP N | B185: CH1107979838 | C185: RSGN | D185: 110797983 | E185: 21.5 | F185: 21.5 | G185: 20.7 | H185: 20250124 | I185: 20.5 | J185: 20.7 | K185: 66383 | L185: 0 | M185: 91 | N185: 66474 | O185: CHF | P185: 20241029 | Q185: 23.7 | R185: 20240319 | S185: 9.8 | T185: 20211215 | V185: XSWX | W185: RS | X185: CH | Y185: 0 | Z185: 20.21
A186: SANTHERA N | B186: CH1276028821 | C186: SANN | D186: 127602882 | E186: 15.18 | F186: 16 | G186: 15.04 | H186: 20250124 | I186: 15.54 | J186: 15.28 | K186: 51771 | L186: 0 | M186: 513 | N186: 52284 | O186: CHF | P186: 20250123 | Q186: 16.74 | R186: 20241118 | S186: 7.21 | T186: 20230703 | V186: XSWX | W186: RS | X186: CH | Y186: 0 | Z186: 12.81
A187: SCHINDLER N | B187: CH0024638212 | C187: SCHN | D187: 2463821 | E187: 252.5 | F187: 253.5 | G187: 251 | H187: 20250124 | I187: 253 | J187: 253 | K187: 13506 | L187: 0 | M187: 253 | N187: 13759 | O187: CHF | P187: 20241205 | Q187: 256.5 | R187: 20240209 | S187: 202 | T187: 20060327 | V187: XSWX | W187: RS | X187: CH | Y187: 0 | Z187: 248.3
A188: SCHINDLER N 2.LINIE | B188: CH1391509895 | C188: SCHNE | D188: 139150989 | E188: 247.5 | H188: 20250122 | I188: 247.5 | K188: 0 | L188: 0 | M188: 0 | N188: 0 | O188: CHF | P188: 20241205 | Q188: 257 | R188: 20250113 | S188: 242.5 | T188: 20241106 | U188: 20261105 | V188: XSWX | W188: RS | X188: CH | Y188: 0 | Z188: 248.49
A189: SCHINDLER PS | B189: CH0024638196 | C189: SCHP | D189: 2463819 | E189: 257.8 | F189: 259.4 | G189: 256.6 | H189: 20250124 | I189: 258.6 | J189: 259.2 | K189: 78582 | L189: 0 | M189: 4573 | N189: 83155 | O189: CHF | P189: 20241205 | Q189: 265 | R189: 20240129 | S189: 211.7 | T189: 20201207 | V189: XSWX | W189: PC | X189: CH | Y189: 0 | Z189: 253.95
A190: SCHINDLER PS 2.LINIE | B190: CH1391509903 | C190: SCHPE | D190: 139150990 | E190: 253.2 | H190: 20250122 | I190: 253.2 | K190: 0 | L190: 0 | M190: 0 | N190: 0 | O190: CHF | P190: 20241205 | Q190: 265 | R190: 20250113 | S190: 245.6 | T190: 20241106 | U190: 20261105 | V190: XSWX | W190: PC | X190: CH | Y190: 0 | Z190: 253.75
A191: SWISSCOM N | B191: CH0008742519 | C191: SCMN | D191: 874251 | E191: 506 | F191: 508 | G191: 504.5 | H191: 20250124 | I191: 507.5 | J191: 507.5 | K191: 91774 | L191: 15160 | M191: 7806 | N191: 114740 | O191: CHF | P191: 20241017 | Q191: 571 | R191: 20240530 | S191: 486.8 | T191: 20201207 | V191: XSWX | W191: RS | X191: CH | Y191: 0 | Z191: 513.05
A192: SCOR SE | B192: FR0010411983 | C192: SCR | D192: 2844943 | E192: 21.9 | H192: 20241125 | I192: 21.9 | K192: 0 | L192: 0 | M192: 0 | N192: 0 | O192: CHF | P192: 20240412 | Q192: 29.82 | R192: 20240808 | S192: 16.95 | T192: 20070808 | V192: XSWX | W192: RS | X192: FR | Y192: 0 | Z192: 22.28
A193: SANDOZ GROUP N | B193: CH1243598427 | C193: SDZ | D193: 124359842 | E193: 42.89 | F193: 43.48 | G193: 42.44 | H193: 20250124 | I193: 42.5 | J193: 42.74 | K193: 796662 | L193: 11200 | M193: 91436 | N193: 899298 | O193: CHF | P193: 20250124 | Q193: 43.48 | R193: 20240410 | S193: 25.33 | T193: 20231004 | V193: XSWX | W193: RS | X193: CH | Y193: 0 | Z193: 39.22
A194: Shenzhen Senior Tech Material | B194: US82322J1079 | C194: SENIOR | D194: 123430195 | E194: 9.45 | I194: 9.45 | K194: 0 | L194: 0 | M194: 0 | N194: 0 | O194: USD | T194: 20231218 | V194: XSWX | W194: BS | X194: 10 | Y194: 0
A195: SENSIRION N | B195: CH0406705126 | C195: SENS | D195: 40670512 | E195: 63.2 | F195: 65.3 | G195: 63.2 | H195: 20250124 | I195: 62.6 | J195: 63.9 | K195: 11761 | L195: 0 | M195: 149 | N195: 11910 | O195: CHF | P195: 20240718 | Q195: 84.4 | R195: 20241121 | S195: 50.3 | T195: 20180322 | V195: XSWX | W195: RS | X195: CH | Y195: 0 | Z195: 57.52
A196: SF Urban Properties N | B196: CH0032816131 | C196: SFPN | D196: 3281613 | E196: 97.2 | F196: 97.6 | G196: 97 | H196: 20250124 | I196: 97.6 | J196: 97.2 | K196: 1161 | L196: 0 | M196: 0 | N196: 1161 | O196: CHF | P196: 20250103 | Q196: 98.4 | R196: 20240625 | S196: 89.4 | T196: 20120417 | V196: XSWX | W196: RS | X196: CH | Y196: 0 | Z196: 94.16
A197: SFS Group N | B197: CH0239229302 | C197: SFSN | D197: 23922930 | E197: 116.4 | F197: 122 | G197: 115.6 | H197: 20250124 | I197: 121.8 | J197: 120.2 | K197: 54736 | L197: 0 | M197: 4277 | N197: 59013 | O197: CHF | P197: 20241001 | Q197: 133.8 | R197: 20240129 | S197: 102.8 | T197: 20140507 | V197: XSWX | W197: RS | X197: CH | Y197: 0 | Z197: 123.41
A198: SIEGFRIED N | B198: CH0014284498 | C198: SFZN | D198: 1428449 | E198: 998 | F198: 1016 | G198: 995 | H198: 20250124 | I198: 994 | J198: 998 | K198: 7799 | L198: 0 | M198: 490 | N198: 8289 | O198: CHF | P198: 20240916 | Q198: 1188 | R198: 20240220 | S198: 831.5 | T198: 20020806 | V198: XSWX | W198: RS | X198: CH | Y198: 0 | Z198: 1046.2
A199: ST GALLER KB N | B199: CH0011484067 | C199: SGKN | D199: 1148406 | E199: 450.5 | F199: 457 | G199: 450.5 | H199: 20250124 | I199: 454.5 | J199: 457 | K199: 2014 | L199: 0 | M199: 68 | N199: 2082 | O199: CHF | P199: 20240201 | Q199: 508 | R199: 20240911 | S199: 404 | T199: 20010402 | V199: XSWX | W199: RS | X199: CH | Y199: 0 | Z199: 433.11
A200: SGS N | B200: CH1256740924 | C200: SGSN | D200: 125674092 | E200: 85.02 | F200: 86.28 | G200: 84.84 | H200: 20250124 | I200: 86.32 | J200: 86.18 | K200: 340285 | L200: 555 | M200: 36465 | N200: 377305 | O200: CHF | P200: 20240926 | Q200: 98.4 | R200: 20240702 | S200: 78.88 | T200: 20230412 | V200: XSWX | W200: RS | X200: CH | Y200: 0 | Z200: 89.05
... 61 more rows

Sheet Tabelle1
C1: VERÄNDERUNGSRATEN | N1: Durchschnittliche Gewinnveränderungsraten
C2: 2013 | D2: 2014 | E2: 2015 | F2: 2016 | G2: 2017 | H2: 2018 | I2: 2019 | J2: 2020 | K2: 2021 | L2: 2022 | M2: 2023
B13: ABB LTD N | C13: =('SMI Analyse KGV'!M15-'SMI Analyse KGV'!L15)/ABS('SMI Analyse KGV'!L15) -> 0.02542372881 | D13: =('SMI Analyse KGV'!N15-'SMI Analyse KGV'!M15)/ABS('SMI Analyse KGV'!M15) -> -0.06611570248 | E13: =('SMI Analyse KGV'!O15-'SMI Analyse KGV'!N15)/ABS('SMI Analyse KGV'!N15) -> -0.2300884956 | F13: =('SMI Analyse KGV'!P15-'SMI Analyse KGV'!O15)/ABS('SMI Analyse KGV'!O15) -> 0.01149425287 | G13: =('SMI Analyse KGV'!Q15-'SMI Analyse KGV'!P15)/ABS('SMI Analyse KGV'!P15) -> 0.1818181818 | H13: =('SMI Analyse KGV'!R15-'SMI Analyse KGV'!Q15)/ABS('SMI Analyse KGV'!Q15) -> -0.01923076923 | I13: =('SMI Analyse KGV'!S15-'SMI Analyse KGV'!R15)/ABS('SMI Analyse KGV'!R15) -> -0.3431372549 | J13: =('SMI Analyse KGV'!T15-'SMI Analyse KGV'!S15)/ABS('SMI Analyse KGV'!S15) -> 2.641791045 | K13: =('SMI Analyse KGV'!U15-'SMI Analyse KGV'!T15)/ABS('SMI Analyse KGV'!T15) -> -0.06967213115 | L13: =('SMI Analyse KGV'!V15-'SMI Analyse KGV'!U15)/ABS('SMI Analyse KGV'!U15) -> -0.4273127753 | M13: =('SMI Analyse KGV'!W15-'SMI Analyse KGV'!V15)/ABS('SMI Analyse KGV'!V15) -> 0.5461538462 | N13: =AVERAGE(D13:M13) -> 0.2225700197
B15: ALCON N 1) | H15: =('SMI Analyse KGV'!R17-'SMI Analyse KGV'!Q17)/ABS('SMI Analyse KGV'!Q17) -> -1.884615385 | I15: =('SMI Analyse KGV'!S17-'SMI Analyse KGV'!R17)/ABS('SMI Analyse KGV'!R17) -> -1.913043478 | J15: =('SMI Analyse KGV'!T17-'SMI Analyse KGV'!S17)/ABS('SMI Analyse KGV'!S17) -> 0.1865671642 | K15: =('SMI Analyse KGV'!U17-'SMI Analyse KGV'!T17)/ABS('SMI Analyse KGV'!T17) -> 1.697247706 | L15: =('SMI Analyse KGV'!V17-'SMI Analyse KGV'!U17)/ABS('SMI Analyse KGV'!U17) -> -0.1052631579 | M15: =('SMI Analyse KGV'!W17-'SMI Analyse KGV'!V17)/ABS('SMI Analyse KGV'!V17) -> 1.882352941 | N15: =AVERAGE(D15:M15) -> -0.02279236817
B17: GEBERIT N | C17: =('SMI Analyse KGV'!M19-'SMI Analyse KGV'!L19)/ABS('SMI Analyse KGV'!L19) -> 0.1253644315 | D17: =('SMI Analyse KGV'!N19-'SMI Analyse KGV'!M19)/ABS('SMI Analyse KGV'!M19) -> 0.1450777202 | E17: =('SMI Analyse KGV'!O19-'SMI Analyse KGV'!N19)/ABS('SMI Analyse KGV'!N19) -> -0.1470588235 | F17: =('SMI Analyse KGV'!P19-'SMI Analyse KGV'!O19)/ABS('SMI Analyse KGV'!O19) -> 0.3129973475 | G17: =('SMI Analyse KGV'!Q19-'SMI Analyse KGV'!P19)/ABS('SMI Analyse KGV'!P19) -> -0.03636363636 | H17: =('SMI Analyse KGV'!R19-'SMI Analyse KGV'!Q19)/ABS('SMI Analyse KGV'!Q19) -> 0.1453529001 | I17: =('SMI Analyse KGV'!S19-'SMI Analyse KGV'!R19)/ABS('SMI Analyse KGV'!R19) -> 0.09395973154 | J17: =('SMI Analyse KGV'!T19-'SMI Analyse KGV'!S19)/ABS('SMI Analyse KGV'!S19) -> -0.002788622421 | K17: =('SMI Analyse KGV'!U19-'SMI Analyse KGV'!T19)/ABS('SMI Analyse KGV'!T19) -> 0.1834451902 | L17: =('SMI Analyse KGV'!V19-'SMI Analyse KGV'!U19)/ABS('SMI Analyse KGV'!U19) -> -0.0354442344 | M17: =('SMI Analyse KGV'!W19-'SMI Analyse KGV'!V19)/ABS('SMI Analyse KGV'!V19) -> -0.1009309162 | N17: =AVERAGE(D17:M17) -> 0.05582466565
B19: GIVAUDAN N | C19: =('SMI Analyse KGV'!M21-'SMI Analyse KGV'!L21)/ABS('SMI Analyse KGV'!L21) -> 0.1779264214 | D19: =('SMI Analyse KGV'!N21-'SMI Analyse KGV'!M21)/ABS('SMI Analyse KGV'!M21) -> 0.1423433655 | E19: =('SMI Analyse KGV'!O21-'SMI Analyse KGV'!N21)/ABS('SMI Analyse KGV'!N21) -> 0.1111847556 | F19: =('SMI Analyse KGV'!P21-'SMI Analyse KGV'!O21)/ABS('SMI Analyse KGV'!O21) -> 0.03399940352 | G19: =('SMI Analyse KGV'!Q21-'SMI Analyse KGV'!P21)/ABS('SMI Analyse KGV'!P21) -> 0.1182578598 | H19: =('SMI Analyse KGV'!R21-'SMI Analyse KGV'!Q21)/ABS('SMI Analyse KGV'!Q21) -> -0.07970079959 | I19: =('SMI Analyse KGV'!S21-'SMI Analyse KGV'!R21)/ABS('SMI Analyse KGV'!R21) -> 0.05927690583 | J19: =('SMI Analyse KGV'!T21-'SMI Analyse KGV'!S21)/ABS('SMI Analyse KGV'!S21) -> 0.05781187988 | K19: =('SMI Analyse KGV'!U21-'SMI Analyse KGV'!T21)/ABS('SMI Analyse KGV'!T21) -> 0.1051775888 | L19: =('SMI Analyse KGV'!V21-'SMI Analyse KGV'!U21)/ABS('SMI Analyse KGV'!U21) -> 0.04684847799 | M19: =('SMI Analyse KGV'!W21-'SMI Analyse KGV'!V21)/ABS('SMI Analyse KGV'!V21) -> 0.04280618312 | N19: =AVERAGE(D19:M19) -> 0.06380056205
B21: HOLCIM N | C21: =('SMI Analyse KGV'!M23-'SMI Analyse KGV'!L23)/ABS('SMI Analyse KGV'!L23) -> 1.036458333 | D21: =('SMI Analyse KGV'!N23-'SMI Analyse KGV'!M23)/ABS('SMI Analyse KGV'!M23) -> 0.01023017903 | E21: =('SMI Analyse KGV'!O23-'SMI Analyse KGV'!N23)/ABS('SMI Analyse KGV'!N23) -> -1.787341772 | F21: =('SMI Analyse KGV'!P23-'SMI Analyse KGV'!O23)/ABS('SMI Analyse KGV'!O23) -> 1.951768489 | G21: =('SMI Analyse KGV'!Q23-'SMI Analyse KGV'!P23)/ABS('SMI Analyse KGV'!P23) -> -1.939189189 | H21: =('SMI Analyse KGV'!R23-'SMI Analyse KGV'!Q23)/ABS('SMI Analyse KGV'!Q23) -> 1.90647482 | I21: =('SMI Analyse KGV'!S23-'SMI Analyse KGV'!R23)/ABS('SMI Analyse KGV'!R23) -> 0.4603174603 | J21: =('SMI Analyse KGV'!T23-'SMI Analyse KGV'!S23)/ABS('SMI Analyse KGV'!S23) -> -0.2554347826 | K21: =('SMI Analyse KGV'!U23-'SMI Analyse KGV'!T23)/ABS('SMI Analyse KGV'!T23) -> 0.3576642336 | L21: =('SMI Analyse KGV'!V23-'SMI Analyse KGV'!U23)/ABS('SMI Analyse KGV'!U23) -> 0.4677419355 | M21: =('SMI Analyse KGV'!W23-'SMI Analyse KGV'!V23)/ABS('SMI Analyse KGV'!V23) -> -0.02014652015 | N21: =AVERAGE(D21:M21) -> 0.1152084853
B23: KÜHNE & NAGEL | C23: =('SMI Analyse KGV'!M25-'SMI Analyse KGV'!L25)/ABS('SMI Analyse KGV'!L25) -> 0.25 | D23: =('SMI Analyse KGV'!N25-'SMI Analyse KGV'!M25)/ABS('SMI Analyse KGV'!M25) -> 0.056 | E23: =('SMI Analyse KGV'!O25-'SMI Analyse KGV'!N25)/ABS('SMI Analyse KGV'!N25) -> 0.06818181818 | F23: =('SMI Analyse KGV'!P25-'SMI Analyse KGV'!O25)/ABS('SMI Analyse KGV'!O25) -> 0.06205673759 | G23: =('SMI Analyse KGV'!Q25-'SMI Analyse KGV'!P25)/ABS('SMI Analyse KGV'!P25) -> 0.02838063439 | H23: =('SMI Analyse KGV'!R25-'SMI Analyse KGV'!Q25)/ABS('SMI Analyse KGV'!Q25) -> 0.04383116883 | I23: =('SMI Analyse KGV'!S25-'SMI Analyse KGV'!R25)/ABS('SMI Analyse KGV'!R25) -> 0.03732503888 | J23: =('SMI Analyse KGV'!T25-'SMI Analyse KGV'!S25)/ABS('SMI Analyse KGV'!S25) -> -0.011994003 | K23: =('SMI Analyse KGV'!U25-'SMI Analyse KGV'!T25)/ABS('SMI Analyse KGV'!T25) -> 1.561456753 | L23: =('SMI Analyse KGV'!V25-'SMI Analyse KGV'!U25)/ABS('SMI Analyse KGV'!U25) -> 0.3050947867 | M23: =('SMI Analyse KGV'!W25-'SMI Analyse KGV'!V25)/ABS('SMI Analyse KGV'!V25) -> -0.4543803904 | N23: =AVERAGE(D23:M23) -> 0.1695952544
B25: LOGITECH | C25: =('SMI Analyse KGV'!M27-'SMI Analyse KGV'!L27)/ABS('SMI Analyse KGV'!L27) -> 1.319444444 | D25: =('SMI Analyse KGV'!N27-'SMI Analyse KGV'!M27)/ABS('SMI Analyse KGV'!M27) -> -0.8695652174 | E25: =('SMI Analyse KGV'!O27-'SMI Analyse KGV'!N27)/ABS('SMI Analyse KGV'!N27) -> 7.833333333 | F25: =('SMI Analyse KGV'!P27-'SMI Analyse KGV'!O27)/ABS('SMI Analyse KGV'!O27) -> 1.339622642 | G25: =('SMI Analyse KGV'!Q27-'SMI Analyse KGV'!P27)/ABS('SMI Analyse KGV'!P27) -> -0.008064516129 | H25: =('SMI Analyse KGV'!R27-'SMI Analyse KGV'!Q27)/ABS('SMI Analyse KGV'!Q27) -> 0.2357723577 | I25: =('SMI Analyse KGV'!S27-'SMI Analyse KGV'!R27)/ABS('SMI Analyse KGV'!R27) -> 0.75 | J25: =('SMI Analyse KGV'!T27-'SMI Analyse KGV'!S27)/ABS('SMI Analyse KGV'!S27) -> 1.071428571 | K25: =('SMI Analyse KGV'!U27-'SMI Analyse KGV'!T27)/ABS('SMI Analyse KGV'!T27) -> -0.3139745917 | L25: =('SMI Analyse KGV'!V27-'SMI Analyse KGV'!U27)/ABS('SMI Analyse KGV'!U27) -> -0.4100529101 | M25: =('SMI Analyse KGV'!W27-'SMI Analyse KGV'!V27)/ABS('SMI Analyse KGV'!V27) -> 0.735426009 | N25: =AVERAGE(D25:M25) -> 1.036392568
B27: LONZA N | C27: =('SMI Analyse KGV'!M29-'SMI Analyse KGV'!L29)/ABS('SMI Analyse KGV'!L29) -> -0.5228571429 | D27: =('SMI Analyse KGV'!N29-'SMI Analyse KGV'!M29)/ABS('SMI Analyse KGV'!M29) -> 1.718562874 | E27: =('SMI Analyse KGV'!O29-'SMI Analyse KGV'!N29)/ABS('SMI Analyse KGV'!N29) -> 0.1585903084 | F27: =('SMI Analyse KGV'!P29-'SMI Analyse KGV'!O29)/ABS('SMI Analyse KGV'!O29) -> 0.08174904943 | G27: =('SMI Analyse KGV'!Q29-'SMI Analyse KGV'!P29)/ABS('SMI Analyse KGV'!P29) -> 0.8629173989 | H27: =('SMI Analyse KGV'!R29-'SMI Analyse KGV'!Q29)/ABS('SMI Analyse KGV'!Q29) -> -0.2943396226 | I27: =('SMI Analyse KGV'!S29-'SMI Analyse KGV'!R29)/ABS('SMI Analyse KGV'!R29) -> 0.1564171123 | J27: =('SMI Analyse KGV'!T29-'SMI Analyse KGV'!S29)/ABS('SMI Analyse KGV'!S29) -> 0.3445086705 | K27: =('SMI Analyse KGV'!U29-'SMI Analyse KGV'!T29)/ABS('SMI Analyse KGV'!T29) -> 2.39810834 | L27: =('SMI Analyse KGV'!V29-'SMI Analyse KGV'!U29)/ABS('SMI Analyse KGV'!U29) -> -0.5865384615 | M27: =('SMI Analyse KGV'!W29-'SMI Analyse KGV'!V29)/ABS('SMI Analyse KGV'!V29) -> -0.4565483476 | N27: =AVERAGE(D27:M27) -> 0.4383427323
B29: NESTLE N | C29: =('SMI Analyse KGV'!M31-'SMI Analyse KGV'!L31)/ABS('SMI Analyse KGV'!L31) -> -0.021875 | D29: =('SMI Analyse KGV'!N31-'SMI Analyse KGV'!M31)/ABS('SMI Analyse KGV'!M31) -> 0.4440894569 | E29: =('SMI Analyse KGV'!O31-'SMI Analyse KGV'!N31)/ABS('SMI Analyse KGV'!N31) -> -0.360619469 | F29: =('SMI Analyse KGV'!P31-'SMI Analyse KGV'!O31)/ABS('SMI Analyse KGV'!O31) -> -0.04844290657 | G29: =('SMI Analyse KGV'!Q31-'SMI Analyse KGV'!P31)/ABS('SMI Analyse KGV'!P31) -> -0.1563636364 | H29: =('SMI Analyse KGV'!R31-'SMI Analyse KGV'!Q31)/ABS('SMI Analyse KGV'!Q31) -> 0.4482758621 | I29: =('SMI Analyse KGV'!S31-'SMI Analyse KGV'!R31)/ABS('SMI Analyse KGV'!R31) -> 0.2797619048 | J29: =('SMI Analyse KGV'!T31-'SMI Analyse KGV'!S31)/ABS('SMI Analyse KGV'!S31) -> -0.002325581395 | K29: =('SMI Analyse KGV'!U31-'SMI Analyse KGV'!T31)/ABS('SMI Analyse KGV'!T31) -> 0.4125874126 | L29: =('SMI Analyse KGV'!V31-'SMI Analyse KGV'!U31)/ABS('SMI Analyse KGV'!U31) -> -0.4356435644 | M29: =('SMI Analyse KGV'!W31-'SMI Analyse KGV'!V31)/ABS('SMI Analyse KGV'!V31) -> 0.2368421053 | N29: =AVERAGE(D29:M29) -> 0.08181615838
B31: NOVARTIS N | C31: =('SMI Analyse KGV'!M33-'SMI Analyse KGV'!L33)/ABS('SMI Analyse KGV'!L33) -> -0.04884318766 | D31: =('SMI Analyse KGV'!N33-'SMI Analyse KGV'!M33)/ABS('SMI Analyse KGV'!M33) -> 0.1162162162 | E31: =('SMI Analyse KGV'!O33-'SMI Analyse KGV'!N33)/ABS('SMI Analyse KGV'!N33) -> -0.3026634383 | F31: =('SMI Analyse KGV'!P33-'SMI Analyse KGV'!O33)/ABS('SMI Analyse KGV'!O33) -> -0.02083333333 | G31: =('SMI Analyse KGV'!Q33-'SMI Analyse KGV'!P33)/ABS('SMI Analyse KGV'!P33) -> 0.1524822695 | H31: =('SMI Analyse KGV'!R33-'SMI Analyse KGV'!Q33)/ABS('SMI Analyse KGV'!Q33) -> 0.6553846154 | I31: =('SMI Analyse KGV'!S33-'SMI Analyse KGV'!R33)/ABS('SMI Analyse KGV'!R33) -> -0.0594795539 | J31: =('SMI Analyse KGV'!T33-'SMI Analyse KGV'!S33)/ABS('SMI Analyse KGV'!S33) -> -0.3043478261 | K31: =('SMI Analyse KGV'!U33-'SMI Analyse KGV'!T33)/ABS('SMI Analyse KGV'!T33) -> 2.019886364 | L31: =('SMI Analyse KGV'!V33-'SMI Analyse KGV'!U33)/ABS('SMI Analyse KGV'!U33) -> -0.7017873942 | M31: =('SMI Analyse KGV'!W33-'SMI Analyse KGV'!V33)/ABS('SMI Analyse KGV'!V33) -> 1.239747634 | N31: =AVERAGE(D31:M31) -> 0.2794605553
B33: PARTNERS GROUP | C33: =('SMI Analyse KGV'!M35-'SMI Analyse KGV'!L35)/ABS('SMI Analyse KGV'!L35) -> 0.2178217822 | D33: =('SMI Analyse KGV'!N35-'SMI Analyse KGV'!M35)/ABS('SMI Analyse KGV'!M35) -> 0.1772357724 | E33: =('SMI Analyse KGV'!O35-'SMI Analyse KGV'!N35)/ABS('SMI Analyse KGV'!N35) -> 0.03522099448 | F33: =('SMI Analyse KGV'!P35-'SMI Analyse KGV'!O35)/ABS('SMI Analyse KGV'!O35) -> 0.4109406271 | G33: =('SMI Analyse KGV'!Q35-'SMI Analyse KGV'!P35)/ABS('SMI Analyse KGV'!P35) -> 0.3413711584 | H33: =('SMI Analyse KGV'!R35-'SMI Analyse KGV'!Q35)/ABS('SMI Analyse KGV'!Q35) -> 0.01903419105 | I33: =('SMI Analyse KGV'!S35-'SMI Analyse KGV'!R35)/ABS('SMI Analyse KGV'!R35) -> 0.1736423383 | J33: =('SMI Analyse KGV'!T35-'SMI Analyse KGV'!S35)/ABS('SMI Analyse KGV'!S35) -> -0.1052166225 | K33: =('SMI Analyse KGV'!U35-'SMI Analyse KGV'!T35)/ABS('SMI Analyse KGV'!T35) -> 0.8155467721 | L33: =('SMI Analyse KGV'!V35-'SMI Analyse KGV'!U35)/ABS('SMI Analyse KGV'!U35) -> -0.290820029 | M33: =('SMI Analyse KGV'!W35-'SMI Analyse KGV'!V35)/ABS('SMI Analyse KGV'!V35) -> -0.01381427475 | N33: =AVERAGE(D33:M33) -> 0.1563140927
B35: RICHEMONT 2) | C35: =('SMI Analyse KGV'!M37-'SMI Analyse KGV'!L37)/ABS('SMI Analyse KGV'!L37) -> 0.02222222222 | D35: =('SMI Analyse KGV'!N37-'SMI Analyse KGV'!M37)/ABS('SMI Analyse KGV'!M37) -> -0.3597826087 | E35: =('SMI Analyse KGV'!O37-'SMI Analyse KGV'!N37)/ABS('SMI Analyse KGV'!N37) -> 0.6723259762 | F35: =('SMI Analyse KGV'!P37-'SMI Analyse KGV'!O37)/ABS('SMI Analyse KGV'!O37) -> -0.4568527919 | G35: =('SMI Analyse KGV'!Q37-'SMI Analyse KGV'!P37)/ABS('SMI Analyse KGV'!P37) -> 0.009345794393 | H35: =('SMI Analyse KGV'!R37-'SMI Analyse KGV'!Q37)/ABS('SMI Analyse KGV'!Q37) -> 1.281018519 | I35: =('SMI Analyse KGV'!S37-'SMI Analyse KGV'!R37)/ABS('SMI Analyse KGV'!R37) -> -0.6649076517 | J35: =('SMI Analyse KGV'!T37-'SMI Analyse KGV'!S37)/ABS('SMI Analyse KGV'!S37) -> 0.3930950939 | K35: =('SMI Analyse KGV'!U37-'SMI Analyse KGV'!T37)/ABS('SMI Analyse KGV'!T37) -> 0.57 | L35: =('SMI Analyse KGV'!V37-'SMI Analyse KGV'!U37)/ABS('SMI Analyse KGV'!U37) -> -0.8504569371 | M35: =('SMI Analyse KGV'!W37-'SMI Analyse KGV'!V37)/ABS('SMI Analyse KGV'!V37) -> 6.55 | N35: =AVERAGE(D35:M35) -> 0.7143785394
B37: ROCHE GS | C37: =('SMI Analyse KGV'!M39-'SMI Analyse KGV'!L39)/ABS('SMI Analyse KGV'!L39) -> 0.1586021505 | D37: =('SMI Analyse KGV'!N39-'SMI Analyse KGV'!M39)/ABS('SMI Analyse KGV'!M39) -> -0.1639597834 | E37: =('SMI Analyse KGV'!O39-'SMI Analyse KGV'!N39)/ABS('SMI Analyse KGV'!N39) -> -0.04902867715 | F37: =('SMI Analyse KGV'!P39-'SMI Analyse KGV'!O39)/ABS('SMI Analyse KGV'!O39) -> 0.0826848249 | G37: =('SMI Analyse KGV'!Q39-'SMI Analyse KGV'!P39)/ABS('SMI Analyse KGV'!P39) -> -0.09793351303 | H37: =('SMI Analyse KGV'!R39-'SMI Analyse KGV'!Q39)/ABS('SMI Analyse KGV'!Q39) -> 0.2161354582 | I37: =('SMI Analyse KGV'!S39-'SMI Analyse KGV'!R39)/ABS('SMI Analyse KGV'!R39) -> 0.2792792793 | J37: =('SMI Analyse KGV'!T39-'SMI Analyse KGV'!S39)/ABS('SMI Analyse KGV'!S39) -> 0.0576184379 | K37: =('SMI Analyse KGV'!U39-'SMI Analyse KGV'!T39)/ABS('SMI Analyse KGV'!T39) -> -0.01937046005 | L37: =('SMI Analyse KGV'!V39-'SMI Analyse KGV'!U39)/ABS('SMI Analyse KGV'!U39) -> -0.0512345679 | M37: =('SMI Analyse KGV'!W39-'SMI Analyse KGV'!V39)/ABS('SMI Analyse KGV'!V39) -> -0.06896551724 | N37: =AVERAGE(D37:M37) -> 0.01852254814
B39: SIKA | C39: =('SMI Analyse KGV'!M41-'SMI Analyse KGV'!L41)/ABS('SMI Analyse KGV'!L41) -> 0.2272727273 | D39: =('SMI Analyse KGV'!N41-'SMI Analyse KGV'!M41)/ABS('SMI Analyse KGV'!M41) -> 0.2814814815 | E39: =('SMI Analyse KGV'!O41-'SMI Analyse KGV'!N41)/ABS('SMI Analyse KGV'!N41) -> 0.04838150289 | F39: =('SMI Analyse KGV'!P41-'SMI Analyse KGV'!O41)/ABS('SMI Analyse KGV'!O41) -> 0.2229696201 | G39: =('SMI Analyse KGV'!Q41-'SMI Analyse KGV'!P41)/ABS('SMI Analyse KGV'!P41) -> 0.1429601912 | H39: =('SMI Analyse KGV'!R41-'SMI Analyse KGV'!Q41)/ABS('SMI Analyse KGV'!Q41) -> 0.08393815084 | I39: =('SMI Analyse KGV'!S41-'SMI Analyse KGV'!R41)/ABS('SMI Analyse KGV'!R41) -> 0.05021834061 | J39: =('SMI Analyse KGV'!T41-'SMI Analyse KGV'!S41)/ABS('SMI Analyse KGV'!S41) -> 0.08523908524 | K39: =('SMI Analyse KGV'!U41-'SMI Analyse KGV'!T41)/ABS('SMI Analyse KGV'!T41) -> 0.2643678161 | L39: =('SMI Analyse KGV'!V41-'SMI Analyse KGV'!U41)/ABS('SMI Analyse KGV'!U41) -> 0.1045454545 | M39: =('SMI Analyse KGV'!W41-'SMI Analyse KGV'!V41)/ABS('SMI Analyse KGV'!V41) -> -0.0877914952 | N39: =AVERAGE(D39:M39) -> 0.1196310148
B41: SONOVA | C41: =('SMI Analyse KGV'!M43-'SMI Analyse KGV'!L43)/ABS('SMI Analyse KGV'!L43) -> 2.1875 | D41: =('SMI Analyse KGV'!N43-'SMI Analyse KGV'!M43)/ABS('SMI Analyse KGV'!M43) -> 0.05294117647 | E41: =('SMI Analyse KGV'!O43-'SMI Analyse KGV'!N43)/ABS('SMI Analyse KGV'!N43) -> -0.04841713222 | F41: =('SMI Analyse KGV'!P43-'SMI Analyse KGV'!O43)/ABS('SMI Analyse KGV'!O43) -> 0.0469667319 | G41: =('SMI Analyse KGV'!Q43-'SMI Analyse KGV'!P43)/ABS('SMI Analyse KGV'!P43) -> 0.1457943925 | H41: =('SMI Analyse KGV'!R43-'SMI Analyse KGV'!Q43)/ABS('SMI Analyse KGV'!Q43) -> 0.1386623165 | I41: =('SMI Analyse KGV'!S43-'SMI Analyse KGV'!R43)/ABS('SMI Analyse KGV'!R43) -> 0.09025787966 | J41: =('SMI Analyse KGV'!T43-'SMI Analyse KGV'!S43)/ABS('SMI Analyse KGV'!S43) -> 0.2128777924 | K41: =('SMI Analyse KGV'!U43-'SMI Analyse KGV'!T43)/ABS('SMI Analyse KGV'!T43) -> 0.1213434453 | L41: =('SMI Analyse KGV'!V43-'SMI Analyse KGV'!U43)/ABS('SMI Analyse KGV'!U43) -> 0.03574879227 | M41: =('SMI Analyse KGV'!W43-'SMI Analyse KGV'!V43)/ABS('SMI Analyse KGV'!V43) -> -0.0625 | N41: =AVERAGE(D41:M41) -> 0.07336753947
B43: SWISS LIFE HOLDING N | C43: =('SMI Analyse KGV'!M45-'SMI Analyse KGV'!L45)/ABS('SMI Analyse KGV'!L45) -> 7.468531469 | D43: =('SMI Analyse KGV'!N45-'SMI Analyse KGV'!M45)/ABS('SMI Analyse KGV'!M45) -> -0.004541701073 | E43: =('SMI Analyse KGV'!O45-'SMI Analyse KGV'!N45)/ABS('SMI Analyse KGV'!N45) -> 0.07216922439 | F43: =('SMI Analyse KGV'!P45-'SMI Analyse KGV'!O45)/ABS('SMI Analyse KGV'!O45) -> 0.05493230174 | G43: =('SMI Analyse KGV'!Q45-'SMI Analyse KGV'!P45)/ABS('SMI Analyse KGV'!P45) -> 0.08654198753 | H43: =('SMI Analyse KGV'!R45-'SMI Analyse KGV'!Q45)/ABS('SMI Analyse KGV'!Q45) -> 0.06277421532 | I43: =('SMI Analyse KGV'!S45-'SMI Analyse KGV'!R45)/ABS('SMI Analyse KGV'!R45) -> 0.1584630041 | J43: =('SMI Analyse KGV'!T45-'SMI Analyse KGV'!S45)/ABS('SMI Analyse KGV'!S45) -> -0.1014254386 | K43: =('SMI Analyse KGV'!U45-'SMI Analyse KGV'!T45)/ABS('SMI Analyse KGV'!T45) -> 0.2181208054 | L43: =('SMI Analyse KGV'!V45-'SMI Analyse KGV'!U45)/ABS('SMI Analyse KGV'!U45) -> 0.196093163 | M43: =('SMI Analyse KGV'!W45-'SMI Analyse KGV'!V45)/ABS('SMI Analyse KGV'!V45) -> -0.2250837521 | N43: =AVERAGE(D43:M43) -> 0.05180438098
B45: SWISS RE N | C45: =('SMI Analyse KGV'!M47-'SMI Analyse KGV'!L47)/ABS('SMI Analyse KGV'!L47) -> 0.06256015399 | D45: =('SMI Analyse KGV'!N47-'SMI Analyse KGV'!M47)/ABS('SMI Analyse KGV'!M47) -> -0.2246376812 | E45: =('SMI Analyse KGV'!O47-'SMI Analyse KGV'!N47)/ABS('SMI Analyse KGV'!N47) -> 0.3796728972 | F45: =('SMI Analyse KGV'!P47-'SMI Analyse KGV'!O47)/ABS('SMI Analyse KGV'!O47) -> -0.1820491109 | G45: =('SMI Analyse KGV'!Q47-'SMI Analyse KGV'!P47)/ABS('SMI Analyse KGV'!P47) -> -0.8954451346 | H45: =('SMI Analyse KGV'!R47-'SMI Analyse KGV'!Q47)/ABS('SMI Analyse KGV'!Q47) -> 0.3267326733 | I45: =('SMI Analyse KGV'!S47-'SMI Analyse KGV'!R47)/ABS('SMI Analyse KGV'!R47) -> 0.7910447761 | J45: =('SMI Analyse KGV'!T47-'SMI Analyse KGV'!S47)/ABS('SMI Analyse KGV'!S47) -> -2.2375 | K45: =('SMI Analyse KGV'!U47-'SMI Analyse KGV'!T47)/ABS('SMI Analyse KGV'!T47) -> 2.464646465 | L45: =('SMI Analyse KGV'!V47-'SMI Analyse KGV'!U47)/ABS('SMI Analyse KGV'!U47) -> -0.632183908 | M45: =('SMI Analyse KGV'!W47-'SMI Analyse KGV'!V47)/ABS('SMI Analyse KGV'!V47) -> 4.875 | N45: =AVERAGE(D45:M45) -> 0.4665280977
B47: SWISSCOM N | C47: =('SMI Analyse KGV'!M49-'SMI Analyse KGV'!L49)/ABS('SMI Analyse KGV'!L49) -> -0.03984651712 | D47: =('SMI Analyse KGV'!N49-'SMI Analyse KGV'!M49)/ABS('SMI Analyse KGV'!M49) -> 0.005225945281 | E47: =('SMI Analyse KGV'!O49-'SMI Analyse KGV'!N49)/ABS('SMI Analyse KGV'!N49) -> -0.1966360856 | F47: =('SMI Analyse KGV'!P49-'SMI Analyse KGV'!O49)/ABS('SMI Analyse KGV'!O49) -> 0.1789113057 | G47: =('SMI Analyse KGV'!Q49-'SMI Analyse KGV'!P49)/ABS('SMI Analyse KGV'!P49) -> -0.02131094608 | H47: =('SMI Analyse KGV'!R49-'SMI Analyse KGV'!Q49)/ABS('SMI Analyse KGV'!Q49) -> -0.02738370175 | I47: =('SMI Analyse KGV'!S49-'SMI Analyse KGV'!R49)/ABS('SMI Analyse KGV'!R49) -> 0.09497964722 | J47: =('SMI Analyse KGV'!T49-'SMI Analyse KGV'!S49)/ABS('SMI Analyse KGV'!S49) -> -0.08488228005 | K47: =('SMI Analyse KGV'!U49-'SMI Analyse KGV'!T49)/ABS('SMI Analyse KGV'!T49) -> 0.1973595125 | L47: =('SMI Analyse KGV'!V49-'SMI Analyse KGV'!U49)/ABS('SMI Analyse KGV'!U49) -> -0.1255301103 | M47: =('SMI Analyse KGV'!W49-'SMI Analyse KGV'!V49)/ABS('SMI Analyse KGV'!V49) -> 0.06789524733 | N47: =AVERAGE(D47:M47) -> 0.008862853426
B49: UBS N | C49: =('SMI Analyse KGV'!M51-'SMI Analyse KGV'!L51)/ABS('SMI Analyse KGV'!L51) -> 2.23880597 | D49: =('SMI Analyse KGV'!N51-'SMI Analyse KGV'!M51)/ABS('SMI Analyse KGV'!M51) -> 0.09638554217 | E49: =('SMI Analyse KGV'!O51-'SMI Analyse KGV'!N51)/ABS('SMI Analyse KGV'!N51) -> 0.8021978022 | F49: =('SMI Analyse KGV'!P51-'SMI Analyse KGV'!O51)/ABS('SMI Analyse KGV'!O51) -> -0.487804878 | G49: =('SMI Analyse KGV'!Q51-'SMI Analyse KGV'!P51)/ABS('SMI Analyse KGV'!P51) -> -0.6785714286 | H49: =('SMI Analyse KGV'!R51-'SMI Analyse KGV'!Q51)/ABS('SMI Analyse KGV'!Q51) -> 3.37037037 | I49: =('SMI Analyse KGV'!S51-'SMI Analyse KGV'!R51)/ABS('SMI Analyse KGV'!R51) -> -0.03389830508 | J49: =('SMI Analyse KGV'!T51-'SMI Analyse KGV'!S51)/ABS('SMI Analyse KGV'!S51) -> 0.5526315789 | K49: =('SMI Analyse KGV'!U51-'SMI Analyse KGV'!T51)/ABS('SMI Analyse KGV'!T51) -> 0.1638418079 | L49: =('SMI Analyse KGV'!V51-'SMI Analyse KGV'!U51)/ABS('SMI Analyse KGV'!U51) -> 0.09223300971 | M49: =('SMI Analyse KGV'!W51-'SMI Analyse KGV'!V51)/ABS('SMI Analyse KGV'!V51) -> 2.382222222 | N49: =AVERAGE(D49:M49) -> 0.6259607722
B51: ZURICH FINANCIAL N | C51: =('SMI Analyse KGV'!M53-'SMI Analyse KGV'!L53)/ABS('SMI Analyse KGV'!L53) -> 0.02311435523 | D51: =('SMI Analyse KGV'!N53-'SMI Analyse KGV'!M53)/ABS('SMI Analyse KGV'!M53) -> -0.05509314308 | E51: =('SMI Analyse KGV'!O53-'SMI Analyse KGV'!N53)/ABS('SMI Analyse KGV'!N53) -> -0.5025167785 | F51: =('SMI Analyse KGV'!P53-'SMI Analyse KGV'!O53)/ABS('SMI Analyse KGV'!O53) -> 0.7740303541 | G51: =('SMI Analyse KGV'!Q53-'SMI Analyse KGV'!P53)/ABS('SMI Analyse KGV'!P53) -> -0.06939163498 | H51: =('SMI Analyse KGV'!R53-'SMI Analyse KGV'!Q53)/ABS('SMI Analyse KGV'!Q53) -> 0.240040858 | I51: =('SMI Analyse KGV'!S53-'SMI Analyse KGV'!R53)/ABS('SMI Analyse KGV'!R53) -> 0.1330313015 | J51: =('SMI Analyse KGV'!T53-'SMI Analyse KGV'!S53)/ABS('SMI Analyse KGV'!S53) -> -0.1283169756 | K51: =('SMI Analyse KGV'!U53-'SMI Analyse KGV'!T53)/ABS('SMI Analyse KGV'!T53) -> 0.3211009174 | L51: =('SMI Analyse KGV'!V53-'SMI Analyse KGV'!U53)/ABS('SMI Analyse KGV'!U53) -> -0.07323232323 | M51: =('SMI Analyse KGV'!W53-'SMI Analyse KGV'!V53)/ABS('SMI Analyse KGV'!V53) -> -0.09025885559 | N51: =AVERAGE(D51:M51) -> 0.054939372
C60: 2013 | D60: 2014 | E60: 2015 | F60: 2016 | G60: 2017 | H60: 2018 | I60: 2019 | J60: 2020 | K60: 2021 | L60: 2022 | M60: 2023
C62: Veränderungsraten | N62: Mittelwert
B65: Adecco | C65: =('SMI Analyse KGV'!M65-'SMI Analyse KGV'!L65)/ABS('SMI Analyse KGV'!L65) -> 0.54 | D65: =('SMI Analyse KGV'!N65-'SMI Analyse KGV'!M65)/ABS('SMI Analyse KGV'!M65) -> 0.1720779221 | E65: =('SMI Analyse KGV'!O65-'SMI Analyse KGV'!N65)/ABS('SMI Analyse KGV'!N65) -> -0.9861495845 | F65: =('SMI Analyse KGV'!P65-'SMI Analyse KGV'!O65)/ABS('SMI Analyse KGV'!O65) -> 83.8 | G65: =('SMI Analyse KGV'!Q65-'SMI Analyse KGV'!P65)/ABS('SMI Analyse KGV'!P65) -> 0.09905660377 | H65: =('SMI Analyse KGV'!R65-'SMI Analyse KGV'!Q65)/ABS('SMI Analyse KGV'!Q65) -> -0.4055793991 | I65: =('SMI Analyse KGV'!S65-'SMI Analyse KGV'!R65)/ABS('SMI Analyse KGV'!R65) -> 0.6137184116 | J65: =('SMI Analyse KGV'!T65-'SMI Analyse KGV'!S65)/ABS('SMI Analyse KGV'!S65) -> -1.136465324 | K65: =('SMI Analyse KGV'!U65-'SMI Analyse KGV'!T65)/ABS('SMI Analyse KGV'!T65) -> 6.901639344 | L65: =('SMI Analyse KGV'!V65-'SMI Analyse KGV'!U65)/ABS('SMI Analyse KGV'!U65) -> -0.4333333333 | M65: =('SMI Analyse KGV'!W65-'SMI Analyse KGV'!V65)/ABS('SMI Analyse KGV'!V65) -> -0.04901960784 | N65: =AVERAGE(D65:M65) -> 8.857594503
B67: AMS Osram | C67: =('SMI Analyse KGV'!M67-'SMI Analyse KGV'!L67)/ABS('SMI Analyse KGV'!L67) -> -0.26 | D67: =('SMI Analyse KGV'!N67-'SMI Analyse KGV'!M67)/ABS('SMI Analyse KGV'!M67) -> 0.6936936937 | E67: =('SMI Analyse KGV'!O67-'SMI Analyse KGV'!N67)/ABS('SMI Analyse KGV'!N67) -> 0.2127659574 | F67: =('SMI Analyse KGV'!P67-'SMI Analyse KGV'!O67)/ABS('SMI Analyse KGV'!O67) -> -0.3377192982 | G67: =('SMI Analyse KGV'!Q67-'SMI Analyse KGV'!P67)/ABS('SMI Analyse KGV'!P67) -> -0.4635761589 | H67: =('SMI Analyse KGV'!R67-'SMI Analyse KGV'!Q67)/ABS('SMI Analyse KGV'!Q67) -> 0.0987654321 | I67: =('SMI Analyse KGV'!S67-'SMI Analyse KGV'!R67)/ABS('SMI Analyse KGV'!R67) -> 2.157303371 | J67: =('SMI Analyse KGV'!T67-'SMI Analyse KGV'!S67)/ABS('SMI Analyse KGV'!S67) -> -1.021352313 | K67: =('SMI Analyse KGV'!U67-'SMI Analyse KGV'!T67)/ABS('SMI Analyse KGV'!T67) -> -1.166666667 | L67: =('SMI Analyse KGV'!V67-'SMI Analyse KGV'!U67)/ABS('SMI Analyse KGV'!U67) -> -6.076923077 | M67: =('SMI Analyse KGV'!W67-'SMI Analyse KGV'!V67)/ABS('SMI Analyse KGV'!V67) -> -4.489130435 | N67: =AVERAGE(D67:M67) -> -1.039283949
B69: Avolta | C69: =('SMI Analyse KGV'!M69-'SMI Analyse KGV'!L69)/ABS('SMI Analyse KGV'!L69) -> -0.3044444444 | D69: =('SMI Analyse KGV'!N69-'SMI Analyse KGV'!M69)/ABS('SMI Analyse KGV'!M69) -> -0.5047923323 | E69: =('SMI Analyse KGV'!O69-'SMI Analyse KGV'!N69)/ABS('SMI Analyse KGV'!N69) -> -2.116129032 | F69: =('SMI Analyse KGV'!P69-'SMI Analyse KGV'!O69)/ABS('SMI Analyse KGV'!O69) -> 1.028901734 | G69: =('SMI Analyse KGV'!Q69-'SMI Analyse KGV'!P69)/ABS('SMI Analyse KGV'!P69) -> 20.2 | H69: =('SMI Analyse KGV'!R69-'SMI Analyse KGV'!Q69)/ABS('SMI Analyse KGV'!Q69) -> 0.3018867925 | I69: =('SMI Analyse KGV'!S69-'SMI Analyse KGV'!R69)/ABS('SMI Analyse KGV'!R69) -> -1.384057971 | J69: =('SMI Analyse KGV'!T69-'SMI Analyse KGV'!S69)/ABS('SMI Analyse KGV'!S69) -> -80.1509434 | K69: =('SMI Analyse KGV'!U69-'SMI Analyse KGV'!T69)/ABS('SMI Analyse KGV'!T69) -> 0.8979307138 | L69: =('SMI Analyse KGV'!V69-'SMI Analyse KGV'!U69)/ABS('SMI Analyse KGV'!U69) -> 1.141230068 | M69: =('SMI Analyse KGV'!W69-'SMI Analyse KGV'!V69)/ABS('SMI Analyse KGV'!V69) -> 0.01612903226 | N69: =AVERAGE(D69:M69) -> -6.056984439
B71: Bachem | C71: =('SMI Analyse KGV'!M71-'SMI Analyse KGV'!L71)/ABS('SMI Analyse KGV'!L71) -> 0.5 | D71: =('SMI Analyse KGV'!N71-'SMI Analyse KGV'!M71)/ABS('SMI Analyse KGV'!M71) -> 0.1944444444 | E71: =('SMI Analyse KGV'!O71-'SMI Analyse KGV'!N71)/ABS('SMI Analyse KGV'!N71) -> 0.09302325581 | F71: =('SMI Analyse KGV'!P71-'SMI Analyse KGV'!O71)/ABS('SMI Analyse KGV'!O71) -> 0.2936170213 | G71: =('SMI Analyse KGV'!Q71-'SMI Analyse KGV'!P71)/ABS('SMI Analyse KGV'!P71) -> 0.01973684211 | H71: =('SMI Analyse KGV'!R71-'SMI Analyse KGV'!Q71)/ABS('SMI Analyse KGV'!Q71) -> 0.1129032258 | I71: =('SMI Analyse KGV'!S71-'SMI Analyse KGV'!R71)/ABS('SMI Analyse KGV'!R71) -> 0.1304347826 | J71: =('SMI Analyse KGV'!T71-'SMI Analyse KGV'!S71)/ABS('SMI Analyse KGV'!S71) -> 0.4358974359 | K71: =('SMI Analyse KGV'!U71-'SMI Analyse KGV'!T71)/ABS('SMI Analyse KGV'!T71) -> 0.4464285714 | L71: =('SMI Analyse KGV'!V71-'SMI Analyse KGV'!U71)/ABS('SMI Analyse KGV'!U71) -> -0.1543209877 | M71: =('SMI Analyse KGV'!W71-'SMI Analyse KGV'!V71)/ABS('SMI Analyse KGV'!V71) -> 0.09489051095 | N71: =AVERAGE(D71:M71) -> 0.1667055103
B73: Baloise | C73: =('SMI Analyse KGV'!M73-'SMI Analyse KGV'!L73)/ABS('SMI Analyse KGV'!L73) -> -0.05392156863 | D73: =('SMI Analyse KGV'!N73-'SMI Analyse KGV'!M73)/ABS('SMI Analyse KGV'!M73) -> 0.5699481865 | E73: =('SMI Analyse KGV'!O73-'SMI Analyse KGV'!N73)/ABS('SMI Analyse KGV'!N73) -> -0.2765676568 | F73: =('SMI Analyse KGV'!P73-'SMI Analyse KGV'!O73)/ABS('SMI Analyse KGV'!O73) -> 0.05200729927 | G73: =('SMI Analyse KGV'!Q73-'SMI Analyse KGV'!P73)/ABS('SMI Analyse KGV'!P73) -> -0.002601908066 | H73: =('SMI Analyse KGV'!R73-'SMI Analyse KGV'!Q73)/ABS('SMI Analyse KGV'!Q73) -> -0.03130434783 | I73: =('SMI Analyse KGV'!S73-'SMI Analyse KGV'!R73)/ABS('SMI Analyse KGV'!R73) -> 0.3482944345 | J73: =('SMI Analyse KGV'!T73-'SMI Analyse KGV'!S73)/ABS('SMI Analyse KGV'!S73) -> -0.3575233023 | K73: =('SMI Analyse KGV'!U73-'SMI Analyse KGV'!T73)/ABS('SMI Analyse KGV'!T73) -> 0.3533678756 | L73: =('SMI Analyse KGV'!V73-'SMI Analyse KGV'!U73)/ABS('SMI Analyse KGV'!U73) -> -0.5803981623 | M73: =('SMI Analyse KGV'!W73-'SMI Analyse KGV'!V73)/ABS('SMI Analyse KGV'!V73) -> -0.03467153285 | N73: =AVERAGE(D73:M73) -> 0.004055088582
B75: Barry Callebaut | C75: =('SMI Analyse KGV'!M75-'SMI Analyse KGV'!L75)/ABS('SMI Analyse KGV'!L75) -> 0.5527272727 | D75: =('SMI Analyse KGV'!N75-'SMI Analyse KGV'!M75)/ABS('SMI Analyse KGV'!M75) -> 0.07728337237 | E75: =('SMI Analyse KGV'!O75-'SMI Analyse KGV'!N75)/ABS('SMI Analyse KGV'!N75) -> -0.0597826087 | F75: =('SMI Analyse KGV'!P75-'SMI Analyse KGV'!O75)/ABS('SMI Analyse KGV'!O75) -> -0.0850867052 | G75: =('SMI Analyse KGV'!Q75-'SMI Analyse KGV'!P75)/ABS('SMI Analyse KGV'!P75) -> 0.2926459439 | H75: =('SMI Analyse KGV'!R75-'SMI Analyse KGV'!Q75)/ABS('SMI Analyse KGV'!Q75) -> 0.2694037146 | I75: =('SMI Analyse KGV'!S75-'SMI Analyse KGV'!R75)/ABS('SMI Analyse KGV'!R75) -> 0.04065917142 | J75: =('SMI Analyse KGV'!T75-'SMI Analyse KGV'!S75)/ABS('SMI Analyse KGV'!S75) -> -0.1466627201 | K75: =('SMI Analyse KGV'!U75-'SMI Analyse KGV'!T75)/ABS('SMI Analyse KGV'!T75) -> 0.2112382934 | L75: =('SMI Analyse KGV'!V75-'SMI Analyse KGV'!U75)/ABS('SMI Analyse KGV'!U75) -> -0.0598510882 | M75: =('SMI Analyse KGV'!W75-'SMI Analyse KGV'!V75)/ABS('SMI Analyse KGV'!V75) -> 0.2321047822 | N75: =AVERAGE(D75:M75) -> 0.07719521557
B77: Belimo | C77: =('SMI Analyse KGV'!M77-'SMI Analyse KGV'!L77)/ABS('SMI Analyse KGV'!L77) -> 0.03621730382 | D77: =('SMI Analyse KGV'!N77-'SMI Analyse KGV'!M77)/ABS('SMI Analyse KGV'!M77) -> 0.06796116505 | E77: =('SMI Analyse KGV'!O77-'SMI Analyse KGV'!N77)/ABS('SMI Analyse KGV'!N77) -> -0.168 | F77: =('SMI Analyse KGV'!P77-'SMI Analyse KGV'!O77)/ABS('SMI Analyse KGV'!O77) -> 0.2456293706 | G77: =('SMI Analyse KGV'!Q77-'SMI Analyse KGV'!P77)/ABS('SMI Analyse KGV'!P77) -> 0.1052631579 | H77: =('SMI Analyse KGV'!R77-'SMI Analyse KGV'!Q77)/ABS('SMI Analyse KGV'!Q77) -> 0.1126984127 | I77: =('SMI Analyse KGV'!S77-'SMI Analyse KGV'!R77)/ABS('SMI Analyse KGV'!R77) -> 0.4051355207 | J77: =('SMI Analyse KGV'!T77-'SMI Analyse KGV'!S77)/ABS('SMI Analyse KGV'!S77) -> -0.2842639594 | K77: =('SMI Analyse KGV'!U77-'SMI Analyse KGV'!T77)/ABS('SMI Analyse KGV'!T77) -> 0.334751773 | L77: =('SMI Analyse KGV'!V77-'SMI Analyse KGV'!U77)/ABS('SMI Analyse KGV'!U77) -> 0.06163655685 | M77: =('SMI Analyse KGV'!W77-'SMI Analyse KGV'!V77)/ABS('SMI Analyse KGV'!V77) -> 0.1151151151 | N77: =AVERAGE(D77:M77) -> 0.09959271126
B79: Bell | C79: =('SMI Analyse KGV'!M79-'SMI Analyse KGV'!L79)/ABS('SMI Analyse KGV'!L79) -> 0.005235602094 | D79: =('SMI Analyse KGV'!N79-'SMI Analyse KGV'!M79)/ABS('SMI Analyse KGV'!M79) -> 0.140625 | E79: =('SMI Analyse KGV'!O79-'SMI Analyse KGV'!N79)/ABS('SMI Analyse KGV'!N79) -> 0.08447488584 | F79: =('SMI Analyse KGV'!P79-'SMI Analyse KGV'!O79)/ABS('SMI Analyse KGV'!O79) -> 0.06021052632 | G79: =('SMI Analyse KGV'!Q79-'SMI Analyse KGV'!P79)/ABS('SMI Analyse KGV'!P79) -> 0.05957108817 | H79: =('SMI Analyse KGV'!R79-'SMI Analyse KGV'!Q79)/ABS('SMI Analyse KGV'!Q79) -> -0.3669415292 | I79: =('SMI Analyse KGV'!S79-'SMI Analyse KGV'!R79)/ABS('SMI Analyse KGV'!R79) -> -0.532267614 | J79: =('SMI Analyse KGV'!T79-'SMI Analyse KGV'!S79)/ABS('SMI Analyse KGV'!S79) -> 1.393670886 | K79: =('SMI Analyse KGV'!U79-'SMI Analyse KGV'!T79)/ABS('SMI Analyse KGV'!T79) -> 0.07403490217 | L79: =('SMI Analyse KGV'!V79-'SMI Analyse KGV'!U79)/ABS('SMI Analyse KGV'!U79) -> 0.002954209749 | M79: =('SMI Analyse KGV'!W79-'SMI Analyse KGV'!V79)/ABS('SMI Analyse KGV'!V79) -> 0.01325478645 | N79: =AVERAGE(D79:M79) -> 0.09295871416
B81: BKW | C81: =('SMI Analyse KGV'!M81-'SMI Analyse KGV'!L81)/ABS('SMI Analyse KGV'!L81) -> -2.666666667 | D81: =('SMI Analyse KGV'!N81-'SMI Analyse KGV'!M81)/ABS('SMI Analyse KGV'!M81) -> 2.324444444 | E81: =('SMI Analyse KGV'!O81-'SMI Analyse KGV'!N81)/ABS('SMI Analyse KGV'!N81) -> -0.04194630872 | F81: =('SMI Analyse KGV'!P81-'SMI Analyse KGV'!O81)/ABS('SMI Analyse KGV'!O81) -> 0.122591944 | G81: =('SMI Analyse KGV'!Q81-'SMI Analyse KGV'!P81)/ABS('SMI Analyse KGV'!P81) -> -0.232449298 | H81: =('SMI Analyse KGV'!R81-'SMI Analyse KGV'!Q81)/ABS('SMI Analyse KGV'!Q81) -> -0.2764227642 | I81: =('SMI Analyse KGV'!S81-'SMI Analyse KGV'!R81)/ABS('SMI Analyse KGV'!R81) -> 1.084269663 | J81: =('SMI Analyse KGV'!T81-'SMI Analyse KGV'!S81)/ABS('SMI Analyse KGV'!S81) -> -0.07547169811 | K81: =('SMI Analyse KGV'!U81-'SMI Analyse KGV'!T81)/ABS('SMI Analyse KGV'!T81) -> -0.1588921283 | L81: =('SMI Analyse KGV'!V81-'SMI Analyse KGV'!U81)/ABS('SMI Analyse KGV'!U81) -> 0.8076256499 | M81: =('SMI Analyse KGV'!W81-'SMI Analyse KGV'!V81)/ABS('SMI Analyse KGV'!V81) -> -0.1313518696 | N81: =AVERAGE(D81:M81) -> 0.3422397634
B83: Bossard | C83: =('SMI Analyse KGV'!M83-'SMI Analyse KGV'!L83)/ABS('SMI Analyse KGV'!L83) -> 0.02920723227 | D83: =('SMI Analyse KGV'!N83-'SMI Analyse KGV'!M83)/ABS('SMI Analyse KGV'!M83) -> 0.01216216216 | E83: =('SMI Analyse KGV'!O83-'SMI Analyse KGV'!N83)/ABS('SMI Analyse KGV'!N83) -> -0.06408544726 | F83: =('SMI Analyse KGV'!P83-'SMI Analyse KGV'!O83)/ABS('SMI Analyse KGV'!O83) -> 0.1469329529 | G83: =('SMI Analyse KGV'!Q83-'SMI Analyse KGV'!P83)/ABS('SMI Analyse KGV'!P83) -> 0.2848258706 | H83: =('SMI Analyse KGV'!R83-'SMI Analyse KGV'!Q83)/ABS('SMI Analyse KGV'!Q83) -> 0.06001936108 | I83: =('SMI Analyse KGV'!S83-'SMI Analyse KGV'!R83)/ABS('SMI Analyse KGV'!R83) -> -0.1114155251 | J83: =('SMI Analyse KGV'!T83-'SMI Analyse KGV'!S83)/ABS('SMI Analyse KGV'!S83) -> -0.1027749229 | K83: =('SMI Analyse KGV'!U83-'SMI Analyse KGV'!T83)/ABS('SMI Analyse KGV'!T83) -> 0.4352806415 | L83: =('SMI Analyse KGV'!V83-'SMI Analyse KGV'!U83)/ABS('SMI Analyse KGV'!U83) -> 0.06783719074 | M83: =('SMI Analyse KGV'!W83-'SMI Analyse KGV'!V83)/ABS('SMI Analyse KGV'!V83) -> -0.2795216741 | N83: =AVERAGE(D83:M83) -> 0.04492606096
B85: Bucher Industries | C85: =('SMI Analyse KGV'!M85-'SMI Analyse KGV'!L85)/ABS('SMI Analyse KGV'!L85) -> 0.2646490663 | D85: =('SMI Analyse KGV'!N85-'SMI Analyse KGV'!M85)/ABS('SMI Analyse KGV'!M85) -> -0.05346232179 | E85: =('SMI Analyse KGV'!O85-'SMI Analyse KGV'!N85)/ABS('SMI Analyse KGV'!N85) -> -0.2641204949 | F85: =('SMI Analyse KGV'!P85-'SMI Analyse KGV'!O85)/ABS('SMI Analyse KGV'!O85) -> -0.144005848 | G85: =('SMI Analyse KGV'!Q85-'SMI Analyse KGV'!P85)/ABS('SMI Analyse KGV'!P85) -> 0.4338172502 | H85: =('SMI Analyse KGV'!R85-'SMI Analyse KGV'!Q85)/ABS('SMI Analyse KGV'!Q85) -> 0.236450268 | I85: =('SMI Analyse KGV'!S85-'SMI Analyse KGV'!R85)/ABS('SMI Analyse KGV'!R85) -> 0.05587668593 | J85: =('SMI Analyse KGV'!T85-'SMI Analyse KGV'!S85)/ABS('SMI Analyse KGV'!S85) -> -0.3289233577 | K85: =('SMI Analyse KGV'!U85-'SMI Analyse KGV'!T85)/ABS('SMI Analyse KGV'!T85) -> 0.76478586 | L85: =('SMI Analyse KGV'!V85-'SMI Analyse KGV'!U85)/ABS('SMI Analyse KGV'!U85) -> 0.2465331279 | M85: =('SMI Analyse KGV'!W85-'SMI Analyse KGV'!V85)/ABS('SMI Analyse KGV'!V85) -> 0.06242274413 | N85: =AVERAGE(D85:M85) -> 0.1009373914
B87: Burkhalter | C87: =('SMI Analyse KGV'!M89-'SMI Analyse KGV'!L89)/ABS('SMI Analyse KGV'!L89) -> 0.04428904429 | D87: =('SMI Analyse KGV'!N89-'SMI Analyse KGV'!M89)/ABS('SMI Analyse KGV'!M89) -> 0.171875 | E87: =('SMI Analyse KGV'!O89-'SMI Analyse KGV'!N89)/ABS('SMI Analyse KGV'!N89) -> 0.1047619048 | F87: =('SMI Analyse KGV'!P89-'SMI Analyse KGV'!O89)/ABS('SMI Analyse KGV'!O89) -> 0.04827586207 | G87: =('SMI Analyse KGV'!Q89-'SMI Analyse KGV'!P89)/ABS('SMI Analyse KGV'!P89) -> -0.1743421053 | H87: =('SMI Analyse KGV'!R89-'SMI Analyse KGV'!Q89)/ABS('SMI Analyse KGV'!Q89) -> -0.219123506 | I87: =('SMI Analyse KGV'!S89-'SMI Analyse KGV'!R89)/ABS('SMI Analyse KGV'!R89) -> -0.05102040816 | J87: =('SMI Analyse KGV'!T89-'SMI Analyse KGV'!S89)/ABS('SMI Analyse KGV'!S89) -> -0.3467741935 | K87: =('SMI Analyse KGV'!U89-'SMI Analyse KGV'!T89)/ABS('SMI Analyse KGV'!T89) -> 0.6419753086 | L87: =('SMI Analyse KGV'!V89-'SMI Analyse KGV'!U89)/ABS('SMI Analyse KGV'!U89) -> 0.1854636591 | M87: =('SMI Analyse KGV'!W87-'SMI Analyse KGV'!V87)/ABS('SMI Analyse KGV'!V87) -> 0.2902131783 | N87: =AVERAGE(D87:M87) -> 0.06513047
B89: Burckhardt Compression | C89: =('SMI Analyse KGV'!M87-'SMI Analyse KGV'!L87)/ABS('SMI Analyse KGV'!L87) -> -0.03349573691 | D89: =('SMI Analyse KGV'!N87-'SMI Analyse KGV'!M87)/ABS('SMI Analyse KGV'!M87) -> 0.06679269061 | E89: =('SMI Analyse KGV'!O87-'SMI Analyse KGV'!N87)/ABS('SMI Analyse KGV'!N87) -> -0.0348493798 | F89: =('SMI Analyse KGV'!P87-'SMI Analyse KGV'!O87)/ABS('SMI Analyse KGV'!O87) -> -0.3145654835 | G89: =('SMI Analyse KGV'!Q87-'SMI Analyse KGV'!P87)/ABS('SMI Analyse KGV'!P87) -> -0.2401785714 | H89: =('SMI Analyse KGV'!R87-'SMI Analyse KGV'!Q87)/ABS('SMI Analyse KGV'!Q87) -> -0.04230317274 | I89: =('SMI Analyse KGV'!S87-'SMI Analyse KGV'!R87)/ABS('SMI Analyse KGV'!R87) -> 0.173006135 | J89: =('SMI Analyse KGV'!T87-'SMI Analyse KGV'!S87)/ABS('SMI Analyse KGV'!S87) -> 0.359832636 | K89: =('SMI Analyse KGV'!U87-'SMI Analyse KGV'!T87)/ABS('SMI Analyse KGV'!T87) -> 0.14 | L89: =('SMI Analyse KGV'!V87-'SMI Analyse KGV'!U87)/ABS('SMI Analyse KGV'!U87) -> 0.3927125506 | M89: =('SMI Analyse KGV'!W89-'SMI Analyse KGV'!V89)/ABS('SMI Analyse KGV'!V89) -> 0.04651162791 | N89: =AVERAGE(D89:M89) -> 0.05469590326
B91: Calida | C91: =('SMI Analyse KGV'!M91-'SMI Analyse KGV'!L91)/ABS('SMI Analyse KGV'!L91) -> -0.4728682171 | D91: =('SMI Analyse KGV'!N91-'SMI Analyse KGV'!M91)/ABS('SMI Analyse KGV'!M91) -> 1.014705882 | E91: =('SMI Analyse KGV'!O91-'SMI Analyse KGV'!N91)/ABS('SMI Analyse KGV'!N91) -> -0.2810218978 | F91: =('SMI Analyse KGV'!P91-'SMI Analyse KGV'!O91)/ABS('SMI Analyse KGV'!O91) -> -0.1269035533 | G91: =('SMI Analyse KGV'!Q91-'SMI Analyse KGV'!P91)/ABS('SMI Analyse KGV'!P91) -> 0.09302325581 | H91: =('SMI Analyse KGV'!R91-'SMI Analyse KGV'!Q91)/ABS('SMI Analyse KGV'!Q91) -> 0.04787234043 | I91: =('SMI Analyse KGV'!S91-'SMI Analyse KGV'!R91)/ABS('SMI Analyse KGV'!R91) -> -0.03553299492 | J91: =('SMI Analyse KGV'!T91-'SMI Analyse KGV'!S91)/ABS('SMI Analyse KGV'!S91) -> -1.089473684 | K91: =('SMI Analyse KGV'!U91-'SMI Analyse KGV'!T91)/ABS('SMI Analyse KGV'!T91) -> 15.29411765 | L91: =('SMI Analyse KGV'!V91-'SMI Analyse KGV'!U91)/ABS('SMI Analyse KGV'!U91) -> 0.8065843621 | M91: =('SMI Analyse KGV'!W91-'SMI Analyse KGV'!V91)/ABS('SMI Analyse KGV'!V91) -> -2.79498861 | N91: =AVERAGE(D91:M91) -> 1.292838275
B93: Carlo Gavazzi 1) | C93: =('SMI Analyse KGV'!M93-'SMI Analyse KGV'!L93)/ABS('SMI Analyse KGV'!L93) -> -0.1115515289 | D93: =('SMI Analyse KGV'!N93-'SMI Analyse KGV'!M93)/ABS('SMI Analyse KGV'!M93) -> 0.1000637349 | E93: =('SMI Analyse KGV'!O93-'SMI Analyse KGV'!N93)/ABS('SMI Analyse KGV'!N93) -> -0.2132097335 | F93: =('SMI Analyse KGV'!P93-'SMI Analyse KGV'!O93)/ABS('SMI Analyse KGV'!O93) -> 0.3873343152 | G93: =('SMI Analyse KGV'!Q93-'SMI Analyse KGV'!P93)/ABS('SMI Analyse KGV'!P93) -> -0.3731422505 | H93: =('SMI Analyse KGV'!R93-'SMI Analyse KGV'!Q93)/ABS('SMI Analyse KGV'!Q93) -> 0.2760372566 | I93: =('SMI Analyse KGV'!S93-'SMI Analyse KGV'!R93)/ABS('SMI Analyse KGV'!R93) -> -0.4326476443 | J93: =('SMI Analyse KGV'!T93-'SMI Analyse KGV'!S93)/ABS('SMI Analyse KGV'!S93) -> 0.983625731 | K93: =('SMI Analyse KGV'!U93-'SMI Analyse KGV'!T93)/ABS('SMI Analyse KGV'!T93) -> 0.8278301887 | L93: =('SMI Analyse KGV'!V93-'SMI Analyse KGV'!U93)/ABS('SMI Analyse KGV'!U93) -> 0.2809677419 | M93: =('SMI Analyse KGV'!W93-'SMI Analyse KGV'!V93)/ABS('SMI Analyse KGV'!V93) -> -0.3379501385 | N93: =AVERAGE(D93:M93) -> 0.1498909201
B95: Clariant | C95: =('SMI Analyse KGV'!M95-'SMI Analyse KGV'!L95)/ABS('SMI Analyse KGV'!L95) -> -1.081081081 | D95: =('SMI Analyse KGV'!N95-'SMI Analyse KGV'!M95)/ABS('SMI Analyse KGV'!M95) -> 9 | E95: =('SMI Analyse KGV'!O95-'SMI Analyse KGV'!N95)/ABS('SMI Analyse KGV'!N95) -> 0.4791666667 | F95: =('SMI Analyse KGV'!P95-'SMI Analyse KGV'!O95)/ABS('SMI Analyse KGV'!O95) -> 0.0985915493 | G95: =('SMI Analyse KGV'!Q95-'SMI Analyse KGV'!P95)/ABS('SMI Analyse KGV'!P95) -> 0.07692307692 | H95: =('SMI Analyse KGV'!R95-'SMI Analyse KGV'!Q95)/ABS('SMI Analyse KGV'!Q95) -> 0.2142857143 | I95: =('SMI Analyse KGV'!S95-'SMI Analyse KGV'!R95)/ABS('SMI Analyse KGV'!R95) -> -0.9705882353 | J95: =('SMI Analyse KGV'!T95-'SMI Analyse KGV'!S95)/ABS('SMI Analyse KGV'!S95) -> 78.33333333 | K95: =('SMI Analyse KGV'!U95-'SMI Analyse KGV'!T95)/ABS('SMI Analyse KGV'!T95) -> -0.6596638655 | L95: =('SMI Analyse KGV'!V95-'SMI Analyse KGV'!U95)/ABS('SMI Analyse KGV'!U95) -> -1.49382716 | M95: =('SMI Analyse KGV'!W95-'SMI Analyse KGV'!V95)/ABS('SMI Analyse KGV'!V95) -> 2.025 | N95: =AVERAGE(D95:M95) -> 8.710322108
B97: Dätwyler 2) | C97: =('SMI Analyse KGV'!M97-'SMI Analyse KGV'!L97)/ABS('SMI Analyse KGV'!L97) -> -0.07654921021 | D97: =('SMI Analyse KGV'!N97-'SMI Analyse KGV'!M97)/ABS('SMI Analyse KGV'!M97) -> -0.1921052632 | E97: =('SMI Analyse KGV'!O97-'SMI Analyse KGV'!N97)/ABS('SMI Analyse KGV'!N97) -> -0.1791530945 | F97: =('SMI Analyse KGV'!P97-'SMI Analyse KGV'!O97)/ABS('SMI Analyse KGV'!O97) -> -0.3115079365 | G97: =('SMI Analyse KGV'!Q97-'SMI Analyse KGV'!P97)/ABS('SMI Analyse KGV'!P97) -> 1.097982709 | H97: =('SMI Analyse KGV'!R97-'SMI Analyse KGV'!Q97)/ABS('SMI Analyse KGV'!Q97) -> -0.02197802198 | I97: =('SMI Analyse KGV'!S97-'SMI Analyse KGV'!R97)/ABS('SMI Analyse KGV'!R97) -> -0.2134831461 | J97: =('SMI Analyse KGV'!T97-'SMI Analyse KGV'!S97)/ABS('SMI Analyse KGV'!S97) -> 0.2482142857 | K97: =('SMI Analyse KGV'!U97-'SMI Analyse KGV'!T97)/ABS('SMI Analyse KGV'!T97) -> 0.04148783977 | L97: =('SMI Analyse KGV'!V97-'SMI Analyse KGV'!U97)/ABS('SMI Analyse KGV'!U97) -> -0.1538461538 | M97: =('SMI Analyse KGV'!W97-'SMI Analyse KGV'!V97)/ABS('SMI Analyse KGV'!V97) -> -0.362012987 | N97: =AVERAGE(D97:M97) -> -0.004640176861
B99: Ems-Chemie | C99: =('SMI Analyse KGV'!M99-'SMI Analyse KGV'!L99)/ABS('SMI Analyse KGV'!L99) -> 0.1860262009 | D99: =('SMI Analyse KGV'!N99-'SMI Analyse KGV'!M99)/ABS('SMI Analyse KGV'!M99) -> 0.0795287187 | E99: =('SMI Analyse KGV'!O99-'SMI Analyse KGV'!N99)/ABS('SMI Analyse KGV'!N99) -> 0.09754433834 | F99: =('SMI Analyse KGV'!P99-'SMI Analyse KGV'!O99)/ABS('SMI Analyse KGV'!O99) -> 0.1926662523 | G99: =('SMI Analyse KGV'!Q99-'SMI Analyse KGV'!P99)/ABS('SMI Analyse KGV'!P99) -> 0.07295466389 | H99: =('SMI Analyse KGV'!R99-'SMI Analyse KGV'!Q99)/ABS('SMI Analyse KGV'!Q99) -> 0.07916464303 | I99: =('SMI Analyse KGV'!S99-'SMI Analyse KGV'!R99)/ABS('SMI Analyse KGV'!R99) -> 0.01440144014 | J99: =('SMI Analyse KGV'!T99-'SMI Analyse KGV'!S99)/ABS('SMI Analyse KGV'!S99) -> -0.1761313221 | K99: =('SMI Analyse KGV'!U99-'SMI Analyse KGV'!T99)/ABS('SMI Analyse KGV'!T99) -> 0.267097469 | L99: =('SMI Analyse KGV'!V99-'SMI Analyse KGV'!U99)/ABS('SMI Analyse KGV'!U99) -> -0.03314917127 | M99: =('SMI Analyse KGV'!W99-'SMI Analyse KGV'!V99)/ABS('SMI Analyse KGV'!V99) -> -0.1402197802 | N99: =AVERAGE(D99:M99) -> 0.04538572519
B101: Flughafen Zürich | C101: =('SMI Analyse KGV'!M101-'SMI Analyse KGV'!L101)/ABS('SMI Analyse KGV'!L101) -> 0.4387096774 | D101: =('SMI Analyse KGV'!N101-'SMI Analyse KGV'!M101)/ABS('SMI Analyse KGV'!M101) -> 0.5044843049 | E101: =('SMI Analyse KGV'!O101-'SMI Analyse KGV'!N101)/ABS('SMI Analyse KGV'!N101) -> -0.1281669151 | F101: =('SMI Analyse KGV'!P101-'SMI Analyse KGV'!O101)/ABS('SMI Analyse KGV'!O101) -> 0.3794871795 | G101: =('SMI Analyse KGV'!Q101-'SMI Analyse KGV'!P101)/ABS('SMI Analyse KGV'!P101) -> 0.1511771995 | H101: =('SMI Analyse KGV'!R101-'SMI Analyse KGV'!Q101)/ABS('SMI Analyse KGV'!Q101) -> -0.1657696448 | I101: =('SMI Analyse KGV'!S101-'SMI Analyse KGV'!R101)/ABS('SMI Analyse KGV'!R101) -> 0.2993548387 | J101: =('SMI Analyse KGV'!T101-'SMI Analyse KGV'!S101)/ABS('SMI Analyse KGV'!S101) -> -1.223435948 | K101: =('SMI Analyse KGV'!U101-'SMI Analyse KGV'!T101)/ABS('SMI Analyse KGV'!T101) -> 0.8533333333 | L101: =('SMI Analyse KGV'!V101-'SMI Analyse KGV'!U101)/ABS('SMI Analyse KGV'!U101) -> 21.42424242 | M101: =('SMI Analyse KGV'!W101-'SMI Analyse KGV'!V101)/ABS('SMI Analyse KGV'!V101) -> 0.4703264095 | N101: =AVERAGE(D101:M101) -> 2.256503318
B103: Forbo N | C103: =('SMI Analyse KGV'!M103-'SMI Analyse KGV'!L103)/ABS('SMI Analyse KGV'!L103) -> -0.4026280323 | D103: =('SMI Analyse KGV'!N103-'SMI Analyse KGV'!M103)/ABS('SMI Analyse KGV'!M103) -> 0.1646926114 | E103: =('SMI Analyse KGV'!O103-'SMI Analyse KGV'!N103)/ABS('SMI Analyse KGV'!N103) -> 0.002905569007 | F103: =('SMI Analyse KGV'!P103-'SMI Analyse KGV'!O103)/ABS('SMI Analyse KGV'!O103) -> 0.2015129567 | G103: =('SMI Analyse KGV'!Q103-'SMI Analyse KGV'!P103)/ABS('SMI Analyse KGV'!P103) -> -0.7004688547 | H103: =('SMI Analyse KGV'!R103-'SMI Analyse KGV'!Q103)/ABS('SMI Analyse KGV'!Q103) -> 2.684257603 | I103: =('SMI Analyse KGV'!S103-'SMI Analyse KGV'!R103)/ABS('SMI Analyse KGV'!R103) -> 0.0479485312 | J103: =('SMI Analyse KGV'!T103-'SMI Analyse KGV'!S103)/ABS('SMI Analyse KGV'!S103) -> -0.2285416425 | K103: =('SMI Analyse KGV'!U103-'SMI Analyse KGV'!T103)/ABS('SMI Analyse KGV'!T103) -> 0.3756756757 | L103: =('SMI Analyse KGV'!V103-'SMI Analyse KGV'!U103)/ABS('SMI Analyse KGV'!U103) -> -0.2167648985 | M103: =('SMI Analyse KGV'!W103-'SMI Analyse KGV'!V103)/ABS('SMI Analyse KGV'!V103) -> 0.01100891862 | N103: =AVERAGE(D103:M103) -> 0.234222647
B105: Galenica | C105: =('SMI Analyse KGV'!M105-'SMI Analyse KGV'!L105)/ABS('SMI Analyse KGV'!L105) -> 0.1538461538 | D105: =('SMI Analyse KGV'!N105-'SMI Analyse KGV'!M105)/ABS('SMI Analyse KGV'!M105) -> -0.6355555556 | E105: =('SMI Analyse KGV'!O105-'SMI Analyse KGV'!N105)/ABS('SMI Analyse KGV'!N105) -> -0.01219512195 | F105: =('SMI Analyse KGV'!P105-'SMI Analyse KGV'!O105)/ABS('SMI Analyse KGV'!O105) -> 0.03086419753 | G105: =('SMI Analyse KGV'!Q105-'SMI Analyse KGV'!P105)/ABS('SMI Analyse KGV'!P105) -> 0.4550898204 | H105: =('SMI Analyse KGV'!R105-'SMI Analyse KGV'!Q105)/ABS('SMI Analyse KGV'!Q105) -> 0.2345679012 | I105: =('SMI Analyse KGV'!S105-'SMI Analyse KGV'!R105)/ABS('SMI Analyse KGV'!R105) -> -0.1533333333 | J105: =('SMI Analyse KGV'!T105-'SMI Analyse KGV'!S105)/ABS('SMI Analyse KGV'!S105) -> 0.3700787402 | K105: =('SMI Analyse KGV'!U105-'SMI Analyse KGV'!T105)/ABS('SMI Analyse KGV'!T105) -> -0.02873563218 | L105: =('SMI Analyse KGV'!V105-'SMI Analyse KGV'!U105)/ABS('SMI Analyse KGV'!U105) -> -0.01775147929 | M105: =('SMI Analyse KGV'!W105-'SMI Analyse KGV'!V105)/ABS('SMI Analyse KGV'!V105) -> 0.7228915663 | N105: =AVERAGE(D105:M105) -> 0.09659211032
B107: Georg Fischer AG | C107: =('SMI Analyse KGV'!M107-'SMI Analyse KGV'!L107)/ABS('SMI Analyse KGV'!L107) -> 0.0625 | D107: =('SMI Analyse KGV'!N107-'SMI Analyse KGV'!M107)/ABS('SMI Analyse KGV'!M107) -> 0.3235294118 | E107: =('SMI Analyse KGV'!O107-'SMI Analyse KGV'!N107)/ABS('SMI Analyse KGV'!N107) -> 0.02222222222 | F107: =('SMI Analyse KGV'!P107-'SMI Analyse KGV'!O107)/ABS('SMI Analyse KGV'!O107) -> 0.152173913 | G107: =('SMI Analyse KGV'!Q107-'SMI Analyse KGV'!P107)/ABS('SMI Analyse KGV'!P107) -> 0.1698113208 | H107: =('SMI Analyse KGV'!R107-'SMI Analyse KGV'!Q107)/ABS('SMI Analyse KGV'!Q107) -> 0.1129032258 | I107: =('SMI Analyse KGV'!S107-'SMI Analyse KGV'!R107)/ABS('SMI Analyse KGV'!R107) -> -0.3913043478 | J107: =('SMI Analyse KGV'!T107-'SMI Analyse KGV'!S107)/ABS('SMI Analyse KGV'!S107) -> -0.3333333333 | K107: =('SMI Analyse KGV'!U107-'SMI Analyse KGV'!T107)/ABS('SMI Analyse KGV'!T107) -> 0.8714285714 | L107: =('SMI Analyse KGV'!V107-'SMI Analyse KGV'!U107)/ABS('SMI Analyse KGV'!U107) -> 0.286259542 | M107: =('SMI Analyse KGV'!W107-'SMI Analyse KGV'!V107)/ABS('SMI Analyse KGV'!V107) -> -0.1483679525 | N107: =AVERAGE(D107:M107) -> 0.1065322573
B109: Gurit Holding I | C109: =('SMI Analyse KGV'!M109-'SMI Analyse KGV'!L109)/ABS('SMI Analyse KGV'!L109) -> -0.9918367347 | D109: =('SMI Analyse KGV'!N109-'SMI Analyse KGV'!M109)/ABS('SMI Analyse KGV'!M109) -> 97.91666667 | E109: =('SMI Analyse KGV'!O109-'SMI Analyse KGV'!N109)/ABS('SMI Analyse KGV'!N109) -> 1.032013479 | F109: =('SMI Analyse KGV'!P109-'SMI Analyse KGV'!O109)/ABS('SMI Analyse KGV'!O109) -> 0.1533996683 | G109: =('SMI Analyse KGV'!Q109-'SMI Analyse KGV'!P109)/ABS('SMI Analyse KGV'!P109) -> -0.04169662114 | H109: =('SMI Analyse KGV'!R109-'SMI Analyse KGV'!Q109)/ABS('SMI Analyse KGV'!Q109) -> -0.1942985746 | I109: =('SMI Analyse KGV'!S109-'SMI Analyse KGV'!R109)/ABS('SMI Analyse KGV'!R109) -> 0.7704841713 | J109: =('SMI Analyse KGV'!T109-'SMI Analyse KGV'!S109)/ABS('SMI Analyse KGV'!S109) -> 0.3188272417 | K109: =('SMI Analyse KGV'!U109-'SMI Analyse KGV'!T109)/ABS('SMI Analyse KGV'!T109) -> -0.7578506629 | L109: =('SMI Analyse KGV'!V109-'SMI Analyse KGV'!U109)/ABS('SMI Analyse KGV'!U109) -> -0.1848497324 | M109: =('SMI Analyse KGV'!W109-'SMI Analyse KGV'!V109)/ABS('SMI Analyse KGV'!V109) -> -0.196969697 | N109: =AVERAGE(D109:M109) -> 9.881572594
B111: Helvetia Holding | C111: =('SMI Analyse KGV'!M111-'SMI Analyse KGV'!L111)/ABS('SMI Analyse KGV'!L111) -> 0.1021563342 | D111: =('SMI Analyse KGV'!N111-'SMI Analyse KGV'!M111)/ABS('SMI Analyse KGV'!M111) -> 0.0511127415 | E111: =('SMI Analyse KGV'!O111-'SMI Analyse KGV'!N111)/ABS('SMI Analyse KGV'!N111) -> -0.325732899 | F111: =('SMI Analyse KGV'!P111-'SMI Analyse KGV'!O111)/ABS('SMI Analyse KGV'!O111) -> 0.2446514838 | G111: =('SMI Analyse KGV'!Q111-'SMI Analyse KGV'!P111)/ABS('SMI Analyse KGV'!P111) -> 0.08400332686 | H111: =('SMI Analyse KGV'!R111-'SMI Analyse KGV'!Q111)/ABS('SMI Analyse KGV'!Q111) -> 0.07033248082 | I111: =('SMI Analyse KGV'!S111-'SMI Analyse KGV'!R111)/ABS('SMI Analyse KGV'!R111) -> 0.256869773 | J111: =('SMI Analyse KGV'!T111-'SMI Analyse KGV'!S111)/ABS('SMI Analyse KGV'!S111) -> -0.5475285171 | K111: =('SMI Analyse KGV'!U111-'SMI Analyse KGV'!T111)/ABS('SMI Analyse KGV'!T111) -> 0.9264705882 | L111: =('SMI Analyse KGV'!V111-'SMI Analyse KGV'!U111)/ABS('SMI Analyse KGV'!U111) -> 0.1559432933 | M111: =('SMI Analyse KGV'!W111-'SMI Analyse KGV'!V111)/ABS('SMI Analyse KGV'!V111) -> -0.5056603774 | N111: =AVERAGE(D111:M111) -> 0.04104618941
B113: Hypo Lenzburg | C113: =('SMI Analyse KGV'!M113-'SMI Analyse KGV'!L113)/ABS('SMI Analyse KGV'!L113) -> -0.05637982196 | D113: =('SMI Analyse KGV'!N113-'SMI Analyse KGV'!M113)/ABS('SMI Analyse KGV'!M113) -> -0.07547169811 | E113: =('SMI Analyse KGV'!O113-'SMI Analyse KGV'!N113)/ABS('SMI Analyse KGV'!N113) -> 0.003401360544 | F113: =('SMI Analyse KGV'!P113-'SMI Analyse KGV'!O113)/ABS('SMI Analyse KGV'!O113) -> 0.01694915254 | G113: =('SMI Analyse KGV'!Q113-'SMI Analyse KGV'!P113)/ABS('SMI Analyse KGV'!P113) -> 0.02333333333 | H113: =('SMI Analyse KGV'!R113-'SMI Analyse KGV'!Q113)/ABS('SMI Analyse KGV'!Q113) -> -0.05745928339 | I113: =('SMI Analyse KGV'!S113-'SMI Analyse KGV'!R113)/ABS('SMI Analyse KGV'!R113) -> 0.01026403096 | J113: =('SMI Analyse KGV'!T113-'SMI Analyse KGV'!S113)/ABS('SMI Analyse KGV'!S113) -> -0.1413813156 | K113: =('SMI Analyse KGV'!U113-'SMI Analyse KGV'!T113)/ABS('SMI Analyse KGV'!T113) -> 0.01195219124 | L113: =('SMI Analyse KGV'!V113-'SMI Analyse KGV'!U113)/ABS('SMI Analyse KGV'!U113) -> 0.01968503937 | M113: =('SMI Analyse KGV'!W113-'SMI Analyse KGV'!V113)/ABS('SMI Analyse KGV'!V113) -> 0.138996139 | N113: =AVERAGE(D113:M113) -> -0.004973105015
B115: Julius Baer | C115: =('SMI Analyse KGV'!M115-'SMI Analyse KGV'!L115)/ABS('SMI Analyse KGV'!L115) -> -0.4149659864 | D115: =('SMI Analyse KGV'!N115-'SMI Analyse KGV'!M115)/ABS('SMI Analyse KGV'!M115) -> 0.9534883721 | E115: =('SMI Analyse KGV'!O115-'SMI Analyse KGV'!N115)/ABS('SMI Analyse KGV'!N115) -> -0.6726190476 | F115: =('SMI Analyse KGV'!P115-'SMI Analyse KGV'!O115)/ABS('SMI Analyse KGV'!O115) -> 4.163636364 | G115: =('SMI Analyse KGV'!Q115-'SMI Analyse KGV'!P115)/ABS('SMI Analyse KGV'!P115) -> 0.1443661972 | H115: =('SMI Analyse KGV'!R115-'SMI Analyse KGV'!Q115)/ABS('SMI Analyse KGV'!Q115) -> 0.04 | I115: =('SMI Analyse KGV'!S115-'SMI Analyse KGV'!R115)/ABS('SMI Analyse KGV'!R115) -> -0.3727810651 | J115: =('SMI Analyse KGV'!T115-'SMI Analyse KGV'!S115)/ABS('SMI Analyse KGV'!S115) -> 0.5235849057 | K115: =('SMI Analyse KGV'!U115-'SMI Analyse KGV'!T115)/ABS('SMI Analyse KGV'!T115) -> 0.5665634675 | L115: =('SMI Analyse KGV'!V115-'SMI Analyse KGV'!U115)/ABS('SMI Analyse KGV'!U115) -> -0.09881422925 | M115: =('SMI Analyse KGV'!W115-'SMI Analyse KGV'!V115)/ABS('SMI Analyse KGV'!V115) -> -0.5153508772 | N115: =AVERAGE(D115:M115) -> 0.4732074087
B117: Jungfraubahn | C117: =('SMI Analyse KGV'!M117-'SMI Analyse KGV'!L117)/ABS('SMI Analyse KGV'!L117) -> 0.1591928251 | D117: =('SMI Analyse KGV'!N117-'SMI Analyse KGV'!M117)/ABS('SMI Analyse KGV'!M117) -> 0.01160541586 | E117: =('SMI Analyse KGV'!O117-'SMI Analyse KGV'!N117)/ABS('SMI Analyse KGV'!N117) -> 0.1912045889 | F117: =('SMI Analyse KGV'!P117-'SMI Analyse KGV'!O117)/ABS('SMI Analyse KGV'!O117) -> -0.1476725522 | G117: =('SMI Analyse KGV'!Q117-'SMI Analyse KGV'!P117)/ABS('SMI Analyse KGV'!P117) -> 0.3352165725 | H117: =('SMI Analyse KGV'!R117-'SMI Analyse KGV'!Q117)/ABS('SMI Analyse KGV'!Q117) -> 0.1593794076 | I117: =('SMI Analyse KGV'!S117-'SMI Analyse KGV'!R117)/ABS('SMI Analyse KGV'!R117) -> 0.1082725061 | J117: =('SMI Analyse KGV'!T117-'SMI Analyse KGV'!S117)/ABS('SMI Analyse KGV'!S117) -> -1.173435785 | K117: =('SMI Analyse KGV'!U117-'SMI Analyse KGV'!T117)/ABS('SMI Analyse KGV'!T117) -> 0.9493670886 | L117: =('SMI Analyse KGV'!V117-'SMI Analyse KGV'!U117)/ABS('SMI Analyse KGV'!U117) -> 94.625 | M117: =('SMI Analyse KGV'!W117-'SMI Analyse KGV'!V117)/ABS('SMI Analyse KGV'!V117) -> 0.8170894526 | N117: =AVERAGE(D117:M117) -> 9.58760267
B119: Lindt | C119: =('SMI Analyse KGV'!M119-'SMI Analyse KGV'!L119)/ABS('SMI Analyse KGV'!L119) -> 0.2409638554 | D119: =('SMI Analyse KGV'!N119-'SMI Analyse KGV'!M119)/ABS('SMI Analyse KGV'!M119) -> 0.1224794623 | E119: =('SMI Analyse KGV'!O119-'SMI Analyse KGV'!N119)/ABS('SMI Analyse KGV'!N119) -> 0.09514304724 | F119: =('SMI Analyse KGV'!P119-'SMI Analyse KGV'!O119)/ABS('SMI Analyse KGV'!O119) -> 0.08809234508 | G119: =('SMI Analyse KGV'!Q119-'SMI Analyse KGV'!P119)/ABS('SMI Analyse KGV'!P119) -> 0.05695142379 | H119: =('SMI Analyse KGV'!R119-'SMI Analyse KGV'!Q119)/ABS('SMI Analyse KGV'!Q119) -> 0.0676175383 | I119: =('SMI Analyse KGV'!S119-'SMI Analyse KGV'!R119)/ABS('SMI Analyse KGV'!R119) -> 0.05987135082 | J119: =('SMI Analyse KGV'!T119-'SMI Analyse KGV'!S119)/ABS('SMI Analyse KGV'!S119) -> -0.3776844071 | K119: =('SMI Analyse KGV'!U119-'SMI Analyse KGV'!T119)/ABS('SMI Analyse KGV'!T119) -> 0.5371342836 | L119: =('SMI Analyse KGV'!V119-'SMI Analyse KGV'!U119)/ABS('SMI Analyse KGV'!U119) -> 0.1649585163 | M119: =('SMI Analyse KGV'!W119-'SMI Analyse KGV'!V119)/ABS('SMI Analyse KGV'!V119) -> 0.1977377461 | N119: =AVERAGE(D119:M119) -> 0.1012301306
B121: MeierTobler (vormals Walter Meier) | C121: =('SMI Analyse KGV'!M121-'SMI Analyse KGV'!L121)/ABS('SMI Analyse KGV'!L121) -> -0.4440213252 | D121: =('SMI Analyse KGV'!N121-'SMI Analyse KGV'!M121)/ABS('SMI Analyse KGV'!M121) -> -0.3287671233 | E121: =('SMI Analyse KGV'!O121-'SMI Analyse KGV'!N121)/ABS('SMI Analyse KGV'!N121) -> -0.4795918367 | F121: =('SMI Analyse KGV'!P121-'SMI Analyse KGV'!O121)/ABS('SMI Analyse KGV'!O121) -> 0.9803921569 | G121: =('SMI Analyse KGV'!Q121-'SMI Analyse KGV'!P121)/ABS('SMI Analyse KGV'!P121) -> -1.143564356 | H121: =('SMI Analyse KGV'!R121-'SMI Analyse KGV'!Q121)/ABS('SMI Analyse KGV'!Q121) -> -1.655172414 | I121: =('SMI Analyse KGV'!S121-'SMI Analyse KGV'!R121)/ABS('SMI Analyse KGV'!R121) -> 1.142857143 | J121: =('SMI Analyse KGV'!T121-'SMI Analyse KGV'!S121)/ABS('SMI Analyse KGV'!S121) -> 1.909090909 | K121: =('SMI Analyse KGV'!U121-'SMI Analyse KGV'!T121)/ABS('SMI Analyse KGV'!T121) -> 3.09375 | L121: =('SMI Analyse KGV'!V121-'SMI Analyse KGV'!U121)/ABS('SMI Analyse KGV'!U121) -> 0.9847328244 | M121: =('SMI Analyse KGV'!W121-'SMI Analyse KGV'!V121)/ABS('SMI Analyse KGV'!V121) -> -0.08846153846 | N121: =AVERAGE(D121:M121) -> 0.4415265765
B123: Meyer Burger | C123: =('SMI Analyse KGV'!M123-'SMI Analyse KGV'!L123)/ABS('SMI Analyse KGV'!L123) -> -0.2105263158 | D123: =('SMI Analyse KGV'!N123-'SMI Analyse KGV'!M123)/ABS('SMI Analyse KGV'!M123) -> 0.7739130435 | E123: =('SMI Analyse KGV'!O123-'SMI Analyse KGV'!N123)/ABS('SMI Analyse KGV'!N123) -> -0.25 | F123: =('SMI Analyse KGV'!P123-'SMI Analyse KGV'!O123)/ABS('SMI Analyse KGV'!O123) -> 0.5384615385 | G123: =('SMI Analyse KGV'!Q123-'SMI Analyse KGV'!P123)/ABS('SMI Analyse KGV'!P123) -> 0.5333333333 | H123: =('SMI Analyse KGV'!R123-'SMI Analyse KGV'!Q123)/ABS('SMI Analyse KGV'!Q123) -> 0.6428571429 | I123: =('SMI Analyse KGV'!S123-'SMI Analyse KGV'!R123)/ABS('SMI Analyse KGV'!R123) -> 0.6 | J123: =('SMI Analyse KGV'!T123-'SMI Analyse KGV'!S123)/ABS('SMI Analyse KGV'!S123) -> -1 | K123: =('SMI Analyse KGV'!U123-'SMI Analyse KGV'!T123)/ABS('SMI Analyse KGV'!T123) -> 0 | L123: =('SMI Analyse KGV'!V123-'SMI Analyse KGV'!U123)/ABS('SMI Analyse KGV'!U123) -> 0.5 | M123: =('SMI Analyse KGV'!W123-'SMI Analyse KGV'!V123)/ABS('SMI Analyse KGV'!V123) -> -3 | N123: =AVERAGE(D123:M123) -> -0.06614349419
B125: PSP Swiss Property | C125: =('SMI Analyse KGV'!M125-'SMI Analyse KGV'!L125)/ABS('SMI Analyse KGV'!L125) -> 0.05277777778 | D125: =('SMI Analyse KGV'!N125-'SMI Analyse KGV'!M125)/ABS('SMI Analyse KGV'!M125) -> -0.02638522427 | E125: =('SMI Analyse KGV'!O125-'SMI Analyse KGV'!N125)/ABS('SMI Analyse KGV'!N125) -> -0.0460704607 | F125: =('SMI Analyse KGV'!P125-'SMI Analyse KGV'!O125)/ABS('SMI Analyse KGV'!O125) -> 0.06818181818 | G125: =('SMI Analyse KGV'!Q125-'SMI Analyse KGV'!P125)/ABS('SMI Analyse KGV'!P125) -> 0.03457446809 | H125: =('SMI Analyse KGV'!R125-'SMI Analyse KGV'!Q125)/ABS('SMI Analyse KGV'!Q125) -> -0.01285347044 | I125: =('SMI Analyse KGV'!S125-'SMI Analyse KGV'!R125)/ABS('SMI Analyse KGV'!R125) -> 0.2213541667 | J125: =('SMI Analyse KGV'!T125-'SMI Analyse KGV'!S125)/ABS('SMI Analyse KGV'!S125) -> 0.002132196162 | K125: =('SMI Analyse KGV'!U125-'SMI Analyse KGV'!T125)/ABS('SMI Analyse KGV'!T125) -> 0.02553191489 | L125: =('SMI Analyse KGV'!V125-'SMI Analyse KGV'!U125)/ABS('SMI Analyse KGV'!U125) -> 0.06639004149 | M125: =('SMI Analyse KGV'!W125-'SMI Analyse KGV'!V125)/ABS('SMI Analyse KGV'!V125) -> 0.439688716 | N125: =AVERAGE(D125:M125) -> 0.0772544166
B127: Schindler | C127: =('SMI Analyse KGV'!M129-'SMI Analyse KGV'!L129)/ABS('SMI Analyse KGV'!L129) -> -0.3836065574 | D127: =('SMI Analyse KGV'!N129-'SMI Analyse KGV'!M129)/ABS('SMI Analyse KGV'!M129) -> 1.058510638 | E127: =('SMI Analyse KGV'!O129-'SMI Analyse KGV'!N129)/ABS('SMI Analyse KGV'!N129) -> -0.188630491 | F127: =('SMI Analyse KGV'!P129-'SMI Analyse KGV'!O129)/ABS('SMI Analyse KGV'!O129) -> 0.1369426752 | G127: =('SMI Analyse KGV'!Q129-'SMI Analyse KGV'!P129)/ABS('SMI Analyse KGV'!P129) -> 0.07843137255 | H127: =('SMI Analyse KGV'!R129-'SMI Analyse KGV'!Q129)/ABS('SMI Analyse KGV'!Q129) -> 0.1415584416 | I127: =('SMI Analyse KGV'!S129-'SMI Analyse KGV'!R129)/ABS('SMI Analyse KGV'!R129) -> -0.08532423208 | J127: =('SMI Analyse KGV'!T129-'SMI Analyse KGV'!S129)/ABS('SMI Analyse KGV'!S129) -> -0.1641791045 | K127: =('SMI Analyse KGV'!U129-'SMI Analyse KGV'!T129)/ABS('SMI Analyse KGV'!T129) -> 0.1428571429 | L127: =('SMI Analyse KGV'!V129-'SMI Analyse KGV'!U129)/ABS('SMI Analyse KGV'!U129) -> -0.2630208333 | M127: =('SMI Analyse KGV'!W129-'SMI Analyse KGV'!V129)/ABS('SMI Analyse KGV'!V129) -> 0.4204946996 | N127: =AVERAGE(D127:M127) -> 0.1277640309
